Workbook

Sheet Q48(a) 1&2-DIV091
A1: KY DR Q48 (a) 1&2
A3: Atmos Energy Corporation, Inc.
A4: Accumulated Deferred Income Taxes
A5: Division 091 - Brentwood Division
A6: Calendar Year End 12/31/2016
A8: ALL NUMBERS ARE TAX EFFECTED
E10: Fiscal 2015 | F10: Fiscal 2015 | G10: Fiscal 2015 | H10: Fiscal 2015 | I10: Fiscal 2016 | J10: Fiscal 2016 | K10: Fiscal 2016 | L10: Fiscal 2016 | M10: Fiscal 2017
A11: Adjustment Description | C11: Category | D11: Adj Code | E11: 2014-12-31 | F11: 2015-03-31 | G11: 2015-06-30 | H11: 2015-09-30 | I11: 2015-12-31 | J11: 2016-03-31 | K11: 2016-06-30 | L11: 2016-09-30 | M11: 2016-12-31
A12: Environmental Activities | C12: ACC | D12: ACC01 | E12: 0 | F12: 0 | G12: 0 | H12: 0 | I12: 0 | J12: 0 | K12: 0 | L12: 0 | M12: 0
A13: Ad Valorem Taxes | C13: ACC | D13: ACC02 | E13: 0 | F13: 0 | G13: 0 | H13: 0 | I13: 0 | J13: 0 | K13: 0 | L13: 0 | M13: 0
A14: Directors Deferred Bonus | C14: ACC | D14: ACC03 | E14: 0 | F14: 0 | G14: 0 | H14: 0 | I14: 0 | J14: 0 | K14: 0 | L14: 0 | M14: 0
A15: MIP/VPP Accrual | C15: ACC | D15: ACC04 | E15: 141946.675 | F15: 141946.675 | G15: 141946.675 | H15: 181668.53 | I15: 181668.53 | J15: 181668.53 | K15: 181668.53 | L15: -17997 | M15: -17997
A16: Accrued Environmental Asset | C16: ACC | D16: ACC05 | E16: 0 | F16: 0 | G16: 0 | H16: 0 | I16: 0 | J16: 0 | K16: 0 | L16: 0 | M16: 0
A17: Miscellaneous Accrued | C17: ACC | D17: ACC06 | E17: 0 | F17: 0 | G17: 0 | H17: 0 | I17: 0 | J17: 0 | K17: 0 | L17: 0 | M17: 0
A18: Self Insurance - Adjustment | C18: ACC | D18: ACC08 | E18: 0 | F18: 0 | G18: 0 | H18: 0 | I18: 0 | J18: 0 | K18: 0 | L18: 0 | M18: 0
A19: Vacation Accrual | C19: ACC | D19: ACC11 | E19: 0 | F19: 0 | G19: 0 | H19: 0 | I19: 0 | J19: 0 | K19: 0 | L19: 0 | M19: 0
A20: Worker's Comp Insurance Reserve | C20: ACC | D20: ACC12 | E20: 449413.55 | F20: 449413.55 | G20: 449413.55 | H20: 265439.315 | I20: 265439.315 | J20: 265439.315 | K20: 265439.315 | L20: 428980 | M20: 428980
A21: Accrual - Subtotal | E21: =SUM(E12:E20) -> 591360.225 | F21: 591360.225 | G21: 591360.225 | H21: 447107.845 | I21: 447107.845 | J21: 447107.845 | K21: 447107.845 | L21: 410983 | M21: 410983
A22: Rabbi Trust - True Up | C22: BEN | D22: NBP01 | E22: 0 | F22: 0 | G22: 0 | H22: 0 | I22: 0 | J22: 0 | K22: 0 | L22: 0 | M22: 0
A23: SEBP Adjustment | C23: BEN | D23: NBP03 | E23: 1351131.903 | F23: 1356519.85 | G23: 1364196.85 | H23: 1374824.33 | I23: 1377062.33 | J23: 1380419.33 | K23: 1383969.025 | L23: 1389076 | M23: 1389076
A24: Rabbi Trust MVG | C24: BEN | D24: NBP04 | E24: 0 | F24: 0 | G24: 0 | H24: 0 | I24: 0 | J24: 0 | K24: 0 | L24: 0 | M24: 0
A25: Restricted Stock Grant Plan | C25: BEN | D25: NBP05 | E25: 0 | F25: 0 | G25: 0 | H25: 0 | I25: 0 | J25: 0 | K25: 0 | L25: 0 | M25: 0
A26: Rabbi Trust | C26: BEN | D26: NBP06 | E26: 0 | F26: 0 | G26: 0 | H26: 0 | I26: 0 | J26: 0 | K26: 0 | L26: 0 | M26: 0
A27: Excess Capital Loss ovr Capital Gain | C27: BEN | D27: NBP08 | E27: 0 | F27: 0 | G27: 0 | H27: 0 | I27: 0 | J27: 0 | K27: 0 | L27: 0 | M27: 0
A28: Restricted Stock - MIP | C28: BEN | D28: NBP13 | E28: 0 | F28: 0 | G28: 0 | H28: 0 | I28: 0 | J28: 0 | K28: 0 | L28: 0 | M28: 0
A29: Director's Stock Awards | C29: BEN | D29: NBP16 | E29: 0 | F29: 0 | G29: 0 | H29: 0 | I29: 0 | J29: 0 | K29: 0 | L29: 0 | M29: 0
A30: Director's Stock - Temp | C30: BEN | D30: NBP18 | E30: 0 | F30: 0 | G30: 0 | H30: 0 | I30: 0 | J30: 0 | K30: 0 | L30: 0 | M30: 0
A31: Pension Expense | C31: BEN | D31: PEN01 | E31: 0 | F31: 0 | G31: 0 | H31: 0 | I31: 0 | J31: 0 | K31: 0 | L31: 0 | M31: 0
A32: FAS106 Adjustment | C32: BEN | D32: PRB01 | E32: 2584126.248 | F32: 2434856.185 | G32: 2257451.185 | H32: 2723602.99 | I32: 2431118.99 | J32: 2199170.99 | K32: 2062418.506 | L32: 1170544 | M32: 1170544
A33: Benefits - Subtotal | E33: =SUM(E22:E32) -> 3935258.151 | F33: 3791376.035 | G33: 3621648.035 | H33: 4098427.32 | I33: 3808181.32 | J33: 3579590.32 | K33: 3446387.531 | L33: 2559620 | M33: 2559620
A34: CWIP | C34: CWIP/RWIP | D34: FXA26 | E34: 111877.61 | F34: 111877.61 | G34: 111877.61 | H34: 117195.66 | I34: 117195.66 | J34: 117195.66 | K34: 117195.66 | L34: 102324 | M34: 102324
A35: RWIP | C35: CWIP/RWIP | D35: FXA47 | E35: -2381.99 | F35: -2381.99 | G35: -2381.99 | H35: -2592.96 | I35: -2592.96 | J35: -2592.96 | K35: -2592.96 | L35: -273 | M35: -273
A36: CWIP/RWIP - Subtotal | E36: =SUM(E34:E35) -> 109495.62 | F36: 109495.62 | G36: 109495.62 | H36: 114602.7 | I36: 114602.7 | J36: 114602.7 | K36: 114602.7 | L36: 102051 | M36: 102051
A37: Fixed Asset Cost Adjustment | C37: FXA | D37: FXA01 | E37: -4791488.316 | F37: -7422473.145 | G37: -10691312.14 | H37: 1524972.19 | I37: -2257235.81 | J37: -131777.81 | K37: -9527957.805 | L37: -1442884 | M37: -6406504
A38: Depreciation Adjustment | C38: FXA | D38: FXA02 | E38: 210627.011 | F38: 283903.235 | G38: 776850.235 | H38: -2138844.885 | I38: -3265340.885 | J38: -9647509.885 | K38: -4681982.664 | L38: 207582 | M38: -2578481
A39: Book Gain/Loss on Sale of Fixed Assets | C39: FXA | D39: FXA03 | E39: 0 | F39: 0 | G39: 0 | H39: 0 | I39: 0 | J39: 0 | K39: 0 | L39: 0 | M39: 0
A40: Tax Gain/Loss on Sale of Fixed Assets | C40: FXA | D40: FXA04 | E40: 0 | F40: 0 | G40: 0 | H40: 0 | I40: 0 | J40: 0 | K40: 0 | L40: 0 | M40: 0
A41: Section 481(a) Cushion Gas | C41: FXA | D41: FXA13 | E41: 0 | F41: 0 | G41: 0 | H41: 0 | I41: 0 | J41: 0 | K41: 0 | L41: 0 | M41: 0
A42: Section 481(a) Line Pack Gas | C42: FXA | D42: FXA14 | E42: 0 | F42: 0 | G42: 0 | H42: 0 | I42: 0 | J42: 0 | K42: 0 | L42: 0 | M42: 0
A43: IRS Audit Assessment - Cost | C43: FXA | D43: FXA15 | E43: 0 | F43: 0 | G43: 0 | H43: 0 | I43: 0 | J43: 0 | K43: 0 | L43: 0 | M43: 0
A44: IRS Audit Assessment - Accum | C44: FXA | D44: FXA16 | E44: 0 | F44: 0 | G44: 0 | H44: 0 | I44: 0 | J44: 0 | K44: 0 | L44: 0 | M44: 0
A45: Repair % Completion Allowance | C45: FXA | D45: FXA41 | E45: 0 | F45: 0 | G45: 0 | H45: 0 | I45: 0 | J45: 0 | K45: 0 | L45: 0 | M45: 0
A46: Section 481(a) TPR | C46: FXA | D46: FXA46 | E46: 0 | F46: 0 | G46: 0 | H46: -1089561.5 | I46: -1180358.5 | J46: -907967.5 | K46: -1089561.5 | L46: 0 | M46: 0
A47: Plant - Subtotal | E47: =SUM(E37:E46) -> -4580861.305 | F47: -7138569.91 | G47: -9914461.91 | H47: -1703434.195 | I47: -6702935.195 | J47: -10687255.2 | K47: -15299501.97 | L47: -1235302 | M47: -8984985
A48: Deferred Gas Costs | C48: GCA | D48: GCA01 | E48: -4232173.547 | F48: 410111 | G48: 10550505 | H48: 0 | I48: -3080823 | J48: -2006959 | K48: -835939.06 | L48: 0 | M48: -2944487
A49: Over Recoveries of PGA | C49: GCA | D49: GCA03 | E49: -898258.43 | F49: -8132389 | G49: -9050124 | H49: 0 | I49: 1411825 | J49: -1465804 | K49: 1518284.66 | L49: 0 | M49: 754729
A50: PGA - Amended Item | C50: GCA | D50: GCA04 | E50: 0 | F50: 0 | G50: 0 | H50: 0 | I50: 0 | J50: 0 | K50: 0 | L50: 0 | M50: 0
A51: Gas Cost Adjustment - Subtotal | E51: =SUM(E48:E50) -> -5130431.977 | F51: -7722278 | G51: 1500381 | H51: 0 | I51: -1668998 | J51: -3472763 | K51: 682345.6 | L51: 0 | M51: -2189758
A52: LGS - Goodwill Amortization | C52: GDW | D52: ONT13 | E52: 0 | F52: 0 | G52: 0 | H52: 0 | I52: 0 | J52: 0 | K52: 0 | L52: 0 | M52: 0
A53: TXU - Goodwill Amortization | C53: GDW | D53: ONT49 | E53: 0 | F53: 0 | G53: 0 | H53: 0 | I53: 0 | J53: 0 | K53: 0 | L53: 0 | M53: 0
A54: Goodwill - Subtotal | E54: =SUM(E52:E53) -> 0 | F54: 0 | G54: 0 | H54: 0 | I54: 0 | J54: 0 | K54: 0 | L54: 0 | M54: 0
A55: Customer Advances | C55: ONT | D55: CAP01 | E55: 0 | F55: 0 | G55: 0 | H55: 0 | I55: 0 | J55: 0 | K55: 0 | L55: 0 | M55: 0
A56: Amoritzation - LGS Acq. 1810-13523 | C56: ONT | D56: DTE01 | E56: 0 | F56: 0 | G56: 0 | H56: 0 | I56: 0 | J56: 0 | K56: 0 | L56: 0 | M56: 0
A57: Deferred Expense Projects | C57: ONT | D57: DTE09 | E57: -669.31875 | F57: -2164 | G57: -2317 | H57: 0 | I57: 0 | J57: 0 | K57: -394.65625 | L57: 0 | M57: 0
A58: Amoritzation - LGS Acq. 1810-14155 | C58: ONT | D58: DTE12 | E58: 0 | F58: 0 | G58: 0 | H58: 0 | I58: 0 | J58: 0 | K58: 0 | L58: 0 | M58: 0
A59: Deferred Projects - TXU Acquisition | C59: ONT | D59: DTE14 | E59: 0 | F59: 0 | G59: 0 | H59: 0 | I59: 0 | J59: 0 | K59: 0 | L59: 0 | M59: 0
A60: RAR 91/93 Bond Cost Amortized | C60: ONT | D60: DVA05 | E60: 25433.2 | F60: 25433.2 | G60: 25433.2 | H60: 26869.475 | I60: 26869.475 | J60: 26869.475 | K60: 26869.475 | L60: 28302 | M60: 28302
A61: RAR 91/93 Bond Cost Capitalized | C61: ONT | D61: DVA06 | E61: 0 | F61: 0 | G61: 0 | H61: 0 | I61: 0 | J61: 0 | K61: 0 | L61: 0 | M61: 0
A62: DIG on Fixed Assets | C62: ONT | D62: DVA16 | E62: 0 | F62: 0 | G62: 0 | H62: 0 | I62: 0 | J62: 0 | K62: 0 | L62: 0 | M62: 0
A63: DIG on Fixed Assets - UCG Storage | C63: ONT | D63: DVA18 | E63: -1171781.4 | F63: -1171781.4 | G63: -1171781.4 | H63: -1171781.4 | I63: -1171781.4 | J63: -1171781.4 | K63: -1171781.4 | L63: -1171621 | M63: -1171621
A64: DIG on Fixed Assets - WKG | C64: ONT | D64: DVA19 | E64: 0 | F64: 0 | G64: 0 | H64: 0 | I64: 0 | J64: 0 | K64: 0 | L64: 0 | M64: 0
A65: RAR 86/90 Lease Expense Amortiz. | C65: ONT | D65: DVA26 | E65: -142988.02 | F65: -142988.02 | G65: -142988.02 | H65: -148363.01 | I65: -148363.01 | J65: -148363.01 | K65: -148363.01 | L65: -153717 | M65: -153717
A66: MVG Right of Way | C66: ONT | D66: DVA35 | E66: 0 | F66: 0 | G66: 0 | H66: 0 | I66: 0 | J66: 0 | K66: 0 | L66: 0 | M66: 0
A67: Amortization - ComfurT Goodwill | C67: ONT | D67: DVA37 | E67: 0 | F67: 0 | G67: 0 | H67: 0 | I67: 0 | J67: 0 | K67: 0 | L67: 0 | M67: 0
A68: Deferred ITC - GGC | C68: ONT | D68: ITC01 | E68: 0 | F68: 0 | G68: 0 | H68: 0 | I68: 0 | J68: 0 | K68: 0 | L68: 0 | M68: 0
A69: Deferred ITC - UCG Non-Utility | C69: ONT | D69: ITC02 | E69: 4168.665 | F69: 4168.665 | G69: 4168.665 | H69: 6484.59 | I69: 6484.59 | J69: 6484.59 | K69: 6484.59 | L69: 6484 | M69: 6484
A70: Deferred ITC - UCG | C70: ONT | D70: ITC03 | E70: 0 | F70: 0 | G70: 0 | H70: 0 | I70: 0 | J70: 0 | K70: 0 | L70: 0 | M70: 0
A71: Deferred ITC - MVG | C71: ONT | D71: ITC04 | E71: 0 | F71: 0 | G71: 0 | H71: 0 | I71: 0 | J71: 0 | K71: 0 | L71: 0 | M71: 0
A72: Regulatory Liability - GGC | C72: ONT | D72: ITC05 | E72: 0 | F72: 0 | G72: 0 | H72: 0 | I72: 0 | J72: 0 | K72: 0 | L72: 0 | M72: 0
A73: Capitalized Selling Expense | C73: ONT | D73: NTE03 | E73: 0 | F73: 0 | G73: 0 | H73: 0 | I73: 0 | J73: 0 | K73: 0 | L73: 0 | M73: 0
A74: UNICAP Section 263A Costs | C74: ONT | D74: NTE11 | E74: 1716847.215 | F74: 1716847.215 | G74: 1716847.215 | H74: 1218029.455 | I74: 1218029.455 | J74: 1218029.455 | K74: 1218029.455 | L74: 1965492 | M74: 1965492
A75: 481(a) UNICAP | C75: ONT | D75: NTE15 | E75: 0 | F75: 0 | G75: 0 | H75: 0 | I75: 0 | J75: 0 | K75: 0 | L75: 0 | M75: 0
A76: UNICAP - IRS Audit | C76: ONT | D76: NTE19 | E76: 0 | F76: 0 | G76: 0 | H76: 0 | I76: 0 | J76: 0 | K76: 0 | L76: 0 | M76: 0
A77: Allowance for Doubtful Accounts | C77: ONT | D77: ONT02 | E77: 89084.09 | F77: 6607.98 | G77: -206511.02 | H77: 15300.07 | I77: -85448.93 | J77: 2131.07 | K77: 24567.96385 | L77: 15325 | M77: 15325
A78: Clearing Account - Adjustment | C78: ONT | D78: ONT03 | E78: 0 | F78: 0 | G78: 0 | H78: 0 | I78: 0 | J78: 0 | K78: 0 | L78: 0 | M78: 0
A79: Charitable Contribution Carryover | C79: ONT | D79: ONT04 | E79: 64512.29 | F79: 87995 | G79: 163960 | H79: 0 | I79: 10246 | J79: 91667 | K79: 141072.7701 | L79: 0 | M79: 0
A80: RAR CFWE 1990-1985 | C80: ONT | D80: ONT06 | E80: 0 | F80: 0 | G80: 0 | H80: 0 | I80: 0 | J80: 0 | K80: 0 | L80: 0 | M80: 0
A81: Union Gas - Non Compete | C81: ONT | D81: ONT21 | E81: 407542.575 | F81: 407542.575 | G81: 407542.575 | H81: 407542.575 | I81: 407542.575 | J81: 407542.575 | K81: 407542.575 | L81: 407487 | M81: 407487
A82: Monarch - Non Compete | C82: ONT | D82: ONT22 | E82: 0 | F82: 0 | G82: 0 | H82: 0 | I82: 0 | J82: 0 | K82: 0 | L82: 0 | M82: 0
A83: Palmyra - Non Compete | C83: ONT | D83: ONT23 | E83: 0 | F83: 0 | G83: 0 | H83: 0 | I83: 0 | J83: 0 | K83: 0 | L83: 0 | M83: 0
A84: Prepayments | C84: ONT | D84: ONT31 | E84: 0 | F84: 0 | G84: 0 | H84: 0 | I84: 0 | J84: 0 | K84: 0 | L84: 0 | M84: 0
A85: Rate Case Accrual | C85: ONT | D85: ONT32 | E85: 1.58775 | F85: -8 | G85: -9 | H85: 0 | I85: 10646 | J85: 26615 | K85: 73689.27695 | L85: 0 | M85: -1
A86: Research and Development Expenses | C86: ONT | D86: ONT33 | E86: 0 | F86: 0 | G86: 0 | H86: 0 | I86: 0 | J86: 0 | K86: 0 | L86: 0 | M86: 0
A87: Partnership Investment - Unitary | C87: ONT | D87: ONT37 | E87: 0 | F87: 0 | G87: 0 | H87: 0 | I87: 0 | J87: 0 | K87: 0 | L87: 0 | M87: 0
A88: Inventory Adjustment | C88: ONT | D88: ONT44 | E88: 0 | F88: 0 | G88: 0 | H88: 0 | I88: 0 | J88: 0 | K88: 0 | L88: 0 | M88: 0
A89: Stock Option Expense | C89: ONT | D89: ONT50 | E89: 0 | F89: 0 | G89: 0 | H89: 0 | I89: 0 | J89: 0 | K89: 0 | L89: 0 | M89: 0
A90: Prepayments - MVG | C90: ONT | D90: ONT51 | E90: 0 | F90: 0 | G90: 0 | H90: 0 | I90: 0 | J90: 0 | K90: 0 | L90: 0 | M90: 0
A91: WACOG to FIFO Adjustment | C91: ONT | D91: ONT52 | E91: 1216956.355 | F91: -162018.775 | G91: -155064.775 | H91: -170211.545 | I91: -402276.545 | J91: -93935.545 | K91: -93935.305 | L91: 200613 | M91: 184045
A92: Tax Free Interest - Temp | C92: ONT | D92: ONT58 | E92: 0 | F92: 0 | G92: 0 | H92: 0 | I92: 0 | J92: 0 | K92: 0 | L92: 0 | M92: 0
A93: Federal & State Tax Interest | C93: ONT | D93: ONT61 | E93: 0 | F93: 0 | G93: 0 | H93: 0 | I93: 0 | J93: 0 | K93: 0 | L93: 0 | M93: 0
A94: Prepayments - IRS Audits | C94: ONT | D94: ONT64 | E94: 0 | F94: 0 | G94: 0 | H94: 0 | I94: 0 | J94: 0 | K94: 0 | L94: 0 | M94: 0
A95: VA Charitable Contributions | C95: ONT | D95: ONT67 | E95: 0 | F95: 0 | G95: 0 | H95: 0 | I95: 0 | J95: 0 | K95: 0 | L95: 0 | M95: 0
A96: Reg Asset Benefit Accrual | C96: ONT | D96: ONT68 | E96: 0 | F96: 189726 | G96: 380148 | H96: 0 | I96: 39496 | J96: 98739 | K96: 157982.95 | L96: 0 | M96: 39496
A97: TX Rule 8.209 Reg Asset Deferral | C97: ONT | D97: ONT69 | E97: 0 | F97: 0 | G97: 0 | H97: 0 | I97: 0 | J97: 0 | K97: 0 | L97: 0 | M97: 0
A98: LA SIIP Reg Asset | C98: ONT | D98: ONT70 | E98: 0 | F98: 0 | G98: 0 | H98: 0 | I98: 0 | J98: 0 | K98: 0 | L98: 0 | M98: 0
A99: Intra Period Tax Allocation | C99: ONT | D99: OTH | E99: 129031.2402 | F99: 258062 | G99: 78428 | H99: 0 | I99: 83208 | J99: 166417 | K99: -58560.86786 | L99: 0 | M99: 119802
A100: Regulatory Asset - LGS Amortization | C100: ONT | D100: RGA01 | E100: 0 | F100: 0 | G100: 0 | H100: 0 | I100: 0 | J100: 0 | K100: 0 | L100: 0 | M100: 0
A101: Regulatory Asset - Mid Tex | C101: ONT | D101: RGA03 | E101: 0 | F101: 0 | G101: 0 | H101: 0 | I101: 0 | J101: 0 | K101: 0 | L101: 0 | M101: 0
A102: Regulatory Liability - Atmos 109 | C102: ONT | D102: RGL01 | E102: 0 | F102: 0 | G102: 0 | H102: 0 | I102: 0 | J102: 0 | K102: 0 | L102: 0 | M102: 0
A103: Regulatory Liability - Mid-Tex | C103: ONT | D103: RGL02 | E103: 0 | F103: 0 | G103: 0 | H103: 0 | I103: 0 | J103: 0 | K103: 0 | L103: 0 | M103: 0
A104: Regulatory Liability - GGC 109 | C104: ONT | D104: RGL03 | E104: 0 | F104: 0 | G104: 0 | H104: 0 | I104: 0 | J104: 0 | K104: 0 | L104: 0 | M104: 0
A105: Regulatory Liability - UCGC 109 | C105: ONT | D105: RGL04 | E105: -410599.815 | F105: -410599.815 | G105: -410599.815 | H105: -360526.195 | I105: -360526.195 | J105: -360526.195 | K105: -360526.195 | L105: -310337 | M105: -310337
A106: Regulatory Liability - UCGC Rate | C106: ONT | D106: RGL05 | E106: 291769.32 | F106: 291769.32 | G106: 291769.32 | H106: 201477.81 | I106: 201477.81 | J106: 201477.81 | K106: 201477.81 | L106: 111171 | M106: 111171
A107: Other - Subtotal | E107: =SUM(E55:E106) -> 2219307.984 | F107: 1098591.945 | G107: 979025.945 | H107: 24821.825 | I107: -164396.175 | J107: 471366.825 | K107: 424155.4318 | L107: 1099199 | M107: 1241928
A108: FD-NOL Credit Carryforward - Non Reg | C108: TAX | D108: TAX02NR | E108: 0 | F108: 0 | G108: 0 | H108: 0 | I108: 0 | J108: 0 | K108: 0 | L108: 0 | M108: 0
A109: FD-NOL Credit Carryforward - Utility | C109: TAX | D109: TAX02U | E109: 0 | F109: 0 | G109: 0 | H109: 0 | I109: 0 | J109: 0 | K109: 0 | L109: 0 | M109: 0
A110: FD-NOL Credit Carryforward - Other | C110: TAX | D110: TAX02OT | E110: 0 | F110: 0 | G110: 0 | H110: 0 | I110: 0 | J110: 0 | K110: 0 | L110: 0 | M110: 0
A111: ST-State Net Operating Loss | C111: TAX | D111: TAX04 | E111: 0 | F111: 0 | G111: 0 | H111: 0 | I111: 0 | J111: 0 | K111: 0 | L111: 0 | M111: 0
A112: ST-State Bonus Depreciation | C112: TAX | D112: TAX05 | E112: 6888262 | F112: 6888262 | G112: 6888262 | H112: 7738167 | I112: 7738167 | J112: 7738167 | K112: 7738167 | L112: 10654249 | M112: 10654249
A113: FD-FAS 115 Adjustment | C113: TAX | D113: TAX06 | E113: 0 | F113: 0 | G113: 0 | H113: 0 | I113: 0 | J113: 0 | K113: 0 | L113: 0 | M113: 0
A114: FD-Treasury Lock Adjustment | C114: TAX | D114: TAX08 | E114: 0 | F114: 0 | G114: 0 | H114: 0 | I114: 0 | J114: 0 | K114: 0 | L114: 0 | M114: 0
A115: FD-Other | C115: TAX | D115: TAX10 | E115: 0 | F115: 0 | G115: 0 | H115: 0 | I115: 0 | J115: 0 | K115: 0 | L115: 0 | M115: 0
A116: FD-Federal Benefit on State Bonus | C116: TAX | D116: TAX11 | E116: -2410892 | F116: -2410892 | G116: -2410892 | H116: -2708359 | I116: -2708359 | J116: -2708359 | K116: -2708359 | L116: -3728987 | M116: -3728987
A117: FD-Federal Benefit on State NOL | C117: TAX | D117: TAX12 | E117: 0 | F117: 0 | G117: 0 | H117: 0 | I117: 0 | J117: 0 | K117: 0 | L117: 0 | M117: 0
A118: ST - Valuation Allow on State NOL | C118: TAX | D118: TAX13 | G118: 0 | H118: 0 | I118: 0 | J118: 0 | K118: 0 | L118: 0 | M118: 0
A119: FD - Valuation on Fed Tax of St NO | C119: TAX | D119: TAX14 | G119: 0 | H119: 0 | I119: 0 | J119: 0 | K119: 0 | L119: 0 | M119: 0
A120: FD-FAS 158 Measurement Date Change | C120: TAX | D120: TAX22 | E120: 0 | F120: 0 | G120: 0 | H120: 0 | I120: 0 | J120: 0 | K120: 0 | L120: 0 | M120: 0
A121: FD-AMT Minimum Tax Credit | C121: TAX | D121: TAX23 | E121: 0 | F121: 0 | G121: 0 | H121: 0 | I121: 0 | J121: 0 | K121: 0 | L121: 0 | M121: 0
A122: ST- Valuation Allow Enterprise Zone ITC | C122: TAX | D122: TAX37 | L122: 0 | M122: 0
A123: FD- Valuation Allow Fed Tax Enterprise Zone ITC | C123: TAX | D123: TAX38 | L123: 0 | M123: 0
A124: ST-Enterprise Zone ITC | C124: TAX | D124: TAX39 | E124: 0 | F124: 0 | G124: 0 | H124: 0 | I124: 0 | J124: 0 | K124: 0 | L124: 0 | M124: 0
A125: FD-Treasury Lock Adjustment-Realized | C125: TAX | D125: TAX40 | E125: 0 | F125: 0 | G125: 0 | H125: 0 | I125: 0 | J125: 0 | K125: 0 | L125: 0 | M125: 0
A126: FD-Treasury Lock Adjustment-Unrealized | C126: TAX | D126: TAX41 | E126: 0 | F126: 0 | G126: 0 | H126: 0 | I126: 0 | J126: 0 | K126: 0 | L126: 0 | M126: 0
A127: FD -Federal Tax on Enterprise ITC | C127: TAX | D127: TAX42 | G127: 0 | H127: 0 | I127: 0 | J127: 0 | K127: 0 | L127: 0 | M127: 0
A128: Other Tax Effected Items - Subtotal | E128: =SUM(E108:E127) -> 4477370 | F128: 4477370 | G128: 4477370 | H128: 5029808 | I128: 5029808 | J128: 5029808 | K128: 5029808 | L128: 6925262 | M128: 6925262
A129: Total Accumulated Deferred Income Tax | E129: =E128+E107+E51+E54+E47+E36+E33+E21 -> 1621498.697 | F129: -4792654.085 | G129: 1364818.915 | H129: 8011333.495 | I129: 863370.495 | J129: -4517542.505 | K129: -5155094.861 | L129: 9861813 | M129: 65101
A131: Per Financials:
A132: A1900-28201 | E132: 6818758.72 | F132: 6818758.72 | G132: 6818758.72 | H132: 6016613.11 | I132: 6016613.11 | J132: 6016613.11 | K132: 6016613.11 | L132: 5362764.11 | M132: 5362764.11
A133: A1900-28206 | E133: 458571.49 | F133: 458571.49 | G133: 458571.49 | H133: 404626.03 | I133: 404626.03 | J133: 404626.03 | K133: 404626.03 | L133: 360708.03 | M133: 360708.03
A134: A2820-28201 | E134: -10408347.91 | F134: -16558904.24 | G134: -10654478.22 | H134: -4197072.35 | I134: -11051284.26 | J134: -16211064.32 | K134: -16822414.61 | L134: -4790819.35 | M134: -14184926.47
A135: A2820-28206 | E135: 6520749.4 | F135: 6257154.13 | G135: 6510200.96 | H135: 7638048.85 | I135: 7344296.91 | J135: 7123163.48 | K135: 7096962.75 | L135: 10582827.85 | M135: 10180223.26
A136: A2830-28201 | E136: -1656810.11 | F136: -1656810.11 | G136: -1656810.11 | H136: -1734251.22 | I136: -1734251.22 | J136: -1734251.22 | K136: -1734251.22 | L136: -1549454.22 | M136: -1549454.22
A137: A2830-28204 | E137: 0 | F137: 0 | G137: 0 | H137: 0 | I137: 0 | J137: 0 | K137: 0 | L137: 0 | M137: 0
A138: A2830-28206 | E138: -111422.9 | F138: -111422.9 | G138: -111422.9 | H138: -116630.93 | I138: -116630.93 | J138: -116630.93 | K138: -116630.93 | L138: -104217.93 | M138: -104217.93
A139: Total | E139: =SUM(E132:E138) -> 1621498.69 | F139: -4792652.91 | G139: 1364819.94 | H139: 8011333.49 | I139: 863369.64 | J139: -4517543.85 | K139: -5155094.87 | L139: 9861808.49 | M139: 65096.78
A141: Difference | E141: 0.007339054486 | F141: -1.174999999 | G141: -1.024999997 | H141: 0.004999999888 | I141: 0.8549999995 | J141: 1.344999998 | K141: 0.009073990397 | L141: 4.51 | M141: 4.22

Sheet TLock (hidden)
A1: T-Lock Adjustment Monthly Activity
A2: Split between realized and unrealized starting 9/30/2011
A4: TAX08 | F4: TAX40 | K4: TAX41 | P4: Fiscal YTD Activity | T4: Cumulative
A5: Period | B5: Total Utility | C5: 002DIV | D5: GL Acct | F5: Period | G5: Total Utility | H5: 002DIV | I5: GL Acct | K5: Period | L5: Total Utility | M5: 002DIV | N5: GL Acct | P5: Total Utility | Q5: 002DIV | R5: 830DIV | T5: Total Utility | U5: 002DIV | V5: 830DIV
A6: 9/30/2009 Balance | B6: =C6 -> 4403744.44 | C6: 4403744.44 | O6: 2009-09-30 | P6: =B6 -> 4403744.44 | Q6: =C6 -> 4403744.44 | T6: =P6 -> 4403744.44 | U6: =Q6 -> 4403744.44
A7: 2009-10-31 | B7: -82573 | C7: -82573 | O7: =A7 -> 2009-10-31 | P7: =B7 -> -82573 | Q7: =C7 -> -82573 | T7: =T6+B7 -> 4321171.44 | U7: =U6+C7 -> 4321171.44
A8: 2009-11-30 | B8: -82573 | C8: -82573 | O8: 2009-11-30 | P8: =B8+P7 -> -165146 | Q8: =C8+Q7 -> -165146 | T8: =T7+B8 -> 4238598.44 | U8: =U7+C8 -> 4238598.44
A9: 2009-12-31 | B9: -82573 | C9: -82573 | O9: 2009-12-31 | P9: =B9+P8 -> -247719 | Q9: =C9+Q8 -> -247719 | T9: 4156025.44 | U9: 4156025.44
A10: 2010-01-31 | B10: -82573 | C10: -82573 | O10: 2010-01-31 | P10: -330292 | Q10: -330292 | T10: 4073452.44 | U10: 4073452.44
A11: 2010-02-28 | B11: -82573 | C11: -82573 | O11: 2010-02-28 | P11: -412865 | Q11: -412865 | T11: 3990879.44 | U11: 3990879.44
A12: 2010-03-31 | B12: -82573 | C12: -82573 | O12: 2010-03-31 | P12: -495438 | Q12: -495438 | T12: 3908306.44 | U12: 3908306.44
A13: 2010-04-30 | B13: -82573 | C13: -82573 | O13: 2010-04-30 | P13: -578011 | Q13: -578011 | T13: 3825733.44 | U13: 3825733.44
A14: 2010-05-31 | B14: -82572 | C14: -82572 | O14: 2010-05-31 | P14: -660583 | Q14: -660583 | T14: 3743161.44 | U14: 3743161.44
A15: 2010-06-30 | B15: -82572 | C15: -82572 | O15: 2010-06-30 | P15: -743155 | Q15: -743155 | T15: 3660589.44 | U15: 3660589.44
A16: 2010-07-31 | B16: -82572 | C16: -82572 | O16: 2010-07-31 | P16: -825727 | Q16: -825727 | T16: 3578017.44 | U16: 3578017.44
A17: 2010-08-31 | B17: -82572 | C17: -82572 | O17: 2010-08-31 | P17: -908299 | Q17: -908299 | T17: 3495445.44 | U17: 3495445.44
A18: 2010-09-30 | B18: =C18 -> -284391 | C18: -284391 | O18: 2010-09-30 | P18: =B18+P17 -> -1192690 | Q18: -1192690 | T18: =T17+B18 -> 3211054.44 | U18: 3211054.44
A19: 2010-10-31 | B19: =C19 -> -8086272 | C19: -8086272 | D19: 2830 | O19: =A19 -> 2010-10-31 | P19: =B19+G19+L19 -> -8086272 | Q19: =C19+H19+M19 -> -8086272 | T19: =T18+B19+G19+L19 -> -4875217.56 | U19: =U18+C19+H19+M19 -> -4875217.56
A20: 2010-11-30 | B20: =C20 -> -2848298 | C20: -2848298 | D20: 2830 | O20: 2010-11-30 | P20: =B20+G20+L20+P19 -> -10934570 | Q20: =C20+H20+M20+Q19 -> -10934570 | T20: =T19+B20+G20+L20 -> -7723515.56 | U20: =U19+C20+H20+M20 -> -7723515.56
A21: 2010-12-31 | B21: -7769105 | C21: -7769105 | D21: 2830 | O21: 2010-12-31 | P21: =B21+G21+L21+P20 -> -18703675 | Q21: =C21+H21+M21+Q20 -> -18703675 | T21: -15492620.56 | U21: -15492620.56
A22: 2011-01-31 | B22: -7126354 | C22: -7126354 | D22: 2830 | O22: 2011-01-31 | P22: -25830029 | Q22: -25830029 | T22: -22618974.56 | U22: -22618974.56
A23: 2011-02-28 | B23: 3613696 | C23: 3613696 | D23: 2830 | O23: 2011-02-28 | P23: -22216333 | Q23: -22216333 | T23: -19005278.56 | U23: -19005278.56
A24: 2011-03-31 | B24: 9636333 | C24: 9636333 | D24: 2830 | O24: 2011-03-31 | P24: -12580000 | Q24: -12580000 | T24: -9368945.56 | U24: -9368945.56
A25: 2011-04-30 | B25: 2078287 | C25: 2078287 | D25: 2830 | O25: 2011-04-30 | P25: -10501713 | Q25: -10501713 | T25: -7290658.56 | U25: -7290658.56
A26: 2011-05-31 | B26: 3232390 | C26: 3232390 | D26: 2830 | O26: 2011-05-31 | P26: -7269323 | Q26: -7269323 | T26: -4058268.56 | U26: -4058268.56
A27: 2011-06-30 | B27: -680617 | C27: -680617 | D27: 2830 | O27: 2011-06-30 | P27: -7949940 | Q27: -7949940 | T27: -4738885.56 | U27: -4738885.56
A28: 2011-07-31 | B28: -61935 | C28: -61935 | D28: 2830 | O28: 2011-07-31 | P28: -8011875 | Q28: -8011875 | T28: -4800820.56 | U28: -4800820.56
A29: 2011-08-31 | B29: 6719976 | C29: 6719976 | D29: 2830 | O29: 2011-08-31 | P29: -1291899 | Q29: -1291899 | T29: 1919155.44 | U29: 1919155.44
A30: 2011-09-30 | B30: -1919157 | C30: -1919157 | D30: 2830 | F30: 2011-09-30 | G30: =H30 -> -4924691 | H30: -4924691 | I30: 2830 | K30: 2011-09-30 | L30: =M30 -> 24984957 | M30: 24984957 | N30: 2830 | O30: 2011-09-30 | P30: 16849210 | Q30: 16849210 | T30: 20060264.44 | U30: 20060264.44
F31: 2011-10-31 | G31: =H31 -> -61936 | H31: -61936 | I31: 2830 | K31: 2011-10-31 | L31: =M31 -> -8754115 | M31: -8754115 | N31: 2830 | O31: =F31 -> 2011-10-31 | P31: =B31+G31+L31 -> -8816051 | Q31: =C31+H31+M31 -> -8816051 | T31: 11244213.44 | U31: 11244213.44
F32: 2011-11-30 | G32: =H32 -> -61936 | H32: -61936 | I32: 2830 | K32: 2011-11-30 | L32: =M32 -> 4952957 | M32: 4952957 | N32: 2830 | O32: =F32 -> 2011-11-30 | P32: =B32+G32+L32+P31 -> -3925030 | Q32: =C32+H32+M32+Q31 -> -3925030 | T32: 16135234.44 | U32: 16135234.44
F33: 2011-12-31 | G33: -61935 | H33: -61935 | I33: 2830 | K33: 2011-12-31 | L33: 4625367 | M33: 4625367 | N33: 2830 | O33: 2011-12-31 | P33: =B33+G33+L33+P32 -> 638402 | Q33: =C33+H33+M33+Q32 -> 638402 | T33: 20698666.44 | U33: 20698666.44
F34: 2012-01-31 | G34: -61936 | H34: -61936 | I34: 2830 | K34: 2012-01-31 | L34: 209682 | M34: 209682 | N34: 2830 | O34: 2012-01-31 | P34: 786148 | Q34: 786148 | T34: 20846412.44 | U34: 20846412.44
F35: 2012-02-29 | G35: -61937 | H35: -61937 | I35: 2830 | K35: 2012-02-29 | L35: -1836094 | M35: -1836094 | N35: 2830 | O35: 2012-02-29 | P35: -1111883 | Q35: -1111883 | T35: 18948381.44 | U35: 18948381.44
F36: 2012-03-31 | G36: -61936 | H36: -61936 | I36: 2830 | K36: 2012-03-31 | L36: -7230005 | M36: -7230005 | N36: 2830 | O36: 2012-03-31 | P36: -8403824 | Q36: -8403824 | T36: 11656440.44 | U36: 11656440.44
F37: 2012-04-30 | G37: -61935 | H37: -61935 | I37: 2830 | K37: 2012-04-30 | L37: 6544321 | M37: 6544321 | N37: 2830 | O37: 2012-04-30 | P37: -1921438 | Q37: -1921438 | T37: 18138826.44 | U37: 18138826.44
F38: 2012-05-31 | G38: -61936 | H38: -61936 | I38: 2830 | K38: 2012-05-31 | L38: 14019641 | M38: 14019641 | N38: 2830 | O38: 2012-05-31 | P38: 12036267 | Q38: 12036267 | T38: 32096531.44 | U38: 32096531.44
F39: 2012-06-30 | G39: -61936 | H39: -61936 | I39: 2830 | K39: 2012-06-30 | L39: -1979167 | M39: -1979167 | N39: 2830 | O39: 2012-06-30 | P39: 9995164 | Q39: 9995164 | T39: 30055428.44 | U39: 30055428.44
F40: 2012-07-31 | G40: -61936 | H40: -61936 | I40: 2830 | K40: 2012-07-31 | L40: 3728851 | M40: 3728851 | N40: 2830 | O40: 2012-07-31 | P40: 13662079 | Q40: 13662079 | T40: 33722343.44 | U40: 33722343.44
F41: 2012-08-31 | G41: -61936 | H41: -61936 | I41: 2830 | K41: 2012-08-31 | L41: -3002679 | M41: -3002679 | N41: 2830 | O41: 2012-08-31 | P41: 10597464 | Q41: 10597464 | T41: 30657728.44 | U41: 30657728.44
F42: 2012-09-30 | G42: 14658 | H42: 14658 | I42: 2830 | K42: 2012-09-30 | L42: -5224155 | M42: =-4798995+-425160 -> -5224155 | N42: 2830 | O42: 2012-09-30 | P42: 5387967 | Q42: 5387967 | T42: 25448231.44 | U42: 25448231.44
F43: 2012-10-31 | G43: -61099 | H43: -61099 | I43: 2830 | K43: 2012-10-31 | L43: 3568241 | M43: 3568241 | N43: 2830 | O43: 2012-10-31 | P43: =B43+G43+L43 -> 3507142 | Q43: =C43+H43+M43 -> 3507142 | T43: 28955373.44 | U43: 28955373.44
F44: 2012-11-30 | G44: -61099 | H44: -61099 | I44: 2830 | K44: 2012-11-30 | L44: 4378765 | M44: 4378765 | N44: 2830 | O44: 2012-11-30 | P44: =B44+G44+L44+P43 -> 7824808 | Q44: =C44+H44+M44+Q43 -> 7824808 | T44: 33273039.44 | U44: 33273039.44
F45: 2012-12-31 | G45: -61099 | H45: -61099 | I45: 2830 | K45: 2012-12-31 | L45: -14812950 | M45: -14812950 | N45: 2830 | O45: 2012-12-31 | P45: =B45+G45+L45+P44 -> -7049241 | Q45: =C45+H45+M45+Q44 -> -7049241 | T45: 18398990.44 | U45: 18398990.44
F46: 2013-01-31 | G46: -61099 | H46: -61099 | I46: 2830 | K46: 2013-01-31 | L46: -13698979 | M46: -13698979 | N46: 2830 | O46: 2013-01-31 | P46: -20809319 | Q46: -20809319 | T46: 4638912.44 | U46: 4638912.44
F47: 2013-02-28 | G47: -61099 | H47: -61099 | I47: 2830 | K47: 2013-02-28 | L47: 2204539 | M47: 2204539 | N47: 2830 | O47: 2013-02-28 | P47: -18665879 | Q47: -18665879 | T47: 6782352.44 | U47: 6782352.44
F48: 2013-03-31 | G48: 24122181 | H48: 24122181 | I48: 2830 | K48: 2013-03-31 | L48: -26018476 | M48: -26018476 | N48: 2830 | O48: 2013-03-31 | P48: -20562174 | Q48: -20562174 | T48: 4886057.44 | U48: 4886057.44
F49: 2013-04-30 | G49: -128650 | H49: -128650 | I49: 2830 | K49: 2013-04-30 | L49: 9352954 | M49: 9352954 | N49: 2830 | O49: 2013-04-30 | P49: -11337870 | Q49: -11337870 | T49: 14110361.44 | U49: 14110361.44
F50: 2013-05-31 | G50: -128650 | H50: -128650 | I50: 2830 | K50: 2013-05-31 | L50: -18844715 | M50: -18844715 | N50: 2830 | O50: 2013-05-31 | P50: -30311235 | Q50: -30311235 | T50: -4863003.56 | U50: -4863003.56
F51: 2013-06-30 | G51: -128650 | H51: -128650 | I51: 2830 | K51: 2013-06-30 | L51: -7986671 | M51: -7986671 | N51: 2830 | O51: 2013-06-30 | P51: -38426556 | Q51: -38426556 | T51: -12978324.56 | U51: -12978324.56
F52: 2013-07-31 | G52: -128650 | H52: -128650 | I52: 2830 | K52: 2013-07-31 | L52: -8074577 | M52: -8074577 | N52: 2830 | O52: 2013-07-31 | P52: -46629783 | Q52: -46629783 | T52: -21181551.56 | U52: -21181551.56
F53: 2013-08-31 | G53: -128650 | H53: -128650 | I53: 2830 | K53: 2013-08-31 | L53: -1311030 | M53: -1311030 | N53: 2830 | O53: 2013-08-31 | P53: -48069463 | Q53: -48069463 | T53: -22621231.56 | U53: -22621231.56
F54: 2013-09-30 | G54: -128612 | H54: -128612 | I54: 2830 | K54: 2013-09-30 | L54: 961350 | M54: 961350 | N54: 2830 | O54: 2013-09-30 | P54: -47236725 | Q54: -47236725 | T54: -21788493.56 | U54: -21788493.56
F55: 2013-10-31 | G55: -128650 | H55: -128650 | I55: 2830 | K55: 2013-10-31 | L55: 2884190 | M55: 2884190 | N55: 2830 | O55: 2013-10-31 | P55: =B55+G55+L55 -> 2755540 | Q55: =C55+H55+M55 -> 2755540 | T55: -19032953.56 | U55: -19032953.56
F56: 2013-11-30 | G56: -128650 | H56: -128650 | I56: 2830 | K56: 2013-11-30 | L56: -5878473 | M56: -5878473 | N56: 2830 | O56: 2013-11-30 | P56: =B56+G56+L56+P55 -> -3251583 | Q56: =C56+H56+M56+Q55 -> -3251583 | T56: -25040076.56 | U56: -25040076.56
F57: 2013-12-31 | G57: -128650 | H57: -128650 | I57: 2830 | K57: 2013-12-31 | L57: -4633474 | M57: -4633474 | N57: 2830 | O57: 2013-12-31 | P57: =B57+G57+L57+P56 -> -8013707 | Q57: =C57+H57+M57+Q56 -> -8013707 | T57: -29802200.56 | U57: -29802200.56
F58: 2014-01-31 | G58: -128650 | H58: -128650 | I58: 2830 | K58: 2014-01-31 | L58: 11535442 | M58: 11535442 | N58: 2830 | O58: 2014-01-31 | P58: 3393085 | Q58: 3393085 | T58: -18395408.56 | U58: -18395408.56
F59: 2014-02-28 | G59: -128650 | H59: -128650 | I59: 2830 | K59: 2014-02-28 | L59: 1696764.185 | M59: 1696764.185 | N59: 2830 | O59: 2014-02-28 | P59: 4961199.185 | Q59: 4961199.185 | T59: -16827294.38 | U59: -16827294.38
F60: 2014-03-31 | G60: -128650 | H60: -128650 | I60: 2830 | K60: 2014-03-31 | L60: 2700497 | M60: 2700497 | N60: 2830 | O60: 2014-03-31 | P60: 7533046.185 | Q60: 7533046.185 | T60: -14255447.38 | U60: -14255447.38
F61: 2014-04-30 | G61: -128650 | H61: =16552909-16681559 -> -128650 | I61: 2830 | K61: 2014-04-30 | L61: 4637098 | M61: =-26299945--30937043 -> 4637098 | N61: 2830 | O61: 2014-04-30 | P61: 12041494.19 | Q61: 12041494.19 | T61: -9746999.375 | U61: -9746999.375
F62: 2014-05-31 | G62: -128650 | H62: =16424259-16552909 -> -128650 | I62: 2830 | K62: 2014-05-31 | L62: 9141387 | M62: =-17158558--26299945 -> 9141387 | N62: 2830 | O62: 2014-05-31 | P62: 21054231.19 | Q62: 21054231.19 | T62: -734262.375 | U62: -734262.375
F63: 2014-06-30 | G63: -128650 | H63: =16295609-16424259 -> -128650 | I63: 2830 | K63: 2014-06-30 | L63: 80513 | M63: =-17078045--17158558 -> 80513 | N63: 2830 | O63: 2014-06-30 | P63: 21006094.19 | Q63: 21006094.19 | T63: -782399.375 | U63: -782399.375
F64: 2014-07-31 | G64: -128650 | H64: -128650 | I64: 2830 | K64: 2014-07-31 | L64: 3155395 | M64: 3155395 | N64: 2830 | O64: 2014-07-31 | P64: 24032839.19 | Q64: 24032839.19 | T64: 2244345.625 | U64: 2244345.625
F65: 2014-08-31 | G65: -128650 | H65: -128650 | I65: 2830 | K65: 2014-08-31 | L65: 17109298 | M65: =3702022+6599287+6807989 -> 17109298 | N65: 2830 | O65: 2014-08-31 | P65: 41013487.19 | Q65: 41013487.19 | T65: 19224993.62 | U65: 19224993.62
F66: 2014-09-30 | G66: -128650 | H66: -128650 | I66: 2830 | K66: 2014-09-30 | L66: -8530939 | M66: =-1706521-3285409-3539009 -> -8530939 | N66: 2830 | O66: 2014-09-30 | P66: 32353898.19 | Q66: 32353898.19 | T66: 10565404.62 | U66: 10565404.62
F67: 2014-10-31 | G67: -5006637 | H67: -5006637 | I67: 2830 | K67: 2014-10-31 | L67: 14127650 | M67: 14127650 | N67: 2830 | O67: 2014-10-31 | P67: =B67+G67+L67 -> 9121013 | Q67: =C67+H67+M67 -> 9121013 | T67: 19686417.62 | U67: =U66+C67+H67+M67 -> 19686417.62
F68: 2014-11-30 | G68: -30167 | H68: -30167 | I68: 2830 | K68: 2014-11-30 | L68: 8373582 | M68: 8373582 | N68: 2830 | O68: 2014-11-30 | P68: =B68+G68+L68+P67 -> 17464428 | Q68: =C68+H68+M68+Q67 -> 17464428 | T68: 28029832.62 | U68: 28029832.62
F69: 2014-12-31 | G69: -30167 | H69: -30167 | I69: 2830 | K69: 2014-12-31 | L69: 12333491 | M69: 12333491 | N69: 2830 | O69: 2014-12-31 | P69: =B69+G69+L69+P68 -> 29767752 | Q69: =C69+H69+M69+Q68 -> 29767752 | T69: 40333156.62 | U69: 40333156.62
F70: 2015-01-31 | G70: -16617 | H70: -16617 | I70: 2830 | K70: 2015-01-31 | L70: 32666215 | M70: 32666215 | N70: 2830 | O70: 2015-01-31 | P70: 62417350 | Q70: 62417350 | T70: 72982754.62 | U70: 72982754.62
F71: 2015-02-28 | G71: -16617 | H71: -16617 | I71: 2830 | K71: 2015-02-28 | L71: -19479028 | M71: -19479028 | N71: 2830 | O71: 2015-02-28 | P71: 42921705 | Q71: 42921705 | T71: 53487109.62 | U71: 53487109.62
F72: 2015-03-31 | G72: -16617 | H72: -16617 | I72: 2830 | K72: 2015-03-31 | L72: 5640673 | M72: 5640673 | N72: 2830 | O72: 2015-03-31 | P72: 48545761 | Q72: 48545761 | T72: 59111165.62 | U72: 59111165.62
F73: 2015-04-30 | G73: -16617 | H73: -16617 | I73: 2830 | K73: 2015-04-30 | L73: -8747675 | M73: -8747675 | N73: 2830 | O73: 2015-04-30 | P73: 39781469 | Q73: 39781469 | T73: 50346873.62 | U73: 50346873.62
F74: 2015-05-31 | G74: -16617 | H74: -16617 | I74: 2830 | K74: 2015-05-31 | L74: -5085808 | M74: -5085808 | N74: 2830 | O74: 2015-05-31 | P74: 34679044 | Q74: 34679044 | T74: 45244448.62 | U74: 45244448.62
F75: 2015-06-30 | G75: -16617 | H75: -16617 | I75: 2830 | K75: 2015-06-30 | L75: -17429118 | M75: -17429118 | N75: 2830 | O75: 2015-06-30 | P75: 17233309 | Q75: 17233309 | T75: 27798713.62 | U75: 27798713.62
F76: 2015-07-31 | G76: -16617 | H76: -16617 | I76: 2830 | K76: 2015-07-31 | L76: 11764246 | M76: 11764246 | N76: 2830 | O76: 2015-07-31 | P76: 28980938 | Q76: 28980938 | T76: 39546342.62 | U76: 39546342.62
F77: 2015-08-31 | G77: -16617 | H77: -16617 | I77: 2830 | K77: 2015-08-31 | L77: 1433543 | M77: 1433543 | N77: 2830 | O77: 2015-08-31 | P77: 30397864 | Q77: 30397864 | T77: 40963268.62 | U77: 40963268.62
F78: 2015-09-30 | G78: 10441 | H78: =-16617+27058 -> 10441 | I78: 2830 | K78: 2015-09-30 | L78: 10093161 | M78: =10120219-27058 -> 10093161 | N78: 2830 | O78: 2015-09-30 | P78: 40501466 | Q78: 40501466 | T78: 51066870.62 | U78: 51066870.62
F79: 2015-10-31 | G79: -16617 | H79: -16617 | I79: 2830 | K79: 2015-10-31 | L79: -622596 | M79: -622596 | N79: 2830 | O79: 2015-10-31 | P79: =B79+G79+L79 -> -639213 | Q79: =C79+H79+M79 -> -639213 | T79: =T78+B79+G79+L79 -> 50427657.62 | U79: =U78+C79+H79+M79 -> 50427657.62
F80: 2015-11-30 | G80: -16617 | H80: -16617 | I80: 2830 | K80: 2015-11-30 | L80: 1673827 | M80: 1673827 | N80: 2830 | O80: 2015-11-30 | P80: =B80+G80+L80+P79 -> 1017997 | Q80: =C80+H80+M80+Q79 -> 1017997 | T80: 52084867.62 | U80: 52084867.62
F81: 2015-12-31 | G81: -16617 | H81: -16617 | I81: 2830 | K81: 2015-12-31 | L81: -3750851 | M81: -3750851 | N81: 2830 | O81: 2015-12-31 | P81: -2749471 | Q81: -2749471 | T81: 48317399.62 | U81: 48317399.62
F82: 2016-01-31 | G82: -16617 | H82: -16617 | I82: 2830 | K82: 2016-01-31 | L82: 19902962 | M82: 19902962 | N82: 2830 | O82: 2016-01-31 | P82: 17136874 | Q82: 17136874 | T82: 68203744.62 | U82: 68203744.62
F83: 2016-02-28 | G83: -16617 | H83: -16617 | I83: 2830 | K83: 2016-02-28 | L83: 14496509 | M83: 14496509 | N83: 2830 | O83: 2016-02-28 | P83: 31616766 | Q83: 31616766 | T83: 82683636.62 | U83: 82683636.62
F84: 2016-03-31 | G84: =H84 -> -16617 | H84: -16617 | I84: 2830 | K84: 2016-03-31 | L84: -3529577 | M84: -3529577 | N84: 2830 | O84: 2016-03-31 | P84: 28070572 | Q84: 28070572 | T84: 79137442.62 | U84: 79137442.62
F85: 2016-04-30 | G85: =H85 -> -16617 | H85: -16617 | I85: 2830 | K85: 2016-04-30 | L85: -3594825.728 | M85: -3594825.728 | N85: 2830 | O85: 2016-04-30 | P85: 24459129.27 | Q85: 24459129.27 | T85: 75525999.9 | U85: 75525999.9
F86: 2016-05-31 | G86: -16617 | H86: -16617 | I86: 2830 | K86: 2016-05-31 | L86: 4321979.647 | M86: 4321979.647 | N86: 2830 | O86: 2016-05-31 | P86: 28764491.92 | Q86: 28764491.92 | T86: 79831362.54 | U86: 79831362.54
F87: 2016-06-30 | G87: -16617 | H87: -16617 | I87: 2830 | K87: 2016-06-30 | L87: 21883556.64 | M87: 21883556.64 | N87: 2830 | O87: 2016-06-30 | P87: 50631431.56 | Q87: 50631431.56 | T87: 101698302.2 | U87: 101698302.2
F88: 2016-07-31 | G88: -16617 | H88: -16617 | I88: 2830 | K88: 2016-07-31 | L88: 9091314 | M88: 9091314 | N88: 2830 | O88: 2016-07-31 | P88: 59706128.56 | Q88: 59706128.56 | T88: 110772999.2 | U88: 110772999.2
F89: 2016-08-31 | G89: -16617 | H89: -16617 | I89: 2830 | K89: 2016-08-31 | L89: 4744659 | M89: 4744659 | N89: 2830 | O89: 2016-08-31 | P89: 64434170.56 | Q89: 64434170.56 | T89: 115501041.2 | U89: 115501041.2
F90: 2016-09-30 | G90: =H90 -> -16617 | H90: -16617 | I90: 2830 | K90: 2016-09-30 | L90: -7695346 | M90: -7695346 | N90: 2830 | O90: 2016-09-30 | P90: 56722207.56 | Q90: =C90+H90+M90+Q89 -> 56722207.56 | T90: 107789078.2 | U90: =U89+C90+H90+M90 -> 107789078.2
F91: 2016-10-31 | G91: =H91 -> -16617 | H91: -16617 | I91: 2830 | K91: 2016-10-31 | L91: -18018119 | M91: -18018119 | N91: 2830 | O91: 2016-10-31 | P91: =B91+G91+L91 -> -18034736 | Q91: =C91+H91+M91 -> -18034736 | T91: 89754342.19 | U91: 89754342.19
F92: 2016-11-30 | G92: -16617 | H92: -16617 | I92: 2830 | K92: 2016-11-30 | L92: -28943856 | M92: -28943856 | N92: 2830 | O92: 2016-11-30 | P92: -46995209 | Q92: =C92+H92+M92+Q91 -> -46995209 | T92: 60793869.19 | U92: 60793869.19
F93: 2016-12-31 | G93: -16617 | H93: -16617 | I93: 2830 | K93: 2016-12-31 | L93: -5418026 | M93: -5418026 | N93: 2830 | O93: 2016-12-31 | P93: -52429852 | Q93: =C93+H93+M93+Q92 -> -52429852 | T93: 55359226.19 | U93: 55359226.19
F94: 2017-01-31 | G94: -16617 | H94: -16617 | I94: 2830 | K94: 2017-01-31 | L94: -1704976 | M94: -1704976 | N94: 2830 | O94: 2017-01-31 | P94: -54151445 | Q94: =C94+H94+M94+Q93 -> -54151445 | T94: 53637633.19 | U94: 53637633.19
F95: 2017-02-28 | G95: -16617 | H95: -16617 | I95: 2830 | K95: 2017-02-28 | L95: -1250918 | M95: -1250918 | N95: 2830 | O95: 2017-02-28 | P95: -55418980 | Q95: -55418980 | T95: 52370098.19 | U95: 52370098.19
F96: 2017-03-31 | G96: -16617 | H96: -16617 | I96: 2830 | K96: 2017-03-31 | L96: =M96 -> 581036 | M96: =574034+7002 -> 581036 | N96: 2830 | O96: 2017-03-31 | P96: -54854561 | Q96: -54854561 | T96: 52934517.19 | U96: =U95+C96+H96+M96 -> 52934517.19
F97: 2017-04-30 | G97: -16617 | H97: -16617 | I97: 2830 | K97: 2017-04-30 | L97: 8143576 | M97: 8143576 | N97: 2830 | O97: 2017-04-30 | P97: -46727602 | Q97: -46727602 | T97: 61061476.19 | U97: 61061476.19
F98: 2017-05-31 | G98: -16617 | H98: -16617 | I98: 2830 | K98: 2017-05-31 | L98: 6255830 | M98: 6255830 | N98: 2830 | O98: 2017-05-31 | P98: -40488389 | Q98: -40488389 | T98: 67300689.19 | U98: 67300689.19
F99: 2017-06-30 | G99: -31064 | H99: -31064 | I99: 2830 | K99: 2017-06-30 | L99: -3668494 | M99: -3668494 | N99: 2830 | O99: 2017-06-30 | P99: -44187947 | Q99: -44187947 | T99: 63601131.19 | U99: 63601131.19
A101: TOTAL | B101: =SUM(B19:B100) -> -3211056 | C101: =SUM(C19:C100) -> -3211056 | G101: =SUM(G19:G100) -> 10356826 | H101: =SUM(H19:H100) -> 10356826 | L101: =SUM(L19:L100) -> 53244306.75 | M101: =SUM(M19:M100) -> 53244306.75 | Q101: -44191080 | R101: per RF
Q102: =Q99-Q101 -> 3133 | R102: diff
Q103: -3133 | R103: C210
Q104: =Q102+Q103 -> 0 | R104: ULD
P107: Recon:
P108: Total Activity per Qtrly Index | Q108: -48263355
P109: Tlock Activity | Q109: =P99 -> -44187947
P110: FAS 115 Activity | Q110: ='FAS115'!H98 -> -892818
P111: Hedge Activity | Q111: -3182588
P112: ULD | Q112: =Q108-Q109-Q110-Q111 -> -2

Sheet FAS115 (hidden)
A1: TAX06 - FAS 115 Adjustment Monthly Activity
H2: Fiscal YTD Activity | M2: Cumulative Balance
A3: Period | B3: Total Utility | C3: 002DIV | D3: 830DIV | E3: GL Acct | H3: Total Utility | I3: 002DIV | J3: 830DIV | M3: Total Utility | N3: 002DIV | O3: 830DIV
A4: 9/30/2009 Balance | B4: =D4+C4 -> -1444941.76 | C4: -1444941.76 | D4: 0 | G4: 2009-09-30 | H4: =J4+I4 -> -1444941.76 | I4: =C4 -> -1444941.76 | J4: =D4 -> 0 | L4: =G4 -> 2009-09-30 | M4: =B4 -> -1444941.76 | N4: =C4 -> -1444941.76 | O4: =D4 -> 0
A5: 2009-10-31 | B5: =D5+C5 -> 169690 | C5: 169690 | G5: =A5 -> 2009-10-31 | H5: =J5+I5 -> 169690 | I5: =C5 -> 169690 | J5: =D5 -> 0 | L5: =G5 -> 2009-10-31 | M5: =B5+M4 -> -1275251.76 | N5: =C5+N4 -> -1275251.76 | O5: =D5+O4 -> 0
A6: 2009-11-30 | B6: -398013 | C6: -398013 | G6: 2009-11-30 | H6: -228323 | I6: =I5+C6 -> -228323 | J6: =J5+D6 -> 0 | L6: 2009-11-30 | M6: =B6+M5 -> -1673264.76 | N6: =C6+N5 -> -1673264.76 | O6: 0
A7: 2009-12-31 | B7: -161938 | C7: -161938 | G7: 2009-12-31 | H7: -390261 | I7: =I6+C7 -> -390261 | J7: =J6+D7 -> 0 | L7: 2009-12-31 | M7: -1835202.76 | N7: -1835202.76 | O7: 0
A8: 2010-01-31 | B8: 51640 | C8: 51640 | G8: 2010-01-31 | H8: -338621 | I8: -338621 | J8: 0 | L8: 2010-01-31 | M8: -1783562.76 | N8: -1783562.76 | O8: 0
A9: 2010-02-28 | B9: 297604 | C9: 297604 | G9: 2010-02-28 | H9: -41017 | I9: -41017 | J9: 0 | L9: 2010-02-28 | M9: -1485958.76 | N9: -1485958.76 | O9: 0
A10: 2010-03-31 | B10: -757085 | C10: -757085 | G10: 2010-03-31 | H10: -798102 | I10: -798102 | J10: 0 | L10: 2010-03-31 | M10: -2243043.76 | N10: -2243043.76 | O10: 0
A11: 2010-04-30 | B11: -153148 | C11: -153148 | G11: 2010-04-30 | H11: -951250 | I11: -951250 | J11: 0 | L11: 2010-04-30 | M11: -2396191.76 | N11: -2396191.76 | O11: 0
A12: 2010-05-31 | B12: 812917 | C12: 812917 | G12: 2010-05-31 | H12: -138333 | I12: -138333 | J12: 0 | L12: 2010-05-31 | M12: -1583274.76 | N12: -1583274.76 | O12: 0
A13: 2010-06-30 | B13: 336531 | C13: 336531 | G13: 2010-06-30 | H13: 198198 | I13: 198198 | J13: 0 | L13: 2010-06-30 | M13: -1246743.76 | N13: -1246743.76 | O13: 0
A14: 2010-07-31 | B14: 0 | C14: 0 | G14: 2010-07-31 | H14: 198198 | I14: 198198 | J14: 0 | L14: 2010-07-31 | M14: -1246743.76 | N14: -1246743.76 | O14: 0
A15: 2010-08-31 | B15: -281690 | C15: -281690 | G15: 2010-08-31 | H15: -83492 | I15: -83492 | J15: 0 | L15: 2010-08-31 | M15: -1528433.76 | N15: -1528433.76 | O15: 0
A16: 2010-09-30 | B16: -941103 | C16: -941103 | G16: 2010-09-30 | H16: -1024595 | I16: -1024595 | J16: 0 | L16: 2010-09-30 | M16: -2469536.76 | N16: -2469536.76 | O16: 0
A17: 9/30/2010 Balance | B17: =D17+C17 -> -2469538 | C17: -2469538 | E17: 2830 | G17: 2010-09-30 | H17: -2469538 | I17: =C17 -> -2469538 | J17: 0 | L17: 2010-09-30 | M17: =B17 -> -2469538 | N17: =C17 -> -2469538 | O17: =D17 -> 0
A18: 2010-10-31 | B18: =D18+C18 -> -354187 | C18: -354187 | D18: 0 | E18: 2830 | G18: =A18 -> 2010-10-31 | H18: -354187 | I18: -354187 | J18: 0 | L18: =G18 -> 2010-10-31 | M18: -2823725 | N18: -2823725 | O18: 0
A19: 2010-11-30 | B19: =D19+C19 -> 26512 | C19: 26512 | E19: 2830 | G19: =A19 -> 2010-11-30 | H19: =H18+B19 -> -327675 | I19: =I18+C19 -> -327675 | J19: =J18+D19 -> 0 | L19: =A19 -> 2010-11-30 | M19: -2797213 | N19: -2797213 | O19: 0
A20: 2010-12-31 | B20: -128036 | C20: -128036 | E20: 2830 | G20: 2010-12-31 | H20: =H19+B20 -> -455711 | I20: =I19+C20 -> -455711 | J20: =J19+D20 -> 0 | L20: 2010-12-31 | M20: -2925249 | N20: -2925249 | O20: 0
A21: 2011-01-31 | B21: -79292 | C21: -79292 | E21: 2830 | G21: 2011-01-31 | H21: -535003 | I21: -535003 | J21: 0 | L21: 2011-01-31 | M21: -3004541 | N21: -3004541 | O21: 0
A22: 2011-02-28 | B22: -315257 | C22: -315257 | E22: 2830 | G22: 2011-02-28 | H22: -850260 | I22: -850260 | J22: 0 | L22: 2011-02-28 | M22: -3319798 | N22: -3319798 | O22: 0
A23: 2011-03-31 | B23: -81221 | C23: -81221 | E23: 2830 | G23: 2011-03-31 | H23: -931481 | I23: -931481 | J23: 0 | L23: 2011-03-31 | M23: -3401019 | N23: -3401019 | O23: 0
A24: 2011-04-30 | B24: -484646 | C24: -484646 | E24: 2830 | G24: 2011-04-30 | H24: -1416127 | I24: -1416127 | J24: 0 | L24: 2011-04-30 | M24: -3885665 | N24: -3885665 | O24: 0
A25: 2011-05-31 | B25: 331673 | C25: 331673 | E25: 2830 | G25: 2011-05-31 | H25: -1084454 | I25: -1084454 | J25: 0 | L25: 2011-05-31 | M25: -3553992 | N25: -3553992 | O25: 0
A26: 2011-06-30 | B26: 208218 | C26: 208218 | E26: 2830 | G26: 2011-06-30 | H26: -876236 | I26: -876236 | J26: 0 | L26: 2011-06-30 | M26: -3345774 | N26: -3345774 | O26: 0
A27: 2011-07-31 | B27: 98720 | C27: 98720 | E27: 2830 | G27: 2011-07-31 | H27: -777516 | I27: -777516 | J27: 0 | L27: 2011-07-31 | M27: -3247054 | N27: -3247054 | O27: 0
A28: 2011-08-31 | B28: 762649 | C28: 762649 | E28: 2830 | G28: 2011-08-31 | H28: -14867 | I28: -14867 | J28: 0 | L28: 2011-08-31 | M28: -2484405 | N28: -2484405 | O28: 0
A29: 2011-09-30 | B29: 967711 | C29: 967711 | E29: 2830 | G29: 2011-09-30 | H29: =H28+B29 -> 952844 | I29: 952844 | J29: 0 | L29: 2011-09-30 | M29: -1516694 | N29: -1516694 | O29: 0
A30: 2011-10-31 | B30: -947070 | C30: -947070 | E30: 2830 | G30: 2011-10-31 | H30: =B30 -> -947070 | I30: =C30 -> -947070 | J30: =D30 -> 0 | L30: 2011-10-31 | M30: -2463764 | N30: -2463764 | O30: 0
A31: 2011-11-30 | B31: 189088 | C31: 189088 | E31: 2830 | G31: 2011-11-30 | H31: =H30+B31 -> -757982 | I31: =I30+C31 -> -757982 | J31: =J30+D31 -> 0 | L31: 2011-11-30 | M31: -2274676 | N31: -2274676 | O31: 0
A32: 2011-12-31 | B32: 243218 | C32: 251741 | D32: -8523 | E32: 2830 | G32: 2011-12-31 | H32: =H31+B32 -> -514764 | I32: =I31+C32 -> -506241 | J32: =J31+D32 -> -8523 | L32: 2011-12-31 | M32: -2031458 | N32: -2022935 | O32: -8523
A33: 2012-01-31 | B33: -1090543 | C33: -1090543 | E33: 2830 | G33: 2012-01-31 | H33: -1605307 | I33: -1596784 | J33: -8523 | L33: 2012-01-31 | M33: -3122001 | N33: -3113478 | O33: -8523
A34: 2012-02-29 | B34: 39379 | C34: 39379 | E34: 2830 | G34: 2012-02-29 | H34: -1565928 | I34: -1557405 | J34: -8523 | L34: 2012-02-29 | M34: -3082622 | N34: -3074099 | O34: -8523
A35: 2012-03-31 | B35: -150363 | C35: -117437 | D35: =-41449-D32 -> -32926 | E35: 2830 | G35: 2012-03-31 | H35: -1716291 | I35: -1674842 | J35: -41449 | L35: 2012-03-31 | M35: -3232985 | N35: -3191536 | O35: -41449
A36: 2012-04-30 | B36: 41957 | C36: 41957 | E36: 2830 | G36: 2012-04-30 | H36: -1674334 | I36: -1632885 | J36: -41449 | L36: 2012-04-30 | M36: -3191028 | N36: -3149579 | O36: -41449
A37: 2012-05-31 | B37: 794118 | C37: 794118 | E37: 2830 | G37: 2012-05-31 | H37: -880216 | I37: -838767 | J37: -41449 | L37: 2012-05-31 | M37: -2396910 | N37: -2355461 | O37: -41449
A38: 2012-06-30 | B38: -314461 | C38: -304554 | D38: =-51356-D35-D32 -> -9907 | E38: 2830 | G38: 2012-06-30 | H38: -1194677 | I38: -1143321 | J38: -51356 | L38: 2012-06-30 | M38: -2711371 | N38: -2660015 | O38: -51356
A39: 2012-07-31 | B39: -92050 | C39: -92050 | E39: 2830 | G39: 2012-07-31 | H39: -1286727 | I39: -1235371 | J39: -51356 | L39: 2012-07-31 | M39: -2803421 | N39: -2752065 | O39: -51356
A40: 2012-08-31 | B40: -261023 | C40: -261023 | E40: 2830 | G40: 2012-08-31 | H40: -1547750 | I40: -1496394 | J40: -51356 | L40: 2012-08-31 | M40: -3064444 | N40: -3013088 | O40: -51356
A41: 2012-09-30 | B41: -332375 | C41: -311224 | D41: -21151 | E41: 2830 | G41: 2012-09-30 | H41: =H40+B41 -> -1880125 | I41: -1807618 | J41: -72507 | L41: 2012-09-30 | M41: -3396819 | N41: -3324312 | O41: -72507
A42: 2012-10-31 | B42: 175581 | C42: 175581 | E42: 2830 | G42: 2012-10-31 | H42: =B42 -> 175581 | I42: =C42 -> 175581 | J42: 0 | L42: 2012-10-31 | M42: -3221238 | N42: -3148731 | O42: -72507
A43: 2012-11-30 | B43: -480440 | C43: -480440 | E43: 2830 | G43: 2012-11-30 | H43: =H42+B43 -> -304859 | I43: =I42+C43 -> -304859 | J43: =J42+D43 -> 0 | L43: 2012-11-30 | M43: -3701678 | N43: -3629171 | O43: -72507
A44: 2012-12-31 | B44: 524322 | C44: 518901 | D44: 5421 | E44: 2830 | G44: 2012-12-31 | H44: =H43+B44 -> 219463 | I44: =I43+C44 -> 214042 | J44: =J43+D44 -> 5421 | L44: 2012-12-31 | M44: -3177356 | N44: -3110270 | O44: -67086
A45: 2013-01-31 | B45: -402771 | C45: -402771 | E45: 2830 | G45: 2013-01-31 | H45: -183308 | I45: -188729 | J45: 5421 | L45: 2013-01-31 | M45: -3580127 | N45: -3513041 | O45: -67086
A46: 2013-02-28 | B46: -48863 | C46: -48863 | E46: 2830 | G46: 2013-02-28 | H46: -232171 | I46: -237592 | J46: 5421 | L46: 2013-02-28 | M46: -3628990 | N46: -3561904 | O46: -67086
A47: 2013-03-31 | B47: 561895 | C47: 580391 | D47: -18496 | E47: 2830 | G47: 2013-03-31 | H47: 329724 | I47: 342799 | J47: -13075 | L47: 2013-03-31 | M47: -3067095 | N47: -2981513 | O47: -85582
A48: 2013-04-30 | B48: -129635 | C48: -129635 | E48: 2830 | G48: 2013-04-30 | H48: 200089 | I48: 213164 | J48: -13075 | L48: 2013-04-30 | M48: -3196730 | N48: -3111148 | O48: -85582
A49: 2013-05-31 | B49: -127335 | C49: -127335 | E49: 2830 | G49: 2013-05-31 | H49: 72754 | I49: 85829 | J49: -13075 | L49: 2013-05-31 | M49: -3324065 | N49: -3238483 | O49: -85582
A50: 2013-06-30 | B50: 458827 | C50: 319882 | D50: 138945 | E50: 2830 | G50: 2013-06-30 | H50: 531581 | I50: 405711 | J50: 125870 | L50: 2013-06-30 | M50: -2865238 | N50: -2918601 | O50: 53363
A51: 2013-07-31 | B51: -5485 | C51: -5485 | E51: 2830 | G51: 2013-07-31 | H51: 526096 | I51: 400226 | J51: 125870 | L51: =A51 -> 2013-07-31 | M51: -2870723 | N51: -2924086 | O51: 53363
A52: 2013-08-31 | B52: -641459 | C52: -641459 | E52: 2830 | G52: 2013-08-31 | H52: -115363 | I52: -241233 | J52: 125870 | L52: 2013-08-31 | M52: -3512182 | N52: -3565545 | O52: 53363
A53: 2013-09-30 | B53: 301189 | C53: 292048 | D53: 9141 | E53: 2830 | G53: 2013-09-30 | H53: =H52+B53 -> 185826 | I53: 50815 | J53: 135011 | L53: 2013-09-30 | M53: -3210993 | N53: -3273497 | O53: 62504
A54: 2013-10-31 | B54: -663409 | C54: -618977 | D54: -44432 | E54: 2830 | G54: 2013-10-31 | H54: =B54 -> -663409 | I54: =C54 -> -618977 | J54: =D54 -> -44432 | L54: 2013-10-31 | M54: -3874402 | N54: -3892474 | O54: 18072
A55: 2013-11-30 | B55: -404338 | C55: -404338 | D55: 0 | E55: 2830 | G55: 2013-11-30 | H55: =H54+B55 -> -1067747 | I55: =I54+C55 -> -1023315 | J55: =J54+D55 -> -44432 | L55: 2013-11-30 | M55: -4278740 | N55: -4296812 | O55: 18072
A56: 2013-12-31 | B56: -367202 | C56: -370798 | D56: 3596 | E56: 2830 | G56: 2013-12-31 | H56: =H55+B56 -> -1434949 | I56: =I55+C56 -> -1394113 | J56: =J55+D56 -> -40836 | L56: 2013-12-31 | M56: -4645942 | N56: -4667610 | O56: 21668
A57: 2014-01-31 | B57: 293834 | C57: 301026 | D57: -7192 | E57: 2830 | G57: 2014-01-31 | H57: -1141115 | I57: -1093087 | J57: -48028 | L57: 2014-01-31 | M57: -4352108 | N57: -4366584 | O57: 14476
A58: 2014-02-28 | B58: 320287 | C58: 320287 | E58: 2830 | G58: 2014-02-28 | H58: -820828 | I58: -772800 | J58: -48028 | L58: 2014-02-28 | M58: -4031821 | N58: -4046297 | O58: 14476
A59: 2014-03-31 | B59: -480592 | C59: -469739 | D59: -10853 | E59: 2830 | G59: 2014-03-31 | H59: -1301420 | I59: -1242539 | J59: -58881 | L59: 2014-03-31 | M59: -4512413 | N59: -4516036 | O59: 3623
A60: 2014-04-30 | B60: 386044 | C60: =361718+24326 -> 386044 | E60: 2830 | G60: 2014-04-30 | H60: -915376 | I60: -856495 | J60: -58881 | L60: 2014-04-30 | M60: -4126369 | N60: -4129992 | O60: 3623
A61: 2014-05-31 | B61: -265567 | C61: =-248833+-16734 -> -265567 | E61: 2830 | G61: 2014-05-31 | H61: -1180943 | I61: -1122062 | J61: -58881 | L61: 2014-05-31 | M61: -4391936 | N61: -4395559 | O61: 3623
A62: 2014-06-30 | B62: -336940 | C62: =-304175+-20456+72508 -> -252123 | D62: =-776+-11533-72508 -> -84817 | E62: 2830 | G62: 2014-06-30 | H62: -1517883 | I62: -1374185 | J62: -143698 | L62: 2014-06-30 | M62: -4728876 | N62: -4647682 | O62: -81194
A63: 2014-07-31 | B63: 260529 | C63: 260529 | D63: 0 | E63: 2830 | G63: 2014-07-31 | H63: -1257354 | I63: -1113656 | J63: -143698 | L63: 2014-07-31 | M63: -4468347 | N63: -4387153 | O63: -81194
A64: 2014-08-31 | B64: -327589 | C64: =-418172+88649 -> -329523 | D64: 1934 | E64: 2830 | G64: 2014-08-31 | H64: -1584943 | I64: =I63+C64 -> -1443179 | J64: =J63+D64 -> -141764 | L64: 2014-08-31 | M64: -4795936 | N64: -4716676 | O64: -79260
A65: 2014-09-30 | B65: 476124 | C65: =325267+35174+88649 -> 449090 | D65: =25100+1934 -> 27034 | E65: 2830 | G65: 2014-09-30 | H65: =H64+B65 -> -1108819 | I65: -994089 | J65: -114730 | L65: 2014-09-30 | M65: -4319812 | N65: -4267586 | O65: -52226
A66: 2014-10-31 | B66: -208050 | C66: -208050 | D66: 0 | E66: 2830 | G66: 2014-10-31 | H66: =B66 -> -208050 | I66: =C66 -> -208050 | J66: =D66+J65 -> -114730 | L66: 2014-10-31 | M66: -4527862 | N66: -4475636 | O66: -52226
A67: 2014-11-30 | B67: -263899 | C67: -263899 | D67: 0 | E67: 2830 | G67: 2014-11-30 | H67: =H66+B67 -> -471949 | I67: =I66+C67 -> -471949 | J67: -114730 | L67: 2014-11-30 | M67: -4791761 | N67: -4739535 | O67: -52226
A68: 2014-12-31 | B68: 1085221 | C68: 1058031 | D68: 27190 | E68: 2830 | G68: 2014-12-31 | H68: =H67+B68 -> 613272 | I68: =I67+C68 -> 586082 | J68: -87540 | L68: 2014-12-31 | M68: -3706540 | N68: -3681504 | O68: -25036
A69: 2015-01-31 | B69: 225395 | C69: 225395 | E69: 2830 | G69: 2015-01-31 | H69: 838667 | I69: 811477 | J69: -87540 | L69: 2015-01-31 | M69: -3481145 | N69: -3456109 | O69: -25036
A70: 2015-02-28 | B70: -879553 | C70: -879553 | E70: 2830 | G70: 2015-02-28 | H70: -40886 | I70: -68076 | J70: -87540 | L70: 2015-02-28 | M70: =B70+M69 -> -4360698 | N70: =C70+N69 -> -4335662 | O70: -25036
A71: 2015-03-31 | B71: 170292 | C71: 148284 | D71: 22008 | E71: 2830 | G71: 2015-03-31 | H71: =H70+B71 -> 129406 | I71: 80208 | J71: -65532 | L71: 2015-03-31 | M71: -4190406 | N71: -4187378 | O71: -3028
A72: 2015-04-30 | B72: 76838 | C72: 76838 | E72: 2830 | G72: 2015-04-30 | H72: 206244 | I72: 157046 | J72: -65532 | L72: 2015-04-30 | M72: -4113568 | N72: -4110540 | O72: -3028
A73: 2015-05-31 | B73: -257851 | C73: -213835 | D73: -44016 | E73: 2830 | G73: 2015-05-31 | H73: -51607 | I73: -56789 | J73: -109548 | L73: 2015-05-31 | M73: -4371419 | N73: -4324375 | O73: -47044
A74: 2015-06-30 | B74: 221610 | C74: 192455 | D74: 29155 | E74: 2830 | G74: 2015-06-30 | H74: 170003 | I74: 135666 | J74: -80393 | L74: 2015-06-30 | M74: -4149809 | N74: -4131920 | O74: -17889
A75: 2015-07-31 | B75: -85641 | C75: -85641 | D75: 0 | E75: 2830 | G75: 2015-07-31 | H75: 84362 | I75: 50025 | J75: -80393 | L75: 2015-07-31 | M75: -4235450 | N75: -4217561 | O75: -17889
A76: 2015-08-31 | B76: 928841 | C76: 928841 | D76: 0 | E76: 2830 | G76: 2015-08-31 | H76: 1013203 | I76: 978866 | J76: -80393 | L76: 2015-08-31 | M76: -3306609 | N76: -3288720 | O76: -17889
A77: 2015-09-30 | B77: 545963 | C77: 557351 | D77: -11388 | E77: 2830 | G77: 2015-09-30 | H77: =H76+B77 -> 1559166 | I77: 1536217 | J77: -91781 | L77: 2015-09-30 | M77: -2760646 | N77: -2731369 | O77: -29277
A78: 2015-10-31 | B78: -929578 | C78: -929578 | E78: 2830 | G78: 2015-10-31 | H78: =B78 -> -929578 | I78: =C78 -> -929578 | J78: =D78 -> 0 | L78: 2015-10-31 | M78: -3690224 | N78: -3660947 | O78: -29277
A79: 2015-11-30 | B79: -70165 | C79: -70165 | E79: 2830 | G79: 2015-11-30 | H79: =H78+B79 -> -999743 | I79: -999743 | J79: 0 | L79: 2015-11-30 | M79: -3760389 | N79: -3731112 | O79: -29277
A80: 2015-12-31 | B80: 1441356 | C80: 1402935 | D80: 38421 | E80: 2830 | G80: 2015-12-31 | H80: 441613 | I80: 403192 | J80: 38421 | L80: 2015-12-31 | M80: -2319033 | N80: -2328177 | O80: 9144
A81: 2016-01-31 | B81: 1015811 | C81: 1015811 | D81: 0 | E81: 2830 | G81: 2016-01-31 | H81: 1457424 | I81: =I80+C81 -> 1419003 | J81: =D81+J80 -> 38421 | L81: 2016-01-31 | M81: =B81+M80 -> -1303222 | N81: =C81+N80 -> -1312366 | O81: =D81+O80 -> 9144
A82: 2016-02-28 | B82: 230964 | C82: 230964 | D82: 0 | E82: 2830 | G82: 2016-02-28 | H82: 1688388 | I82: 1649967 | J82: 38421 | L82: 2016-02-28 | M82: -1072258 | N82: -1081402 | O82: 9144
A83: 2016-03-31 | B83: =D83+C83 -> -741754 | C83: -690130 | D83: -51624 | E83: 2830 | G83: 2016-03-31 | H83: 946634 | I83: 959837 | J83: -13203 | L83: 2016-03-31 | M83: -1814012 | N83: -1771532 | O83: -42480
A84: 2016-04-30 | B84: =D84+C84 -> -118668 | C84: -118668 | E84: 2830 | G84: 2016-04-30 | H84: 827966 | I84: 841169 | J84: -13203 | L84: 2016-04-30 | M84: =B84+M83 -> -1932680 | N84: =C84+N83 -> -1890200 | O84: =D84+O83 -> -42480
A85: 2016-05-31 | B85: -205614 | C85: -205614 | E85: 2830 | G85: 2016-05-31 | H85: 622352 | I85: 635555 | J85: -13203 | L85: 2016-05-31 | M85: -2138294 | N85: -2095814 | O85: -42480
A86: 2016-06-30 | B86: 215197.81 | C86: 233579.84 | D86: -18382.03 | E86: 2830 | G86: 2016-06-30 | H86: 837549.81 | I86: 869134.84 | J86: -31585.03 | L86: 2016-06-30 | M86: -1923096.19 | N86: -1862234.16 | O86: -60862.03
A87: 2016-07-31 | B87: -525258 | C87: -525258 | E87: 2830 | G87: 2016-07-31 | H87: 312291.81 | I87: 343876.84 | J87: -31585.03 | L87: 2016-07-31 | M87: -2448354.19 | N87: -2387492.16 | O87: -60862.03
A88: 2016-08-31 | B88: -72304 | C88: -72304 | E88: 2830 | G88: 2016-08-31 | H88: 239987.81 | I88: 271572.84 | J88: -31585.03 | L88: 2016-08-31 | M88: -2520658.19 | N88: -2459796.16 | O88: -60862.03
A89: 2016-09-30 | B89: 5219 | C89: -21773 | D89: 26992 | E89: 2830 | G89: 2016-09-30 | H89: 245206.81 | I89: 249799.84 | J89: -4593.03 | L89: 2016-09-30 | M89: -2515439.19 | N89: -2481569.16 | O89: -33870.03
A90: 2016-10-31 | B90: 231065 | C90: 231065 | E90: 2830 | G90: 2016-10-31 | H90: =B90 -> 231065 | I90: =C90 -> 231065 | J90: =D90 -> 0 | L90: 2016-10-31 | M90: -2284374.19 | N90: -2250504.16 | O90: -33870.03
A91: 2016-11-30 | B91: -136901 | C91: -136901 | E91: 2830 | G91: 2016-11-30 | H91: 94164 | I91: 94164 | J91: 0 | L91: 2016-11-30 | M91: -2421275.19 | N91: -2387405.16 | O91: -33870.03
A92: 2016-12-31 | B92: 381810 | C92: 299763 | D92: 82047 | E92: 2830 | G92: 2016-12-31 | H92: 475974 | I92: 393927 | J92: 82047 | L92: 2016-12-31 | M92: -2039465.19 | N92: -2087642.16 | O92: =D92+O91 -> 48176.97
A93: 2017-01-31 | B93: -605386 | C93: -605386 | E93: 2830 | G93: 2017-01-31 | H93: -129412 | I93: -211459 | J93: 82047 | L93: 2017-01-31 | M93: -2644851.19 | N93: -2693028.16 | O93: =D93+O92 -> 48176.97
A94: 2017-02-28 | B94: -345720 | C94: -345720 | E94: 2830 | G94: 2017-02-28 | H94: -475132 | I94: -557179 | J94: 82047 | L94: 2017-02-28 | M94: -2990571.19 | N94: -3038748.16 | O94: 48176.97
A95: 2017-03-31 | B95: 71743 | C95: 109551 | D95: -37808 | E95: 2830 | G95: 2017-03-31 | H95: =H94+B95 -> -403389 | I95: -447628 | J95: 44239 | L95: 2017-03-31 | M95: -2918828.19 | N95: -2929197.16 | O95: 10368.97
A96: 2017-04-30 | B96: -197086 | C96: -197086 | E96: 2830 | G96: 2017-04-30 | H96: =H95+B96 -> -600475 | I96: -644714 | J96: 44239 | L96: 2017-04-30 | M96: -3115914.19 | N96: -3126283.16 | O96: 10368.97
A97: 2017-05-31 | B97: -226849 | C97: -226849 | E97: 2830 | G97: 2017-05-31 | H97: -827324 | I97: -871563 | J97: 44239 | L97: 2017-05-31 | M97: -3342763.19 | N97: -3353132.16 | O97: 10368.97
A98: 2017-06-30 | B98: -65494 | C98: -62361 | D98: -3133 | E98: 2830 | G98: 2017-06-30 | H98: -892818 | I98: -933924 | J98: 41106 | L98: 2017-06-30 | M98: -3408257.19 | N98: -3415493.16 | O98: 7235.97
A101: TOTAL | B101: =SUM(B17:B100) -> -3408257.19 | C101: =SUM(C17:C100) -> -3415493.16 | D101: =SUM(D17:D100) -> 7235.97 | G101: per RF | H101: -889687
G102: Diff | H102: =H98-H101 -> -3131
G103: Co 210 | H103: =TLock!Q103 -> -3133
H104: =H102-H103 -> 2

Sheet 6-2017 (hidden)
A1: 2017-06-30
B2: SSU | C2: 20 | D2: 30 | E2: 50 | F2: 60 | G2: 70 | H2: 80 | I2: 180 | J2: 210
A3: Adj Code | B3: 002DIV | C3: 107DIV | D3: 010DIV | E3: 091DIV | F3: 030DIV | G3: 170DIV | H3: 190DIV | I3: 700DIV | J3: 830DIV | K3: Total Utility
A4: ONT02 | K4: =SUM(B4:I4) -> 0
A5: ONT32 | B5: 0 | C5: -149634 | D5: -5468 | E5: 9814 | F5: 136998 | G5: 0 | H5: -8508 | I5: 807232 | K5: =SUM(B5:I5) -> 790434
A6: ONT68 | B6: 0 | C6: 0 | D6: 69338 | E6: 157983 | F6: 0 | G6: 0 | H6: 74707 | I6: 11981 | K6: 314009
A7: ONT69 | B7: 0 | C7: 0 | D7: -1930561 | E7: 0 | F7: 0 | G7: 0 | H7: -10058871 | I7: 0 | K7: -11989432
A8: ONT70 | B8: 0 | C8: -1198441 | D8: 0 | E8: 0 | F8: 0 | G8: 0 | H8: 0 | I8: 0 | K8: -1198441
A9: GCA01 | B9: 0 | C9: -1311960 | D9: 3268376 | E9: -1700831 | F9: -2266514 | G9: -476774 | H9: 15716543 | I9: 0 | K9: 13228840
A10: GCA03 | B10: 0 | C10: 995806 | D10: -3217630 | E10: 1340035 | F10: 2456827 | G10: 233716 | H10: 3595627 | I10: 0 | K10: 5404381
A11: ONT52 | B11: 0 | C11: 57742 | D11: 188299 | E11: -172109 | F11: 309717 | G11: 263165 | H11: -2958161 | I11: 0 | K11: -2311347
A12: ACC02 | K12: 0
A13: OTH | B13: 0 | C13: 576219 | D13: 509637 | E13: 646535 | F13: 424386 | G13: 445543 | H13: 2500268 | I13: 1120080 | K13: 6222668
A14: PRB01 | K14: 0
A15: PEN01 | K15: 0
A16: ONT04 | K16: 0
A17: ONT49 | B17: 0 | C17: 0 | D17: 0 | E17: 0 | F17: 0 | G17: 0 | H17: -6943482 | I17: -2501465 | K17: -9444947
A18: ONT13 | K18: 0
A19: FXA02c | K19: 0
A20: FXA04 | K20: 0 | L20: fxa04
A21: FXA01c | K21: 0 | L21: fxa07
A22: FXA01c | K22: 0 | L22: fxa10
A23: FXA01c | K23: 0 | L23: fxa44
A24: FXA01c | K24: 0 | L24: fxa06
A25: FXA01c | K25: 0 | L25: fxa46
A26: FXA46 | K26: 0
A27: NBP03 | K27: 0
A28: ONT50 | K28: 0
A29: NOL | K29: 0
A31: Combined Amounts:
A32: FXA01 | B32: -2409832 | C32: -10099384 | D32: -8515235 | E32: -9196193 | F32: -5421917 | G32: -4605166 | H32: -39050501 | I32: -14969564 | K32: -94267792 | L32: includes FXA04, FXA07, FXA10, FXA44, FXA06 | R32: NOL Recon
A33: FXA02 | B33: -2987945 | C33: -5025826 | D33: -2672496 | E33: -10608552 | F33: -881685 | G33: -7881637 | H33: -22424922 | I33: -44941040 | K33: -97424103 | R33: Current provision NOL (excl restricted stock) | S33: -7915031 | T33: <tax effected>
A34: TAX02U | B34: =S35+S36 -> 19471678.61 | K34: 19471678.61 | R34: Non Reg contribution to NOL | S34: =-S41*0.35 -> -23335014.15 | T34: <tax effected>
A35: TAX02NR | B35: =S34 -> -23335014.15 | K35: -23335014.15 | R35: Utility NOL Q3 activity | S35: =S33-S34 -> 15419983.15 | T35: <tax effected>
A36: TAX02OT | K36: 0 | R36: Stock Vesting Activity | S36: =-K42 -> 4051695.459 | T36: <tax effected>
B37: =B3 -> 002DIV | C37: 107DIV | D37: 010DIV | E37: 091DIV | F37: 030DIV | G37: 170DIV | H37: 190DIV | I37: 700DIV | J37: 830DIV | K37: Total Utility
A38: Total | B38: =SUM(B4:B36) -> -9261112.541 | C38: -16155478 | D38: -12305740 | E38: -19523318 | F38: -5242188 | G38: -12021153 | H38: -59557300 | I38: -60472776 | J38: 0 | K38: =SUM(K4:K36) -> -194539065.5 | R38: Non Utility PTBI | S38: 49462328.27
R39: Less: Book Gain on AEM Sale (212) | S39: -12916243.71
R40: Plus: Tax Gain on AEM Sale (312) | S40: 30125384.45
J41: check to quarterly provision | K41: 198590758.2 | R41: Adjusted Non Utility PTBI | S41: =SUM(S38:S40) -> 66671469.01 | T41: =S41*0.35 -> 23335014.15
J42: restricted stock vesting (1900.28201) | K42: -4051695.459 | R42: adjusted due to including gain in C312 deferreds
J43: difference | K43: =SUM(K41:K42)+K38 -> -2.783469439

Sheet Q48(a) 1&2-DIV009
A1: ='Q48(a) 1&2-DIV091'!A1 -> KY DR Q48 (a) 1&2
A3: Atmos Energy Corporation, Inc.
A4: Accumulated Deferred Income Taxes
A5: Division 009 - Kentucky Division
A6: Calendar Year End 12/31/2016
A8: ALL NUMBERS ARE TAX EFFECTED
E10: Fiscal 2015 | F10: Fiscal 2015 | G10: Fiscal 2015 | H10: Fiscal 2015 | I10: Fiscal 2016 | J10: Fiscal 2016 | K10: Fiscal 2016 | L10: Fiscal 2016 | M10: Fiscal 2017
A11: Adjustment Description | C11: Category | D11: Adj Code | E11: 2014-12-31 | F11: 2015-03-31 | G11: 2015-06-30 | H11: 2015-09-30 | I11: 2015-12-31 | J11: 2016-03-31 | K11: 2016-06-30 | L11: 2016-09-30 | M11: 2016-12-31
A12: Environmental Activities | C12: ACC | D12: ACC01 | E12: 0 | F12: 0 | G12: 0 | H12: 0 | I12: 0 | J12: 0 | K12: 0 | L12: 0 | M12: 0
A13: Ad Valorem Taxes | C13: ACC | D13: ACC02 | E13: 0 | F13: 0 | G13: 0 | H13: 0 | I13: 0 | J13: 0 | K13: 0 | L13: 0 | M13: 0
A14: Directors Deferred Bonus | C14: ACC | D14: ACC03 | E14: 0 | F14: 0 | G14: 0 | H14: 0 | I14: 0 | J14: 0 | K14: 0 | L14: 0 | M14: 0
A15: MIP/VPP Accrual | C15: ACC | D15: ACC04 | E15: -7975.98 | F15: -7975.98 | G15: -7975.98 | H15: -31513.37 | I15: -31513.37 | J15: -31513.37 | K15: -31513.37 | L15: -18182 | M15: -18182
A16: Accrued Environmental Asset | C16: ACC | D16: ACC05 | E16: 0 | F16: 0 | G16: 0 | H16: 0 | I16: 0 | J16: 0 | K16: 0 | L16: 0 | M16: 0
A17: Miscellaneous Accrued | C17: ACC | D17: ACC06 | E17: 0 | F17: 0 | G17: 0 | H17: 0 | I17: 0 | J17: 0 | K17: 0 | L17: 0 | M17: 0
A18: Self Insurance - Adjustment | C18: ACC | D18: ACC08 | E18: 0 | F18: 0 | G18: 0 | H18: 0 | I18: 0 | J18: 0 | K18: 0 | L18: 0 | M18: 0
A19: Vacation Accrual | C19: ACC | D19: ACC11 | E19: 0 | F19: 0 | G19: 0 | H19: 0 | I19: 0 | J19: 0 | K19: 0 | L19: 0 | M19: 0
A20: Worker's Comp Insurance Reserve | C20: ACC | D20: ACC12 | E20: 0 | F20: 0 | G20: 0 | H20: 66170.485 | I20: 66170.485 | J20: 66170.485 | K20: 66170.485 | L20: 0 | M20: 0
A21: Accrual - Subtotal | E21: =SUM(E12:E20) -> -7975.98 | F21: -7975.98 | G21: -7975.98 | H21: 34657.115 | I21: 34657.115 | J21: 34657.115 | K21: 34657.115 | L21: -18182 | M21: -18182
A22: Rabbi Trust - True Up | C22: BEN | D22: NBP01 | E22: 0 | F22: 0 | G22: 0 | H22: 0 | I22: 0 | J22: 0 | K22: 0 | L22: 0 | M22: 0
A23: SEBP Adjustment | C23: BEN | D23: NBP03 | E23: 0 | F23: 0 | G23: 0 | H23: 0 | I23: 0 | J23: 0 | K23: 0 | L23: 0 | M23: 0
A24: Rabbi Trust MVG | C24: BEN | D24: NBP04 | E24: 0 | F24: 0 | G24: 0 | H24: 0 | I24: 0 | J24: 0 | K24: 0 | L24: 0 | M24: 0
A25: Restricted Stock Grant Plan | C25: BEN | D25: NBP05 | E25: 0 | F25: 0 | G25: 0 | H25: 0 | I25: 0 | J25: 0 | K25: 0 | L25: 0 | M25: 0
A26: Rabbi Trust | C26: BEN | D26: NBP06 | E26: 0 | F26: 0 | G26: 0 | H26: 0 | I26: 0 | J26: 0 | K26: 0 | L26: 0 | M26: 0
A27: Excess Capital Loss ovr Capital Gain | C27: BEN | D27: NBP08 | E27: 0 | F27: 0 | G27: 0 | H27: 0 | I27: 0 | J27: 0 | K27: 0 | L27: 0 | M27: 0
A28: Restricted Stock - MIP | C28: BEN | D28: NBP13 | E28: 0 | F28: 0 | G28: 0 | H28: 0 | I28: 0 | J28: 0 | K28: 0 | L28: 0 | M28: 0
A29: Director's Stock Awards | C29: BEN | D29: NBP16 | E29: 0 | F29: 0 | G29: 0 | H29: 0 | I29: 0 | J29: 0 | K29: 0 | L29: 0 | M29: 0
A30: Director's Stock - Temp | C30: BEN | D30: NBP18 | E30: 0 | F30: 0 | G30: 0 | H30: 0 | I30: 0 | J30: 0 | K30: 0 | L30: 0 | M30: 0
A31: Pension Expense | C31: BEN | D31: PEN01 | E31: 0 | F31: 0 | G31: 0 | H31: 0 | I31: 0 | J31: 0 | K31: 0 | L31: 0 | M31: 0
A32: FAS106 Adjustment | C32: BEN | D32: PRB01 | E32: 0 | F32: 0 | G32: 0 | H32: -482477.44 | I32: -482477.44 | J32: -482477.44 | K32: -482477.44 | L32: 0 | M32: 0
A33: Benefits - Subtotal | E33: =SUM(E22:E32) -> 0 | F33: 0 | G33: 0 | H33: -482477.44 | I33: -482477.44 | J33: -482477.44 | K33: -482477.44 | L33: 0 | M33: 0
A34: CWIP | C34: CWIP/RWIP | D34: FXA26 | E34: 1021559.08 | F34: 1021559.08 | G34: 1021559.08 | H34: 1892469.52 | I34: 1892469.52 | J34: 1892469.52 | K34: 1892469.52 | L34: -2823186 | M34: -2823186
A35: RWIP | C35: CWIP/RWIP | D35: FXA47 | E35: -716683.34 | F35: -716683.34 | G35: -716683.34 | H35: -569282.105 | I35: -569282.105 | J35: -569282.105 | K35: -569282.105 | L35: -827485 | M35: -827485
A36: CWIP/RWIP - Subtotal | E36: =SUM(E34:E35) -> 304875.74 | F36: 304875.74 | G36: 304875.74 | H36: 1323187.415 | I36: 1323187.415 | J36: 1323187.415 | K36: 1323187.415 | L36: -3650671 | M36: -3650671
A37: Fixed Asset Cost Adjustment | C37: FXA | D37: FXA01 | E37: -56469105.84 | F37: -56469105.84 | G37: -56469105.84 | H37: -63663355.84 | I37: -63663355.84 | J37: -63663355.84 | K37: -63663355.84 | L37: -78351671 | M37: -78351671
A38: Depreciation Adjustment | C38: FXA | D38: FXA02 | E38: -13319198.57 | F38: -13319198.57 | G38: -13319198.57 | H38: -16287937.39 | I38: -16287937.39 | J38: -16287937.39 | K38: -16287937.39 | L38: -16600785 | M38: -16600785
A39: Book Gain/Loss on Sale of Fixed Assets | C39: FXA | D39: FXA03 | E39: 0 | F39: 0 | G39: 0 | H39: 0 | I39: 0 | J39: 0 | K39: 0 | L39: 0 | M39: 0
A40: Tax Gain/Loss on Sale of Fixed Assets | C40: FXA | D40: FXA04 | E40: 0 | F40: 0 | G40: 0 | H40: 0 | I40: 0 | J40: 0 | K40: 0 | L40: 0 | M40: 0
A41: Section 481(a) Cushion Gas | C41: FXA | D41: FXA13 | E41: 0 | F41: 0 | G41: 0 | H41: 0 | I41: 0 | J41: 0 | K41: 0 | L41: 0 | M41: 0
A42: Section 481(a) Line Pack Gas | C42: FXA | D42: FXA14 | E42: 0 | F42: 0 | G42: 0 | H42: 0 | I42: 0 | J42: 0 | K42: 0 | L42: 0 | M42: 0
A43: IRS Audit Assessment - Cost | C43: FXA | D43: FXA15 | E43: 0 | F43: 0 | G43: 0 | H43: 0 | I43: 0 | J43: 0 | K43: 0 | L43: 0 | M43: 0
A44: IRS Audit Assessment - Accum | C44: FXA | D44: FXA16 | E44: 0 | F44: 0 | G44: 0 | H44: 0 | I44: 0 | J44: 0 | K44: 0 | L44: 0 | M44: 0
A45: Repair % Completion Allowance | C45: FXA | D45: FXA41 | E45: 0 | F45: 0 | G45: 0 | H45: 0 | I45: 0 | J45: 0 | K45: 0 | L45: 0 | M45: 0
A46: Section 481(a) TPR | C46: FXA | D46: FXA46 | E46: 0 | F46: 0 | G46: 0 | H46: 0 | I46: 0 | J46: 0 | K46: 0 | L46: 0 | M46: 0
A47: Plant - Subtotal | E47: =SUM(E37:E46) -> -69788304.41 | F47: -69788304.41 | G47: -69788304.41 | H47: -79951293.23 | I47: -79951293.23 | J47: -79951293.23 | K47: -79951293.23 | L47: -94952456 | M47: -94952456
A48: Deferred Gas Costs | C48: GCA | D48: GCA01 | E48: -1162679.76 | F48: -1162679.76 | G48: -1162679.76 | H48: 2136049.715 | I48: 2136049.715 | J48: 2136049.715 | K48: 2136049.715 | L48: -355656 | M48: -355656
A49: Over Recoveries of PGA | C49: GCA | D49: GCA03 | E49: -67853.865 | F49: -67853.865 | G49: -67853.865 | H49: -3007698.915 | I49: -3007698.915 | J49: -3007698.915 | K49: -3007698.915 | L49: -333873 | M49: -333873
A50: PGA - Amended Item | C50: GCA | D50: GCA04 | E50: 0 | F50: 0 | G50: 0 | H50: 0 | I50: 0 | J50: 0 | K50: 0 | L50: 0 | M50: 0
A51: Gas Cost Adjustment - Subtotal | E51: =SUM(E48:E50) -> -1230533.625 | F51: -1230533.625 | G51: -1230533.625 | H51: -871649.2 | I51: -871649.2 | J51: -871649.2 | K51: -871649.2 | L51: -689529 | M51: -689529
A52: LGS - Goodwill Amortization | C52: GDW | D52: ONT13 | E52: 0 | F52: 0 | G52: 0 | H52: 0 | I52: 0 | J52: 0 | K52: 0 | L52: 0 | M52: 0
A53: TXU - Goodwill Amortization | C53: GDW | D53: ONT49 | E53: 0 | F53: 0 | G53: 0 | H53: 0 | I53: 0 | J53: 0 | K53: 0 | L53: 0 | M53: 0
A54: Goodwill - Subtotal | E54: =SUM(E52:E53) -> 0 | F54: 0 | G54: 0 | H54: 0 | I54: 0 | J54: 0 | K54: 0 | L54: 0 | M54: 0
A55: Customer Advances | C55: ONT | D55: CAP01 | E55: 676689.56 | F55: 676689.56 | G55: 676689.56 | H55: 647007.03 | I55: 647007.03 | J55: 647007.03 | K55: 647007.03 | L55: 608936 | M55: 608936
A56: Amoritzation - LGS Acq. 1810-13523 | C56: ONT | D56: DTE01 | E56: 0 | F56: 0 | G56: 0 | H56: 0 | I56: 0 | J56: 0 | K56: 0 | L56: 0 | M56: 0
A57: Deferred Expense Projects | C57: ONT | D57: DTE09 | E57: -8958.195 | F57: -8958.195 | G57: -8958.195 | H57: -12057.045 | I57: -12057.045 | J57: -12057.045 | K57: -12057.045 | L57: -12450 | M57: -12450
A58: Amoritzation - LGS Acq. 1810-14155 | C58: ONT | D58: DTE12 | E58: 0 | F58: 0 | G58: 0 | H58: 0 | I58: 0 | J58: 0 | K58: 0 | L58: 0 | M58: 0
A59: Deferred Projects - TXU Acquisition | C59: ONT | D59: DTE14 | E59: 0 | F59: 0 | G59: 0 | H59: 0 | I59: 0 | J59: 0 | K59: 0 | L59: 0 | M59: 0
A60: RAR 91/93 Bond Cost Amortized | C60: ONT | D60: DVA05 | E60: 0 | F60: 0 | G60: 0 | H60: 0 | I60: 0 | J60: 0 | K60: 0 | L60: 0 | M60: 0
A61: RAR 91/93 Bond Cost Capitalized | C61: ONT | D61: DVA06 | E61: 0 | F61: 0 | G61: 0 | H61: 0 | I61: 0 | J61: 0 | K61: 0 | L61: 0 | M61: 0
A62: DIG on Fixed Assets | C62: ONT | D62: DVA16 | E62: 0 | F62: 0 | G62: 0 | H62: 0 | I62: 0 | J62: 0 | K62: 0 | L62: 0 | M62: 0
A63: DIG on Fixed Assets - UCG Storage | C63: ONT | D63: DVA18 | E63: 0 | F63: 0 | G63: 0 | H63: 0 | I63: 0 | J63: 0 | K63: 0 | L63: 0 | M63: 0
A64: DIG on Fixed Assets - WKG | C64: ONT | D64: DVA19 | E64: 0 | F64: 0 | G64: 0 | H64: 0 | I64: 0 | J64: 0 | K64: 0 | L64: 0 | M64: 0
A65: RAR 86/90 Lease Expense Amortiz. | C65: ONT | D65: DVA26 | E65: 0 | F65: 0 | G65: 0 | H65: 0 | I65: 0 | J65: 0 | K65: 0 | L65: 0 | M65: 0
A66: MVG Right of Way | C66: ONT | D66: DVA35 | E66: 0 | F66: 0 | G66: 0 | H66: 0 | I66: 0 | J66: 0 | K66: 0 | L66: 0 | M66: 0
A67: Amortization - ComfurT Goodwill | C67: ONT | D67: DVA37 | E67: 0 | F67: 0 | G67: 0 | H67: 0 | I67: 0 | J67: 0 | K67: 0 | L67: 0 | M67: 0
A68: Deferred ITC - GGC | C68: ONT | D68: ITC01 | E68: 0 | F68: 0 | G68: 0 | H68: 0 | I68: 0 | J68: 0 | K68: 0 | L68: 0 | M68: 0
A69: Deferred ITC - UCG Non-Utility | C69: ONT | D69: ITC02 | E69: 0 | F69: 0 | G69: 0 | H69: 0 | I69: 0 | J69: 0 | K69: 0 | L69: 0 | M69: 0
A70: Deferred ITC - UCG | C70: ONT | D70: ITC03 | E70: 0 | F70: 0 | G70: 0 | H70: 0 | I70: 0 | J70: 0 | K70: 0 | L70: 0 | M70: 0
A71: Deferred ITC - MVG | C71: ONT | D71: ITC04 | E71: 0 | F71: 0 | G71: 0 | H71: 0 | I71: 0 | J71: 0 | K71: 0 | L71: 0 | M71: 0
A72: Regulatory Liability - GGC | C72: ONT | D72: ITC05 | E72: 0 | F72: 0 | G72: 0 | H72: 0 | I72: 0 | J72: 0 | K72: 0 | L72: 0 | M72: 0
A73: Capitalized Selling Expense | C73: ONT | D73: NTE03 | E73: -2052.03 | F73: -2052.03 | G73: -2052.03 | H73: -2052.03 | I73: -2052.03 | J73: -2052.03 | K73: -2052.03 | L73: 0 | M73: 0
A74: UNICAP Section 263A Costs | C74: ONT | D74: NTE11 | E74: 0 | F74: 0 | G74: 0 | H74: 0 | I74: 0 | J74: 0 | K74: 0 | L74: 0 | M74: 0
A75: 481(a) UNICAP | C75: ONT | D75: NTE15 | E75: 0 | F75: 0 | G75: 0 | H75: 0 | I75: 0 | J75: 0 | K75: 0 | L75: 0 | M75: 0
A76: UNICAP - IRS Audit | C76: ONT | D76: NTE19 | E76: 0 | F76: 0 | G76: 0 | H76: 0 | I76: 0 | J76: 0 | K76: 0 | L76: 0 | M76: 0
A77: Allowance for Doubtful Accounts | C77: ONT | D77: ONT02 | E77: 355526.79 | F77: 355526.79 | G77: 355526.79 | H77: 264581.2 | I77: 264581.2 | J77: 264581.2 | K77: 264581.2 | L77: 266710 | M77: 266710
A78: Clearing Account - Adjustment | C78: ONT | D78: ONT03 | E78: 0 | F78: 0 | G78: 0 | H78: 0 | I78: 0 | J78: 0 | K78: 0 | L78: 0 | M78: 0
A79: Charitable Contribution Carryover | C79: ONT | D79: ONT04 | E79: 0 | F79: 0 | G79: 0 | H79: 0 | I79: 0 | J79: 0 | K79: 0 | L79: 0 | M79: 0
A80: RAR CFWE 1990-1985 | C80: ONT | D80: ONT06 | E80: 0 | F80: 0 | G80: 0 | H80: 0 | I80: 0 | J80: 0 | K80: 0 | L80: 0 | M80: 0
A81: Union Gas - Non Compete | C81: ONT | D81: ONT21 | E81: 0 | F81: 0 | G81: 0 | H81: 0 | I81: 0 | J81: 0 | K81: 0 | L81: 0 | M81: 0
A82: Monarch - Non Compete | C82: ONT | D82: ONT22 | E82: 0 | F82: 0 | G82: 0 | H82: 0 | I82: 0 | J82: 0 | K82: 0 | L82: 0 | M82: 0
A83: Palmyra - Non Compete | C83: ONT | D83: ONT23 | E83: 0 | F83: 0 | G83: 0 | H83: 0 | I83: 0 | J83: 0 | K83: 0 | L83: 0 | M83: 0
A84: Prepayments | C84: ONT | D84: ONT31 | E84: -87083.89 | F84: -87083.89 | G84: -87083.89 | H84: -102456.96 | I84: -102456.96 | J84: -102456.96 | K84: -102456.96 | L84: -90565 | M84: -90565
A85: Rate Case Accrual | C85: ONT | D85: ONT32 | E85: 6.935 | F85: 6.935 | G85: 6.935 | H85: 0 | I85: 0 | J85: 0 | K85: 0 | L85: 0 | M85: 0
A86: Research and Development Expenses | C86: ONT | D86: ONT33 | E86: 0 | F86: 0 | G86: 0 | H86: 0 | I86: 0 | J86: 0 | K86: 0 | L86: 0 | M86: 0
A87: Partnership Investment - Unitary | C87: ONT | D87: ONT37 | E87: 0 | F87: 0 | G87: 0 | H87: 0 | I87: 0 | J87: 0 | K87: 0 | L87: 0 | M87: 0
A88: Inventory Adjustment | C88: ONT | D88: ONT44 | E88: 0 | F88: 0 | G88: 0 | H88: 0 | I88: 0 | J88: 0 | K88: 0 | L88: 0 | M88: 0
A89: Stock Option Expense | C89: ONT | D89: ONT50 | E89: 0 | F89: 0 | G89: 0 | H89: 0 | I89: 0 | J89: 0 | K89: 0 | L89: 0 | M89: 0
A90: Prepayments - MVG | C90: ONT | D90: ONT51 | E90: 0 | F90: 0 | G90: 0 | H90: 0 | I90: 0 | J90: 0 | K90: 0 | L90: 0 | M90: 0
A91: WACOG to FIFO Adjustment | C91: ONT | D91: ONT52 | E91: 0 | F91: 0 | G91: 0 | H91: 0 | I91: 0 | J91: 0 | K91: 0 | L91: 0 | M91: 0
A92: Tax Free Interest - Temp | C92: ONT | D92: ONT58 | E92: 0 | F92: 0 | G92: 0 | H92: 0 | I92: 0 | J92: 0 | K92: 0 | L92: 0 | M92: 0
A93: Federal & State Tax Interest | C93: ONT | D93: ONT61 | E93: 0 | F93: 0 | G93: 0 | H93: 0 | I93: 0 | J93: 0 | K93: 0 | L93: 0 | M93: 0
A94: Prepayments - IRS Audits | C94: ONT | D94: ONT64 | E94: 0 | F94: 0 | G94: 0 | H94: 0 | I94: 0 | J94: 0 | K94: 0 | L94: 0 | M94: 0
A95: VA Charitable Contributions | C95: ONT | D95: ONT67 | E95: 0 | F95: 0 | G95: 0 | H95: 0 | I95: 0 | J95: 0 | K95: 0 | L95: 0 | M95: 0
A96: Reg Asset Benefit Accrual | C96: ONT | D96: ONT68 | E96: 0 | F96: 0 | G96: 0 | H96: 0 | I96: 0 | J96: 0 | K96: 0 | L96: 0 | M96: 0
A97: TX Rule 8.209 Reg Asset Deferral | C97: ONT | D97: ONT69 | E97: 0 | F97: 0 | G97: 0 | H97: 0 | I97: 0 | J97: 0 | K97: 0 | L97: 0 | M97: 0
A98: LA SIIP Reg Asset | C98: ONT | D98: ONT70 | E98: 0 | F98: 0 | G98: 0 | H98: 0 | I98: 0 | J98: 0 | K98: 0 | L98: 0 | M98: 0
A99: Intra Period Tax Allocation | C99: ONT | D99: OTH | E99: 0 | F99: 0 | G99: 0 | H99: 0 | I99: 0 | J99: 0 | K99: 0 | L99: 0 | M99: 0
A100: Regulatory Asset - LGS Amortization | C100: ONT | D100: RGA01 | E100: 0 | F100: 0 | G100: 0 | H100: 0 | I100: 0 | J100: 0 | K100: 0 | L100: 0 | M100: 0
A101: Regulatory Asset - Mid Tex | C101: ONT | D101: RGA03 | E101: 0 | F101: 0 | G101: 0 | H101: 0 | I101: 0 | J101: 0 | K101: 0 | L101: 0 | M101: 0
A102: Regulatory Liability - Atmos 109 | C102: ONT | D102: RGL01 | E102: 0 | F102: 0 | G102: 0 | H102: 0 | I102: 0 | J102: 0 | K102: 0 | L102: 0 | M102: 0
A103: Regulatory Liability - Mid-Tex | C103: ONT | D103: RGL02 | E103: 0 | F103: 0 | G103: 0 | H103: 0 | I103: 0 | J103: 0 | K103: 0 | L103: 0 | M103: 0
A104: Regulatory Liability - GGC 109 | C104: ONT | D104: RGL03 | E104: 0 | F104: 0 | G104: 0 | H104: 0 | I104: 0 | J104: 0 | K104: 0 | L104: 0 | M104: 0
A105: Regulatory Liability - UCGC 109 | C105: ONT | D105: RGL04 | E105: 0 | F105: 0 | G105: 0 | H105: 0 | I105: 0 | J105: 0 | K105: 0 | L105: 0 | M105: 0
A106: Regulatory Liability - UCGC Rate | C106: ONT | D106: RGL05 | E106: 0 | F106: 0 | G106: 0 | H106: 0 | I106: 0 | J106: 0 | K106: 0 | L106: 0 | M106: 0
A107: Other - Subtotal | E107: =SUM(E55:E106) -> 934129.17 | F107: 934129.17 | G107: 934129.17 | H107: 795022.195 | I107: 795022.195 | J107: 795022.195 | K107: 795022.195 | L107: 772631 | M107: 772631
A108: FD-NOL Credit Carryforward - Non Reg | C108: TAX | D108: TAX02NR | E108: 0 | F108: 0 | G108: 0 | H108: 0 | I108: 0 | J108: 0 | K108: 0 | L108: 0 | M108: 0
A109: FD-NOL Credit Carryforward - Utility | C109: TAX | D109: TAX02U | E109: 0 | F109: 0 | G109: 0 | H109: 0 | I109: 0 | J109: 0 | K109: 0 | L109: 0 | M109: 0
A110: FD-NOL Credit Carryforward - Other | C110: TAX | D110: TAX02OT | E110: 0 | F110: 0 | G110: 0 | H110: 0 | I110: 0 | J110: 0 | K110: 0 | L110: 0 | M110: 0
A111: ST-State Net Operating Loss | C111: TAX | D111: TAX04 | E111: 1368432 | F111: 1368432 | G111: 1368432 | H111: 1790298 | I111: 1790298 | J111: 1850041 | K111: 1850041 | L111: 2496830 | M111: 2496830
A112: ST-State Bonus Depreciation | C112: TAX | D112: TAX05 | E112: 0 | F112: 0 | G112: 0 | H112: 0 | I112: 0 | J112: 0 | K112: 0 | L112: 0 | M112: 0
A113: FD-FAS 115 Adjustment | C113: TAX | D113: TAX06 | E113: 0 | F113: 0 | G113: 0 | H113: 0 | I113: 0 | J113: 0 | K113: 0 | L113: 0 | M113: 0
A114: FD-Treasury Lock Adjustment | C114: TAX | D114: TAX08 | E114: 0 | F114: 0 | G114: 0 | H114: 0 | I114: 0 | J114: 0 | K114: 0 | L114: 0 | M114: 0
A115: FD-Other | C115: TAX | D115: TAX10 | E115: 0 | F115: 0 | G115: 0 | H115: 0 | I115: 0 | J115: 0 | K115: 0 | L115: 0 | M115: 0
A116: FD-Federal Benefit on State Bonus | C116: TAX | D116: TAX11 | E116: 0 | F116: 0 | G116: 0 | H116: 0 | I116: 0 | J116: 0 | K116: 0 | L116: 0 | M116: 0
A117: FD-Federal Benefit on State NOL | C117: TAX | D117: TAX12 | E117: -486350 | F117: -486350 | G117: -486350 | H117: -626604 | I117: -626604 | J117: -647514 | K117: -647514 | L117: -873890 | M117: -873890
A118: ST - Valuation Allow on State NOL | C118: TAX | D118: TAX13 | G118: 0 | H118: 0 | I118: 0 | J118: 0 | K118: 0 | L118: 0 | M118: 0
A119: FD - Valuation on Fed Tax of St NO | C119: TAX | D119: TAX14 | G119: 0 | H119: 0 | I119: 0 | J119: 0 | K119: 0 | L119: 0 | M119: 0
A120: FD-FAS 158 Measurement Date Change | C120: TAX | D120: TAX22 | E120: 0 | F120: 0 | G120: 0 | H120: 0 | I120: 0 | J120: 0 | K120: 0 | L120: 0 | M120: 0
A121: FD-AMT Minimum Tax Credit | C121: TAX | D121: TAX23 | E121: 0 | F121: 0 | G121: 0 | H121: 0 | I121: 0 | J121: 0 | K121: 0 | L121: 0 | M121: 0
A122: ST- Valuation Allow Enterprise Zone ITC | C122: TAX | D122: TAX37 | L122: 0 | M122: 0
A123: FD- Valuation Allow Fed Tax Enterprise Zone ITC | C123: TAX | D123: TAX38 | L123: 0 | M123: 0
A124: ST-Enterprise Zone ITC | C124: TAX | D124: TAX39 | E124: 0 | F124: 0 | G124: 0 | H124: 0 | I124: 0 | J124: 0 | K124: 0 | L124: 0 | M124: 0
A125: FD-Treasury Lock Adjustment-Realized | C125: TAX | D125: TAX40 | E125: 0 | F125: 0 | G125: 0 | H125: 0 | I125: 0 | J125: 0 | K125: 0 | L125: 0 | M125: 0
A126: FD-Treasury Lock Adjustment-Unrealized | C126: TAX | D126: TAX41 | E126: 0 | F126: 0 | G126: 0 | H126: 0 | I126: 0 | J126: 0 | K126: 0 | L126: 0 | M126: 0
A127: FD -Federal Tax on Enterprise ITC | C127: TAX | D127: TAX42 | G127: 0 | H127: 0 | I127: 0 | J127: 0 | K127: 0 | L127: 0 | M127: 0
A128: Other Tax Effected Items - Subtotal | E128: =SUM(E108:E127) -> 882082 | F128: 882082 | G128: 882082 | H128: 1163694 | I128: 1163694 | J128: 1202527 | K128: 1202527 | L128: 1622940 | M128: 1622940
A129: Total Accumulated Deferred Income Tax | E129: =E128+E107+E51+E54+E47+E36+E33+E21 -> -68905727.11 | F129: -68905727.11 | G129: -68905727.11 | H129: -77988859.15 | I129: -77988859.15 | J129: -77950026.15 | K129: -77950026.15 | L129: -96915267 | M129: -96915267
A131: Per Financials:
A132: A1900-28201 | E132: 471426.47 | F132: 471426.47 | G132: 471426.47 | H132: -193982.55 | I132: -193982.55 | J132: -214892.6 | K132: -214892.6 | L132: -32517.6 | M132: -32517.6
A133: A1900-28206 | E133: 1432843.87 | F133: 1432843.87 | G133: 1432843.87 | H133: 1819392.42 | I133: 1819392.42 | J133: 1879135.42 | K133: 1879135.42 | L133: 2552015.42 | M133: 2552015.42
A134: A2820-28201 | E134: -65105020.84 | F134: -65105020.84 | G134: -65105020.84 | H134: -73673458.06 | I134: -73673458.06 | J134: -73673458.06 | K134: -73673458.06 | L134: -92388928.06 | M134: -92388928.06
A135: A2820-28206 | E135: -4378407.83 | F135: -4378407.83 | G135: -4378407.83 | H135: -4954647.76 | I135: -4954647.76 | J135: -4954647.76 | K135: -4954647.76 | L135: -6214197.76 | M135: -6214197.76
A136: A2830-28201 | E136: -1242976.77 | F136: -1242976.77 | G136: -1242976.77 | H136: -924021.41 | I136: -924021.41 | J136: -924021.41 | K136: -924021.41 | L136: -780542.41 | M136: -780542.41
A137: A2830-28204 | E137: 0 | F137: 0 | G137: 0 | H137: 0 | I137: 0 | J137: 0 | K137: 0 | L137: 0 | M137: 0
A138: A2830-28206 | E138: -83592 | F138: -83592 | G138: -83592 | H138: -62141.79 | I138: -62141.79 | J138: -62141.79 | K138: -62141.79 | L138: -51093.79 | M138: -51093.79
A139: Total | E139: =SUM(E132:E138) -> -68905727.1 | F139: -68905727.1 | G139: -68905727.1 | H139: -77988859.15 | I139: -77988859.15 | J139: -77950026.2 | K139: -77950026.2 | L139: -96915264.2 | M139: -96915264.2
A141: Difference | E141: -0.004999995232 | F141: -0.004999995232 | G141: -0.004999995232 | H141: 0 | I141: 0 | J141: 0.05000002682 | K141: 0.05000002682 | L141: -2.799999982 | M141: -2.799999982

Sheet Q48(a) 1&2-C010
A1: KY DR Q48 (a) 1&2
A3: Atmos Energy Corporation, Inc.
A4: Accumulated Deferred Income Taxes
A5: Company 010 - Shared Services
A6: Calendar Year End 12/31/2016
A8: ALL NUMBERS ARE TAX EFFECTED
E10: Fiscal 2015 | F10: Fiscal 2015 | G10: Fiscal 2015 | H10: Fiscal 2015 | I10: Fiscal 2016 | J10: Fiscal 2016 | K10: Fiscal 2016 | L10: Fiscal 2016 | M10: Fiscal 2017
A11: Adjustment Description | C11: Category | D11: Adj Code | E11: 2014-12-31 | F11: 2015-03-31 | G11: 2015-06-30 | H11: 2015-09-30 | I11: 2015-12-31 | J11: 2016-03-31 | K11: 2016-06-30 | L11: 2016-09-30 | M11: 2016-12-31
A12: Environmental Activities | C12: ACC | D12: ACC01 | E12: 0 | F12: 0 | G12: 0 | H12: 0 | I12: 0 | J12: 0 | K12: 0 | L12: 0 | M12: 0
A13: Ad Valorem Taxes | C13: ACC | D13: ACC02 | E13: 0 | F13: 0 | G13: 0 | H13: 0 | I13: 0 | J13: 0 | K13: 0 | L13: 0 | M13: 0
A14: Directors Deferred Bonus | C14: ACC | D14: ACC03 | E14: 123167.425 | F14: 123167.425 | G14: 123167.425 | H14: 140541.06 | I14: 140541.06 | J14: 140541.06 | K14: 140541.06 | L14: 166965 | M14: 166965
A15: MIP/VPP Accrual | C15: ACC | D15: ACC04 | E15: 843051.45 | F15: 843051.45 | G15: 843051.45 | H15: 751929.93 | I15: 751929.93 | J15: 751929.93 | K15: 751929.93 | L15: 924130 | M15: 924130
A16: Accrued Environmental Asset | C16: ACC | D16: ACC05 | E16: 0 | F16: 0 | G16: 0 | H16: 0 | I16: 0 | J16: 0 | K16: 0 | L16: 0 | M16: 0
A17: Miscellaneous Accrued | C17: ACC | D17: ACC06 | E17: 14426.99 | F17: 14426.99 | G17: 14426.99 | H17: 28510.15 | I17: 28510.15 | J17: 28510.15 | K17: 28510.15 | L17: 0 | M17: 0
A18: Self Insurance - Adjustment | C18: ACC | D18: ACC08 | E18: 4576432.05 | F18: 4576432.05 | G18: 4576432.05 | H18: 2386432.05 | I18: 2386432.05 | J18: 2386432.05 | K18: 2386432.05 | L18: 2915283 | M18: 2915283
A19: Vacation Accrual | C19: ACC | D19: ACC11 | E19: 0 | F19: 0 | G19: 0 | H19: 0 | I19: 0 | J19: 0 | K19: 0 | L19: 0 | M19: 0
A20: Worker's Comp Insurance Reserve | C20: ACC | D20: ACC12 | E20: -627.8 | F20: -627.8 | G20: -627.8 | H20: 68921.49 | I20: 68921.49 | J20: 68921.49 | K20: 68921.49 | L20: 104671 | M20: 104671
A21: Accrual - Subtotal | E21: 5556450.115 | F21: 5556450.115 | G21: 5556450.115 | H21: 3376334.68 | I21: 3376334.68 | J21: 3376334.68 | K21: 3376334.68 | L21: 4111049 | M21: 4111049
A22: Rabbi Trust - True Up | C22: BEN | D22: NBP01 | E22: 0 | F22: 0 | G22: 0 | H22: 0 | I22: 0 | J22: 0 | K22: 0 | L22: 0 | M22: 0
A23: SEBP Adjustment | C23: BEN | D23: NBP03 | E23: 23458405.2 | F23: 23888126.79 | G23: 24316652.79 | H23: 24888020.3 | I23: 25132565.3 | J23: 25490159.3 | K23: 25845194.99 | L23: 26316340 | M23: 26316340
A24: Rabbi Trust MVG | C24: BEN | D24: NBP04 | E24: 0 | F24: 0 | G24: 0 | H24: 0 | I24: 0 | J24: 0 | K24: 0 | L24: 0 | M24: 0
A25: Restricted Stock Grant Plan | C25: BEN | D25: NBP05 | E25: 7385564.76 | F25: 7385564.76 | G25: 7385564.76 | H25: 6917885.88 | I25: 6917885.88 | J25: 6917885.88 | K25: 6917885.88 | L25: 4631448 | M25: 4631448
A26: Rabbi Trust | C26: BEN | D26: NBP06 | E26: 1534495.405 | F26: 1534495.405 | G26: 1534495.405 | H26: 1442650.09 | I26: 1442650.09 | J26: 1442650.09 | K26: 1442650.09 | L26: 1442452 | M26: 1442452
A27: Excess Capital Loss ovr Capital Gain | C27: BEN | D27: NBP08 | E27: 0 | F27: 0 | G27: 0 | H27: 0 | I27: 0 | J27: 0 | K27: 0 | L27: 0 | M27: 0
A28: Restricted Stock - MIP | C28: BEN | D28: NBP13 | E28: 9513920.275 | F28: 9513920.275 | G28: 9513920.275 | H28: 11152323.15 | I28: 11152323.15 | J28: 11152323.15 | K28: 11152323.15 | L28: 12632356 | M28: 12632356
A29: Director's Stock Awards | C29: BEN | D29: NBP16 | E29: 4119248.015 | F29: 4119248.015 | G29: 4119248.015 | H29: 4870799.805 | I29: 4870799.805 | J29: 4870799.805 | K29: 4870799.805 | L29: 5939395 | M29: 5939395
A30: Director's Stock - Temp | C30: BEN | D30: NBP18 | E30: 0 | F30: 0 | G30: 0 | H30: 0 | I30: 0 | J30: 0 | K30: 0 | L30: 0 | M30: 0
A31: Pension Expense | C31: BEN | D31: PEN01 | E31: -16687700.36 | F31: -14379604.96 | G31: 1798490.04 | H31: -35639200.79 | I31: -21491980.79 | J31: -37677525.79 | K31: -35659206.8 | L31: -30651600 | M31: -30651600
A32: FAS106 Adjustment | C32: BEN | D32: PRB01 | E32: 8291684.797 | F32: 8432337.595 | G32: 8589984.595 | H32: 8766482.035 | I32: 8711975.035 | J32: 8776976.035 | K32: 8754081.021 | L32: 8944489 | M32: 8944489
A33: Benefits - Subtotal | E33: 37615618.1 | F33: 40494087.88 | G33: 57258355.88 | H33: 22398960.47 | I33: 36736218.47 | J33: 20973268.47 | K33: 23323728.13 | L33: 29254880 | M33: 29254880
A34: CWIP | C34: CWIP/RWIP | D34: FXA26 | E34: -565153.59 | F34: -565153.59 | G34: -565153.59 | H34: -2672394.22 | I34: -2672394.22 | J34: -2672394.22 | K34: -2672394.22 | L34: 1451951 | M34: 1451951
A35: RWIP | C35: CWIP/RWIP | D35: FXA47 | E35: -4017.19 | F35: -4017.19 | G35: -4017.19 | H35: -4659.955 | I35: -4659.955 | J35: -4659.955 | K35: -4659.955 | L35: -3919 | M35: -3919
A36: CWIP/RWIP - Subtotal | E36: -569170.78 | F36: -569170.78 | G36: -569170.78 | H36: -2677054.175 | I36: -2677054.175 | J36: -2677054.175 | K36: -2677054.175 | L36: 1448032 | M36: 1448032
A37: Fixed Asset Cost Adjustment | C37: FXA | D37: FXA01 | E37: -75633708.23 | F37: -76630053.35 | G37: -77649399.35 | H37: -77062997.86 | I37: -78278458.86 | J37: -80629210.86 | K37: -80791826.26 | L37: -87483202 | M37: -88031197
A38: Depreciation Adjustment | C38: FXA | D38: FXA02 | E38: 26595515.33 | F38: 24246548.82 | G38: 22940441.82 | H38: 21739187.2 | I38: 19688890.2 | J38: 19308263.2 | K38: 16389868.02 | L38: 35322799 | M38: 33954625
A39: Book Gain/Loss on Sale of Fixed Assets | C39: FXA | D39: FXA03 | E39: 0 | F39: 0 | G39: 0 | H39: 0 | I39: 0 | J39: 0 | K39: 0 | L39: 0 | M39: 0
A40: Tax Gain/Loss on Sale of Fixed Assets | C40: FXA | D40: FXA04 | E40: 0 | F40: 0 | G40: 0 | H40: 0 | I40: 0 | J40: 0 | K40: 0 | L40: 0 | M40: 0
A41: Section 481(a) Cushion Gas | C41: FXA | D41: FXA13 | E41: 549284.12 | F41: 549284.12 | G41: 549284.12 | H41: 549284.12 | I41: 549284.12 | J41: 549284.12 | K41: 549284.12 | L41: 549209 | M41: 549209
A42: Section 481(a) Line Pack Gas | C42: FXA | D42: FXA14 | E42: 66647.905 | F42: 66647.905 | G42: 66647.905 | H42: 66647.905 | I42: 66647.905 | J42: 66647.905 | K42: 66647.905 | L42: 66639 | M42: 66639
A43: IRS Audit Assessment - Cost | C43: FXA | D43: FXA15 | E43: 0 | F43: 0 | G43: 0 | H43: 0 | I43: 0 | J43: 0 | K43: 0 | L43: 0 | M43: 0
A44: IRS Audit Assessment - Accum | C44: FXA | D44: FXA16 | E44: 0 | F44: 0 | G44: 0 | H44: 0 | I44: 0 | J44: 0 | K44: 0 | L44: 0 | M44: 0
A45: Repair % Completion Allowance | C45: FXA | D45: FXA41 | E45: 0 | F45: 0 | G45: 0 | H45: 0 | I45: 0 | J45: 0 | K45: 0 | L45: 0 | M45: 0
A46: Section 481(a) TPR | C46: FXA | D46: FXA46 | E46: 0 | F46: 0 | G46: 0 | H46: 0 | I46: 0 | J46: 0 | K46: 0 | L46: 0 | M46: 0
A47: Plant - Subtotal | E47: -48422260.88 | F47: -51767572.5 | G47: -54093025.5 | H47: -54707878.63 | I47: -57973636.63 | J47: -60705015.63 | K47: -63786026.21 | L47: -51544555 | M47: -53460724
A48: Deferred Gas Costs | C48: GCA | D48: GCA01 | E48: 0 | F48: 0 | G48: 0 | H48: 0 | I48: 0 | J48: 0 | K48: 0 | L48: 0 | M48: 0
A49: Over Recoveries of PGA | C49: GCA | D49: GCA03 | E49: 0 | F49: 0 | G49: 0 | H49: 0 | I49: 0 | J49: 0 | K49: 0 | L49: 0 | M49: 0
A50: PGA - Amended Item | C50: GCA | D50: GCA04 | E50: 0 | F50: 0 | G50: 0 | H50: 0 | I50: 0 | J50: 0 | K50: 0 | L50: 0 | M50: 0
A51: Gas Cost Adjustment - Subtotal | E51: 0 | F51: 0 | G51: 0 | H51: 0 | I51: 0 | J51: 0 | K51: 0 | L51: 0 | M51: 0
A52: LGS - Goodwill Amortization | C52: GDW | D52: ONT13 | E52: 0 | F52: 0 | G52: 0 | H52: 0 | I52: 0 | J52: 0 | K52: 0 | L52: 0 | M52: 0
A53: TXU - Goodwill Amortization | C53: GDW | D53: ONT49 | E53: 0 | F53: 0 | G53: 0 | H53: 0 | I53: 0 | J53: 0 | K53: 0 | L53: 0 | M53: 0
A54: Goodwill - Subtotal | E54: 0 | F54: 0 | G54: 0 | H54: 0 | I54: 0 | J54: 0 | K54: 0 | L54: 0 | M54: 0
A55: Customer Advances | C55: ONT | D55: CAP01 | E55: 0 | F55: 0 | G55: 0 | H55: 0 | I55: 0 | J55: 0 | K55: 0 | L55: 0 | M55: 0
A56: Amoritzation - LGS Acq. 1810-13523 | C56: ONT | D56: DTE01 | E56: 0 | F56: 0 | G56: 0 | H56: 0 | I56: 0 | J56: 0 | K56: 0 | L56: 0 | M56: 0
A57: Deferred Expense Projects | C57: ONT | D57: DTE09 | E57: 0.365 | F57: 0.365 | G57: 0.365 | H57: 0.365 | I57: 0.365 | J57: 0.365 | K57: 0.365 | L57: 0 | M57: 0
A58: Amoritzation - LGS Acq. 1810-14155 | C58: ONT | D58: DTE12 | E58: 0 | F58: 0 | G58: 0 | H58: 0 | I58: 0 | J58: 0 | K58: 0 | L58: 0 | M58: 0
A59: Deferred Projects - TXU Acquisition | C59: ONT | D59: DTE14 | E59: 0 | F59: 0 | G59: 0 | H59: 0 | I59: 0 | J59: 0 | K59: 0 | L59: 0 | M59: 0
A60: RAR 91/93 Bond Cost Amortized | C60: ONT | D60: DVA05 | E60: 0 | F60: 0 | G60: 0 | H60: 0 | I60: 0 | J60: 0 | K60: 0 | L60: 0 | M60: 0
A61: RAR 91/93 Bond Cost Capitalized | C61: ONT | D61: DVA06 | E61: 0 | F61: 0 | G61: 0 | H61: 0 | I61: 0 | J61: 0 | K61: 0 | L61: 0 | M61: 0
A62: DIG on Fixed Assets | C62: ONT | D62: DVA16 | E62: 0 | F62: 0 | G62: 0 | H62: 0 | I62: 0 | J62: 0 | K62: 0 | L62: 0 | M62: 0
A63: DIG on Fixed Assets - UCG Storage | C63: ONT | D63: DVA18 | E63: 0 | F63: 0 | G63: 0 | H63: 0 | I63: 0 | J63: 0 | K63: 0 | L63: 0 | M63: 0
A64: DIG on Fixed Assets - WKG | C64: ONT | D64: DVA19 | E64: 0 | F64: 0 | G64: 0 | H64: 0 | I64: 0 | J64: 0 | K64: 0 | L64: 0 | M64: 0
A65: RAR 86/90 Lease Expense Amortiz. | C65: ONT | D65: DVA26 | E65: 0 | F65: 0 | G65: 0 | H65: 0 | I65: 0 | J65: 0 | K65: 0 | L65: 0 | M65: 0
A66: MVG Right of Way | C66: ONT | D66: DVA35 | E66: 0 | F66: 0 | G66: 0 | H66: 0 | I66: 0 | J66: 0 | K66: 0 | L66: 0 | M66: 0
A67: Amortization - ComfurT Goodwill | C67: ONT | D67: DVA37 | E67: 0 | F67: 0 | G67: 0 | H67: 0 | I67: 0 | J67: 0 | K67: 0 | L67: 0 | M67: 0
A68: Deferred ITC - GGC | C68: ONT | D68: ITC01 | E68: 0 | F68: 0 | G68: 0 | H68: 0 | I68: 0 | J68: 0 | K68: 0 | L68: 0 | M68: 0
A69: Deferred ITC - UCG Non-Utility | C69: ONT | D69: ITC02 | E69: 0 | F69: 0 | G69: 0 | H69: 0 | I69: 0 | J69: 0 | K69: 0 | L69: 0 | M69: 0
A70: Deferred ITC - UCG | C70: ONT | D70: ITC03 | E70: 0 | F70: 0 | G70: 0 | H70: 0 | I70: 0 | J70: 0 | K70: 0 | L70: 0 | M70: 0
A71: Deferred ITC - MVG | C71: ONT | D71: ITC04 | E71: 0 | F71: 0 | G71: 0 | H71: 0 | I71: 0 | J71: 0 | K71: 0 | L71: 0 | M71: 0
A72: Regulatory Liability - GGC | C72: ONT | D72: ITC05 | E72: 0 | F72: 0 | G72: 0 | H72: 0 | I72: 0 | J72: 0 | K72: 0 | L72: 0 | M72: 0
A73: Capitalized Selling Expense | C73: ONT | D73: NTE03 | E73: 0 | F73: 0 | G73: 0 | H73: 0 | I73: 0 | J73: 0 | K73: 0 | L73: 0 | M73: 0
A74: UNICAP Section 263A Costs | C74: ONT | D74: NTE11 | E74: 0 | F74: 0 | G74: 0 | H74: 0 | I74: 0 | J74: 0 | K74: 0 | L74: 0 | M74: 0
A75: 481(a) UNICAP | C75: ONT | D75: NTE15 | E75: 0 | F75: 0 | G75: 0 | H75: 0 | I75: 0 | J75: 0 | K75: 0 | L75: 0 | M75: 0
A76: UNICAP - IRS Audit | C76: ONT | D76: NTE19 | E76: 0 | F76: 0 | G76: 0 | H76: 0 | I76: 0 | J76: 0 | K76: 0 | L76: 0 | M76: 0
A77: Allowance for Doubtful Accounts | C77: ONT | D77: ONT02 | E77: 1.8396 | F77: 2 | G77: 0 | H77: 1.825 | I77: 1.825 | J77: 1.825 | K77: 1.825 | L77: 2 | M77: 2
A78: Clearing Account - Adjustment | C78: ONT | D78: ONT03 | E78: 141517.435 | F78: 141517.435 | G78: 141517.435 | H78: 3409.465 | I78: 3409.465 | J78: 3409.465 | K78: 3409.465 | L78: 0 | M78: 0
A79: Charitable Contribution Carryover | C79: ONT | D79: ONT04 | E79: 10525877.45 | F79: 10525877 | G79: 10525877 | H79: 11423536.4 | I79: 11424357.4 | J79: 11424448.4 | K79: 11424667.89 | L79: 11032917 | M79: 11032917
A80: RAR CFWE 1990-1985 | C80: ONT | D80: ONT06 | E80: 0 | F80: 0 | G80: 0 | H80: 0 | I80: 0 | J80: 0 | K80: 0 | L80: 0 | M80: 0
A81: Union Gas - Non Compete | C81: ONT | D81: ONT21 | E81: 0 | F81: 0 | G81: 0 | H81: 0 | I81: 0 | J81: 0 | K81: 0 | L81: 0 | M81: 0
A82: Monarch - Non Compete | C82: ONT | D82: ONT22 | E82: 0 | F82: 0 | G82: 0 | H82: 0 | I82: 0 | J82: 0 | K82: 0 | L82: 0 | M82: 0
A83: Palmyra - Non Compete | C83: ONT | D83: ONT23 | E83: 0 | F83: 0 | G83: 0 | H83: 0 | I83: 0 | J83: 0 | K83: 0 | L83: 0 | M83: 0
A84: Prepayments | C84: ONT | D84: ONT31 | E84: -2775517.305 | F84: -2775517.305 | G84: -2775517.305 | H84: -3837216.895 | I84: -3837216.895 | J84: -3837216.895 | K84: -3837216.895 | L84: -4047588 | M84: -4047588
A85: Rate Case Accrual | C85: ONT | D85: ONT32 | E85: 0 | F85: 0 | G85: 0 | H85: 0 | I85: 0 | J85: 0 | K85: 0 | L85: 0 | M85: 0
A86: Research and Development Expenses | C86: ONT | D86: ONT33 | E86: 0 | F86: 0 | G86: 0 | H86: 0 | I86: 0 | J86: 0 | K86: 0 | L86: 0 | M86: 0
A87: Partnership Investment - Unitary | C87: ONT | D87: ONT37 | E87: 0 | F87: 0 | G87: 0 | H87: 0 | I87: 0 | J87: 0 | K87: 0 | L87: 0 | M87: 0
A88: Inventory Adjustment | C88: ONT | D88: ONT44 | E88: 0 | F88: 0 | G88: 0 | H88: 0 | I88: 0 | J88: 0 | K88: 0 | L88: 0 | M88: 0
A89: Stock Option Expense | C89: ONT | D89: ONT50 | E89: 0 | F89: 0 | G89: 0 | H89: 0 | I89: 0 | J89: 0 | K89: 0 | L89: 0 | M89: 0
A90: Prepayments - MVG | C90: ONT | D90: ONT51 | E90: 0 | F90: 0 | G90: 0 | H90: 0 | I90: 0 | J90: 0 | K90: 0 | L90: 0 | M90: 0
A91: WACOG to FIFO Adjustment | C91: ONT | D91: ONT52 | E91: 0 | F91: 0 | G91: 0 | H91: 0 | I91: 0 | J91: 0 | K91: 0 | L91: 0 | M91: 0
A92: Tax Free Interest - Temp | C92: ONT | D92: ONT58 | E92: 0 | F92: 0 | G92: 0 | H92: 0 | I92: 0 | J92: 0 | K92: 0 | L92: 0 | M92: 0
A93: Federal & State Tax Interest | C93: ONT | D93: ONT61 | E93: 117990.63 | F93: 117990.63 | G93: 117990.63 | H93: 271005.2 | I93: 271005.2 | J93: 271005.2 | K93: 271005.2 | L93: 439887 | M93: 439887
A94: Prepayments - IRS Audits | C94: ONT | D94: ONT64 | E94: 0 | F94: 0 | G94: 0 | H94: 0 | I94: 0 | J94: 0 | K94: 0 | L94: 0 | M94: 0
A95: VA Charitable Contributions | C95: ONT | D95: ONT67 | E95: -6968861.05 | F95: -6968861.05 | G95: -6968861.05 | H95: -10286478.91 | I95: -10286478.91 | J95: -10286478.91 | K95: -10286478.91 | L95: -9275764 | M95: -9275764
A96: Reg Asset Benefit Accrual | C96: ONT | D96: ONT68 | E96: 0 | F96: 0 | G96: 0 | H96: 0 | I96: 0 | J96: 0 | K96: 0 | L96: 0 | M96: 0
A97: TX Rule 8.209 Reg Asset Deferral | C97: ONT | D97: ONT69 | E97: 0 | F97: 0 | G97: 0 | H97: 0 | I97: 0 | J97: 0 | K97: 0 | L97: 0 | M97: 0
A98: LA SIIP Reg Asset | C98: ONT | D98: ONT70 | E98: 0 | F98: 0 | G98: 0 | H98: 0 | I98: 0 | J98: 0 | K98: 0 | L98: 0 | M98: 0
A99: Intra Period Tax Allocation | C99: ONT | D99: OTH | E99: 1.8396 | F99: 2 | G99: 0 | H99: 0 | I99: 0 | J99: 0 | K99: 0 | L99: 0 | M99: 0
A100: Regulatory Asset - LGS Amortization | C100: ONT | D100: RGA01 | E100: 0 | F100: 0 | G100: 0 | H100: 0 | I100: 0 | J100: 0 | K100: 0 | L100: 0 | M100: 0
A101: Regulatory Asset - Mid Tex | C101: ONT | D101: RGA03 | E101: 0 | F101: 0 | G101: 0 | H101: 0 | I101: 0 | J101: 0 | K101: 0 | L101: 0 | M101: 0
A102: Regulatory Liability - Atmos 109 | C102: ONT | D102: RGL01 | E102: 0 | F102: 0 | G102: 0 | H102: 0 | I102: 0 | J102: 0 | K102: 0 | L102: 0 | M102: 0
A103: Regulatory Liability - Mid-Tex | C103: ONT | D103: RGL02 | E103: 0 | F103: 0 | G103: 0 | H103: 0 | I103: 0 | J103: 0 | K103: 0 | L103: 0 | M103: 0
A104: Regulatory Liability - GGC 109 | C104: ONT | D104: RGL03 | E104: 0 | F104: 0 | G104: 0 | H104: 0 | I104: 0 | J104: 0 | K104: 0 | L104: 0 | M104: 0
A105: Regulatory Liability - UCGC 109 | C105: ONT | D105: RGL04 | E105: 0 | F105: 0 | G105: 0 | H105: 0 | I105: 0 | J105: 0 | K105: 0 | L105: 0 | M105: 0
A106: Regulatory Liability - UCGC Rate | C106: ONT | D106: RGL05 | E106: 0 | F106: 0 | G106: 0 | H106: 0 | I106: 0 | J106: 0 | K106: 0 | L106: 0 | M106: 0
A107: Other - Subtotal | E107: 1041011.2 | F107: 1041011.075 | G107: 1041007.075 | H107: -2425742.55 | I107: -2424921.55 | J107: -2424830.55 | K107: -2424611.061 | L107: -1850546 | M107: -1850546
A108: FD-NOL Credit Carryforward - Non Reg | C108: TAX | D108: TAX02NR | E108: -219650879 | F108: -224875942.1 | G108: -227845748.8 | H108: -223209326 | I108: -223040174 | J108: -226944352 | K108: -231757499 | L108: -237733657 | M108: -245531761.7
A109: FD-NOL Credit Carryforward - Utility | C109: TAX | D109: TAX02U | E109: 469818580 | F109: 425654746 | G109: 407851902.6 | H109: 530457730 | I109: 554535985 | J109: 541564884 | K109: 570484105 | L109: 725716695 | M109: 761090475
A110: FD-NOL Credit Carryforward - Other | C110: TAX | D110: TAX02OT | E110: -2947398 | F110: -2330152 | G110: -2330152 | H110: -8887801 | I110: -8887801 | J110: 5386873 | K110: 5386873 | L110: 6052102 | M110: 6052102
A111: ST-State Net Operating Loss | C111: TAX | D111: TAX04 | E111: 25880 | F111: 25880 | G111: 25880 | H111: 0 | I111: 0 | J111: 0 | K111: 0 | L111: 0 | M111: 0
A112: ST-State Bonus Depreciation | C112: TAX | D112: TAX05 | E112: 0 | F112: 0 | G112: 0 | H112: 0 | I112: 0 | J112: 0 | K112: 0 | L112: 0 | M112: 0
A113: FD-FAS 115 Adjustment | C113: TAX | D113: TAX06 | E113: -3681504 | F113: -4187378 | G113: -4131920 | H113: -2731369 | I113: -2328177 | J113: -1771532 | K113: -1862234.16 | L113: -2481569.16 | M113: -2087642.16
A114: FD-Treasury Lock Adjustment | C114: TAX | D114: TAX08 | E114: 0 | F114: 0 | G114: 0 | H114: 0 | I114: 0 | J114: 0 | K114: 0 | L114: 0 | M114: 0
A115: FD-Other | C115: TAX | D115: TAX10 | E115: 0 | F115: 0 | G115: 0 | H115: 0 | I115: 0 | J115: 0 | K115: 0 | L115: 0 | M115: 0
A116: FD-Federal Benefit on State Bonus | C116: TAX | D116: TAX11 | E116: 0 | F116: 0 | G116: 0 | H116: 0 | I116: 0 | J116: 0 | K116: 0 | L116: 0 | M116: 0
A117: FD-Federal Benefit on State NOL | C117: TAX | D117: TAX12 | E117: -31979 | F117: -31979 | G117: -31979 | H117: 0 | I117: 0 | J117: 0 | K117: 0 | L117: 0 | M117: 0
A118: ST - Valuation Allow on State NOL | C118: TAX | D118: TAX13 | E118: 0 | F118: 0 | G118: 0 | H118: 0 | I118: 0 | J118: 0 | K118: 0 | L118: 0 | M118: 0
A119: FD - Valuation on Fed Tax of St NO | C119: TAX | D119: TAX14 | E119: 0 | F119: 0 | G119: 0 | H119: 0 | I119: 0 | J119: 0 | K119: 0 | L119: 0 | M119: 0
A120: FD-FAS 158 Measurement Date Change | C120: TAX | D120: TAX22 | E120: 0 | F120: 0 | G120: 0 | H120: 0 | I120: 0 | J120: 0 | K120: 0 | L120: 0 | M120: 0
A121: FD-AMT Minimum Tax Credit | C121: TAX | D121: TAX23 | E121: 10099286 | F121: 10099286 | G121: 10099286 | H121: 10099286 | I121: 10099286 | J121: 10099286 | K121: 10099286 | L121: 10099286 | M121: 10099286
A122: ST- Valuation Allow Enterprise Zone ITC | C122: TAX | D122: TAX37 | E122: 0 | F122: 0 | G122: 0 | H122: 0 | I122: 0 | J122: 0 | K122: 0 | L122: -120928 | M122: -120928
A123: FD- Valuation Allow Fed Tax Enterprise Zone ITC | C123: TAX | D123: TAX38 | E123: 0 | F123: 0 | G123: 0 | H123: 0 | I123: 0 | J123: 0 | K123: 0 | L123: 42325 | M123: 42325
A124: ST-Enterprise Zone ITC | C124: TAX | D124: TAX39 | E124: 988593 | F124: 988593 | G124: 988593 | H124: 1166272 | I124: 1166272 | J124: 1166272 | K124: 1166272 | L124: 1755554 | M124: 1755554
A125: FD-Treasury Lock Adjustment-Realized | C125: TAX | D125: TAX40 | E125: 10842725 | F125: 10792874 | G125: 10743023 | H125: 10720230 | I125: 10670379 | J125: 10620528 | K125: 10570677 | L125: 10520828 | M125: 10470977
A126: FD-Treasury Lock Adjustment-Unrealized | C126: TAX | D126: TAX41 | E126: 29490433.19 | F126: 48318293.19 | G126: 17055692.19 | H126: 40346642.19 | I126: 37647022.19 | J126: 68516916.19 | K126: 91127626.75 | L126: 97261210 | M126: 44881209
A127: FD -Federal Tax on Enterprise ITC | C127: TAX | D127: TAX42 | E127: 0 | F127: 0 | G127: 0 | H127: -408195 | I127: -408195 | J127: -408195 | K127: -408195 | L127: -614444 | M127: -614444
A128: Other Tax Effected Items - Subtotal | E128: 294953737.2 | F128: 264454221.1 | G128: 212424577.1 | H128: 357553469.2 | I128: 379454597.2 | J128: 408230680.2 | K128: 454806911.6 | L128: 610497401.8 | M128: 586037152.2
A129: Total Accumulated Deferred Income Tax | E129: 290175384.9 | F129: 259209026.9 | G129: 221618193.9 | H129: 323518089 | I129: 356491538 | J129: 366773383 | K129: 412619282.9 | L129: 591916261.8 | M129: 565539843.2
A131: Per Financials:
A132: A1900-28201 | E132: 293545262.7 | F132: 293697673.7 | G132: 293697673.7 | H132: 366488789.6 | I132: 366488789.6 | J132: 383877948.6 | K132: 385328671.6 | L132: 566487744.6 | M132: 569144467.6
A133: A1900-28206 | E133: 5001985.67 | F133: 5001985.67 | G133: 5001985.67 | H133: 5284141.4 | I133: 5284141.4 | J133: 5284141.4 | K133: 5284141.4 | L133: 5863388.4 | M133: 5863388.4
A134: A2820-28201 | E134: -21180887.4 | F134: -70552605.5 | G134: -77479815.96 | H134: -53768895.95 | I134: -18904195.59 | J134: -56628158.41 | K134: -34673126.48 | L134: -46939319.95 | M134: -23857791.36
A135: A2820-28206 | E135: -2966531.75 | F135: -2985717.06 | G135: -2392341.07 | H135: -3616036.91 | I135: -3161010.05 | J135: -3921047.14 | K135: -3951060.82 | L135: -3157200.91 | M135: -3235947.61
A136: A2830-28201 | E136: 14781441.56 | F136: 31902181.49 | G136: 2614806 | H136: 8554726.05 | I136: 6356294.53 | J136: 35755821.7 | K136: 56810051.05 | L136: 65268801.41 | M136: 16511852.06
A137: A2830-28204 | E137: 0 | F137: 0 | G137: 0 | H137: 0 | I137: 0 | J137: 0 | K137: 0 | L137: 0 | M137: 0
A138: A2830-28206 | E138: 994073.61 | F138: 2145468.43 | G138: 175849.65 | H138: 575317.83 | I138: 427470.11 | J138: 2404631.32 | K138: 3820559.04 | L138: 4393218.73 | M138: 1114242.62
A139: Total | E139: 290175344.4 | F139: 259208986.7 | G139: 221618158 | H139: 323518042 | I139: 356491490 | J139: 366773337.5 | K139: 412619235.8 | L139: 591916632.3 | M139: 565540211.7
A141: Difference | E141: 40.57391828 | F141: 40.21999994 | G141: 35.90999994 | H141: 46.96000004 | I141: 47.97999996 | J141: 45.50999999 | K141: 47.15682495 | L141: -370.4400001 | M141: -368.5199999

Sheet Q48(a) 3-A4091
A1: KY DR Q48(a) 3
A3: Atmos Energy Corporation, Inc.
A4: Federal Income Taxes - Operating
A5: Calendar Year End 12/31/2016
A8: Company | B8: Service Area | C8: 2016-01-31 | D8: 2016-02-29 | E8: 2016-03-31 | F8: 2016-04-30 | G8: 2016-05-31 | H8: 2016-06-30 | I8: 2016-07-31 | J8: 2016-08-31 | K8: 2016-09-30 | L8: 2016-10-31 | M8: 2016-11-30 | N8: 2016-12-31
A9: 10 | B9: 002DIV | C9: 36223049.5 | D9: 36619384.12 | E9: -2267801.36 | F9: -2137578.93 | G9: -2058637.35 | H9: 20600318.02 | I9: 20596026.43 | J9: 20625484.29 | K9: 195363253.3 | L9: -104644.29 | M9: -242551.41 | N9: 23587427.29
A10: 10 | B10: 012DIV | C10: 0 | D10: 0 | E10: 0 | F10: 0 | G10: 0 | H10: 0 | I10: 0 | J10: 0 | K10: 1275429.3 | L10: 0 | M10: 0 | N10: 0
A11: Total 10 | C11: =SUM(C9:C10) -> 36223049.5 | D11: =SUM(D9:D10) -> 36619384.12 | E11: =SUM(E9:E10) -> -2267801.36 | F11: =SUM(F9:F10) -> -2137578.93 | G11: =SUM(G9:G10) -> -2058637.35 | H11: =SUM(H9:H10) -> 20600318.02 | I11: =SUM(I9:I10) -> 20596026.43 | J11: =SUM(J9:J10) -> 20625484.29 | K11: =SUM(K9:K10) -> 196638682.6 | L11: =SUM(L9:L10) -> -104644.29 | M11: =SUM(M9:M10) -> -242551.41 | N11: =SUM(N9:N10) -> 23587427.29
A13: 50 | B13: 009DIV | C13: 0 | D13: 0 | E13: 0 | F13: 0 | G13: 0 | H13: 0 | I13: 0 | J13: 0 | K13: -9618362.7 | L13: 0 | M13: 0 | N13: 0
A14: 50 | B14: 091DIV | C14: 1961171.91 | D14: 4757904.08 | E14: 1852951.11 | F14: 2502588.46 | G14: 2882025.37 | H14: 2675332.55 | I14: 3163043.36 | J14: 3484360.37 | K14: -853894.8 | L14: 1069726.03 | M14: 2763918.38 | N14: -3230213.13
A15: Total 50 | C15: =SUM(C13:C14) -> 1961171.91 | D15: 4757904.08 | E15: 1852951.11 | F15: 2502588.46 | G15: 2882025.37 | H15: 2675332.55 | I15: 3163043.36 | J15: 3484360.37 | K15: -10472257.5 | L15: 1069726.03 | M15: 2763918.38 | N15: -3230213.13
A17: Grand Total | C17: =C15+C11 -> 38184221.41 | D17: 41377288.2 | E17: -414850.25 | F17: 365009.53 | G17: 823388.02 | H17: 23275650.57 | I17: 23759069.79 | J17: 24109844.66 | K17: 186166425.1 | L17: 965081.74 | M17: 2521366.97 | N17: 20357214.16

Sheet 5-31-17 SV (hidden)
L1: YTD May | M1: Cost Center | N1: Ending Balance | O1: CY Actual | P1: Type
C3: A1900-28201 | D3: A1900-28206 | E3: A2820-28201 | F3: A2820-28206 | G3: A2830-28201 | H3: A2830-28204 | I3: A2830-28206 | J3: Deferred Income Taxes
A4: C010 | B4: 002DIV | C4: 569394787 | D4: 5863388.53 | E4: 48432157.55 | F4: 1544221.23 | G4: -27053646.44 | H4: 0 | I4: -1823199.94 | J4: -554158643.1
A5: C010 | B5: 012DIV | C5: -0.28 | D5: -0.13 | E5: 26157546.93 | F5: 1759390.42 | G5: 538554 | H5: 0 | I5: 36225 | J5: 28491716.76
A6: C010 | B6: 042DIV | C6: 0 | D6: 0 | E6: 0 | F6: 0 | G6: 0 | H6: 0 | I6: 0 | J6: 0
C7: =SUM(C4:C6) -> 569394786.7 | D7: 5863388.4 | E7: 74589704.48 | F7: 3303611.65 | G7: -26515092.44 | H7: 0 | I7: -1786974.94 | J7: -525666926.4
A8: C010 | B8: 010COM | C8: 569394786.7 | D8: 5863388.4 | E8: 74589704.48 | F8: 3303611.65 | G8: -26515092.44 | H8: 0 | I8: -1786974.94 | J8: -525666926.4
C9: =C7-C8 -> 0 | D9: 0 | E9: 0 | F9: 0 | G9: 0 | H9: 0 | I9: 0 | J9: 0
A11: C020 | B11: 007DIV | C11: 610027.04 | D11: 41031.45 | E11: 54084949.35 | F11: 3637823.9 | G11: 3984109.03 | H11: 0 | I11: 267978.01 | J11: 61323801.8
A12: C020 | B12: 077DIV | C12: -821694.78 | D12: -55268.19 | E12: 104732903.8 | F12: 7044471.95 | G12: 3267211.43 | H12: 0 | I12: 219758.48 | J12: 116141308.6
A13: C020 | B13: 023DIV | C13: 0 | D13: 0 | E13: 0 | F13: 0 | G13: 0 | H13: 0 | I13: 0 | J13: 0
A14: C020 | B14: 047DIV | C14: 0 | D14: 0 | E14: 0 | F14: 0 | G14: 0 | H14: 0 | I14: 0 | J14: 0
A15: C020 | B15: 107DIV | C15: -4348258.36 | D15: 13739626.16 | E15: 8951754.49 | F15: 387462.57 | G15: 159965.71 | H15: 0 | I15: 7876.49 | J15: 115691.46
C16: =SUM(C11:C15) -> -4559926.1 | D16: 13725389.42 | E16: 167769607.7 | F16: 11069758.42 | G16: 7411286.17 | H16: 0 | I16: 495612.98 | J16: 177580801.9
A17: C020 | B17: 020COM | C17: -4559926.1 | D17: 13725389.42 | E17: 167769607.7 | F17: 11069758.42 | G17: 7411286.17 | H17: 0 | I17: 495612.98 | J17: 177580801.9
C18: =C16-C17 -> 0 | D18: 0 | E18: 0 | F18: 0 | G18: 0 | H18: 0 | I18: 0 | J18: 0
A20: C030 | B20: 004DIV | C20: 6347.52 | D20: 426.51 | E20: 130897.75 | F20: 8802.56 | G20: 1102.35 | H20: 0 | I20: 74.46 | J20: 134103.09
A21: C030 | B21: 008DIV | C21: 18676.01 | D21: 1255.06 | E21: -43714.27 | F21: -2940.76 | G21: -0.15 | H21: 0 | I21: -0.16 | J21: -66586.41
A22: C030 | B22: 019DIV | C22: 1796.76 | D22: 119.57 | E22: 8709176.77 | F22: 585788.88 | G22: 0.1 | H22: 0 | I22: -0.35 | J22: 9293049.07
A23: C030 | B23: 003DIV | C23: 377427.25 | D23: 25387.31 | E23: 28704786.91 | F23: 1930721.6 | G23: 452599.25 | H23: 0 | I23: 30442.19 | J23: 30715735.39
A24: C030 | B24: 013DIV | C24: 41211.79 | D24: 2770.51 | E24: 1785812.34 | F24: 120116.33 | G24: -10493.04 | H24: 0 | I24: -704.76 | J24: 1850748.57
A25: C030 | B25: 001DIV | C25: 0 | D25: 0 | E25: 0 | F25: 0 | G25: 0 | H25: 0 | I25: 0 | J25: 0
A26: C030 | B26: 011DIV | C26: 0 | D26: 0 | E26: 0 | F26: 0 | G26: 0 | H26: 0 | I26: 0 | J26: 0
A27: C030 | B27: 010DIV | C27: 11360895.68 | D27: 764146.61 | E27: 9739353.33 | F27: 416021.11 | G27: 1511184.01 | H27: 0 | I27: 101645.38 | J27: -356838.46
A28: C030 | B28: 022DIV | C28: 0 | D28: 0 | E28: 0 | F28: 0 | G28: 0 | H28: 0 | I28: 0 | J28: 0
A29: C030 | B29: 040DIV | C29: 0 | D29: 0 | E29: 816740.46 | F29: 54926.99 | G29: 0 | H29: 0 | I29: 0 | J29: 871667.45
A30: C030 | B30: 006DIV | C30: 18692.32 | D30: 1256.89 | E30: 1173970.16 | F30: 78961.85 | G30: 23555.52 | H30: 0 | I30: 1585.51 | J30: 1258123.83
A31: C030 | B31: 017DIV | C31: 0 | D31: 0 | E31: -1506.49 | F31: -101.87 | G31: 0 | H31: 0 | I31: 0 | J31: -1608.36
A32: C030 | B32: 018DIV | C32: 1064.54 | D32: 71.64 | E32: 2502.55 | F32: 167.7 | G32: 37.52 | H32: 0 | I32: 3.07 | J32: 1574.66
A33: C030 | B33: 979DIV | C33: 0 | D33: 0 | E33: 0 | F33: 0 | G33: 0 | H33: 0 | I33: 0 | J33: 0
A34: C030 | B34: 980DIV | C34: 0 | D34: 0 | E34: 0 | F34: 0 | G34: 0 | H34: 0 | I34: 0 | J34: 0
A35: C030 | B35: 016DIV | C35: 339404.47 | D35: 22830.87 | E35: 30711086.07 | F35: 2065668.08 | G35: 116146.8 | H35: 0 | I35: 7811.83 | J35: 32538477.44
A36: C030 | B36: 020DIV | C36: 30670.27 | D36: 2062.57 | E36: 2019999.14 | F36: 135867.6 | G36: 4208.25 | H36: 0 | I36: 283.31 | J36: 2127625.46
A37: C030 | B37: 014DIV | C37: 0 | D37: 0 | E37: 0 | F37: 0 | G37: 0 | H37: 0 | I37: 0 | J37: 0
A38: C030 | B38: 015DIV | C38: 0 | D38: 0 | E38: 0 | F38: 0 | G38: 0 | H38: 0 | I38: 0 | J38: 0
A39: C030 | B39: 005DIV | C39: 773296.04 | D39: 52013.07 | E39: 66965889.63 | F39: 4504211.09 | G39: 2813940.89 | H39: 0 | I39: 189269.78 | J39: 73648002.28
A40: C030 | B40: 021DIV | C40: 157182.7 | D40: 10572.05 | E40: 11295812.28 | F40: 759769.69 | G40: 221762.5 | H40: 0 | I40: 14915.88 | J40: 12124505.6
C41: =SUM(C20:C40) -> 13126665.35 | D41: 882912.66 | E41: 162010806.6 | F41: 10657980.85 | G41: 5134044 | H41: 0 | I41: 345326.14 | J41: 164138579.6
A42: C030 | B42: 030COM | C42: 13126665.35 | D42: 882912.66 | E42: 162010806.6 | F42: 10657980.85 | G42: 5134044 | H42: 0 | I42: 345326.14 | J42: 164138579.6
C43: =C41-C42 -> 0 | D43: 0 | E43: 0 | F43: 0 | G43: 0 | H43: 0 | I43: 0 | J43: 0
A45: C050 | B45: 009DIV | C45: -32517.6 | D45: 2552015.42 | E45: 92388928.06 | F45: 6214197.76 | G45: 780542.41 | H45: 0 | I45: 51093.79 | J45: 96915264.2
A46: C050 | B46: 093DIV | C46: -818199.6 | D46: 3037464.84 | E46: 79605045.22 | F46: 5354339.8 | G46: 2496006.62 | H46: 0 | I46: 166495.53 | J46: 85402621.93
A47: C050 | B47: 096DIV | C47: 88499.58 | D47: 90548.77 | E47: 17474940.7 | F47: 1175387.86 | G47: 1689805.06 | H47: 0 | I47: 113658.39 | J47: 20274743.66
A48: C050 | B48: 049DIV | C48: 0 | D48: 0 | E48: 0 | F48: 0 | G48: 0 | H48: 0 | I48: 0 | J48: 0
A49: C050 | B49: 088DIV | C49: 0 | D49: 0 | E49: 0 | F49: 0 | G49: 0 | H49: 0 | I49: 0 | J49: 0
A50: C050 | B50: 089DIV | C50: 0 | D50: 0 | E50: 0 | F50: 0 | G50: 0 | H50: 0 | I50: 0 | J50: 0
A51: C050 | B51: 090DIV | C51: 0 | D51: 0 | E51: 0 | F51: 0 | G51: 0 | H51: 0 | I51: 0 | J51: 0
A52: C050 | B52: 091DIV | C52: 5362764.11 | D52: 360708.03 | E52: 20240086.41 | F52: -9920716.4 | G52: 1549454.22 | H52: 0 | I52: 104217.93 | J52: 6249570.02
A53: C050 | B53: 092DIV | C53: 0 | D53: 0 | E53: 0 | F53: 0 | G53: 0 | H53: 0 | I53: 0 | J53: 0
A54: C050 | B54: 094DIV | C54: 0 | D54: 0 | E54: 0 | F54: 0 | G54: 0 | H54: 0 | I54: 0 | J54: 0
A55: C050 | B55: 095DIV | C55: 0.03 | D55: 0.07 | E55: 79629.09 | F55: 5354.53 | G55: 0 | H55: 0 | I55: 0 | J55: 84983.52
A56: C050 | B56: 098DIV | C56: 0 | D56: 0 | E56: -0.33 | F56: 0.35 | G56: 0 | H56: 0 | I56: 0 | J56: 0.02
A57: C050 | B57: 099DIV | C57: 0 | D57: 0 | E57: 0 | F57: 0 | G57: 0 | H57: 0 | I57: 0 | J57: 0
A58: C050 | B58: 070DIV | C58: 0 | D58: 0 | E58: 0 | F58: 0 | G58: 0 | H58: 0 | I58: 0 | J58: 0
A59: C050 | B59: 072DIV | C59: -0.34 | D59: -0.02 | E59: -0.34 | F59: -0.02 | G59: 0 | H59: 0 | I59: 0 | J59: 0
A60: C050 | B60: 097DIV | C60: 0 | D60: 0 | E60: 0 | F60: 0 | G60: 0 | H60: 0 | I60: 0 | J60: 0
C61: =SUM(C45:C60) -> 4600546.18 | D61: 6040737.11 | E61: 209788628.8 | F61: 2828563.88 | G61: 6515808.31 | H61: 0 | I61: 435465.64 | J61: 208927183.4
A62: C050 | B62: 050COM | C62: 4600546.18 | D62: 6040737.11 | E62: 209788628.8 | F62: 2828563.88 | G62: 6515808.31 | H62: 0 | I62: 435465.64 | J62: 208927183.3
C63: =C61-C62 -> 0 | D63: 0 | E63: 0 | F63: 0 | G63: 0 | H63: 0 | I63: 0 | J63: 0
A65: C060 | B65: 024DIV | C65: 0 | D65: 0 | E65: 0 | F65: 0 | G65: 0 | H65: 0 | I65: 0 | J65: 0
A66: C060 | B66: 030DIV | C66: -87315.71 | D66: 5350052.89 | E66: 6381894.76 | F66: 277830.14 | G66: 166668.97 | H66: 0 | I66: 9853.3 | J66: 1573509.99
A67: C060 | B67: 039DIV | C67: 0 | D67: 0 | E67: 0 | F67: 0 | G67: 0 | H67: 0 | I67: 0 | J67: 0
A68: C060 | B68: 087DIV | C68: 0 | D68: 0 | E68: 0 | F68: 0 | G68: 0 | H68: 0 | I68: 0 | J68: 0
A69: C060 | B69: 031DIV | C69: 463473.9 | D69: 31173.66 | E69: 36897424.87 | F69: 2481768.16 | G69: 1327820.62 | H69: 0 | I69: 89309.53 | J69: 40301675.62
A70: C060 | B70: 032DIV | C70: 0 | D70: 0 | E70: 0 | F70: 0 | G70: 0 | H70: 0 | I70: 0 | J70: 0
A71: C060 | B71: 033DIV | C71: 0 | D71: 0 | E71: 0 | F71: 0 | G71: 0 | H71: 0 | I71: 0 | J71: 0
A72: C060 | B72: 034DIV | C72: 0 | D72: 0 | E72: 0 | F72: 0 | G72: 0 | H72: 0 | I72: 0 | J72: 0
A73: C060 | B73: 035DIV | C73: 0 | D73: 0 | E73: 0 | F73: 0 | G73: 0 | H73: 0 | I73: 0 | J73: 0
A74: C060 | B74: 036DIV | C74: 0 | D74: 0 | E74: 0 | F74: 0 | G74: 0 | H74: 0 | I74: 0 | J74: 0
A75: C060 | B75: 079DIV | C75: 0 | D75: 0 | E75: 0 | F75: 0 | G75: 0 | H75: 0 | I75: 0 | J75: 0
A76: C060 | B76: 080DIV | C76: 0 | D76: 0 | E76: 0 | F76: 0 | G76: 0 | H76: 0 | I76: 0 | J76: 0
A77: C060 | B77: 081DIV | C77: 1388507.25 | D77: 93392 | E77: 67298076.3 | F77: 4526557.14 | G77: 1686623.36 | H77: 0 | I77: 113444.65 | J77: 72142802.2
A78: C060 | B78: 082DIV | C78: 0 | D78: 0 | E78: 0 | F78: 0 | G78: 0 | H78: 0 | I78: 0 | J78: 0
A79: C060 | B79: 083DIV | C79: 0 | D79: 0 | E79: 0 | F79: 0 | G79: 0 | H79: 0 | I79: 0 | J79: 0
A80: C060 | B80: 084DIV | C80: 0 | D80: 0 | E80: 0 | F80: 0 | G80: 0 | H80: 0 | I80: 0 | J80: 0
A81: C060 | B81: 085DIV | C81: 0 | D81: 0 | E81: 0 | F81: 0 | G81: 0 | H81: 0 | I81: 0 | J81: 0
A82: C060 | B82: 086DIV | C82: 0 | D82: 0 | E82: 0 | F82: 0 | G82: 0 | H82: 0 | I82: 0 | J82: 0
A83: C060 | B83: 028DIV | C83: 0 | D83: 0 | E83: 0 | F83: 0 | G83: 0 | H83: 0 | I83: 0 | J83: 0
A84: C060 | B84: 029DIV | C84: 0 | D84: 0 | E84: 0 | F84: 0 | G84: 0 | H84: 0 | I84: 0 | J84: 0
A85: C060 | B85: 071DIV | C85: 0 | D85: 0 | E85: 350391.31 | F85: 23568.39 | G85: 0 | H85: 0 | I85: 0 | J85: 373959.7
C86: =SUM(C65:C85) -> 1764665.44 | D86: 5474618.55 | E86: 110927787.2 | F86: 7309723.83 | G86: 3181112.95 | H86: 0 | I86: 212607.48 | J86: 114391947.5
A87: C060 | B87: 060COM | C87: 1764665.44 | D87: 5474618.55 | E87: 110927787.2 | F87: 7309723.83 | G87: 3181112.95 | H87: 0 | I87: 212607.48 | J87: 114391947.5
C88: =C86-C87 -> 0 | D88: 0 | E88: 0 | F88: 0 | G88: 0 | H88: 0 | I88: 0 | J88: 0
A91: C070 | B91: 170DIV | C91: 6830608.26 | D91: 4404338.91 | E91: 125608840.4 | F91: 2053535.83 | G91: 6447077.76 | H91: 0 | I91: 431919.07 | J91: 123306425.9
A92: C070 | B92: 171DIV | C92: 0.31 | D92: -0.11 | E92: 695200.6 | F92: 46759.53 | G92: 0 | H92: 0 | I92: 0 | J92: 741959.93
A93: C070 | B93: 172DIV | C93: 0 | D93: 0 | E93: 0 | F93: 0 | G93: 0 | H93: 0 | I93: 0 | J93: 0
C94: =SUM(C91:C93) -> 6830608.57 | D94: 4404338.8 | E94: 126304041 | F94: 2100295.36 | G94: 6447077.76 | H94: 0 | I94: 431919.07 | J94: 124048385.8
A95: C070 | B95: 070COM | C95: 6830608.57 | D95: 4404338.8 | E95: 126304041 | F95: 2100295.36 | G95: 6447077.76 | H95: 0 | I95: 431919.07 | J95: 124048385.8
C96: =C94-C95 -> 0 | D96: 0 | E96: 0 | F96: 0 | G96: 0 | H96: 0 | I96: 0 | J96: 0
A98: C080 | B98: 190DIV | C98: -68936216.37 | D98: -3976989.54 | E98: 768161705.5 | F98: 50751961.69 | G98: 57392821.89 | H98: 0 | I98: 3860315.98 | J98: 953080011
A99: C180 | B99: 700DIV | C99: -34337361.56 | D99: -2309575.95 | E99: 493939554.6 | F99: 32326318.74 | G99: 11372414.67 | H99: 0 | I99: 764924.35 | J99: 575050149.8
A100: C210 | B100: 830DIV | C100: 747 | D100: 0 | E100: 0 | F100: 0 | G100: 311390.78 | H100: 0 | I100: 20894.04 | J100: 331537.82
A101: C982 | B101: 982DIV | C101: 0 | D101: 0 | E101: 0 | F101: 0 | G101: 0 | H101: 0 | I101: 0 | J101: 0
A102: C989 | B102: 989DIV | C102: 0 | D102: 0 | E102: 0 | F102: 0 | G102: 0 | H102: 0 | I102: 0 | J102: 0
A103: C990 | B103: 990DIV | C103: 0 | D103: 0 | E103: 0 | F103: 0 | G103: 0 | H103: 0 | I103: 0 | J103: 0
B104: Total Utility | C104: =SUM(C98:C103,C94,C86,C61,C41,C16,C7) -> 487884515.2 | D104: 30104819.45 | E104: 2113491836 | F104: 120348214.4 | G104: 71250864.09 | H104: 0 | I104: 4780090.74 | J104: 1791881670
C105: =C104-C103-C102-C101-C100-C99-C98-C94-C86-C61-C41-C16-C7 -> 0 | D105: 0 | E105: 2.384185791e-07 | F105: 0 | G105: 0 | H105: 0 | I105: 0 | J105: 0
A107: C212 | B107: Service Area | C107: 0 | D107: 0 | E107: 0 | F107: 0 | G107: 0 | H107: 0 | I107: 0 | J107: 0
A108: C220 | B108: Service Area | C108: 0 | D108: 0 | E108: -2954720 | F108: -192254 | G108: 7009.72 | H108: 0 | I108: -7009.72 | J108: -3146974
A109: C221 | B109: Service Area | C109: 25263.28 | D109: 4729.84 | E109: 0 | F109: 0 | G109: 0 | H109: 0 | I109: 0 | J109: -29993.12
A110: C231 | B110: Service Area | C110: 86129.44 | D110: 16125.73 | E110: -2217335.76 | F110: -415149.29 | G110: 0 | H110: 0 | I110: 0 | J110: -2734740.22
A111: C232 | B111: Service Area | C111: 0 | D111: 0 | E111: 717772.58 | F111: 32078.98 | G111: 0 | H111: 0 | I111: 0 | J111: 749851.56
A112: C233 | B112: Service Area | C112: 0 | D112: 0 | E112: 1503582.08 | F112: 357881.32 | G112: 0 | H112: 0 | I112: 0 | J112: 1861463.4
A113: C234 | B113: Service Area | C113: -3842.49 | D113: -1074.96 | E113: 1174068.36 | F113: 328524.35 | G113: 0 | H113: 0 | I113: 0 | J113: 1507510.16
A114: C236 | B114: Service Area | C114: 1186163.5 | D114: 222084.5 | E114: -891363.38 | F114: -166888.9 | G114: 0 | H114: 0 | I114: 0 | J114: -2466500.28
A115: C237 | B115: Service Area | C115: 0 | D115: 0 | E115: 0 | F115: 0 | G115: 0 | H115: 0 | I115: 0 | J115: 0
A116: C240 | B116: Service Area | C116: 0 | D116: 0 | E116: 0 | F116: 0 | G116: 0 | H116: 0 | I116: 0 | J116: 0
A117: C301 | B117: Service Area | C117: 0.49 | D117: -0.08 | E117: 0 | F117: 0 | G117: 0 | H117: 0 | I117: 0 | J117: -0.41
A118: C302 | B118: Service Area | C118: 0 | D118: 0 | E118: 0 | F118: 0 | G118: 0 | H118: 0 | I118: 0 | J118: 0
A119: C303 | B119: Service Area | C119: -3440373.14 | D119: -962673.31 | E119: 1627199.52 | F119: 453425.26 | G119: 1594045.61 | H119: 0 | I119: 447122.89 | J119: 8524839.73
A120: C306 | B120: Service Area | C120: 0 | D120: 0 | E120: -149156 | F120: -20643 | G120: 0 | H120: 0 | I120: 0 | J120: -169799
A121: C312 | B121: Service Area | C121: 362502.3 | D121: 671337.68 | E121: 683448.2 | F121: 585482.85 | G121: -482.45 | H121: 0 | I121: 5926.42 | J121: 240535.04
A122: C321 | B122: Service Area | C122: 0 | D122: 0 | E122: 0 | F122: 0 | G122: 0 | H122: 0 | I122: 0 | J122: 0
A123: C981 | B123: Service Area | C123: 0 | D123: 0 | E123: 0 | F123: 0 | G123: -0.29 | H123: 0 | I123: -0.33 | J123: -0.62
A124: C983 | B124: Service Area | C124: 0 | D124: 0 | E124: 0 | F124: 0 | G124: 0 | H124: 0 | I124: 0 | J124: 0
A125: C984 | B125: Service Area | C125: 0 | D125: 0 | E125: 0 | F125: 0 | G125: 0 | H125: 0 | I125: 0 | J125: 0
A126: C993 | B126: Service Area | C126: 0 | D126: 0 | E126: 0 | F126: 0 | G126: 0 | H126: 0 | I126: 0 | J126: 0
A127: C987 | B127: Service Area | C127: 51098 | D127: 0 | E127: 0 | F127: 0 | G127: -61186.03 | H127: 0 | I127: 112288.03 | J127: 4
C128: =SUM(C107:C127) -> -1733058.62 | D128: -49470.6 | E128: -506504.4 | F128: 962457.57 | G128: 1539386.56 | H128: 0 | I128: 558327.29 | J128: 4336196.24
A130: AEC | B130: Service Area | C130: 486151456.6 | D130: 30055348.85 | E130: 2112985331 | F130: 121310672 | G130: 72790250.65 | H130: 0 | I130: 5338418.03 | J130: 1796217867
C131: =C130-SUM(C107:C127,C91:C93,C98:C103,C65:C85,C45:C60,C20:C40,C11:C15,C4:C6) -> 0 | D131: 0 | E131: 0 | F131: 0 | G131: 0 | H131: 0 | I131: 0 | J131: 0
A137: KANSDV | B137: KANSDV | C137: =C77 -> 1388507.25 | D137: 93392 | E137: 67298076.3 | F137: 4526557.14 | G137: 1686623.36 | H137: 0 | I137: 113444.65 | J137: 72142802.2
A138: COLODV | B138: COLODV | C138: =C69 -> 463473.9 | D138: 31173.66 | E138: 36897424.87 | F138: 2481768.16 | G138: 1327820.62 | H138: 0 | I138: 89309.53 | J138: 40301675.62

Sheet 4-30-17 SV (hidden)
L1: YTD Apr | M1: Cost Center | N1: Ending Balance | O1: CY Actual | P1: Type
C3: A1900-28201 | D3: A1900-28206 | E3: A2820-28201 | F3: A2820-28206 | G3: A2830-28201 | H3: A2830-28204 | I3: A2830-28206 | J3: Deferred Income Taxes
A4: C010 | B4: 002DIV | C4: 569394787 | D4: 5863388.53 | E4: 48432157.55 | F4: 1544221.23 | G4: -21420144.35 | H4: 0 | I4: -1444338.68 | J4: -548146279.8
A5: C010 | B5: 012DIV | C5: -0.28 | D5: -0.13 | E5: 26157546.93 | F5: 1759390.42 | G5: 538554 | H5: 0 | I5: 36225 | J5: 28491716.76
A6: C010 | B6: 042DIV | C6: 0 | D6: 0 | E6: 0 | F6: 0 | G6: 0 | H6: 0 | I6: 0 | J6: 0
C7: =SUM(C4:C6) -> 569394786.7 | D7: 5863388.4 | E7: 74589704.48 | F7: 3303611.65 | G7: -20881590.35 | H7: 0 | I7: -1408113.68 | J7: -519654563
A8: C010 | B8: 010COM | C8: 569394786.7 | D8: 5863388.4 | E8: 74589704.48 | F8: 3303611.65 | G8: -20881590.35 | H8: 0 | I8: -1408113.68 | J8: -519654563
C9: =C7-C8 -> 0 | D9: 0 | E9: 0 | F9: 0 | G9: 0 | H9: 0 | I9: 0 | J9: 0
A11: C020 | B11: 007DIV | C11: 610027.04 | D11: 41031.45 | E11: 54084949.35 | F11: 3637823.9 | G11: 3984109.03 | H11: 0 | I11: 267978.01 | J11: 61323801.8
A12: C020 | B12: 077DIV | C12: -821694.78 | D12: -55268.19 | E12: 104732903.8 | F12: 7044471.95 | G12: 3267211.43 | H12: 0 | I12: 219758.48 | J12: 116141308.6
A13: C020 | B13: 023DIV | C13: 0 | D13: 0 | E13: 0 | F13: 0 | G13: 0 | H13: 0 | I13: 0 | J13: 0
A14: C020 | B14: 047DIV | C14: 0 | D14: 0 | E14: 0 | F14: 0 | G14: 0 | H14: 0 | I14: 0 | J14: 0
A15: C020 | B15: 107DIV | C15: -4348258.36 | D15: 13739626.16 | E15: 8951754.49 | F15: 387462.57 | G15: 159965.71 | H15: 0 | I15: 7876.49 | J15: 115691.46
C16: =SUM(C11:C15) -> -4559926.1 | D16: 13725389.42 | E16: 167769607.7 | F16: 11069758.42 | G16: 7411286.17 | H16: 0 | I16: 495612.98 | J16: 177580801.9
A17: C020 | B17: 020COM | C17: -4559926.1 | D17: 13725389.42 | E17: 167769607.7 | F17: 11069758.42 | G17: 7411286.17 | H17: 0 | I17: 495612.98 | J17: 177580801.9
C18: =C16-C17 -> 0 | D18: 0 | E18: 0 | F18: 0 | G18: 0 | H18: 0 | I18: 0 | J18: 0
A20: C030 | B20: 004DIV | C20: 6347.52 | D20: 426.51 | E20: 130897.75 | F20: 8802.56 | G20: 1102.35 | H20: 0 | I20: 74.46 | J20: 134103.09
A21: C030 | B21: 008DIV | C21: 18676.01 | D21: 1255.06 | E21: -43714.27 | F21: -2940.76 | G21: -0.15 | H21: 0 | I21: -0.16 | J21: -66586.41
A22: C030 | B22: 019DIV | C22: 1796.76 | D22: 119.57 | E22: 8709176.77 | F22: 585788.88 | G22: 0.1 | H22: 0 | I22: -0.35 | J22: 9293049.07
A23: C030 | B23: 003DIV | C23: 377427.25 | D23: 25387.31 | E23: 28704786.91 | F23: 1930721.6 | G23: 452599.25 | H23: 0 | I23: 30442.19 | J23: 30715735.39
A24: C030 | B24: 013DIV | C24: 41211.79 | D24: 2770.51 | E24: 1785812.34 | F24: 120116.33 | G24: -10493.04 | H24: 0 | I24: -704.76 | J24: 1850748.57
A25: C030 | B25: 001DIV | C25: 0 | D25: 0 | E25: 0 | F25: 0 | G25: 0 | H25: 0 | I25: 0 | J25: 0
A26: C030 | B26: 011DIV | C26: 0 | D26: 0 | E26: 0 | F26: 0 | G26: 0 | H26: 0 | I26: 0 | J26: 0
A27: C030 | B27: 010DIV | C27: 11360895.68 | D27: 764146.61 | E27: 9739353.33 | F27: 416021.11 | G27: 1511184.01 | H27: 0 | I27: 101645.38 | J27: -356838.46
A28: C030 | B28: 022DIV | C28: 0 | D28: 0 | E28: 0 | F28: 0 | G28: 0 | H28: 0 | I28: 0 | J28: 0
A29: C030 | B29: 040DIV | C29: 0 | D29: 0 | E29: 816740.46 | F29: 54926.99 | G29: 0 | H29: 0 | I29: 0 | J29: 871667.45
A30: C030 | B30: 006DIV | C30: 18692.32 | D30: 1256.89 | E30: 1173970.16 | F30: 78961.85 | G30: 23555.52 | H30: 0 | I30: 1585.51 | J30: 1258123.83
A31: C030 | B31: 017DIV | C31: 0 | D31: 0 | E31: -1506.49 | F31: -101.87 | G31: 0 | H31: 0 | I31: 0 | J31: -1608.36
A32: C030 | B32: 018DIV | C32: 1064.54 | D32: 71.64 | E32: 2502.55 | F32: 167.7 | G32: 37.52 | H32: 0 | I32: 3.07 | J32: 1574.66
A33: C030 | B33: 979DIV | C33: 0 | D33: 0 | E33: 0 | F33: 0 | G33: 0 | H33: 0 | I33: 0 | J33: 0
A34: C030 | B34: 980DIV | C34: 0 | D34: 0 | E34: 0 | F34: 0 | G34: 0 | H34: 0 | I34: 0 | J34: 0
A35: C030 | B35: 016DIV | C35: 339404.47 | D35: 22830.87 | E35: 30711086.07 | F35: 2065668.08 | G35: 116146.8 | H35: 0 | I35: 7811.83 | J35: 32538477.44
A36: C030 | B36: 020DIV | C36: 30670.27 | D36: 2062.57 | E36: 2019999.14 | F36: 135867.6 | G36: 4208.25 | H36: 0 | I36: 283.31 | J36: 2127625.46
A37: C030 | B37: 014DIV | C37: 0 | D37: 0 | E37: 0 | F37: 0 | G37: 0 | H37: 0 | I37: 0 | J37: 0
A38: C030 | B38: 015DIV | C38: 0 | D38: 0 | E38: 0 | F38: 0 | G38: 0 | H38: 0 | I38: 0 | J38: 0
A39: C030 | B39: 005DIV | C39: 773296.04 | D39: 52013.07 | E39: 66965889.63 | F39: 4504211.09 | G39: 2813940.89 | H39: 0 | I39: 189269.78 | J39: 73648002.28
A40: C030 | B40: 021DIV | C40: 157182.7 | D40: 10572.05 | E40: 11295812.28 | F40: 759769.69 | G40: 221762.5 | H40: 0 | I40: 14915.88 | J40: 12124505.6
C41: =SUM(C20:C40) -> 13126665.35 | D41: 882912.66 | E41: 162010806.6 | F41: 10657980.85 | G41: 5134044 | H41: 0 | I41: 345326.14 | J41: 164138579.6
A42: C030 | B42: 030COM | C42: 13126665.35 | D42: 882912.66 | E42: 162010806.6 | F42: 10657980.85 | G42: 5134044 | H42: 0 | I42: 345326.14 | J42: 164138579.6
C43: =C41-C42 -> 0 | D43: 0 | E43: 0 | F43: 0 | G43: 0 | H43: 0 | I43: 0 | J43: 0
A45: C050 | B45: 009DIV | C45: -32517.6 | D45: 2552015.42 | E45: 92388928.06 | F45: 6214197.76 | G45: 780542.41 | H45: 0 | I45: 51093.79 | J45: 96915264.2
A46: C050 | B46: 093DIV | C46: -818199.6 | D46: 3037464.84 | E46: 79605045.22 | F46: 5354339.8 | G46: 2496006.62 | H46: 0 | I46: 166495.53 | J46: 85402621.93
A47: C050 | B47: 096DIV | C47: 88499.58 | D47: 90548.77 | E47: 17474940.7 | F47: 1175387.86 | G47: 1689805.06 | H47: 0 | I47: 113658.39 | J47: 20274743.66
A48: C050 | B48: 049DIV | C48: 0 | D48: 0 | E48: 0 | F48: 0 | G48: 0 | H48: 0 | I48: 0 | J48: 0
A49: C050 | B49: 088DIV | C49: 0 | D49: 0 | E49: 0 | F49: 0 | G49: 0 | H49: 0 | I49: 0 | J49: 0
A50: C050 | B50: 089DIV | C50: 0 | D50: 0 | E50: 0 | F50: 0 | G50: 0 | H50: 0 | I50: 0 | J50: 0
A51: C050 | B51: 090DIV | C51: 0 | D51: 0 | E51: 0 | F51: 0 | G51: 0 | H51: 0 | I51: 0 | J51: 0
A52: C050 | B52: 091DIV | C52: 5362764.11 | D52: 360708.03 | E52: 20240086.41 | F52: -9920716.4 | G52: 1549454.22 | H52: 0 | I52: 104217.93 | J52: 6249570.02
A53: C050 | B53: 092DIV | C53: 0 | D53: 0 | E53: 0 | F53: 0 | G53: 0 | H53: 0 | I53: 0 | J53: 0
A54: C050 | B54: 094DIV | C54: 0 | D54: 0 | E54: 0 | F54: 0 | G54: 0 | H54: 0 | I54: 0 | J54: 0
A55: C050 | B55: 095DIV | C55: 0.03 | D55: 0.07 | E55: 79629.09 | F55: 5354.53 | G55: 0 | H55: 0 | I55: 0 | J55: 84983.52
A56: C050 | B56: 098DIV | C56: 0 | D56: 0 | E56: -0.33 | F56: 0.35 | G56: 0 | H56: 0 | I56: 0 | J56: 0.02
A57: C050 | B57: 099DIV | C57: 0 | D57: 0 | E57: 0 | F57: 0 | G57: 0 | H57: 0 | I57: 0 | J57: 0
A58: C050 | B58: 070DIV | C58: 0 | D58: 0 | E58: 0 | F58: 0 | G58: 0 | H58: 0 | I58: 0 | J58: 0
A59: C050 | B59: 072DIV | C59: -0.34 | D59: -0.02 | E59: -0.34 | F59: -0.02 | G59: 0 | H59: 0 | I59: 0 | J59: 0
A60: C050 | B60: 097DIV | C60: 0 | D60: 0 | E60: 0 | F60: 0 | G60: 0 | H60: 0 | I60: 0 | J60: 0
C61: =SUM(C45:C60) -> 4600546.18 | D61: 6040737.11 | E61: 209788628.8 | F61: 2828563.88 | G61: 6515808.31 | H61: 0 | I61: 435465.64 | J61: 208927183.4
A62: C050 | B62: 050COM | C62: 4600546.18 | D62: 6040737.11 | E62: 209788628.8 | F62: 2828563.88 | G62: 6515808.31 | H62: 0 | I62: 435465.64 | J62: 208927183.3
C63: =C61-C62 -> 0 | D63: 0 | E63: 0 | F63: 0 | G63: 0 | H63: 0 | I63: 0 | J63: 0
A65: C060 | B65: 024DIV | C65: 0 | D65: 0 | E65: 0 | F65: 0 | G65: 0 | H65: 0 | I65: 0 | J65: 0
A66: C060 | B66: 030DIV | C66: -87315.71 | D66: 5350052.89 | E66: 6381894.76 | F66: 277830.14 | G66: 166668.97 | H66: 0 | I66: 9853.3 | J66: 1573509.99
A67: C060 | B67: 039DIV | C67: 0 | D67: 0 | E67: 0 | F67: 0 | G67: 0 | H67: 0 | I67: 0 | J67: 0
A68: C060 | B68: 087DIV | C68: 0 | D68: 0 | E68: 0 | F68: 0 | G68: 0 | H68: 0 | I68: 0 | J68: 0
A69: C060 | B69: 031DIV | C69: 463473.9 | D69: 31173.66 | E69: 36897424.87 | F69: 2481768.16 | G69: 1327820.62 | H69: 0 | I69: 89309.53 | J69: 40301675.62
A70: C060 | B70: 032DIV | C70: 0 | D70: 0 | E70: 0 | F70: 0 | G70: 0 | H70: 0 | I70: 0 | J70: 0
A71: C060 | B71: 033DIV | C71: 0 | D71: 0 | E71: 0 | F71: 0 | G71: 0 | H71: 0 | I71: 0 | J71: 0
A72: C060 | B72: 034DIV | C72: 0 | D72: 0 | E72: 0 | F72: 0 | G72: 0 | H72: 0 | I72: 0 | J72: 0
A73: C060 | B73: 035DIV | C73: 0 | D73: 0 | E73: 0 | F73: 0 | G73: 0 | H73: 0 | I73: 0 | J73: 0
A74: C060 | B74: 036DIV | C74: 0 | D74: 0 | E74: 0 | F74: 0 | G74: 0 | H74: 0 | I74: 0 | J74: 0
A75: C060 | B75: 079DIV | C75: 0 | D75: 0 | E75: 0 | F75: 0 | G75: 0 | H75: 0 | I75: 0 | J75: 0
A76: C060 | B76: 080DIV | C76: 0 | D76: 0 | E76: 0 | F76: 0 | G76: 0 | H76: 0 | I76: 0 | J76: 0
A77: C060 | B77: 081DIV | C77: 1388507.25 | D77: 93392 | E77: 67298076.3 | F77: 4526557.14 | G77: 1686623.36 | H77: 0 | I77: 113444.65 | J77: 72142802.2
A78: C060 | B78: 082DIV | C78: 0 | D78: 0 | E78: 0 | F78: 0 | G78: 0 | H78: 0 | I78: 0 | J78: 0
A79: C060 | B79: 083DIV | C79: 0 | D79: 0 | E79: 0 | F79: 0 | G79: 0 | H79: 0 | I79: 0 | J79: 0
A80: C060 | B80: 084DIV | C80: 0 | D80: 0 | E80: 0 | F80: 0 | G80: 0 | H80: 0 | I80: 0 | J80: 0
A81: C060 | B81: 085DIV | C81: 0 | D81: 0 | E81: 0 | F81: 0 | G81: 0 | H81: 0 | I81: 0 | J81: 0
A82: C060 | B82: 086DIV | C82: 0 | D82: 0 | E82: 0 | F82: 0 | G82: 0 | H82: 0 | I82: 0 | J82: 0
A83: C060 | B83: 028DIV | C83: 0 | D83: 0 | E83: 0 | F83: 0 | G83: 0 | H83: 0 | I83: 0 | J83: 0
A84: C060 | B84: 029DIV | C84: 0 | D84: 0 | E84: 0 | F84: 0 | G84: 0 | H84: 0 | I84: 0 | J84: 0
A85: C060 | B85: 071DIV | C85: 0 | D85: 0 | E85: 350391.31 | F85: 23568.39 | G85: 0 | H85: 0 | I85: 0 | J85: 373959.7
C86: =SUM(C65:C85) -> 1764665.44 | D86: 5474618.55 | E86: 110927787.2 | F86: 7309723.83 | G86: 3181112.95 | H86: 0 | I86: 212607.48 | J86: 114391947.5
A87: C060 | B87: 060COM | C87: 1764665.44 | D87: 5474618.55 | E87: 110927787.2 | F87: 7309723.83 | G87: 3181112.95 | H87: 0 | I87: 212607.48 | J87: 114391947.5
C88: =C86-C87 -> 0 | D88: 0 | E88: 0 | F88: 0 | G88: 0 | H88: 0 | I88: 0 | J88: 0
A91: C070 | B91: 170DIV | C91: 6830608.26 | D91: 4404338.91 | E91: 125608840.4 | F91: 2053535.83 | G91: 6447077.76 | H91: 0 | I91: 431919.07 | J91: 123306425.9
A92: C070 | B92: 171DIV | C92: 0.31 | D92: -0.11 | E92: 695200.6 | F92: 46759.53 | G92: 0 | H92: 0 | I92: 0 | J92: 741959.93
A93: C070 | B93: 172DIV | C93: 0 | D93: 0 | E93: 0 | F93: 0 | G93: 0 | H93: 0 | I93: 0 | J93: 0
C94: =SUM(C91:C93) -> 6830608.57 | D94: 4404338.8 | E94: 126304041 | F94: 2100295.36 | G94: 6447077.76 | H94: 0 | I94: 431919.07 | J94: 124048385.8
A95: C070 | B95: 070COM | C95: 6830608.57 | D95: 4404338.8 | E95: 126304041 | F95: 2100295.36 | G95: 6447077.76 | H95: 0 | I95: 431919.07 | J95: 124048385.8
C96: =C94-C95 -> 0 | D96: 0 | E96: 0 | F96: 0 | G96: 0 | H96: 0 | I96: 0 | J96: 0
A98: C080 | B98: 190DIV | C98: -68936216.37 | D98: -3976989.54 | E98: 768161705.5 | F98: 50751961.69 | G98: 57392821.89 | H98: 0 | I98: 3860315.98 | J98: 953080011
A99: C180 | B99: 700DIV | C99: -34337361.56 | D99: -2309575.95 | E99: 493939554.6 | F99: 32326318.74 | G99: 11372414.67 | H99: 0 | I99: 764924.35 | J99: 575050149.8
A100: C210 | B100: 830DIV | C100: 747 | D100: 0 | E100: 0 | F100: 0 | G100: 311390.78 | H100: 0 | I100: 20894.04 | J100: 331537.82
A101: C982 | B101: 982DIV | C101: 0 | D101: 0 | E101: 0 | F101: 0 | G101: 0 | H101: 0 | I101: 0 | J101: 0
A102: C989 | B102: 989DIV | C102: 0 | D102: 0 | E102: 0 | F102: 0 | G102: 0 | H102: 0 | I102: 0 | J102: 0
A103: C990 | B103: 990DIV | C103: 0 | D103: 0 | E103: 0 | F103: 0 | G103: 0 | H103: 0 | I103: 0 | J103: 0
B104: Total Utility | C104: =SUM(C98:C103,C94,C86,C61,C41,C16,C7) -> 487884515.2 | D104: 30104819.45 | E104: 2113491836 | F104: 120348214.4 | G104: 76884366.18 | H104: 0 | I104: 5158952 | J104: 1797894034
C105: =C104-C103-C102-C101-C100-C99-C98-C94-C86-C61-C41-C16-C7 -> 0 | D105: 0 | E105: 2.384185791e-07 | F105: 0 | G105: 0 | H105: 0 | I105: 0 | J105: 0
A107: C212 | B107: Service Area | C107: 0 | D107: 0 | E107: 0 | F107: 0 | G107: 0 | H107: 0 | I107: 0 | J107: 0
A108: C220 | B108: Service Area | C108: 0 | D108: 0 | E108: -2954720 | F108: -192254 | G108: 7009.72 | H108: 0 | I108: -7009.72 | J108: -3146974
A109: C221 | B109: Service Area | C109: 25263.28 | D109: 4729.84 | E109: 0 | F109: 0 | G109: 0 | H109: 0 | I109: 0 | J109: -29993.12
A110: C231 | B110: Service Area | C110: 86129.44 | D110: 16125.73 | E110: -2217335.76 | F110: -415149.29 | G110: 0 | H110: 0 | I110: 0 | J110: -2734740.22
A111: C232 | B111: Service Area | C111: 0 | D111: 0 | E111: 717772.58 | F111: 32078.98 | G111: 0 | H111: 0 | I111: 0 | J111: 749851.56
A112: C233 | B112: Service Area | C112: 0 | D112: 0 | E112: 1503582.08 | F112: 357881.32 | G112: 0 | H112: 0 | I112: 0 | J112: 1861463.4
A113: C234 | B113: Service Area | C113: -3842.49 | D113: -1074.96 | E113: 1174068.36 | F113: 328524.35 | G113: 0 | H113: 0 | I113: 0 | J113: 1507510.16
A114: C236 | B114: Service Area | C114: 1186163.5 | D114: 222084.5 | E114: -891363.38 | F114: -166888.9 | G114: 0 | H114: 0 | I114: 0 | J114: -2466500.28
A115: C237 | B115: Service Area | C115: 0 | D115: 0 | E115: 0 | F115: 0 | G115: 0 | H115: 0 | I115: 0 | J115: 0
A116: C240 | B116: Service Area | C116: 0 | D116: 0 | E116: 0 | F116: 0 | G116: 0 | H116: 0 | I116: 0 | J116: 0
A117: C301 | B117: Service Area | C117: 0.49 | D117: -0.08 | E117: 0 | F117: 0 | G117: 0 | H117: 0 | I117: 0 | J117: -0.41
A118: C302 | B118: Service Area | C118: 0 | D118: 0 | E118: 0 | F118: 0 | G118: 0 | H118: 0 | I118: 0 | J118: 0
A119: C303 | B119: Service Area | C119: -3440373.14 | D119: -962673.31 | E119: 1627199.52 | F119: 453425.26 | G119: 1594045.61 | H119: 0 | I119: 447122.89 | J119: 8524839.73
A120: C306 | B120: Service Area | C120: 0 | D120: 0 | E120: -149156 | F120: -20643 | G120: 0 | H120: 0 | I120: 0 | J120: -169799
A121: C312 | B121: Service Area | C121: 362502.3 | D121: 671337.68 | E121: 683448.2 | F121: 585482.85 | G121: -482.45 | H121: 0 | I121: 5926.42 | J121: 240535.04
A122: C321 | B122: Service Area | C122: 0 | D122: 0 | E122: 0 | F122: 0 | G122: 0 | H122: 0 | I122: 0 | J122: 0
A123: C981 | B123: Service Area | C123: 0 | D123: 0 | E123: 0 | F123: 0 | G123: -0.29 | H123: 0 | I123: -0.33 | J123: -0.62
A124: C983 | B124: Service Area | C124: 0 | D124: 0 | E124: 0 | F124: 0 | G124: 0 | H124: 0 | I124: 0 | J124: 0
A125: C984 | B125: Service Area | C125: 0 | D125: 0 | E125: 0 | F125: 0 | G125: 0 | H125: 0 | I125: 0 | J125: 0
A126: C993 | B126: Service Area | C126: 0 | D126: 0 | E126: 0 | F126: 0 | G126: 0 | H126: 0 | I126: 0 | J126: 0
A127: C987 | B127: Service Area | C127: 51098 | D127: 0 | E127: 0 | F127: 0 | G127: -61186.03 | H127: 0 | I127: 112288.03 | J127: 4
C128: =SUM(C107:C127) -> -1733058.62 | D128: -49470.6 | E128: -506504.4 | F128: 962457.57 | G128: 1539386.56 | H128: 0 | I128: 558327.29 | J128: 4336196.24
A130: AEC | B130: Service Area | C130: 486151456.6 | D130: 30055348.85 | E130: 2112985331 | F130: 121310672 | G130: 78423752.74 | H130: 0 | I130: 5717279.29 | J130: 1802230230
C131: =C130-SUM(C107:C127,C91:C93,C98:C103,C65:C85,C45:C60,C20:C40,C11:C15,C4:C6) -> 0 | D131: 0 | E131: 0 | F131: 0 | G131: 0 | H131: 0 | I131: 0 | J131: 0
A137: KANSDV | B137: KANSDV | C137: =C77 -> 1388507.25 | D137: 93392 | E137: 67298076.3 | F137: 4526557.14 | G137: 1686623.36 | H137: 0 | I137: 113444.65 | J137: 72142802.2
A138: COLODV | B138: COLODV | C138: =C69 -> 463473.9 | D138: 31173.66 | E138: 36897424.87 | F138: 2481768.16 | G138: 1327820.62 | H138: 0 | I138: 89309.53 | J138: 40301675.62

Sheet 3-2017 (hidden)
A1: 2017-03-31
B2: SSU | C2: 20 | D2: 30 | E2: 50 | F2: 60 | G2: 70 | H2: 80 | I2: 180 | J2: 210
A3: Adj Code | B3: 002DIV | C3: 107DIV | D3: 010DIV | E3: 091DIV | F3: 030DIV | G3: 170DIV | H3: 190DIV | I3: 700DIV | J3: 830DIV | K3: Total Utility
A4: ONT02 | K4: =SUM(B4:I4) -> 0
A5: ONT32 | B5: 0 | C5: -149469 | D5: -853 | E5: 0 | F5: 57831 | G5: 0 | H5: -2135 | I5: 446388 | K5: =SUM(B5:I5) -> 351762
A6: ONT68 | B6: 0 | C6: 0 | D6: 43036 | E6: 98739 | F6: 0 | G6: 0 | H6: 47713 | I6: 7488 | K6: 196976
A7: ONT69 | B7: 0 | C7: 0 | D7: -1237980 | E7: 0 | F7: 0 | G7: 0 | H7: -5664701 | I7: 0 | K7: -6902681
A8: ONT70 | B8: 0 | C8: 940341 | D8: 0 | E8: 0 | F8: 0 | G8: 0 | H8: 0 | I8: 0 | K8: 940341
A9: GCA01 | B9: 0 | C9: -1375858 | D9: 884007 | E9: -1357396 | F9: -2957229 | G9: -763225 | H9: 17909019 | I9: 0 | K9: 12339318
A10: GCA03 | B10: 0 | C10: -15268 | D10: -3582899 | E10: -1288451 | F10: 979501 | G10: -1005353 | H10: 3024635 | I10: 0 | K10: -1887835
A11: ONT52 | B11: 0 | C11: 53027 | D11: 150684 | E11: -163173 | F11: 285299 | G11: -2111 | H11: -2955899 | I11: 0 | K11: -2632173
A12: ACC02 | K12: 0
A13: OTH | B13: 0 | C13: 212522 | D13: 187965 | E13: 238456 | F13: 156523 | G13: 164326 | H13: 922152 | I13: 413109 | K13: 2295053
A14: PRB01 | K14: 0
A15: PEN01 | K15: 0
A16: ONT04 | K16: 0
A17: ONT49 | B17: 0 | C17: 0 | D17: 0 | E17: 0 | F17: 0 | G17: 0 | H17: -4628988 | I17: -1667643 | K17: -6296631
A18: ONT13 | K18: 0
A19: FXA02c | K19: 0
A20: FXA04 | K20: 0 | L20: fxa04
A21: FXA01c | K21: 0 | L21: fxa07
A22: FXA01c | K22: 0 | L22: fxa10
A23: FXA01c | K23: 0 | L23: fxa44
A24: FXA01c | K24: 0 | L24: fxa06
A25: FXA01c | K25: 0 | L25: fxa46
A26: FXA46 | K26: 0
A27: NBP03 | K27: 0
A28: ONT50 | K28: 0
A29: NOL | K29: 0
A31: Combined Amounts:
A32: FXA01 | B32: =-234622-967985 -> -1202607 | C32: =469490-936537-3734651-163 -> -4201861 | D32: =193579-809262-3698139-3811 -> -4317633 | E32: =151691-1024334-5149099 -> -6021742 | F32: -4812981 | G32: -3949841 | H32: -34414074 | I32: -9298347 | K32: -68219086 | L32: includes FXA04, FXA07, FXA10, FXA44, FXA06 | R32: NOL Recon
A33: FXA02 | B33: -2360054 | C33: -4635760 | D33: -2342416 | E33: -7617812 | F33: -179682 | G33: -5079398 | H33: -13363417 | I33: -28219288 | K33: -63797827 | R33: Current provision NOL (excl restricted stock) | S33: -24234134
A34: TAX02U | B34: =S35+S36 -> 81992.21688 | K34: 81992.21688 | R34: Non Reg contribution to NOL | S34: =-S41*0.35 -> -21409084.11
A35: TAX02NR | B35: =S34 -> -21409084.11 | K35: -21409084.11 | R35: Utility NOL Q2 activity | S35: =S33-S34 -> -2825049.892
A36: TAX02OT | K36: 0 | R36: Stock Vesting Q1 & Q2 Activity | S36: =-K42 -> 2907042.109
B37: =B3 -> 002DIV | C37: 107DIV | D37: 010DIV | E37: 091DIV | F37: 030DIV | G37: 170DIV | H37: 190DIV | I37: 700DIV | J37: 830DIV | K37: Total Utility
A38: Total | B38: =SUM(B4:B36) -> -24889752.89 | C38: -9172326 | D38: -10216089 | E38: -16111379 | F38: -6470738 | G38: -10635602 | H38: -39125695 | I38: -38318293 | J38: 0 | K38: =SUM(K4:K36) -> -154939874.9 | R38: Non Utility PTBI | S38: 43959671
R39: Less: Book Gain on AEM Sale (212) | S39: -12916243.71
R40: Plus: Tax Gain on AEM Sale (312) | S40: 30125384.45
J41: check to quarterly provision | K41: 157846920.7 | R41: Adjusted Non Utility PTBI | S41: =SUM(S38:S40) -> 61168811.74 | T41: =S41*0.35 -> 21409084.11
J42: restricted stock vesting (1900.28201) | K42: -2907042.109 | R42: adjusted due to including gain in deferreds
J43: difference | K43: =SUM(K41:K42)+K38 -> 3.734633178

Sheet 3-31-17 SV (hidden)
L1: YTD Mar | M1: Cost Center | N1: Ending Balance | O1: CY Actual | P1: Type
C3: A1900-28201 | D3: A1900-28206 | E3: A2820-28201 | F3: A2820-28206 | G3: A2830-28201 | H3: A2830-28204 | I3: A2830-28206 | J3: Deferred Income Taxes
A4: C010 | B4: 002DIV | C4: 569394787 | D4: 5863388.53 | E4: 48432157.55 | F4: 1544221.23 | G4: -13989960.6 | H4: 0 | I4: -944647.95 | J4: -540216405.3
A5: C010 | B5: 012DIV | C5: -0.28 | D5: -0.13 | E5: 26157546.93 | F5: 1759390.42 | G5: 538554 | H5: 0 | I5: 36225 | J5: 28491716.76
A6: C010 | B6: 042DIV | C6: 0 | D6: 0 | E6: 0 | F6: 0 | G6: 0 | H6: 0 | I6: 0 | J6: 0
C7: =SUM(C4:C6) -> 569394786.7 | D7: 5863388.4 | E7: 74589704.48 | F7: 3303611.65 | G7: -13451406.6 | H7: 0 | I7: -908422.95 | J7: -511724688.5
A8: C010 | B8: 010COM | C8: 569394786.7 | D8: 5863388.4 | E8: 74589704.48 | F8: 3303611.65 | G8: -13451406.6 | H8: 0 | I8: -908422.95 | J8: -511724688.5
C9: =C7-C8 -> 0 | D9: 0 | E9: 0 | F9: 0 | G9: 0 | H9: 0 | I9: 0 | J9: 0
A11: C020 | B11: 007DIV | C11: 610027.04 | D11: 41031.45 | E11: 54084949.35 | F11: 3637823.9 | G11: 3984109.03 | H11: 0 | I11: 267978.01 | J11: 61323801.8
A12: C020 | B12: 077DIV | C12: -821694.78 | D12: -55268.19 | E12: 104732903.8 | F12: 7044471.95 | G12: 3267211.43 | H12: 0 | I12: 219758.48 | J12: 116141308.6
A13: C020 | B13: 023DIV | C13: 0 | D13: 0 | E13: 0 | F13: 0 | G13: 0 | H13: 0 | I13: 0 | J13: 0
A14: C020 | B14: 047DIV | C14: 0 | D14: 0 | E14: 0 | F14: 0 | G14: 0 | H14: 0 | I14: 0 | J14: 0
A15: C020 | B15: 107DIV | C15: -4348258.36 | D15: 13739626.16 | E15: 8951754.49 | F15: 387462.57 | G15: 159965.71 | H15: 0 | I15: 7876.49 | J15: 115691.46
C16: =SUM(C11:C15) -> -4559926.1 | D16: 13725389.42 | E16: 167769607.7 | F16: 11069758.42 | G16: 7411286.17 | H16: 0 | I16: 495612.98 | J16: 177580801.9
A17: C020 | B17: 020COM | C17: -4559926.1 | D17: 13725389.42 | E17: 167769607.7 | F17: 11069758.42 | G17: 7411286.17 | H17: 0 | I17: 495612.98 | J17: 177580801.9
C18: =C16-C17 -> 0 | D18: 0 | E18: 0 | F18: 0 | G18: 0 | H18: 0 | I18: 0 | J18: 0
A20: C030 | B20: 004DIV | C20: 6347.52 | D20: 426.51 | E20: 130897.75 | F20: 8802.56 | G20: 1102.35 | H20: 0 | I20: 74.46 | J20: 134103.09
A21: C030 | B21: 008DIV | C21: 18676.01 | D21: 1255.06 | E21: -43714.27 | F21: -2940.76 | G21: -0.15 | H21: 0 | I21: -0.16 | J21: -66586.41
A22: C030 | B22: 019DIV | C22: 1796.76 | D22: 119.57 | E22: 8709176.77 | F22: 585788.88 | G22: 0.1 | H22: 0 | I22: -0.35 | J22: 9293049.07
A23: C030 | B23: 003DIV | C23: 377427.25 | D23: 25387.31 | E23: 28704786.91 | F23: 1930721.6 | G23: 452599.25 | H23: 0 | I23: 30442.19 | J23: 30715735.39
A24: C030 | B24: 013DIV | C24: 41211.79 | D24: 2770.51 | E24: 1785812.34 | F24: 120116.33 | G24: -10493.04 | H24: 0 | I24: -704.76 | J24: 1850748.57
A25: C030 | B25: 001DIV | C25: 0 | D25: 0 | E25: 0 | F25: 0 | G25: 0 | H25: 0 | I25: 0 | J25: 0
A26: C030 | B26: 011DIV | C26: 0 | D26: 0 | E26: 0 | F26: 0 | G26: 0 | H26: 0 | I26: 0 | J26: 0
A27: C030 | B27: 010DIV | C27: 11360895.68 | D27: 764146.61 | E27: 9739353.33 | F27: 416021.11 | G27: 1511184.01 | H27: 0 | I27: 101645.38 | J27: -356838.46
A28: C030 | B28: 022DIV | C28: 0 | D28: 0 | E28: 0 | F28: 0 | G28: 0 | H28: 0 | I28: 0 | J28: 0
A29: C030 | B29: 040DIV | C29: 0 | D29: 0 | E29: 816740.46 | F29: 54926.99 | G29: 0 | H29: 0 | I29: 0 | J29: 871667.45
A30: C030 | B30: 006DIV | C30: 18692.32 | D30: 1256.89 | E30: 1173970.16 | F30: 78961.85 | G30: 23555.52 | H30: 0 | I30: 1585.51 | J30: 1258123.83
A31: C030 | B31: 017DIV | C31: 0 | D31: 0 | E31: -1506.49 | F31: -101.87 | G31: 0 | H31: 0 | I31: 0 | J31: -1608.36
A32: C030 | B32: 018DIV | C32: 1064.54 | D32: 71.64 | E32: 2502.55 | F32: 167.7 | G32: 37.52 | H32: 0 | I32: 3.07 | J32: 1574.66
A33: C030 | B33: 979DIV | C33: 0 | D33: 0 | E33: 0 | F33: 0 | G33: 0 | H33: 0 | I33: 0 | J33: 0
A34: C030 | B34: 980DIV | C34: 0 | D34: 0 | E34: 0 | F34: 0 | G34: 0 | H34: 0 | I34: 0 | J34: 0
A35: C030 | B35: 016DIV | C35: 339404.47 | D35: 22830.87 | E35: 30711086.07 | F35: 2065668.08 | G35: 116146.8 | H35: 0 | I35: 7811.83 | J35: 32538477.44
A36: C030 | B36: 020DIV | C36: 30670.27 | D36: 2062.57 | E36: 2019999.14 | F36: 135867.6 | G36: 4208.25 | H36: 0 | I36: 283.31 | J36: 2127625.46
A37: C030 | B37: 014DIV | C37: 0 | D37: 0 | E37: 0 | F37: 0 | G37: 0 | H37: 0 | I37: 0 | J37: 0
A38: C030 | B38: 015DIV | C38: 0 | D38: 0 | E38: 0 | F38: 0 | G38: 0 | H38: 0 | I38: 0 | J38: 0
A39: C030 | B39: 005DIV | C39: 773296.04 | D39: 52013.07 | E39: 66965889.63 | F39: 4504211.09 | G39: 2813940.89 | H39: 0 | I39: 189269.78 | J39: 73648002.28
A40: C030 | B40: 021DIV | C40: 157182.7 | D40: 10572.05 | E40: 11295812.28 | F40: 759769.69 | G40: 221762.5 | H40: 0 | I40: 14915.88 | J40: 12124505.6
C41: =SUM(C20:C40) -> 13126665.35 | D41: 882912.66 | E41: 162010806.6 | F41: 10657980.85 | G41: 5134044 | H41: 0 | I41: 345326.14 | J41: 164138579.6
A42: C030 | B42: 030COM | C42: 13126665.35 | D42: 882912.66 | E42: 162010806.6 | F42: 10657980.85 | G42: 5134044 | H42: 0 | I42: 345326.14 | J42: 164138579.6
C43: =C41-C42 -> 0 | D43: 0 | E43: 0 | F43: 0 | G43: 0 | H43: 0 | I43: 0 | J43: 0
A45: C050 | B45: 009DIV | C45: -32517.6 | D45: 2552015.42 | E45: 92388928.06 | F45: 6214197.76 | G45: 780542.41 | H45: 0 | I45: 51093.79 | J45: 96915264.2
A46: C050 | B46: 093DIV | C46: -818199.6 | D46: 3037464.84 | E46: 79605045.22 | F46: 5354339.8 | G46: 2496006.62 | H46: 0 | I46: 166495.53 | J46: 85402621.93
A47: C050 | B47: 096DIV | C47: 88499.58 | D47: 90548.77 | E47: 17474940.7 | F47: 1175387.86 | G47: 1689805.06 | H47: 0 | I47: 113658.39 | J47: 20274743.66
A48: C050 | B48: 049DIV | C48: 0 | D48: 0 | E48: 0 | F48: 0 | G48: 0 | H48: 0 | I48: 0 | J48: 0
A49: C050 | B49: 088DIV | C49: 0 | D49: 0 | E49: 0 | F49: 0 | G49: 0 | H49: 0 | I49: 0 | J49: 0
A50: C050 | B50: 089DIV | C50: 0 | D50: 0 | E50: 0 | F50: 0 | G50: 0 | H50: 0 | I50: 0 | J50: 0
A51: C050 | B51: 090DIV | C51: 0 | D51: 0 | E51: 0 | F51: 0 | G51: 0 | H51: 0 | I51: 0 | J51: 0
A52: C050 | B52: 091DIV | C52: 5362764.11 | D52: 360708.03 | E52: 20240086.41 | F52: -9920716.4 | G52: 1549454.22 | H52: 0 | I52: 104217.93 | J52: 6249570.02
A53: C050 | B53: 092DIV | C53: 0 | D53: 0 | E53: 0 | F53: 0 | G53: 0 | H53: 0 | I53: 0 | J53: 0
A54: C050 | B54: 094DIV | C54: 0 | D54: 0 | E54: 0 | F54: 0 | G54: 0 | H54: 0 | I54: 0 | J54: 0
A55: C050 | B55: 095DIV | C55: 0.03 | D55: 0.07 | E55: 79629.09 | F55: 5354.53 | G55: 0 | H55: 0 | I55: 0 | J55: 84983.52
A56: C050 | B56: 098DIV | C56: 0 | D56: 0 | E56: -0.33 | F56: 0.35 | G56: 0 | H56: 0 | I56: 0 | J56: 0.02
A57: C050 | B57: 099DIV | C57: 0 | D57: 0 | E57: 0 | F57: 0 | G57: 0 | H57: 0 | I57: 0 | J57: 0
A58: C050 | B58: 070DIV | C58: 0 | D58: 0 | E58: 0 | F58: 0 | G58: 0 | H58: 0 | I58: 0 | J58: 0
A59: C050 | B59: 072DIV | C59: -0.34 | D59: -0.02 | E59: -0.34 | F59: -0.02 | G59: 0 | H59: 0 | I59: 0 | J59: 0
A60: C050 | B60: 097DIV | C60: 0 | D60: 0 | E60: 0 | F60: 0 | G60: 0 | H60: 0 | I60: 0 | J60: 0
C61: =SUM(C45:C60) -> 4600546.18 | D61: 6040737.11 | E61: 209788628.8 | F61: 2828563.88 | G61: 6515808.31 | H61: 0 | I61: 435465.64 | J61: 208927183.4
A62: C050 | B62: 050COM | C62: 4600546.18 | D62: 6040737.11 | E62: 209788628.8 | F62: 2828563.88 | G62: 6515808.31 | H62: 0 | I62: 435465.64 | J62: 208927183.3
C63: =C61-C62 -> 0 | D63: 0 | E63: 0 | F63: 0 | G63: 0 | H63: 0 | I63: 0 | J63: 0
A65: C060 | B65: 024DIV | C65: 0 | D65: 0 | E65: 0 | F65: 0 | G65: 0 | H65: 0 | I65: 0 | J65: 0
A66: C060 | B66: 030DIV | C66: -87315.71 | D66: 5350052.89 | E66: 6381894.76 | F66: 277830.14 | G66: 166668.97 | H66: 0 | I66: 9853.3 | J66: 1573509.99
A67: C060 | B67: 039DIV | C67: 0 | D67: 0 | E67: 0 | F67: 0 | G67: 0 | H67: 0 | I67: 0 | J67: 0
A68: C060 | B68: 087DIV | C68: 0 | D68: 0 | E68: 0 | F68: 0 | G68: 0 | H68: 0 | I68: 0 | J68: 0
A69: C060 | B69: 031DIV | C69: 463473.9 | D69: 31173.66 | E69: 36897424.87 | F69: 2481768.16 | G69: 1327820.62 | H69: 0 | I69: 89309.53 | J69: 40301675.62
A70: C060 | B70: 032DIV | C70: 0 | D70: 0 | E70: 0 | F70: 0 | G70: 0 | H70: 0 | I70: 0 | J70: 0
A71: C060 | B71: 033DIV | C71: 0 | D71: 0 | E71: 0 | F71: 0 | G71: 0 | H71: 0 | I71: 0 | J71: 0
A72: C060 | B72: 034DIV | C72: 0 | D72: 0 | E72: 0 | F72: 0 | G72: 0 | H72: 0 | I72: 0 | J72: 0
A73: C060 | B73: 035DIV | C73: 0 | D73: 0 | E73: 0 | F73: 0 | G73: 0 | H73: 0 | I73: 0 | J73: 0
A74: C060 | B74: 036DIV | C74: 0 | D74: 0 | E74: 0 | F74: 0 | G74: 0 | H74: 0 | I74: 0 | J74: 0
A75: C060 | B75: 079DIV | C75: 0 | D75: 0 | E75: 0 | F75: 0 | G75: 0 | H75: 0 | I75: 0 | J75: 0
A76: C060 | B76: 080DIV | C76: 0 | D76: 0 | E76: 0 | F76: 0 | G76: 0 | H76: 0 | I76: 0 | J76: 0
A77: C060 | B77: 081DIV | C77: 1388507.25 | D77: 93392 | E77: 67298076.3 | F77: 4526557.14 | G77: 1686623.36 | H77: 0 | I77: 113444.65 | J77: 72142802.2
A78: C060 | B78: 082DIV | C78: 0 | D78: 0 | E78: 0 | F78: 0 | G78: 0 | H78: 0 | I78: 0 | J78: 0
A79: C060 | B79: 083DIV | C79: 0 | D79: 0 | E79: 0 | F79: 0 | G79: 0 | H79: 0 | I79: 0 | J79: 0
A80: C060 | B80: 084DIV | C80: 0 | D80: 0 | E80: 0 | F80: 0 | G80: 0 | H80: 0 | I80: 0 | J80: 0
A81: C060 | B81: 085DIV | C81: 0 | D81: 0 | E81: 0 | F81: 0 | G81: 0 | H81: 0 | I81: 0 | J81: 0
A82: C060 | B82: 086DIV | C82: 0 | D82: 0 | E82: 0 | F82: 0 | G82: 0 | H82: 0 | I82: 0 | J82: 0
A83: C060 | B83: 028DIV | C83: 0 | D83: 0 | E83: 0 | F83: 0 | G83: 0 | H83: 0 | I83: 0 | J83: 0
A84: C060 | B84: 029DIV | C84: 0 | D84: 0 | E84: 0 | F84: 0 | G84: 0 | H84: 0 | I84: 0 | J84: 0
A85: C060 | B85: 071DIV | C85: 0 | D85: 0 | E85: 350391.31 | F85: 23568.39 | G85: 0 | H85: 0 | I85: 0 | J85: 373959.7
C86: =SUM(C65:C85) -> 1764665.44 | D86: 5474618.55 | E86: 110927787.2 | F86: 7309723.83 | G86: 3181112.95 | H86: 0 | I86: 212607.48 | J86: 114391947.5
A87: C060 | B87: 060COM | C87: 1764665.44 | D87: 5474618.55 | E87: 110927787.2 | F87: 7309723.83 | G87: 3181112.95 | H87: 0 | I87: 212607.48 | J87: 114391947.5
C88: =C86-C87 -> 0 | D88: 0 | E88: 0 | F88: 0 | G88: 0 | H88: 0 | I88: 0 | J88: 0
A91: C070 | B91: 170DIV | C91: 6830608.26 | D91: 4404338.91 | E91: 125608840.4 | F91: 2053535.83 | G91: 6447077.76 | H91: 0 | I91: 431919.07 | J91: 123306425.9
A92: C070 | B92: 171DIV | C92: 0.31 | D92: -0.11 | E92: 695200.6 | F92: 46759.53 | G92: 0 | H92: 0 | I92: 0 | J92: 741959.93
A93: C070 | B93: 172DIV | C93: 0 | D93: 0 | E93: 0 | F93: 0 | G93: 0 | H93: 0 | I93: 0 | J93: 0
C94: =SUM(C91:C93) -> 6830608.57 | D94: 4404338.8 | E94: 126304041 | F94: 2100295.36 | G94: 6447077.76 | H94: 0 | I94: 431919.07 | J94: 124048385.8
A95: C070 | B95: 070COM | C95: 6830608.57 | D95: 4404338.8 | E95: 126304041 | F95: 2100295.36 | G95: 6447077.76 | H95: 0 | I95: 431919.07 | J95: 124048385.8
C96: =C94-C95 -> 0 | D96: 0 | E96: 0 | F96: 0 | G96: 0 | H96: 0 | I96: 0 | J96: 0
A98: C080 | B98: 190DIV | C98: -68936216.37 | D98: -3976989.54 | E98: 768161705.5 | F98: 50751961.69 | G98: 57392821.89 | H98: 0 | I98: 3860315.98 | J98: 953080011
A99: C180 | B99: 700DIV | C99: -34337361.56 | D99: -2309575.95 | E99: 493939554.6 | F99: 32326318.74 | G99: 11372414.67 | H99: 0 | I99: 764924.35 | J99: 575050149.8
A100: C210 | B100: 830DIV | C100: 747 | D100: 0 | E100: 0 | F100: 0 | G100: 311390.78 | H100: 0 | I100: 20894.04 | J100: 331537.82
A101: C982 | B101: 982DIV | C101: 0 | D101: 0 | E101: 0 | F101: 0 | G101: 0 | H101: 0 | I101: 0 | J101: 0
A102: C989 | B102: 989DIV | C102: 0 | D102: 0 | E102: 0 | F102: 0 | G102: 0 | H102: 0 | I102: 0 | J102: 0
A103: C990 | B103: 990DIV | C103: 0 | D103: 0 | E103: 0 | F103: 0 | G103: 0 | H103: 0 | I103: 0 | J103: 0
B104: Total Utility | C104: =SUM(C98:C103,C94,C86,C61,C41,C16,C7) -> 487884515.2 | D104: 30104819.45 | E104: 2113491836 | F104: 120348214.4 | G104: 84314549.93 | H104: 0 | I104: 5658642.73 | J104: 1805823908
C105: =C104-C103-C102-C101-C100-C99-C98-C94-C86-C61-C41-C16-C7 -> 0 | D105: 0 | E105: 2.384185791e-07 | F105: 0 | G105: 1.862645149e-08 | H105: 0 | I105: 0 | J105: 0
A107: C212 | B107: Service Area | C107: 0 | D107: 0 | E107: 0 | F107: 0 | G107: 0 | H107: 0 | I107: 0 | J107: 0
A108: C220 | B108: Service Area | C108: 0 | D108: 0 | E108: -2954720 | F108: -192254 | G108: 7009.72 | H108: 0 | I108: -7009.72 | J108: -3146974
A109: C221 | B109: Service Area | C109: 25263.28 | D109: 4729.84 | E109: 0 | F109: 0 | G109: 0 | H109: 0 | I109: 0 | J109: -29993.12
A110: C231 | B110: Service Area | C110: 86129.44 | D110: 16125.73 | E110: -2217335.76 | F110: -415149.29 | G110: 0 | H110: 0 | I110: 0 | J110: -2734740.22
A111: C232 | B111: Service Area | C111: 0 | D111: 0 | E111: 717772.58 | F111: 32078.98 | G111: 0 | H111: 0 | I111: 0 | J111: 749851.56
A112: C233 | B112: Service Area | C112: 0 | D112: 0 | E112: 1503582.08 | F112: 357881.32 | G112: 0 | H112: 0 | I112: 0 | J112: 1861463.4
A113: C234 | B113: Service Area | C113: -3842.49 | D113: -1074.96 | E113: 1174068.36 | F113: 328524.35 | G113: 0 | H113: 0 | I113: 0 | J113: 1507510.16
A114: C236 | B114: Service Area | C114: 1186163.5 | D114: 222084.5 | E114: -891363.38 | F114: -166888.9 | G114: 0 | H114: 0 | I114: 0 | J114: -2466500.28
A115: C237 | B115: Service Area | C115: 0 | D115: 0 | E115: 0 | F115: 0 | G115: 0 | H115: 0 | I115: 0 | J115: 0
A116: C240 | B116: Service Area | C116: 0 | D116: 0 | E116: 0 | F116: 0 | G116: 0 | H116: 0 | I116: 0 | J116: 0
A117: C301 | B117: Service Area | C117: 0.49 | D117: -0.08 | E117: 0 | F117: 0 | G117: 0 | H117: 0 | I117: 0 | J117: -0.41
A118: C302 | B118: Service Area | C118: 0 | D118: 0 | E118: 0 | F118: 0 | G118: 0 | H118: 0 | I118: 0 | J118: 0
A119: C303 | B119: Service Area | C119: -3440373.14 | D119: -962673.31 | E119: 1627199.52 | F119: 453425.26 | G119: 1594045.61 | H119: 0 | I119: 447122.89 | J119: 8524839.73
A120: C306 | B120: Service Area | C120: 0 | D120: 0 | E120: -149156 | F120: -20643 | G120: 0 | H120: 0 | I120: 0 | J120: -169799
A121: C312 | B121: Service Area | C121: 362502.3 | D121: 671337.68 | E121: 683448.2 | F121: 585482.85 | G121: -482.45 | H121: 0 | I121: 5926.42 | J121: 240535.04
A122: C321 | B122: Service Area | C122: 0 | D122: 0 | E122: 0 | F122: 0 | G122: 0 | H122: 0 | I122: 0 | J122: 0
A123: C981 | B123: Service Area | C123: 0 | D123: 0 | E123: 0 | F123: 0 | G123: -0.29 | H123: 0 | I123: -0.33 | J123: -0.62
A124: C983 | B124: Service Area | C124: 0 | D124: 0 | E124: 0 | F124: 0 | G124: 0 | H124: 0 | I124: 0 | J124: 0
A125: C984 | B125: Service Area | C125: 0 | D125: 0 | E125: 0 | F125: 0 | G125: 0 | H125: 0 | I125: 0 | J125: 0
A126: C993 | B126: Service Area | C126: 0 | D126: 0 | E126: 0 | F126: 0 | G126: 0 | H126: 0 | I126: 0 | J126: 0
A127: C987 | B127: Service Area | C127: 51098 | D127: 0 | E127: 0 | F127: 0 | G127: -61186.03 | H127: 0 | I127: 112288.03 | J127: 4
C128: =SUM(C107:C127) -> -1733058.62 | D128: -49470.6 | E128: -506504.4 | F128: 962457.57 | G128: 1539386.56 | H128: 0 | I128: 558327.29 | J128: 4336196.24
A130: AEC | B130: Service Area | C130: 486151456.6 | D130: 30055348.85 | E130: 2112985331 | F130: 121310672 | G130: 85853936.49 | H130: 0 | I130: 6216970.02 | J130: 1810160105
C131: =C130-SUM(C107:C127,C91:C93,C98:C103,C65:C85,C45:C60,C20:C40,C11:C15,C4:C6) -> 0 | D131: 0 | E131: 0 | F131: 0 | G131: 0 | H131: 0 | I131: 0 | J131: 0
A137: KANSDV | B137: KANSDV | C137: =C77 -> 1388507.25 | D137: 93392 | E137: 67298076.3 | F137: 4526557.14 | G137: 1686623.36 | H137: 0 | I137: 113444.65 | J137: 72142802.2
A138: COLODV | B138: COLODV | C138: =C69 -> 463473.9 | D138: 31173.66 | E138: 36897424.87 | F138: 2481768.16 | G138: 1327820.62 | H138: 0 | I138: 89309.53 | J138: 40301675.62

Sheet 2-28-17 SV (hidden)
L1: YTD Feb | M1: Cost Center | N1: Ending Balance | O1: CY Actual | P1: Type
C3: A1900-28201 | D3: A1900-28206 | E3: A2820-28201 | F3: A2820-28206 | G3: A2830-28201 | H3: A2830-28204 | I3: A2830-28206 | J3: Deferred Income Taxes
A4: C010 | B4: 002DIV | C4: 569144467.9 | D4: 5863388.53 | E4: -2299755.57 | F4: 1476557.19 | G4: -13358460.22 | H4: 0 | I4: -902178.87 | J4: -590091693.9
A5: C010 | B5: 012DIV | C5: -0.28 | D5: -0.13 | E5: 26157546.93 | F5: 1759390.42 | G5: 538554 | H5: 0 | I5: 36225 | J5: 28491716.76
A6: C010 | B6: 042DIV | C6: 0 | D6: 0 | E6: 0 | F6: 0 | G6: 0 | H6: 0 | I6: 0 | J6: 0
C7: =SUM(C4:C6) -> 569144467.6 | D7: 5863388.4 | E7: 23857791.36 | F7: 3235947.61 | G7: -12819906.22 | H7: 0 | I7: -865953.87 | J7: -561599977.1
A8: C010 | B8: 010COM | C8: 569144467.6 | D8: 5863388.4 | E8: 23857791.36 | F8: 3235947.61 | G8: -12819906.22 | H8: 0 | I8: -865953.87 | J8: -561599977.1
C9: =C7-C8 -> 0 | D9: 0 | E9: 0 | F9: 0 | G9: 0 | H9: 0 | I9: 0 | J9: 0
A11: C020 | B11: 007DIV | C11: 610027.04 | D11: 41031.45 | E11: 54084949.35 | F11: 3637823.9 | G11: 3984109.03 | H11: 0 | I11: 267978.01 | J11: 61323801.8
A12: C020 | B12: 077DIV | C12: -821694.78 | D12: -55268.19 | E12: 104732903.8 | F12: 7044471.95 | G12: 3267211.43 | H12: 0 | I12: 219758.48 | J12: 116141308.6
A13: C020 | B13: 023DIV | C13: 0 | D13: 0 | E13: 0 | F13: 0 | G13: 0 | H13: 0 | I13: 0 | J13: 0
A14: C020 | B14: 047DIV | C14: 0 | D14: 0 | E14: 0 | F14: 0 | G14: 0 | H14: 0 | I14: 0 | J14: 0
A15: C020 | B15: 107DIV | C15: -4348258.36 | D15: 13739626.16 | E15: 6263984.19 | F15: 272272.42 | G15: 159965.71 | H15: 0 | I15: 7876.49 | J15: -2687268.99
C16: =SUM(C11:C15) -> -4559926.1 | D16: 13725389.42 | E16: 165081837.3 | F16: 10954568.27 | G16: 7411286.17 | H16: 0 | I16: 495612.98 | J16: 174777841.4
A17: C020 | B17: 020COM | C17: -4559926.1 | D17: 13725389.42 | E17: 165081837.3 | F17: 10954568.27 | G17: 7411286.17 | H17: 0 | I17: 495612.98 | J17: 174777841.5
C18: =C16-C17 -> 0 | D18: 0 | E18: 0 | F18: 0 | G18: 0 | H18: 0 | I18: 0 | J18: 0
A20: C030 | B20: 004DIV | C20: 6347.52 | D20: 426.51 | E20: 130897.75 | F20: 8802.56 | G20: 1102.35 | H20: 0 | I20: 74.46 | J20: 134103.09
A21: C030 | B21: 008DIV | C21: 18676.01 | D21: 1255.06 | E21: -43714.27 | F21: -2940.76 | G21: -0.15 | H21: 0 | I21: -0.16 | J21: -66586.41
A22: C030 | B22: 019DIV | C22: 1796.76 | D22: 119.57 | E22: 8709176.77 | F22: 585788.88 | G22: 0.1 | H22: 0 | I22: -0.35 | J22: 9293049.07
A23: C030 | B23: 003DIV | C23: 377427.25 | D23: 25387.31 | E23: 28704786.91 | F23: 1930721.6 | G23: 452599.25 | H23: 0 | I23: 30442.19 | J23: 30715735.39
A24: C030 | B24: 013DIV | C24: 41211.79 | D24: 2770.51 | E24: 1785812.34 | F24: 120116.33 | G24: -10493.04 | H24: 0 | I24: -704.76 | J24: 1850748.57
A25: C030 | B25: 001DIV | C25: 0 | D25: 0 | E25: 0 | F25: 0 | G25: 0 | H25: 0 | I25: 0 | J25: 0
A26: C030 | B26: 011DIV | C26: 0 | D26: 0 | E26: 0 | F26: 0 | G26: 0 | H26: 0 | I26: 0 | J26: 0
A27: C030 | B27: 010DIV | C27: 11360895.68 | D27: 764146.61 | E27: 5249941.44 | F27: 223617.75 | G27: 1511184.01 | H27: 0 | I27: 101645.38 | J27: -5038653.71
A28: C030 | B28: 022DIV | C28: 0 | D28: 0 | E28: 0 | F28: 0 | G28: 0 | H28: 0 | I28: 0 | J28: 0
A29: C030 | B29: 040DIV | C29: 0 | D29: 0 | E29: 816740.46 | F29: 54926.99 | G29: 0 | H29: 0 | I29: 0 | J29: 871667.45
A30: C030 | B30: 006DIV | C30: 18692.32 | D30: 1256.89 | E30: 1173970.16 | F30: 78961.85 | G30: 23555.52 | H30: 0 | I30: 1585.51 | J30: 1258123.83
A31: C030 | B31: 017DIV | C31: 0 | D31: 0 | E31: -1506.49 | F31: -101.87 | G31: 0 | H31: 0 | I31: 0 | J31: -1608.36
A32: C030 | B32: 018DIV | C32: 1064.54 | D32: 71.64 | E32: 2502.55 | F32: 167.7 | G32: 37.52 | H32: 0 | I32: 3.07 | J32: 1574.66
A33: C030 | B33: 979DIV | C33: 0 | D33: 0 | E33: 0 | F33: 0 | G33: 0 | H33: 0 | I33: 0 | J33: 0
A34: C030 | B34: 980DIV | C34: 0 | D34: 0 | E34: 0 | F34: 0 | G34: 0 | H34: 0 | I34: 0 | J34: 0
A35: C030 | B35: 016DIV | C35: 339404.47 | D35: 22830.87 | E35: 30711086.07 | F35: 2065668.08 | G35: 116146.8 | H35: 0 | I35: 7811.83 | J35: 32538477.44
A36: C030 | B36: 020DIV | C36: 30670.27 | D36: 2062.57 | E36: 2019999.14 | F36: 135867.6 | G36: 4208.25 | H36: 0 | I36: 283.31 | J36: 2127625.46
A37: C030 | B37: 014DIV | C37: 0 | D37: 0 | E37: 0 | F37: 0 | G37: 0 | H37: 0 | I37: 0 | J37: 0
A38: C030 | B38: 015DIV | C38: 0 | D38: 0 | E38: 0 | F38: 0 | G38: 0 | H38: 0 | I38: 0 | J38: 0
A39: C030 | B39: 005DIV | C39: 773296.04 | D39: 52013.07 | E39: 66965889.63 | F39: 4504211.09 | G39: 2813940.89 | H39: 0 | I39: 189269.78 | J39: 73648002.28
A40: C030 | B40: 021DIV | C40: 157182.7 | D40: 10572.05 | E40: 11295812.28 | F40: 759769.69 | G40: 221762.5 | H40: 0 | I40: 14915.88 | J40: 12124505.6
C41: =SUM(C20:C40) -> 13126665.35 | D41: 882912.66 | E41: 157521394.7 | F41: 10465577.49 | G41: 5134044 | H41: 0 | I41: 345326.14 | J41: 159456764.4
A42: C030 | B42: 030COM | C42: 13126665.35 | D42: 882912.66 | E42: 157521394.7 | F42: 10465577.49 | G42: 5134044 | H42: 0 | I42: 345326.14 | J42: 159456764.4
C43: =C41-C42 -> 0 | D43: 0 | E43: 0 | F43: 0 | G43: 0 | H43: 0 | I43: 0 | J43: 0
A45: C050 | B45: 009DIV | C45: -32517.6 | D45: 2552015.42 | E45: 92388928.06 | F45: 6214197.76 | G45: 780542.41 | H45: 0 | I45: 51093.79 | J45: 96915264.2
A46: C050 | B46: 093DIV | C46: -818199.6 | D46: 3037464.84 | E46: 79605045.22 | F46: 5354339.8 | G46: 2496006.62 | H46: 0 | I46: 166495.53 | J46: 85402621.93
A47: C050 | B47: 096DIV | C47: 88499.58 | D47: 90548.77 | E47: 17474940.7 | F47: 1175387.86 | G47: 1689805.06 | H47: 0 | I47: 113658.39 | J47: 20274743.66
A48: C050 | B48: 049DIV | C48: 0 | D48: 0 | E48: 0 | F48: 0 | G48: 0 | H48: 0 | I48: 0 | J48: 0
A49: C050 | B49: 088DIV | C49: 0 | D49: 0 | E49: 0 | F49: 0 | G49: 0 | H49: 0 | I49: 0 | J49: 0
A50: C050 | B50: 089DIV | C50: 0 | D50: 0 | E50: 0 | F50: 0 | G50: 0 | H50: 0 | I50: 0 | J50: 0
A51: C050 | B51: 090DIV | C51: 0 | D51: 0 | E51: 0 | F51: 0 | G51: 0 | H51: 0 | I51: 0 | J51: 0
A52: C050 | B52: 091DIV | C52: 5362764.11 | D52: 360708.03 | E52: 14184926.47 | F52: -10180223.26 | G52: 1549454.22 | H52: 0 | I52: 104217.93 | J52: -65096.78
A53: C050 | B53: 092DIV | C53: 0 | D53: 0 | E53: 0 | F53: 0 | G53: 0 | H53: 0 | I53: 0 | J53: 0
A54: C050 | B54: 094DIV | C54: 0 | D54: 0 | E54: 0 | F54: 0 | G54: 0 | H54: 0 | I54: 0 | J54: 0
A55: C050 | B55: 095DIV | C55: 0.03 | D55: 0.07 | E55: 79629.09 | F55: 5354.53 | G55: 0 | H55: 0 | I55: 0 | J55: 84983.52
A56: C050 | B56: 098DIV | C56: 0 | D56: 0 | E56: -0.33 | F56: 0.35 | G56: 0 | H56: 0 | I56: 0 | J56: 0.02
A57: C050 | B57: 099DIV | C57: 0 | D57: 0 | E57: 0 | F57: 0 | G57: 0 | H57: 0 | I57: 0 | J57: 0
A58: C050 | B58: 070DIV | C58: 0 | D58: 0 | E58: 0 | F58: 0 | G58: 0 | H58: 0 | I58: 0 | J58: 0
A59: C050 | B59: 072DIV | C59: -0.34 | D59: -0.02 | E59: -0.34 | F59: -0.02 | G59: 0 | H59: 0 | I59: 0 | J59: 0
A60: C050 | B60: 097DIV | C60: 0 | D60: 0 | E60: 0 | F60: 0 | G60: 0 | H60: 0 | I60: 0 | J60: 0
C61: =SUM(C45:C60) -> 4600546.18 | D61: 6040737.11 | E61: 203733468.9 | F61: 2569057.02 | G61: 6515808.31 | H61: 0 | I61: 435465.64 | J61: 202612516.6
A62: C050 | B62: 050COM | C62: 4600546.18 | D62: 6040737.11 | E62: 203733468.9 | F62: 2569057.02 | G62: 6515808.31 | H62: 0 | I62: 435465.64 | J62: 202612516.6
C63: =C61-C62 -> 0 | D63: 0 | E63: 0 | F63: 0 | G63: 0 | H63: 0 | I63: 0 | J63: 0
A65: C060 | B65: 024DIV | C65: 0 | D65: 0 | E65: 0 | F65: 0 | G65: 0 | H65: 0 | I65: 0 | J65: 0
A66: C060 | B66: 030DIV | C66: -87315.71 | D66: 5350052.89 | E66: 3533897.37 | F66: 155773.11 | G66: 166668.97 | H66: 0 | I66: 9853.3 | J66: -1396544.43
A67: C060 | B67: 039DIV | C67: 0 | D67: 0 | E67: 0 | F67: 0 | G67: 0 | H67: 0 | I67: 0 | J67: 0
A68: C060 | B68: 087DIV | C68: 0 | D68: 0 | E68: 0 | F68: 0 | G68: 0 | H68: 0 | I68: 0 | J68: 0
A69: C060 | B69: 031DIV | C69: 463473.9 | D69: 31173.66 | E69: 36897424.87 | F69: 2481768.16 | G69: 1327820.62 | H69: 0 | I69: 89309.53 | J69: 40301675.62
A70: C060 | B70: 032DIV | C70: 0 | D70: 0 | E70: 0 | F70: 0 | G70: 0 | H70: 0 | I70: 0 | J70: 0
A71: C060 | B71: 033DIV | C71: 0 | D71: 0 | E71: 0 | F71: 0 | G71: 0 | H71: 0 | I71: 0 | J71: 0
A72: C060 | B72: 034DIV | C72: 0 | D72: 0 | E72: 0 | F72: 0 | G72: 0 | H72: 0 | I72: 0 | J72: 0
A73: C060 | B73: 035DIV | C73: 0 | D73: 0 | E73: 0 | F73: 0 | G73: 0 | H73: 0 | I73: 0 | J73: 0
A74: C060 | B74: 036DIV | C74: 0 | D74: 0 | E74: 0 | F74: 0 | G74: 0 | H74: 0 | I74: 0 | J74: 0
A75: C060 | B75: 079DIV | C75: 0 | D75: 0 | E75: 0 | F75: 0 | G75: 0 | H75: 0 | I75: 0 | J75: 0
A76: C060 | B76: 080DIV | C76: 0 | D76: 0 | E76: 0 | F76: 0 | G76: 0 | H76: 0 | I76: 0 | J76: 0
A77: C060 | B77: 081DIV | C77: 1388507.25 | D77: 93392 | E77: 67298076.3 | F77: 4526557.14 | G77: 1686623.36 | H77: 0 | I77: 113444.65 | J77: 72142802.2
A78: C060 | B78: 082DIV | C78: 0 | D78: 0 | E78: 0 | F78: 0 | G78: 0 | H78: 0 | I78: 0 | J78: 0
A79: C060 | B79: 083DIV | C79: 0 | D79: 0 | E79: 0 | F79: 0 | G79: 0 | H79: 0 | I79: 0 | J79: 0
A80: C060 | B80: 084DIV | C80: 0 | D80: 0 | E80: 0 | F80: 0 | G80: 0 | H80: 0 | I80: 0 | J80: 0
A81: C060 | B81: 085DIV | C81: 0 | D81: 0 | E81: 0 | F81: 0 | G81: 0 | H81: 0 | I81: 0 | J81: 0
A82: C060 | B82: 086DIV | C82: 0 | D82: 0 | E82: 0 | F82: 0 | G82: 0 | H82: 0 | I82: 0 | J82: 0
A83: C060 | B83: 028DIV | C83: 0 | D83: 0 | E83: 0 | F83: 0 | G83: 0 | H83: 0 | I83: 0 | J83: 0
A84: C060 | B84: 029DIV | C84: 0 | D84: 0 | E84: 0 | F84: 0 | G84: 0 | H84: 0 | I84: 0 | J84: 0
A85: C060 | B85: 071DIV | C85: 0 | D85: 0 | E85: 350391.31 | F85: 23568.39 | G85: 0 | H85: 0 | I85: 0 | J85: 373959.7
C86: =SUM(C65:C85) -> 1764665.44 | D86: 5474618.55 | E86: 108079789.8 | F86: 7187666.8 | G86: 3181112.95 | H86: 0 | I86: 212607.48 | J86: 111421893.1
A87: C060 | B87: 060COM | C87: 1764665.44 | D87: 5474618.55 | E87: 108079789.8 | F87: 7187666.8 | G87: 3181112.95 | H87: 0 | I87: 212607.48 | J87: 111421893.1
C88: =C86-C87 -> 0 | D88: 0 | E88: 0 | F88: 0 | G88: 0 | H88: 0 | I88: 0 | J88: 0
A91: C070 | B91: 170DIV | C91: 6830608.26 | D91: 4404338.91 | E91: 121485524.9 | F91: 1876822.31 | G91: 6447077.76 | H91: 0 | I91: 431919.07 | J91: 119006396.9
A92: C070 | B92: 171DIV | C92: 0.31 | D92: -0.11 | E92: 695200.6 | F92: 46759.53 | G92: 0 | H92: 0 | I92: 0 | J92: 741959.93
A93: C070 | B93: 172DIV | C93: 0 | D93: 0 | E93: 0 | F93: 0 | G93: 0 | H93: 0 | I93: 0 | J93: 0
C94: =SUM(C91:C93) -> 6830608.57 | D94: 4404338.8 | E94: 122180725.5 | F94: 1923581.84 | G94: 6447077.76 | H94: 0 | I94: 431919.07 | J94: 119748356.8
A95: C070 | B95: 070COM | C95: 6830608.57 | D95: 4404338.8 | E95: 122180725.5 | F95: 1923581.84 | G95: 6447077.76 | H95: 0 | I95: 431919.07 | J95: 119748356.8
C96: =C94-C95 -> 0 | D96: 0 | E96: 0 | F96: 0 | G96: 0 | H96: 0 | I96: 0 | J96: 0
A98: C080 | B98: 190DIV | C98: -68936216.37 | D98: -3976989.54 | E98: 770070123 | F98: 50833751.01 | G98: 57392821.89 | H98: 0 | I98: 3860315.98 | J98: 955070217.8
A99: C180 | B99: 700DIV | C99: -34337361.56 | D99: -2309575.95 | E99: 476611878.9 | F99: 31583704.07 | G99: 11372414.67 | H99: 0 | I99: 764924.35 | J99: 556979859.5
A100: C210 | B100: 830DIV | C100: 747 | D100: 0 | E100: 0 | F100: 0 | G100: 275964.96 | H100: 0 | I100: 18511.6 | J100: 293729.56
A101: C982 | B101: 982DIV | C101: 0 | D101: 0 | E101: 0 | F101: 0 | G101: 0 | H101: 0 | I101: 0 | J101: 0
A102: C989 | B102: 989DIV | C102: 0 | D102: 0 | E102: 0 | F102: 0 | G102: 0 | H102: 0 | I102: 0 | J102: 0
A103: C990 | B103: 990DIV | C103: 0 | D103: 0 | E103: 0 | F103: 0 | G103: 0 | H103: 0 | I103: 0 | J103: 0
B104: Total Utility | C104: =SUM(C98:C103,C94,C86,C61,C41,C16,C7) -> 487634196.1 | D104: 30104819.45 | E104: 2027137010 | F104: 118753854.1 | G104: 84910624.49 | H104: 0 | I104: 5698729.37 | J104: 1718761202
C105: =C104-C103-C102-C101-C100-C99-C98-C94-C86-C61-C41-C16-C7 -> 0 | D105: 0 | E105: -6.705522537e-07 | F105: -9.778887033e-09 | G105: 1.490116119e-08 | H105: 0 | I105: 0 | J105: 0
A107: C212 | B107: Service Area | C107: 0 | D107: 0 | E107: 0 | F107: 0 | G107: 0 | H107: 0 | I107: 0 | J107: 0
A108: C220 | B108: Service Area | C108: 0 | D108: 0 | E108: -2954720 | F108: -192254 | G108: 7009.72 | H108: 0 | I108: -7009.72 | J108: -3146974
A109: C221 | B109: Service Area | C109: 25263.28 | D109: 4729.84 | E109: 0 | F109: 0 | G109: 0 | H109: 0 | I109: 0 | J109: -29993.12
A110: C231 | B110: Service Area | C110: 86129.44 | D110: 16125.73 | E110: -2217335.76 | F110: -415149.29 | G110: 0 | H110: 0 | I110: 0 | J110: -2734740.22
A111: C232 | B111: Service Area | C111: 0 | D111: 0 | E111: 717772.58 | F111: 32078.98 | G111: 0 | H111: 0 | I111: 0 | J111: 749851.56
A112: C233 | B112: Service Area | C112: 0 | D112: 0 | E112: 1503582.08 | F112: 357881.32 | G112: 0 | H112: 0 | I112: 0 | J112: 1861463.4
A113: C234 | B113: Service Area | C113: -3842.49 | D113: -1074.96 | E113: 1174068.36 | F113: 328524.35 | G113: 0 | H113: 0 | I113: 0 | J113: 1507510.16
A114: C236 | B114: Service Area | C114: 1186163.5 | D114: 222084.5 | E114: -891363.38 | F114: -166888.9 | G114: 0 | H114: 0 | I114: 0 | J114: -2466500.28
A115: C237 | B115: Service Area | C115: 0 | D115: 0 | E115: 0 | F115: 0 | G115: 0 | H115: 0 | I115: 0 | J115: 0
A116: C240 | B116: Service Area | C116: 0 | D116: 0 | E116: 0 | F116: 0 | G116: 0 | H116: 0 | I116: 0 | J116: 0
A117: C301 | B117: Service Area | C117: 0.49 | D117: -0.08 | E117: 0 | F117: 0 | G117: 0 | H117: 0 | I117: 0 | J117: -0.41
A118: C302 | B118: Service Area | C118: 0 | D118: 0 | E118: 0 | F118: 0 | G118: 0 | H118: 0 | I118: 0 | J118: 0
A119: C303 | B119: Service Area | C119: -3440373.14 | D119: -962673.31 | E119: 1627199.52 | F119: 453425.26 | G119: 1334743.26 | H119: 0 | I119: 374570.28 | J119: 8192984.77
A120: C306 | B120: Service Area | C120: 0 | D120: 0 | E120: -149156 | F120: -20643 | G120: 0 | H120: 0 | I120: 0 | J120: -169799
A121: C312 | B121: Service Area | C121: -193269.15 | D121: 567283.13 | E121: 16539 | F121: 8268270.25 | G121: -905544.09 | H121: 0 | I121: -171621.9 | J121: 6833629.28
A122: C321 | B122: Service Area | C122: 0 | D122: 0 | E122: 0 | F122: 0 | G122: 0 | H122: 0 | I122: 0 | J122: 0
A123: C981 | B123: Service Area | C123: 0 | D123: 0 | E123: 0 | F123: 0 | G123: -0.29 | H123: 0 | I123: -0.33 | J123: -0.62
A124: C983 | B124: Service Area | C124: 0 | D124: 0 | E124: 0 | F124: 0 | G124: 0 | H124: 0 | I124: 0 | J124: 0
A125: C984 | B125: Service Area | C125: 0 | D125: 0 | E125: 0 | F125: 0 | G125: 0 | H125: 0 | I125: 0 | J125: 0
A126: C993 | B126: Service Area | C126: 0 | D126: 0 | E126: 0 | F126: 0 | G126: 12327.27 | H126: 0 | I126: 2313.39 | J126: 14640.66
A127: C987 | B127: Service Area | C127: 51098 | D127: 0 | E127: 0 | F127: 0 | G127: -61186.03 | H127: 0 | I127: 112288.03 | J127: 4
C128: =SUM(C107:C127) -> -2288830.07 | D128: -153525.15 | E128: -1173413.6 | F128: 8645244.97 | G128: 387349.84 | H128: 0 | I128: 310539.75 | J128: 10612076.18
A130: AEC | B130: Service Area | C130: 485345366 | D130: 29951294.3 | E130: 2025963596 | F130: 127399099.1 | G130: 85297974.33 | H130: 0 | I130: 6009269.12 | J130: 1729373278
C131: =C130-SUM(C107:C127,C91:C93,C98:C103,C65:C85,C45:C60,C20:C40,C11:C15,C4:C6) -> 0 | D131: 0 | E131: 0 | F131: 0 | G131: 0 | H131: 0 | I131: 0 | J131: 0
A137: KANSDV | B137: KANSDV | C137: =C77 -> 1388507.25 | D137: 93392 | E137: 67298076.3 | F137: 4526557.14 | G137: 1686623.36 | H137: 0 | I137: 113444.65 | J137: 72142802.2
A138: COLODV | B138: COLODV | C138: =C69 -> 463473.9 | D138: 31173.66 | E138: 36897424.87 | F138: 2481768.16 | G138: 1327820.62 | H138: 0 | I138: 89309.53 | J138: 40301675.62

Sheet 1-31-17 SV (hidden)
L1: YTD Jan | M1: Cost Center | N1: Ending Balance | O1: CY Actual | P1: Type | R1: Type
C3: A1900-28201 | D3: A1900-28206 | E3: A2820-28201 | F3: A2820-28206 | G3: A2830-28201 | H3: A2830-28204 | I3: A2830-28206 | J3: Deferred Income Taxes
A4: C010 | B4: 002DIV | C4: 569144467.9 | D4: 5863388.53 | E4: -2299755.57 | F4: 1476557.19 | G4: -14870057.96 | H4: 0 | I4: -1003836.02 | J4: -591704948.8
A5: C010 | B5: 012DIV | C5: -0.28 | D5: -0.13 | E5: 26157546.93 | F5: 1759390.42 | G5: 538554 | H5: 0 | I5: 36225 | J5: 28491716.76
A6: C010 | B6: 042DIV | C6: 0 | D6: 0 | E6: 0 | F6: 0 | G6: 0 | H6: 0 | I6: 0 | J6: 0
C7: =SUM(C4:C6) -> 569144467.6 | D7: 5863388.4 | E7: 23857791.36 | F7: 3235947.61 | G7: -14331503.96 | H7: 0 | I7: -967611.02 | J7: -563213232
A8: C010 | B8: 010COM | C8: 569144467.6 | D8: 5863388.4 | E8: 23857791.36 | F8: 3235947.61 | G8: -14331503.96 | H8: 0 | I8: -967611.02 | J8: -563213232
C9: =C7-C8 -> 0 | D9: 0 | E9: 0 | F9: 0 | G9: 0 | H9: 0 | I9: 0 | J9: 0
A11: C020 | B11: 007DIV | C11: 610027.04 | D11: 41031.45 | E11: 54084949.35 | F11: 3637823.9 | G11: 3984109.03 | H11: 0 | I11: 267978.01 | J11: 61323801.8
A12: C020 | B12: 077DIV | C12: -821694.78 | D12: -55268.19 | E12: 104732903.8 | F12: 7044471.95 | G12: 3267211.43 | H12: 0 | I12: 219758.48 | J12: 116141308.6
A13: C020 | B13: 023DIV | C13: 0 | D13: 0 | E13: 0 | F13: 0 | G13: 0 | H13: 0 | I13: 0 | J13: 0
A14: C020 | B14: 047DIV | C14: 0 | D14: 0 | E14: 0 | F14: 0 | G14: 0 | H14: 0 | I14: 0 | J14: 0
A15: C020 | B15: 107DIV | C15: -4348258.36 | D15: 13739626.16 | E15: 6263984.19 | F15: 272272.42 | G15: 159965.71 | H15: 0 | I15: 7876.49 | J15: -2687268.99
C16: =SUM(C11:C15) -> -4559926.1 | D16: 13725389.42 | E16: 165081837.3 | F16: 10954568.27 | G16: 7411286.17 | H16: 0 | I16: 495612.98 | J16: 174777841.4
A17: C020 | B17: 020COM | C17: -4559926.1 | D17: 13725389.42 | E17: 165081837.3 | F17: 10954568.27 | G17: 7411286.17 | H17: 0 | I17: 495612.98 | J17: 174777841.5
C18: =C16-C17 -> 0 | D18: 0 | E18: 0 | F18: 0 | G18: 0 | H18: 0 | I18: 0 | J18: 0
A20: C030 | B20: 004DIV | C20: 6347.52 | D20: 426.51 | E20: 130897.75 | F20: 8802.56 | G20: 1102.35 | H20: 0 | I20: 74.46 | J20: 134103.09
A21: C030 | B21: 008DIV | C21: 18676.01 | D21: 1255.06 | E21: -43714.27 | F21: -2940.76 | G21: -0.15 | H21: 0 | I21: -0.16 | J21: -66586.41
A22: C030 | B22: 019DIV | C22: 1796.76 | D22: 119.57 | E22: 8709176.77 | F22: 585788.88 | G22: 0.1 | H22: 0 | I22: -0.35 | J22: 9293049.07
A23: C030 | B23: 003DIV | C23: 377427.25 | D23: 25387.31 | E23: 28704786.91 | F23: 1930721.6 | G23: 452599.25 | H23: 0 | I23: 30442.19 | J23: 30715735.39
A24: C030 | B24: 013DIV | C24: 41211.79 | D24: 2770.51 | E24: 1785812.34 | F24: 120116.33 | G24: -10493.04 | H24: 0 | I24: -704.76 | J24: 1850748.57
A25: C030 | B25: 001DIV | C25: 0 | D25: 0 | E25: 0 | F25: 0 | G25: 0 | H25: 0 | I25: 0 | J25: 0
A26: C030 | B26: 011DIV | C26: 0 | D26: 0 | E26: 0 | F26: 0 | G26: 0 | H26: 0 | I26: 0 | J26: 0
A27: C030 | B27: 010DIV | C27: 11360895.68 | D27: 764146.61 | E27: 5249941.44 | F27: 223617.75 | G27: 1511184.01 | H27: 0 | I27: 101645.38 | J27: -5038653.71
A28: C030 | B28: 022DIV | C28: 0 | D28: 0 | E28: 0 | F28: 0 | G28: 0 | H28: 0 | I28: 0 | J28: 0
A29: C030 | B29: 040DIV | C29: 0 | D29: 0 | E29: 816740.46 | F29: 54926.99 | G29: 0 | H29: 0 | I29: 0 | J29: 871667.45
A30: C030 | B30: 006DIV | C30: 18692.32 | D30: 1256.89 | E30: 1173970.16 | F30: 78961.85 | G30: 23555.52 | H30: 0 | I30: 1585.51 | J30: 1258123.83
A31: C030 | B31: 017DIV | C31: 0 | D31: 0 | E31: -1506.49 | F31: -101.87 | G31: 0 | H31: 0 | I31: 0 | J31: -1608.36
A32: C030 | B32: 018DIV | C32: 1064.54 | D32: 71.64 | E32: 2502.55 | F32: 167.7 | G32: 37.52 | H32: 0 | I32: 3.07 | J32: 1574.66
A33: C030 | B33: 979DIV | C33: 0 | D33: 0 | E33: 0 | F33: 0 | G33: 0 | H33: 0 | I33: 0 | J33: 0
A34: C030 | B34: 980DIV | C34: 0 | D34: 0 | E34: 0 | F34: 0 | G34: 0 | H34: 0 | I34: 0 | J34: 0
A35: C030 | B35: 016DIV | C35: 339404.47 | D35: 22830.87 | E35: 30711086.07 | F35: 2065668.08 | G35: 116146.8 | H35: 0 | I35: 7811.83 | J35: 32538477.44
A36: C030 | B36: 020DIV | C36: 30670.27 | D36: 2062.57 | E36: 2019999.14 | F36: 135867.6 | G36: 4208.25 | H36: 0 | I36: 283.31 | J36: 2127625.46
A37: C030 | B37: 014DIV | C37: 0 | D37: 0 | E37: 0 | F37: 0 | G37: 0 | H37: 0 | I37: 0 | J37: 0
A38: C030 | B38: 015DIV | C38: 0 | D38: 0 | E38: 0 | F38: 0 | G38: 0 | H38: 0 | I38: 0 | J38: 0
A39: C030 | B39: 005DIV | C39: 773296.04 | D39: 52013.07 | E39: 66965889.63 | F39: 4504211.09 | G39: 2813940.89 | H39: 0 | I39: 189269.78 | J39: 73648002.28
A40: C030 | B40: 021DIV | C40: 157182.7 | D40: 10572.05 | E40: 11295812.28 | F40: 759769.69 | G40: 221762.5 | H40: 0 | I40: 14915.88 | J40: 12124505.6
C41: =SUM(C20:C40) -> 13126665.35 | D41: 882912.66 | E41: 157521394.7 | F41: 10465577.49 | G41: 5134044 | H41: 0 | I41: 345326.14 | J41: 159456764.4
A42: C030 | B42: 030COM | C42: 13126665.35 | D42: 882912.66 | E42: 157521394.7 | F42: 10465577.49 | G42: 5134044 | H42: 0 | I42: 345326.14 | J42: 159456764.4
C43: =C41-C42 -> 0 | D43: 0 | E43: 0 | F43: 0 | G43: 0 | H43: 0 | I43: 0 | J43: 0
A45: C050 | B45: 009DIV | C45: -32517.6 | D45: 2552015.42 | E45: 92388928.06 | F45: 6214197.76 | G45: 780542.41 | H45: 0 | I45: 51093.79 | J45: 96915264.2
A46: C050 | B46: 093DIV | C46: -818199.6 | D46: 3037464.84 | E46: 79605045.22 | F46: 5354339.8 | G46: 2496006.62 | H46: 0 | I46: 166495.53 | J46: 85402621.93
A47: C050 | B47: 096DIV | C47: 88499.58 | D47: 90548.77 | E47: 17474940.7 | F47: 1175387.86 | G47: 1689805.06 | H47: 0 | I47: 113658.39 | J47: 20274743.66
A48: C050 | B48: 049DIV | C48: 0 | D48: 0 | E48: 0 | F48: 0 | G48: 0 | H48: 0 | I48: 0 | J48: 0
A49: C050 | B49: 088DIV | C49: 0 | D49: 0 | E49: 0 | F49: 0 | G49: 0 | H49: 0 | I49: 0 | J49: 0
A50: C050 | B50: 089DIV | C50: 0 | D50: 0 | E50: 0 | F50: 0 | G50: 0 | H50: 0 | I50: 0 | J50: 0
A51: C050 | B51: 090DIV | C51: 0 | D51: 0 | E51: 0 | F51: 0 | G51: 0 | H51: 0 | I51: 0 | J51: 0
A52: C050 | B52: 091DIV | C52: 5362764.11 | D52: 360708.03 | E52: 14184926.47 | F52: -10180223.26 | G52: 1549454.22 | H52: 0 | I52: 104217.93 | J52: -65096.78
A53: C050 | B53: 092DIV | C53: 0 | D53: 0 | E53: 0 | F53: 0 | G53: 0 | H53: 0 | I53: 0 | J53: 0
A54: C050 | B54: 094DIV | C54: 0 | D54: 0 | E54: 0 | F54: 0 | G54: 0 | H54: 0 | I54: 0 | J54: 0
A55: C050 | B55: 095DIV | C55: 0.03 | D55: 0.07 | E55: 79629.09 | F55: 5354.53 | G55: 0 | H55: 0 | I55: 0 | J55: 84983.52
A56: C050 | B56: 098DIV | C56: 0 | D56: 0 | E56: -0.33 | F56: 0.35 | G56: 0 | H56: 0 | I56: 0 | J56: 0.02
A57: C050 | B57: 099DIV | C57: 0 | D57: 0 | E57: 0 | F57: 0 | G57: 0 | H57: 0 | I57: 0 | J57: 0
A58: C050 | B58: 070DIV | C58: 0 | D58: 0 | E58: 0 | F58: 0 | G58: 0 | H58: 0 | I58: 0 | J58: 0
A59: C050 | B59: 072DIV | C59: -0.34 | D59: -0.02 | E59: -0.34 | F59: -0.02 | G59: 0 | H59: 0 | I59: 0 | J59: 0
A60: C050 | B60: 097DIV | C60: 0 | D60: 0 | E60: 0 | F60: 0 | G60: 0 | H60: 0 | I60: 0 | J60: 0
C61: =SUM(C45:C60) -> 4600546.18 | D61: 6040737.11 | E61: 203733468.9 | F61: 2569057.02 | G61: 6515808.31 | H61: 0 | I61: 435465.64 | J61: 202612516.6
A62: C050 | B62: 050COM | C62: 4600546.18 | D62: 6040737.11 | E62: 203733468.9 | F62: 2569057.02 | G62: 6515808.31 | H62: 0 | I62: 435465.64 | J62: 202612516.6
C63: =C61-C62 -> 0 | D63: 0 | E63: 0 | F63: 0 | G63: 0 | H63: 0 | I63: 0 | J63: 0
A65: C060 | B65: 024DIV | C65: 0 | D65: 0 | E65: 0 | F65: 0 | G65: 0 | H65: 0 | I65: 0 | J65: 0
A66: C060 | B66: 030DIV | C66: -87315.71 | D66: 5350052.89 | E66: 3533897.37 | F66: 155773.11 | G66: 166668.97 | H66: 0 | I66: 9853.3 | J66: -1396544.43
A67: C060 | B67: 039DIV | C67: 0 | D67: 0 | E67: 0 | F67: 0 | G67: 0 | H67: 0 | I67: 0 | J67: 0
A68: C060 | B68: 087DIV | C68: 0 | D68: 0 | E68: 0 | F68: 0 | G68: 0 | H68: 0 | I68: 0 | J68: 0
A69: C060 | B69: 031DIV | C69: 463473.9 | D69: 31173.66 | E69: 36897424.87 | F69: 2481768.16 | G69: 1327820.62 | H69: 0 | I69: 89309.53 | J69: 40301675.62
A70: C060 | B70: 032DIV | C70: 0 | D70: 0 | E70: 0 | F70: 0 | G70: 0 | H70: 0 | I70: 0 | J70: 0
A71: C060 | B71: 033DIV | C71: 0 | D71: 0 | E71: 0 | F71: 0 | G71: 0 | H71: 0 | I71: 0 | J71: 0
A72: C060 | B72: 034DIV | C72: 0 | D72: 0 | E72: 0 | F72: 0 | G72: 0 | H72: 0 | I72: 0 | J72: 0
A73: C060 | B73: 035DIV | C73: 0 | D73: 0 | E73: 0 | F73: 0 | G73: 0 | H73: 0 | I73: 0 | J73: 0
A74: C060 | B74: 036DIV | C74: 0 | D74: 0 | E74: 0 | F74: 0 | G74: 0 | H74: 0 | I74: 0 | J74: 0
A75: C060 | B75: 079DIV | C75: 0 | D75: 0 | E75: 0 | F75: 0 | G75: 0 | H75: 0 | I75: 0 | J75: 0
A76: C060 | B76: 080DIV | C76: 0 | D76: 0 | E76: 0 | F76: 0 | G76: 0 | H76: 0 | I76: 0 | J76: 0
A77: C060 | B77: 081DIV | C77: 1388507.25 | D77: 93392 | E77: 67298076.3 | F77: 4526557.14 | G77: 1686623.36 | H77: 0 | I77: 113444.65 | J77: 72142802.2
A78: C060 | B78: 082DIV | C78: 0 | D78: 0 | E78: 0 | F78: 0 | G78: 0 | H78: 0 | I78: 0 | J78: 0
A79: C060 | B79: 083DIV | C79: 0 | D79: 0 | E79: 0 | F79: 0 | G79: 0 | H79: 0 | I79: 0 | J79: 0
A80: C060 | B80: 084DIV | C80: 0 | D80: 0 | E80: 0 | F80: 0 | G80: 0 | H80: 0 | I80: 0 | J80: 0
A81: C060 | B81: 085DIV | C81: 0 | D81: 0 | E81: 0 | F81: 0 | G81: 0 | H81: 0 | I81: 0 | J81: 0
A82: C060 | B82: 086DIV | C82: 0 | D82: 0 | E82: 0 | F82: 0 | G82: 0 | H82: 0 | I82: 0 | J82: 0
A83: C060 | B83: 028DIV | C83: 0 | D83: 0 | E83: 0 | F83: 0 | G83: 0 | H83: 0 | I83: 0 | J83: 0
A84: C060 | B84: 029DIV | C84: 0 | D84: 0 | E84: 0 | F84: 0 | G84: 0 | H84: 0 | I84: 0 | J84: 0
A85: C060 | B85: 071DIV | C85: 0 | D85: 0 | E85: 350391.31 | F85: 23568.39 | G85: 0 | H85: 0 | I85: 0 | J85: 373959.7
C86: =SUM(C65:C85) -> 1764665.44 | D86: 5474618.55 | E86: 108079789.8 | F86: 7187666.8 | G86: 3181112.95 | H86: 0 | I86: 212607.48 | J86: 111421893.1
A87: C060 | B87: 060COM | C87: 1764665.44 | D87: 5474618.55 | E87: 108079789.8 | F87: 7187666.8 | G87: 3181112.95 | H87: 0 | I87: 212607.48 | J87: 111421893.1
C88: =C86-C87 -> 0 | D88: 0 | E88: 0 | F88: 0 | G88: 0 | H88: 0 | I88: 0 | J88: 0
A91: C070 | B91: 170DIV | C91: 6830608.26 | D91: 4404338.91 | E91: 121485524.9 | F91: 1876822.31 | G91: 6447077.76 | H91: 0 | I91: 431919.07 | J91: 119006396.9
A92: C070 | B92: 171DIV | C92: 0.31 | D92: -0.11 | E92: 695200.6 | F92: 46759.53 | G92: 0 | H92: 0 | I92: 0 | J92: 741959.93
A93: C070 | B93: 172DIV | C93: 0 | D93: 0 | E93: 0 | F93: 0 | G93: 0 | H93: 0 | I93: 0 | J93: 0
C94: =SUM(C91:C93) -> 6830608.57 | D94: 4404338.8 | E94: 122180725.5 | F94: 1923581.84 | G94: 6447077.76 | H94: 0 | I94: 431919.07 | J94: 119748356.8
A95: C070 | B95: 070COM | C95: 6830608.57 | D95: 4404338.8 | E95: 122180725.5 | F95: 1923581.84 | G95: 6447077.76 | H95: 0 | I95: 431919.07 | J95: 119748356.8
C96: =C94-C95 -> 0 | D96: 0 | E96: 0 | F96: 0 | G96: 0 | H96: 0 | I96: 0 | J96: 0
A98: C080 | B98: 190DIV | C98: -68936216.37 | D98: -3976989.54 | E98: 770070123 | F98: 50833751.01 | G98: 57392821.89 | H98: 0 | I98: 3860315.98 | J98: 955070217.8
A99: C180 | B99: 700DIV | C99: -34337361.56 | D99: -2309575.95 | E99: 476611878.9 | F99: 31583704.07 | G99: 11372414.67 | H99: 0 | I99: 764924.35 | J99: 556979859.5
A100: C210 | B100: 830DIV | C100: 747 | D100: 0 | E100: 0 | F100: 0 | G100: 275964.96 | H100: 0 | I100: 18511.6 | J100: 293729.56
A101: C982 | B101: 982DIV | C101: 0 | D101: 0 | E101: 0 | F101: 0 | G101: 0 | H101: 0 | I101: 0 | J101: 0
A102: C989 | B102: 989DIV | C102: 0 | D102: 0 | E102: 0 | F102: 0 | G102: 0 | H102: 0 | I102: 0 | J102: 0
A103: C990 | B103: 990DIV | C103: 0 | D103: 0 | E103: 0 | F103: 0 | G103: 0 | H103: 0 | I103: 0 | J103: 0
B104: Total Utility | C104: =SUM(C98:C103,C94,C86,C61,C41,C16,C7) -> 487634196.1 | D104: 30104819.45 | E104: 2027137010 | F104: 118753854.1 | G104: 83399026.75 | H104: 0 | I104: 5597072.22 | J104: 1717147947
C105: =C104-C103-C102-C101-C100-C99-C98-C94-C86-C61-C41-C16-C7 -> 0 | D105: 0 | E105: -6.705522537e-07 | F105: -9.778887033e-09 | G105: 0 | H105: 0 | I105: 1.396983862e-09 | J105: 0
A107: C212 | B107: Service Area | C107: 0 | D107: 0 | E107: 0 | F107: 0 | G107: 0 | H107: 0 | I107: 0 | J107: 0
A108: C220 | B108: Service Area | C108: 0 | D108: 0 | E108: -2954720 | F108: -192254 | G108: 7009.72 | H108: 0 | I108: -7009.72 | J108: -3146974
A109: C221 | B109: Service Area | C109: 25263.28 | D109: 4729.84 | E109: 0 | F109: 0 | G109: 0 | H109: 0 | I109: 0 | J109: -29993.12
A110: C231 | B110: Service Area | C110: 86129.44 | D110: 16125.73 | E110: -2217335.76 | F110: -415149.29 | G110: 0 | H110: 0 | I110: 0 | J110: -2734740.22
A111: C232 | B111: Service Area | C111: 0 | D111: 0 | E111: 717772.58 | F111: 32078.98 | G111: 0 | H111: 0 | I111: 0 | J111: 749851.56
A112: C233 | B112: Service Area | C112: 0 | D112: 0 | E112: 1503582.08 | F112: 357881.32 | G112: 0 | H112: 0 | I112: 0 | J112: 1861463.4
A113: C234 | B113: Service Area | C113: -3842.49 | D113: -1074.96 | E113: 1174068.36 | F113: 328524.35 | G113: 0 | H113: 0 | I113: 0 | J113: 1507510.16
A114: C236 | B114: Service Area | C114: 1186163.5 | D114: 222084.5 | E114: -891363.38 | F114: -166888.9 | G114: 0 | H114: 0 | I114: 0 | J114: -2466500.28
A115: C237 | B115: Service Area | C115: 0 | D115: 0 | E115: 0 | F115: 0 | G115: 0 | H115: 0 | I115: 0 | J115: 0
A116: C240 | B116: Service Area | C116: 0 | D116: 0 | E116: 0 | F116: 0 | G116: 0 | H116: 0 | I116: 0 | J116: 0
A117: C301 | B117: Service Area | C117: 0.49 | D117: -0.08 | E117: 0 | F117: 0 | G117: 0 | H117: 0 | I117: 0 | J117: -0.41
A118: C302 | B118: Service Area | C118: 0 | D118: 0 | E118: 0 | F118: 0 | G118: 0 | H118: 0 | I118: 0 | J118: 0
A119: C303 | B119: Service Area | C119: -3440373.14 | D119: -962673.31 | E119: 1627199.52 | F119: 453425.26 | G119: 642677.87 | H119: 0 | I119: 180930.91 | J119: 7307280.01
A120: C306 | B120: Service Area | C120: 0 | D120: 0 | E120: -149156 | F120: -20643 | G120: 0 | H120: 0 | I120: 0 | J120: -169799
A121: C312 | B121: Service Area | C121: -193269.15 | D121: 567283.13 | E121: 16539 | F121: 8268270.25 | G121: -192421.51 | H121: 0 | I121: -38114.93 | J121: 7680258.83
A122: C321 | B122: Service Area | C122: 0 | D122: 0 | E122: 0 | F122: 0 | G122: 0 | H122: 0 | I122: 0 | J122: 0
A123: C981 | B123: Service Area | C123: 0 | D123: 0 | E123: 0 | F123: 0 | G123: -0.29 | H123: 0 | I123: -0.33 | J123: -0.62
A124: C983 | B124: Service Area | C124: 0 | D124: 0 | E124: 0 | F124: 0 | G124: 0 | H124: 0 | I124: 0 | J124: 0
A125: C984 | B125: Service Area | C125: 0 | D125: 0 | E125: 0 | F125: 0 | G125: 0 | H125: 0 | I125: 0 | J125: 0
A126: C993 | B126: Service Area | C126: 0 | D126: 0 | E126: 0 | F126: 0 | G126: 45245.37 | H126: 0 | I126: 8476.5 | J126: 53721.87
A127: C987 | B127: Service Area | C127: 51098 | D127: 0 | E127: 0 | F127: 0 | G127: -61186.03 | H127: 0 | I127: 112288.03 | J127: 4
C128: =SUM(C107:C127) -> -2288830.07 | D128: -153525.15 | E128: -1173413.6 | F128: 8645244.97 | G128: 441325.13 | H128: 0 | I128: 256570.46 | J128: 10612082.18
A130: AEC | B130: Service Area | C130: 485345366 | D130: 29951294.3 | E130: 2025963596 | F130: 127399099.1 | G130: 83840351.88 | H130: 0 | I130: 5853642.68 | J130: 1727760029
C131: =C130-SUM(C107:C127,C91:C93,C98:C103,C65:C85,C45:C60,C20:C40,C11:C15,C4:C6) -> 0 | D131: 0 | E131: 0 | F131: 0 | G131: 0 | H131: 0 | I131: 0 | J131: 0
A137: KANSDV | B137: KANSDV | C137: =C77 -> 1388507.25 | D137: 93392 | E137: 67298076.3 | F137: 4526557.14 | G137: 1686623.36 | H137: 0 | I137: 113444.65 | J137: 72142802.2
A138: COLODV | B138: COLODV | C138: =C69 -> 463473.9 | D138: 31173.66 | E138: 36897424.87 | F138: 2481768.16 | G138: 1327820.62 | H138: 0 | I138: 89309.53 | J138: 40301675.62

Sheet 12-2016 (hidden)
A1: 2016-12-31
B2: SSU | C2: 20 | D2: 30 | E2: 50 | F2: 60 | G2: 70 | H2: 80 | I2: 180 | J2: 210
A3: Adj Code | B3: 002DIV | C3: 107DIV | D3: 010DIV | E3: 091DIV | F3: 030DIV | G3: 170DIV | H3: 190DIV | I3: 700DIV | J3: 830DIV | K3: Total Utility
A4: ONT02 | K4: =SUM(B4:I4) -> 0
A5: ONT32 | B5: 0 | C5: -450 | D5: -628 | E5: -1 | F5: 23132 | G5: 0 | H5: -1367 | I5: 75002 | K5: =SUM(B5:I5) -> 95688
A6: ONT68 | B6: 0 | C6: 0 | D6: 17215 | E6: 39496 | F6: 0 | G6: 0 | H6: 20718 | I6: 2995 | K6: 80424
A7: ONT69 | B7: 0 | C7: 0 | D7: -429616 | E7: 0 | F7: 0 | G7: 0 | H7: -1993337 | I7: 0 | K7: -2422953
A8: ONT70 | B8: 0 | C8: -809241 | D8: 0 | E8: 0 | F8: 0 | G8: 0 | H8: 0 | I8: 0 | K8: -809241
A9: GCA01 | B9: 0 | C9: -1228846 | D9: -1522715 | E9: -2944487 | F9: -2813520 | G9: -1919176 | H9: -11154915 | I9: 0 | K9: -21583659
A10: GCA03 | B10: 0 | C10: 130617 | D10: -208399 | E10: 754729 | F10: 479729 | G10: 279517 | H10: 240949 | I10: 0 | K10: 1677142
A11: ONT52 | B11: 0 | C11: -15100 | D11: 148508 | E11: -16568 | F11: 607156 | G11: -13500 | H11: -1765627 | I11: 0 | K11: -1055131
A12: ACC02 | K12: 0
A13: OTH | B13: 0 | C13: 106720 | D13: 94327 | E13: 119802 | F13: 78491 | G13: 82392 | H13: 463027 | I13: 202768 | K13: 1147527
A14: PRB01 | K14: 0
A15: PEN01 | K15: 0
A16: ONT04 | K16: 0
A17: ONT49 | B17: 0 | C17: 0 | D17: 0 | E17: 0 | F17: 0 | G17: 0 | H17: -2314494 | I17: -833822 | K17: -3148316
A18: ONT13 | K18: 0
A19: FXA02c | K19: 0
A20: FXA04 | K20: 0 | L20: fxa04
A21: FXA01c | K21: 0 | L21: fxa07
A22: FXA01c | K22: 0 | L22: fxa10
A23: FXA01c | K23: 0 | L23: fxa44
A24: FXA01c | K24: 0 | L24: fxa06
A25: FXA01c | K25: 0 | L25: fxa46
A26: FXA46 | K26: 0 | Q26: NOL Recon:
A27: NBP03 | K27: 0 | Q27: Current provision NOL (excl restricted stock) | U27: 24918952.35
A28: ONT50 | K28: 0 | Q28: Non Reg contribution to NOL | U28: =-U32*0.35 -> -7798104.65 | V28: since non reg has no deferreds, shouldn't this just be their current fed?
A29: NOL | K29: 0 | Q29: Utility NOL Q1 activity | U29: =U27-U28 -> 32717057 | W29: It is their YTD PTBI
Q30: Stock Vesting Q1 Activity | U30: 2656723
A31: Combined Amounts:
A32: FXA01 | B32: -547995 | C32: -1961496 | D32: -1970008 | E32: -4963620 | F32: -1110477 | G32: -2484727 | H32: -16885792 | I32: -6609693 | K32: -36533808 | L32: includes FXA04, FXA07, FXA10, FXA44, FXA06 | U32: 22280299
A33: FXA02 | B33: =-1368174 -> -1368174 | C33: -2591571 | D33: -1662956 | E33: -2786063 | F33: -765194 | G33: -2280081 | H33: -7725065 | I33: -13085253 | K33: -32264357
A34: TAX02U | B34: =U29+U30 -> 35373780 | K34: 35373780 | U34: 22727227
A35: TAX02NR | B35: =U28 -> -7798104.65 | K35: -7798104.65
A36: TAX02OT | K36: 0 | L36: restricted stock vesting (1900.28201) | U36: =U32-U34 -> -446928
B37: =B3 -> 002DIV | C37: 107DIV | D37: 010DIV | E37: 091DIV | F37: 030DIV | G37: 170DIV | H37: 190DIV | I37: 700DIV | J37: 830DIV | K37: Total Utility
A38: Total | B38: =SUM(B4:B36) -> 25659506.35 | C38: -6369367 | D38: -5534272 | E38: -9796712 | F38: -3500683 | G38: -6335575 | H38: -41115903 | I38: -20248003 | J38: 0 | K38: =SUM(K4:K36) -> -67241008.65
J40: check to quarterly provision | K40: 69897734.11
J42: difference | K42: =K38+K40 -> 2656725.461 | L42: restricted stock vesting (1900.28201)
K44: 2656725
K46: =K44-K42 -> -0.4607429057

Sheet 12-31-16 SV (hidden)
L1: YTD Dec | M1: Cost Center | N1: Ending Balance | O1: CY Actual | P1: Type | R1: Type
C3: A1900-28201 | D3: A1900-28206 | E3: A2820-28201 | F3: A2820-28206 | G3: A2830-28201 | H3: A2830-28204 | I3: A2830-28206 | J3: Deferred Income Taxes
A4: C010 | B4: 002DIV | C4: 569144467.9 | D4: 5863388.53 | E4: -2299755.57 | F4: 1476557.19 | G4: -17050406.06 | H4: 0 | I4: -1150467.62 | J4: -594031928.5
A5: C010 | B5: 012DIV | C5: -0.28 | D5: -0.13 | E5: 26157546.93 | F5: 1759390.42 | G5: 538554 | H5: 0 | I5: 36225 | J5: 28491716.76
A6: C010 | B6: 042DIV | C6: 0 | D6: 0 | E6: 0 | F6: 0 | G6: 0 | H6: 0 | I6: 0 | J6: 0
C7: =SUM(C4:C6) -> 569144467.6 | D7: 5863388.4 | E7: 23857791.36 | F7: 3235947.61 | G7: -16511852.06 | H7: 0 | I7: -1114242.62 | J7: -565540211.7
A8: C010 | B8: 010COM | C8: 569144467.6 | D8: 5863388.4 | E8: 23857791.36 | F8: 3235947.61 | G8: -16511852.06 | H8: 0 | I8: -1114242.62 | J8: -565540211.7
C9: =C7-C8 -> 0 | D9: 0 | E9: 0 | F9: 0 | G9: 0 | H9: 0 | I9: 0 | J9: 0
A11: C020 | B11: 007DIV | C11: 610027.04 | D11: 41031.45 | E11: 54084949.35 | F11: 3637823.9 | G11: 3984109.03 | H11: 0 | I11: 267978.01 | J11: 61323801.8
A12: C020 | B12: 077DIV | C12: -821694.78 | D12: -55268.19 | E12: 104732903.8 | F12: 7044471.95 | G12: 3267211.43 | H12: 0 | I12: 219758.48 | J12: 116141308.6
A13: C020 | B13: 023DIV | C13: 0 | D13: 0 | E13: 0 | F13: 0 | G13: 0 | H13: 0 | I13: 0 | J13: 0
A14: C020 | B14: 047DIV | C14: 0 | D14: 0 | E14: 0 | F14: 0 | G14: 0 | H14: 0 | I14: 0 | J14: 0
A15: C020 | B15: 107DIV | C15: -4348258.36 | D15: 13739626.16 | E15: 6263984.19 | F15: 272272.42 | G15: 159965.71 | H15: 0 | I15: 7876.49 | J15: -2687268.99
C16: =SUM(C11:C15) -> -4559926.1 | D16: 13725389.42 | E16: 165081837.3 | F16: 10954568.27 | G16: 7411286.17 | H16: 0 | I16: 495612.98 | J16: 174777841.4
A17: C020 | B17: 020COM | C17: -4559926.1 | D17: 13725389.42 | E17: 165081837.3 | F17: 10954568.27 | G17: 7411286.17 | H17: 0 | I17: 495612.98 | J17: 174777841.4
C18: =C16-C17 -> 0 | D18: 0 | E18: 0 | F18: 0 | G18: 0 | H18: 0 | I18: 0 | J18: 0
A20: C030 | B20: 004DIV | C20: 6347.52 | D20: 426.51 | E20: 130897.75 | F20: 8802.56 | G20: 1102.35 | H20: 0 | I20: 74.46 | J20: 134103.09
A21: C030 | B21: 008DIV | C21: 18676.01 | D21: 1255.06 | E21: -43714.27 | F21: -2940.76 | G21: -0.15 | H21: 0 | I21: -0.16 | J21: -66586.41
A22: C030 | B22: 019DIV | C22: 1796.76 | D22: 119.57 | E22: 8709176.77 | F22: 585788.88 | G22: 0.1 | H22: 0 | I22: -0.35 | J22: 9293049.07
A23: C030 | B23: 003DIV | C23: 377427.25 | D23: 25387.31 | E23: 28704786.91 | F23: 1930721.6 | G23: 452599.25 | H23: 0 | I23: 30442.19 | J23: 30715735.39
A24: C030 | B24: 013DIV | C24: 41211.79 | D24: 2770.51 | E24: 1785812.34 | F24: 120116.33 | G24: -10493.04 | H24: 0 | I24: -704.76 | J24: 1850748.57
A25: C030 | B25: 001DIV | C25: 0 | D25: 0 | E25: 0 | F25: 0 | G25: 0 | H25: 0 | I25: 0 | J25: 0
A26: C030 | B26: 011DIV | C26: 0 | D26: 0 | E26: 0 | F26: 0 | G26: 0 | H26: 0 | I26: 0 | J26: 0
A27: C030 | B27: 010DIV | C27: 11360895.68 | D27: 764146.61 | E27: 5249941.44 | F27: 223617.75 | G27: 1511184.01 | H27: 0 | I27: 101645.38 | J27: -5038653.71
A28: C030 | B28: 022DIV | C28: 0 | D28: 0 | E28: 0 | F28: 0 | G28: 0 | H28: 0 | I28: 0 | J28: 0
A29: C030 | B29: 040DIV | C29: 0 | D29: 0 | E29: 816740.46 | F29: 54926.99 | G29: 0 | H29: 0 | I29: 0 | J29: 871667.45
A30: C030 | B30: 006DIV | C30: 18692.32 | D30: 1256.89 | E30: 1173970.16 | F30: 78961.85 | G30: 23555.52 | H30: 0 | I30: 1585.51 | J30: 1258123.83
A31: C030 | B31: 017DIV | C31: 0 | D31: 0 | E31: -1506.49 | F31: -101.87 | G31: 0 | H31: 0 | I31: 0 | J31: -1608.36
A32: C030 | B32: 018DIV | C32: 1064.54 | D32: 71.64 | E32: 2502.55 | F32: 167.7 | G32: 37.52 | H32: 0 | I32: 3.07 | J32: 1574.66
A33: C030 | B33: 979DIV | C33: 0 | D33: 0 | E33: 0 | F33: 0 | G33: 0 | H33: 0 | I33: 0 | J33: 0
A34: C030 | B34: 980DIV | C34: 0 | D34: 0 | E34: 0 | F34: 0 | G34: 0 | H34: 0 | I34: 0 | J34: 0
A35: C030 | B35: 016DIV | C35: 339404.47 | D35: 22830.87 | E35: 30711086.07 | F35: 2065668.08 | G35: 116146.8 | H35: 0 | I35: 7811.83 | J35: 32538477.44
A36: C030 | B36: 020DIV | C36: 30670.27 | D36: 2062.57 | E36: 2019999.14 | F36: 135867.6 | G36: 4208.25 | H36: 0 | I36: 283.31 | J36: 2127625.46
A37: C030 | B37: 014DIV | C37: 0 | D37: 0 | E37: 0 | F37: 0 | G37: 0 | H37: 0 | I37: 0 | J37: 0
A38: C030 | B38: 015DIV | C38: 0 | D38: 0 | E38: 0 | F38: 0 | G38: 0 | H38: 0 | I38: 0 | J38: 0
A39: C030 | B39: 005DIV | C39: 773296.04 | D39: 52013.07 | E39: 66965889.63 | F39: 4504211.09 | G39: 2813940.89 | H39: 0 | I39: 189269.78 | J39: 73648002.28
A40: C030 | B40: 021DIV | C40: 157182.7 | D40: 10572.05 | E40: 11295812.28 | F40: 759769.69 | G40: 221762.5 | H40: 0 | I40: 14915.88 | J40: 12124505.6
C41: =SUM(C20:C40) -> 13126665.35 | D41: 882912.66 | E41: 157521394.7 | F41: 10465577.49 | G41: 5134044 | H41: 0 | I41: 345326.14 | J41: 159456764.4
A42: C030 | B42: 030COM | C42: 13126665.35 | D42: 882912.66 | E42: 157521394.7 | F42: 10465577.49 | G42: 5134044 | H42: 0 | I42: 345326.14 | J42: 159456764.4
C43: =C41-C42 -> 0 | D43: 0 | E43: 0 | F43: 0 | G43: 0 | H43: 0 | I43: 0 | J43: 0
A45: C050 | B45: 009DIV | C45: -32517.6 | D45: 2552015.42 | E45: 92388928.06 | F45: 6214197.76 | G45: 780542.41 | H45: 0 | I45: 51093.79 | J45: 96915264.2
A46: C050 | B46: 093DIV | C46: -818199.6 | D46: 3037464.84 | E46: 79605045.22 | F46: 5354339.8 | G46: 2496006.62 | H46: 0 | I46: 166495.53 | J46: 85402621.93
A47: C050 | B47: 096DIV | C47: 88499.58 | D47: 90548.77 | E47: 17474940.7 | F47: 1175387.86 | G47: 1689805.06 | H47: 0 | I47: 113658.39 | J47: 20274743.66
A48: C050 | B48: 049DIV | C48: 0 | D48: 0 | E48: 0 | F48: 0 | G48: 0 | H48: 0 | I48: 0 | J48: 0
A49: C050 | B49: 088DIV | C49: 0 | D49: 0 | E49: 0 | F49: 0 | G49: 0 | H49: 0 | I49: 0 | J49: 0
A50: C050 | B50: 089DIV | C50: 0 | D50: 0 | E50: 0 | F50: 0 | G50: 0 | H50: 0 | I50: 0 | J50: 0
A51: C050 | B51: 090DIV | C51: 0 | D51: 0 | E51: 0 | F51: 0 | G51: 0 | H51: 0 | I51: 0 | J51: 0
A52: C050 | B52: 091DIV | C52: 5362764.11 | D52: 360708.03 | E52: 14184926.47 | F52: -10180223.26 | G52: 1549454.22 | H52: 0 | I52: 104217.93 | J52: -65096.78
A53: C050 | B53: 092DIV | C53: 0 | D53: 0 | E53: 0 | F53: 0 | G53: 0 | H53: 0 | I53: 0 | J53: 0
A54: C050 | B54: 094DIV | C54: 0 | D54: 0 | E54: 0 | F54: 0 | G54: 0 | H54: 0 | I54: 0 | J54: 0
A55: C050 | B55: 095DIV | C55: 0.03 | D55: 0.07 | E55: 79629.09 | F55: 5354.53 | G55: 0 | H55: 0 | I55: 0 | J55: 84983.52
A56: C050 | B56: 098DIV | C56: 0 | D56: 0 | E56: -0.33 | F56: 0.35 | G56: 0 | H56: 0 | I56: 0 | J56: 0.02
A57: C050 | B57: 099DIV | C57: 0 | D57: 0 | E57: 0 | F57: 0 | G57: 0 | H57: 0 | I57: 0 | J57: 0
A58: C050 | B58: 070DIV | C58: 0 | D58: 0 | E58: 0 | F58: 0 | G58: 0 | H58: 0 | I58: 0 | J58: 0
A59: C050 | B59: 072DIV | C59: -0.34 | D59: -0.02 | E59: -0.34 | F59: -0.02 | G59: 0 | H59: 0 | I59: 0 | J59: 0
A60: C050 | B60: 097DIV | C60: 0 | D60: 0 | E60: 0 | F60: 0 | G60: 0 | H60: 0 | I60: 0 | J60: 0
C61: =SUM(C45:C60) -> 4600546.18 | D61: 6040737.11 | E61: 203733468.9 | F61: 2569057.02 | G61: 6515808.31 | H61: 0 | I61: 435465.64 | J61: 202612516.6
A62: C050 | B62: 050COM | C62: 4600546.18 | D62: 6040737.11 | E62: 203733468.9 | F62: 2569057.02 | G62: 6515808.31 | H62: 0 | I62: 435465.64 | J62: 202612516.6
C63: =C61-C62 -> 0 | D63: 0 | E63: 0 | F63: 0 | G63: 0 | H63: 0 | I63: 0 | J63: 0
A65: C060 | B65: 024DIV | C65: 0 | D65: 0 | E65: 0 | F65: 0 | G65: 0 | H65: 0 | I65: 0 | J65: 0
A66: C060 | B66: 030DIV | C66: -87315.71 | D66: 5350052.89 | E66: 3533897.37 | F66: 155773.11 | G66: 166668.97 | H66: 0 | I66: 9853.3 | J66: -1396544.43
A67: C060 | B67: 039DIV | C67: 0 | D67: 0 | E67: 0 | F67: 0 | G67: 0 | H67: 0 | I67: 0 | J67: 0
A68: C060 | B68: 087DIV | C68: 0 | D68: 0 | E68: 0 | F68: 0 | G68: 0 | H68: 0 | I68: 0 | J68: 0
A69: C060 | B69: 031DIV | C69: 463473.9 | D69: 31173.66 | E69: 36897424.87 | F69: 2481768.16 | G69: 1327820.62 | H69: 0 | I69: 89309.53 | J69: 40301675.62
A70: C060 | B70: 032DIV | C70: 0 | D70: 0 | E70: 0 | F70: 0 | G70: 0 | H70: 0 | I70: 0 | J70: 0
A71: C060 | B71: 033DIV | C71: 0 | D71: 0 | E71: 0 | F71: 0 | G71: 0 | H71: 0 | I71: 0 | J71: 0
A72: C060 | B72: 034DIV | C72: 0 | D72: 0 | E72: 0 | F72: 0 | G72: 0 | H72: 0 | I72: 0 | J72: 0
A73: C060 | B73: 035DIV | C73: 0 | D73: 0 | E73: 0 | F73: 0 | G73: 0 | H73: 0 | I73: 0 | J73: 0
A74: C060 | B74: 036DIV | C74: 0 | D74: 0 | E74: 0 | F74: 0 | G74: 0 | H74: 0 | I74: 0 | J74: 0
A75: C060 | B75: 079DIV | C75: 0 | D75: 0 | E75: 0 | F75: 0 | G75: 0 | H75: 0 | I75: 0 | J75: 0
A76: C060 | B76: 080DIV | C76: 0 | D76: 0 | E76: 0 | F76: 0 | G76: 0 | H76: 0 | I76: 0 | J76: 0
A77: C060 | B77: 081DIV | C77: 1388507.25 | D77: 93392 | E77: 67298076.3 | F77: 4526557.14 | G77: 1686623.36 | H77: 0 | I77: 113444.65 | J77: 72142802.2
A78: C060 | B78: 082DIV | C78: 0 | D78: 0 | E78: 0 | F78: 0 | G78: 0 | H78: 0 | I78: 0 | J78: 0
A79: C060 | B79: 083DIV | C79: 0 | D79: 0 | E79: 0 | F79: 0 | G79: 0 | H79: 0 | I79: 0 | J79: 0
A80: C060 | B80: 084DIV | C80: 0 | D80: 0 | E80: 0 | F80: 0 | G80: 0 | H80: 0 | I80: 0 | J80: 0
A81: C060 | B81: 085DIV | C81: 0 | D81: 0 | E81: 0 | F81: 0 | G81: 0 | H81: 0 | I81: 0 | J81: 0
A82: C060 | B82: 086DIV | C82: 0 | D82: 0 | E82: 0 | F82: 0 | G82: 0 | H82: 0 | I82: 0 | J82: 0
A83: C060 | B83: 028DIV | C83: 0 | D83: 0 | E83: 0 | F83: 0 | G83: 0 | H83: 0 | I83: 0 | J83: 0
A84: C060 | B84: 029DIV | C84: 0 | D84: 0 | E84: 0 | F84: 0 | G84: 0 | H84: 0 | I84: 0 | J84: 0
A85: C060 | B85: 071DIV | C85: 0 | D85: 0 | E85: 350391.31 | F85: 23568.39 | G85: 0 | H85: 0 | I85: 0 | J85: 373959.7
C86: =SUM(C65:C85) -> 1764665.44 | D86: 5474618.55 | E86: 108079789.8 | F86: 7187666.8 | G86: 3181112.95 | H86: 0 | I86: 212607.48 | J86: 111421893.1
A87: C060 | B87: 060COM | C87: 1764665.44 | D87: 5474618.55 | E87: 108079789.8 | F87: 7187666.8 | G87: 3181112.95 | H87: 0 | I87: 212607.48 | J87: 111421893.1
C88: =C86-C87 -> 0 | D88: 0 | E88: 0 | F88: 0 | G88: 0 | H88: 0 | I88: 0 | J88: 0
A91: C070 | B91: 170DIV | C91: 6830608.26 | D91: 4404338.91 | E91: 121485524.9 | F91: 1876822.31 | G91: 6447077.76 | H91: 0 | I91: 431919.07 | J91: 119006396.9
A92: C070 | B92: 171DIV | C92: 0.31 | D92: -0.11 | E92: 695200.6 | F92: 46759.53 | G92: 0 | H92: 0 | I92: 0 | J92: 741959.93
A93: C070 | B93: 172DIV | C93: 0 | D93: 0 | E93: 0 | F93: 0 | G93: 0 | H93: 0 | I93: 0 | J93: 0
C94: =SUM(C91:C93) -> 6830608.57 | D94: 4404338.8 | E94: 122180725.5 | F94: 1923581.84 | G94: 6447077.76 | H94: 0 | I94: 431919.07 | J94: 119748356.8
A95: C070 | B95: 070COM | C95: 6830608.57 | D95: 4404338.8 | E95: 122180725.5 | F95: 1923581.84 | G95: 6447077.76 | H95: 0 | I95: 431919.07 | J95: 119748356.8
C96: =C94-C95 -> 0 | D96: 0 | E96: 0 | F96: 0 | G96: 0 | H96: 0 | I96: 0 | J96: 0
A98: C080 | B98: 190DIV | C98: -68936216.37 | D98: -3976989.54 | E98: 770070123 | F98: 50833751.01 | G98: 57392821.89 | H98: 0 | I98: 3860315.98 | J98: 955070217.8
A99: C180 | B99: 700DIV | C99: -34337361.56 | D99: -2309575.95 | E99: 476611878.9 | F99: 31583704.07 | G99: 11372414.67 | H99: 0 | I99: 764924.35 | J99: 556979859.5
A100: C210 | B100: 830DIV | C100: 747 | D100: 0 | E100: 0 | F100: 0 | G100: 275964.96 | H100: 0 | I100: 18511.6 | J100: 293729.56
A101: C982 | B101: 982DIV | C101: 0 | D101: 0 | E101: 0 | F101: 0 | G101: 0 | H101: 0 | I101: 0 | J101: 0
A102: C989 | B102: 989DIV | C102: 0 | D102: 0 | E102: 0 | F102: 0 | G102: 0 | H102: 0 | I102: 0 | J102: 0
A103: C990 | B103: 990DIV | C103: 0 | D103: 0 | E103: 0 | F103: 0 | G103: 0 | H103: 0 | I103: 0 | J103: 0
B104: Total Utility | C104: =SUM(C98:C103,C94,C86,C61,C41,C16,C7) -> 487634196.1 | D104: 30104819.45 | E104: 2027137010 | F104: 118753854.1 | G104: 81218678.65 | H104: 0 | I104: 5450440.62 | J104: 1714820967
C105: =C104-C103-C102-C101-C100-C99-C98-C94-C86-C61-C41-C16-C7 -> 0 | D105: 0 | E105: -6.705522537e-07 | F105: -9.778887033e-09 | G105: 0 | H105: 0 | I105: 0 | J105: 0
A107: C212 | B107: Service Area | C107: 555771.45 | D107: 104054.55 | E107: 6684876.27 | F107: 890647.72 | G107: 1172253.69 | H107: 0 | I107: 227570.57 | J107: 8315522.25
A108: C220 | B108: Service Area | C108: 0 | D108: 0 | E108: -2954720 | F108: -192254 | G108: 7009.72 | H108: 0 | I108: -7009.72 | J108: -3146974
A109: C221 | B109: Service Area | C109: 25263.28 | D109: 4729.84 | E109: 0 | F109: 0 | G109: 0 | H109: 0 | I109: 0 | J109: -29993.12
A110: C231 | B110: Service Area | C110: 86129.44 | D110: 16125.73 | E110: -2217335.76 | F110: -415149.29 | G110: 0 | H110: 0 | I110: 0 | J110: -2734740.22
A111: C232 | B111: Service Area | C111: 0 | D111: 0 | E111: 717772.58 | F111: 32078.98 | G111: 0 | H111: 0 | I111: 0 | J111: 749851.56
A112: C233 | B112: Service Area | C112: 0 | D112: 0 | E112: 1503582.08 | F112: 357881.32 | G112: 0 | H112: 0 | I112: 0 | J112: 1861463.4
A113: C234 | B113: Service Area | C113: -3842.49 | D113: -1074.96 | E113: 1174068.36 | F113: 328524.35 | G113: 0 | H113: 0 | I113: 0 | J113: 1507510.16
A114: C236 | B114: Service Area | C114: 1186163.5 | D114: 222084.5 | E114: -891363.38 | F114: -166888.9 | G114: 0 | H114: 0 | I114: 0 | J114: -2466500.28
A115: C237 | B115: Service Area | C115: 0 | D115: 0 | E115: 0 | F115: 0 | G115: 0 | H115: 0 | I115: 0 | J115: 0
A116: C240 | B116: Service Area | C116: 0 | D116: 0 | E116: 0 | F116: 0 | G116: 0 | H116: 0 | I116: 0 | J116: 0
A117: C301 | B117: Service Area | C117: 0.49 | D117: -0.08 | E117: 0 | F117: 0 | G117: 0 | H117: 0 | I117: 0 | J117: -0.41
A118: C302 | B118: Service Area | C118: 0 | D118: 0 | E118: 0 | F118: 0 | G118: 0 | H118: 0 | I118: 0 | J118: 0
A119: C303 | B119: Service Area | C119: -3440373.14 | D119: -962673.31 | E119: 1627199.52 | F119: 453425.26 | G119: 442504.94 | H119: 0 | I119: 123852.82 | J119: 7050028.99
A120: C306 | B120: Service Area | C120: 0 | D120: 0 | E120: -149156 | F120: -20643 | G120: 0 | H120: 0 | I120: 0 | J120: -169799
A121: C312 | B121: Service Area | C121: -193269.15 | D121: 567283.13 | E121: 16539 | F121: -47252 | G121: 13842 | H121: 0 | I121: 1603 | J121: -389281.98
A122: C321 | B122: Service Area | C122: 0 | D122: 0 | E122: 0 | F122: 0 | G122: 0 | H122: 0 | I122: 0 | J122: 0
A123: C981 | B123: Service Area | C123: 0 | D123: 0 | E123: 0 | F123: 0 | G123: -0.29 | H123: 0 | I123: -0.33 | J123: -0.62
A124: C983 | B124: Service Area | C124: 0 | D124: 0 | E124: 0 | F124: 0 | G124: 0 | H124: 0 | I124: 0 | J124: 0
A125: C984 | B125: Service Area | C125: 0 | D125: 0 | E125: 0 | F125: 0 | G125: 0 | H125: 0 | I125: 0 | J125: 0
A126: C993 | B126: Service Area | C126: 0 | D126: 0 | E126: 0 | F126: 0 | G126: 54737.74 | H126: 0 | I126: 10247.71 | J126: 64985.45
A127: C987 | B127: Service Area | C127: 51098 | D127: 0 | E127: 0 | F127: 0 | G127: -61186.03 | H127: 0 | I127: 112288.03 | J127: 4
C128: =SUM(C107:C127) -> -1733058.62 | D128: -49470.6 | E128: 5511462.67 | F128: 1220370.44 | G128: 1629161.77 | H128: 0 | I128: 468552.08 | J128: 10612076.18
A130: AEC | B130: Service Area | C130: 485901137.5 | D130: 30055348.85 | E130: 2032648472 | F130: 119974224.5 | G130: 82847840.42 | H130: 0 | I130: 5918992.7 | J130: 1725433044
C131: =C130-SUM(C107:C127,C91:C93,C98:C103,C65:C85,C45:C60,C20:C40,C11:C15,C4:C6) -> 0 | D131: 0 | E131: 0 | F131: 0 | G131: 0 | H131: 0 | I131: 0 | J131: 0
J132: 1726007924
J133: =J130-J132 -> -574880.61
A139: KANSDV | B139: KANSDV | C139: =C77 -> 1388507.25 | D139: 93392 | E139: 67298076.3 | F139: 4526557.14 | G139: 1686623.36 | H139: 0 | I139: 113444.65 | J139: 72142802.2
A140: COLODV | B140: COLODV | C140: =C69 -> 463473.9 | D140: 31173.66 | E140: 36897424.87 | F140: 2481768.16 | G140: 1327820.62 | H140: 0 | I140: 89309.53 | J140: 40301675.62

Sheet 11-30-16 SV (hidden)
L1: YTD Nov | M1: Cost Center | N1: Ending Balance | O1: CY Actual | P1: USD
A2: YTD November = Q1
C3: A1900-28201 | D3: A1900-28206 | E3: A2820-28201 | F3: A2820-28206 | G3: A2830-28201 | H3: A2830-28204 | I3: A2830-28206 | J3: Deferred Income Taxes
A4: C010 | B4: 002DIV | C4: 566487744.9 | D4: 5863388.53 | E4: 20781773.02 | F4: 1397810.49 | G4: -21861718.4 | H4: 0 | I4: -1474035.41 | J4: -573507303.7
A5: C010 | B5: 012DIV | C5: -0.28 | D5: -0.13 | E5: 26157546.93 | F5: 1759390.42 | G5: 538554 | H5: 0 | I5: 36225 | J5: 28491716.76
A6: C010 | B6: 042DIV | C6: 0 | D6: 0 | E6: 0 | F6: 0 | G6: 0 | H6: 0 | I6: 0 | J6: 0
A7: Total Co 10 | C7: =SUM(C4:C6) -> 566487744.6 | D7: 5863388.4 | E7: 46939319.95 | F7: 3157200.91 | G7: -21323164.4 | H7: 0 | I7: -1437810.41 | J7: -545015586.9
A8: C010 | B8: 010COM | C8: 566487744.6 | D8: 5863388.4 | E8: 46939319.95 | F8: 3157200.91 | G8: -21323164.4 | H8: 0 | I8: -1437810.41 | J8: -545015586.9
B9: difference | C9: =C7-C8 -> 0 | D9: 0 | E9: 0 | F9: 0 | G9: 0 | H9: 0 | I9: 0 | J9: 0
A11: C020 | B11: 007DIV | C11: 610027.04 | D11: 41031.45 | E11: 54084949.35 | F11: 3637823.9 | G11: 3984109.03 | H11: 0 | I11: 267978.01 | J11: 61323801.8
A12: C020 | B12: 077DIV | C12: -821694.78 | D12: -55268.19 | E12: 104732903.8 | F12: 7044471.95 | G12: 3267211.43 | H12: 0 | I12: 219758.48 | J12: 116141308.6
A13: C020 | B13: 023DIV | C13: 0 | D13: 0 | E13: 0 | F13: 0 | G13: 0 | H13: 0 | I13: 0 | J13: 0
A14: C020 | B14: 047DIV | C14: 0 | D14: 0 | E14: 0 | F14: 0 | G14: 0 | H14: 0 | I14: 0 | J14: 0
A15: C020 | B15: 107DIV | C15: -4348258.36 | D15: 13739626.16 | E15: 156371.3 | F15: 10517.58 | G15: 159965.71 | H15: 0 | I15: 7876.49 | J15: -9056636.72
A16: Total Co 20 | C16: =SUM(C11:C15) -> -4559926.1 | D16: 13725389.42 | E16: 158974224.5 | F16: 10692813.43 | G16: 7411286.17 | H16: 0 | I16: 495612.98 | J16: 168408473.7
A17: C020 | B17: 020COM | C17: -4559926.1 | D17: 13725389.42 | E17: 158974224.5 | F17: 10692813.43 | G17: 7411286.17 | H17: 0 | I17: 495612.98 | J17: 168408473.7
B18: difference | C18: =C16-C17 -> 0 | D18: 0 | E18: 0 | F18: 0 | G18: 0 | H18: 0 | I18: 0 | J18: 0
A20: C030 | B20: 004DIV | C20: 6347.52 | D20: 426.51 | E20: 130897.75 | F20: 8802.56 | G20: 1102.35 | H20: 0 | I20: 74.46 | J20: 134103.09
A21: C030 | B21: 008DIV | C21: 18676.01 | D21: 1255.06 | E21: -43714.27 | F21: -2940.76 | G21: -0.15 | H21: 0 | I21: -0.16 | J21: -66586.41
A22: C030 | B22: 019DIV | C22: 1796.76 | D22: 119.57 | E22: 8709176.77 | F22: 585788.88 | G22: 0.1 | H22: 0 | I22: -0.35 | J22: 9293049.07
A23: C030 | B23: 003DIV | C23: 377427.25 | D23: 25387.31 | E23: 28704786.91 | F23: 1930721.6 | G23: 452599.25 | H23: 0 | I23: 30442.19 | J23: 30715735.39
A24: C030 | B24: 013DIV | C24: 41211.79 | D24: 2770.51 | E24: 1785812.34 | F24: 120116.33 | G24: -10493.04 | H24: 0 | I24: -704.76 | J24: 1850748.57
A25: C030 | B25: 001DIV | C25: 0 | D25: 0 | E25: 0 | F25: 0 | G25: 0 | H25: 0 | I25: 0 | J25: 0
A26: C030 | B26: 011DIV | C26: 0 | D26: 0 | E26: 0 | F26: 0 | G26: 0 | H26: 0 | I26: 0 | J26: 0
A27: C030 | B27: 010DIV | C27: 11360895.68 | D27: 764146.61 | E27: -56895.46 | F27: -3818.12 | G27: 1511184.01 | H27: 0 | I27: 101645.38 | J27: -10572926.48
A28: C030 | B28: 022DIV | C28: 0 | D28: 0 | E28: 0 | F28: 0 | G28: 0 | H28: 0 | I28: 0 | J28: 0
A29: C030 | B29: 040DIV | C29: 0 | D29: 0 | E29: 816740.46 | F29: 54926.99 | G29: 0 | H29: 0 | I29: 0 | J29: 871667.45
A30: C030 | B30: 006DIV | C30: 18692.32 | D30: 1256.89 | E30: 1173970.16 | F30: 78961.85 | G30: 23555.52 | H30: 0 | I30: 1585.51 | J30: 1258123.83
A31: C030 | B31: 017DIV | C31: 0 | D31: 0 | E31: -1506.49 | F31: -101.87 | G31: 0 | H31: 0 | I31: 0 | J31: -1608.36
A32: C030 | B32: 018DIV | C32: 1064.54 | D32: 71.64 | E32: 2502.55 | F32: 167.7 | G32: 37.52 | H32: 0 | I32: 3.07 | J32: 1574.66
A33: C030 | B33: 979DIV | C33: 0 | D33: 0 | E33: 0 | F33: 0 | G33: 0 | H33: 0 | I33: 0 | J33: 0
A34: C030 | B34: 980DIV | C34: 0 | D34: 0 | E34: 0 | F34: 0 | G34: 0 | H34: 0 | I34: 0 | J34: 0
A35: C030 | B35: 016DIV | C35: 339404.47 | D35: 22830.87 | E35: 30711086.07 | F35: 2065668.08 | G35: 116146.8 | H35: 0 | I35: 7811.83 | J35: 32538477.44
A36: C030 | B36: 020DIV | C36: 30670.27 | D36: 2062.57 | E36: 2019999.14 | F36: 135867.6 | G36: 4208.25 | H36: 0 | I36: 283.31 | J36: 2127625.46
A37: C030 | B37: 014DIV | C37: 0 | D37: 0 | E37: 0 | F37: 0 | G37: 0 | H37: 0 | I37: 0 | J37: 0
A38: C030 | B38: 015DIV | C38: 0 | D38: 0 | E38: 0 | F38: 0 | G38: 0 | H38: 0 | I38: 0 | J38: 0
A39: C030 | B39: 005DIV | C39: 773296.04 | D39: 52013.07 | E39: 66965889.63 | F39: 4504211.09 | G39: 2813940.89 | H39: 0 | I39: 189269.78 | J39: 73648002.28
A40: C030 | B40: 021DIV | C40: 157182.7 | D40: 10572.05 | E40: 11295812.28 | F40: 759769.69 | G40: 221762.5 | H40: 0 | I40: 14915.88 | J40: 12124505.6
A41: Total Co 30 | C41: =SUM(C20:C40) -> 13126665.35 | D41: 882912.66 | E41: 152214557.8 | F41: 10238141.62 | G41: 5134044 | H41: 0 | I41: 345326.14 | J41: 153922491.6
A42: C030 | B42: 030COM | C42: 13126665.35 | D42: 882912.66 | E42: 152214557.8 | F42: 10238141.62 | G42: 5134044 | H42: 0 | I42: 345326.14 | J42: 153922491.6
B43: difference | C43: =C41-C42 -> 0 | D43: 0 | E43: 0 | F43: 0 | G43: 0 | H43: 0 | I43: 0 | J43: 0
A45: C050 | B45: 009DIV | C45: -32517.6 | D45: 2552015.42 | E45: 92388928.06 | F45: 6214197.76 | G45: 780542.41 | H45: 0 | I45: 51093.79 | J45: 96915264.2
A46: C050 | B46: 093DIV | C46: -818199.6 | D46: 3037464.84 | E46: 79605045.22 | F46: 5354339.8 | G46: 2496006.62 | H46: 0 | I46: 166495.53 | J46: 85402621.93
A47: C050 | B47: 096DIV | C47: 88499.58 | D47: 90548.77 | E47: 17474940.7 | F47: 1175387.86 | G47: 1689805.06 | H47: 0 | I47: 113658.39 | J47: 20274743.66
A48: C050 | B48: 049DIV | C48: 0 | D48: 0 | E48: 0 | F48: 0 | G48: 0 | H48: 0 | I48: 0 | J48: 0
A49: C050 | B49: 088DIV | C49: 0 | D49: 0 | E49: 0 | F49: 0 | G49: 0 | H49: 0 | I49: 0 | J49: 0
A50: C050 | B50: 089DIV | C50: 0 | D50: 0 | E50: 0 | F50: 0 | G50: 0 | H50: 0 | I50: 0 | J50: 0
A51: C050 | B51: 090DIV | C51: 0 | D51: 0 | E51: 0 | F51: 0 | G51: 0 | H51: 0 | I51: 0 | J51: 0
A52: C050 | B52: 091DIV | C52: 5362764.11 | D52: 360708.03 | E52: 4790819.35 | F52: -10582827.85 | G52: 1549454.22 | H52: 0 | I52: 104217.93 | J52: -9861808.49
A53: C050 | B53: 092DIV | C53: 0 | D53: 0 | E53: 0 | F53: 0 | G53: 0 | H53: 0 | I53: 0 | J53: 0
A54: C050 | B54: 094DIV | C54: 0 | D54: 0 | E54: 0 | F54: 0 | G54: 0 | H54: 0 | I54: 0 | J54: 0
A55: C050 | B55: 095DIV | C55: 0.03 | D55: 0.07 | E55: 79629.09 | F55: 5354.53 | G55: 0 | H55: 0 | I55: 0 | J55: 84983.52
A56: C050 | B56: 098DIV | C56: 0 | D56: 0 | E56: -0.33 | F56: 0.35 | G56: 0 | H56: 0 | I56: 0 | J56: 0.02
A57: C050 | B57: 099DIV | C57: 0 | D57: 0 | E57: 0 | F57: 0 | G57: 0 | H57: 0 | I57: 0 | J57: 0
A58: C050 | B58: 070DIV | C58: 0 | D58: 0 | E58: 0 | F58: 0 | G58: 0 | H58: 0 | I58: 0 | J58: 0
A59: C050 | B59: 072DIV | C59: -0.34 | D59: -0.02 | E59: -0.34 | F59: -0.02 | G59: 0 | H59: 0 | I59: 0 | J59: 0
A60: C050 | B60: 097DIV | C60: 0 | D60: 0 | E60: 0 | F60: 0 | G60: 0 | H60: 0 | I60: 0 | J60: 0
A61: Total Co 50 | C61: =SUM(C45:C60) -> 4600546.18 | D61: 6040737.11 | E61: 194339361.7 | F61: 2166452.43 | G61: 6515808.31 | H61: 0 | I61: 435465.64 | J61: 192815804.8
A62: C050 | B62: 050COM | C62: 4600546.18 | D62: 6040737.11 | E62: 194339361.8 | F62: 2166452.43 | G62: 6515808.31 | H62: 0 | I62: 435465.64 | J62: 192815804.8
B63: difference | C63: =C61-C62 -> 0 | D63: 0 | E63: 0 | F63: 0 | G63: 0 | H63: 0 | I63: 0 | J63: 0
A65: C060 | B65: 024DIV | C65: 0 | D65: 0 | E65: 0 | F65: 0 | G65: 0 | H65: 0 | I65: 0 | J65: 0
A66: C060 | B66: 030DIV | C66: -87315.71 | D66: 5350052.89 | E66: 177077.03 | F66: 11909.38 | G66: 166668.97 | H66: 0 | I66: 9853.3 | J66: -4897228.5
A67: C060 | B67: 039DIV | C67: 0 | D67: 0 | E67: 0 | F67: 0 | G67: 0 | H67: 0 | I67: 0 | J67: 0
A68: C060 | B68: 087DIV | C68: 0 | D68: 0 | E68: 0 | F68: 0 | G68: 0 | H68: 0 | I68: 0 | J68: 0
A69: C060 | B69: 031DIV | C69: 463473.9 | D69: 31173.66 | E69: 36897424.87 | F69: 2481768.16 | G69: 1327820.62 | H69: 0 | I69: 89309.53 | J69: 40301675.62
A70: C060 | B70: 032DIV | C70: 0 | D70: 0 | E70: 0 | F70: 0 | G70: 0 | H70: 0 | I70: 0 | J70: 0
A71: C060 | B71: 033DIV | C71: 0 | D71: 0 | E71: 0 | F71: 0 | G71: 0 | H71: 0 | I71: 0 | J71: 0
A72: C060 | B72: 034DIV | C72: 0 | D72: 0 | E72: 0 | F72: 0 | G72: 0 | H72: 0 | I72: 0 | J72: 0
A73: C060 | B73: 035DIV | C73: 0 | D73: 0 | E73: 0 | F73: 0 | G73: 0 | H73: 0 | I73: 0 | J73: 0
A74: C060 | B74: 036DIV | C74: 0 | D74: 0 | E74: 0 | F74: 0 | G74: 0 | H74: 0 | I74: 0 | J74: 0
A75: C060 | B75: 079DIV | C75: 0 | D75: 0 | E75: 0 | F75: 0 | G75: 0 | H75: 0 | I75: 0 | J75: 0
A76: C060 | B76: 080DIV | C76: 0 | D76: 0 | E76: 0 | F76: 0 | G76: 0 | H76: 0 | I76: 0 | J76: 0
A77: C060 | B77: 081DIV | C77: 1388507.25 | D77: 93392 | E77: 67298076.3 | F77: 4526557.14 | G77: 1686623.36 | H77: 0 | I77: 113444.65 | J77: 72142802.2
A78: C060 | B78: 082DIV | C78: 0 | D78: 0 | E78: 0 | F78: 0 | G78: 0 | H78: 0 | I78: 0 | J78: 0
A79: C060 | B79: 083DIV | C79: 0 | D79: 0 | E79: 0 | F79: 0 | G79: 0 | H79: 0 | I79: 0 | J79: 0
A80: C060 | B80: 084DIV | C80: 0 | D80: 0 | E80: 0 | F80: 0 | G80: 0 | H80: 0 | I80: 0 | J80: 0
A81: C060 | B81: 085DIV | C81: 0 | D81: 0 | E81: 0 | F81: 0 | G81: 0 | H81: 0 | I81: 0 | J81: 0
A82: C060 | B82: 086DIV | C82: 0 | D82: 0 | E82: 0 | F82: 0 | G82: 0 | H82: 0 | I82: 0 | J82: 0
A83: C060 | B83: 028DIV | C83: 0 | D83: 0 | E83: 0 | F83: 0 | G83: 0 | H83: 0 | I83: 0 | J83: 0
A84: C060 | B84: 029DIV | C84: 0 | D84: 0 | E84: 0 | F84: 0 | G84: 0 | H84: 0 | I84: 0 | J84: 0
A85: C060 | B85: 071DIV | C85: 0 | D85: 0 | E85: 350391.31 | F85: 23568.39 | G85: 0 | H85: 0 | I85: 0 | J85: 373959.7
A86: Total Co 60 | C86: =SUM(C65:C85) -> 1764665.44 | D86: 5474618.55 | E86: 104722969.5 | F86: 7043803.07 | G86: 3181112.95 | H86: 0 | I86: 212607.48 | J86: 107921209
A87: C060 | B87: 060COM | C87: 1764665.44 | D87: 5474618.55 | E87: 104722969.5 | F87: 7043803.07 | G87: 3181112.95 | H87: 0 | I87: 212607.48 | J87: 107921209
B88: difference | C88: =C86-C87 -> 0 | D88: 0 | E88: 0 | F88: 0 | G88: 0 | H88: 0 | I88: 0 | J88: 0
A91: C070 | B91: 170DIV | C91: 6830608.26 | D91: 4404338.91 | E91: 115410317.3 | F91: 1616456.27 | G91: 6447077.76 | H91: 0 | I91: 431919.07 | J91: 112670823.2
A92: C070 | B92: 171DIV | C92: 0.31 | D92: -0.11 | E92: 695200.6 | F92: 46759.53 | G92: 0 | H92: 0 | I92: 0 | J92: 741959.93
A93: C070 | B93: 172DIV | C93: 0 | D93: 0 | E93: 0 | F93: 0 | G93: 0 | H93: 0 | I93: 0 | J93: 0
A94: Total Co 70 | C94: =SUM(C91:C93) -> 6830608.57 | D94: 4404338.8 | E94: 116105517.9 | F94: 1663215.8 | G94: 6447077.76 | H94: 0 | I94: 431919.07 | J94: 113412783.2
A95: C070 | B95: 070COM | C95: 6830608.57 | D95: 4404338.8 | E95: 116105517.9 | F95: 1663215.8 | G95: 6447077.76 | H95: 0 | I95: 431919.07 | J95: 113412783.2
B96: difference | C96: =C94-C95 -> 0 | D96: 0 | E96: 0 | F96: 0 | G96: 0 | H96: 0 | I96: 0 | J96: 0
A98: C080 | B98: 190DIV | C98: -68936216.37 | D98: -3976989.54 | E98: 730643914.1 | F98: 49144056.34 | G98: 57392821.89 | H98: 0 | I98: 3860315.98 | J98: 913954314.2
A99: C180 | B99: 700DIV | C99: -34337361.56 | D99: -2309575.95 | E99: 457195986 | F99: 30751594.38 | G99: 11372414.67 | H99: 0 | I99: 764924.35 | J99: 536731856.9
A100: C210 | B100: 830DIV | C100: 747 | D100: 0 | E100: 0 | F100: 0 | G100: 352842.25 | H100: 0 | I100: 23681.71 | J100: 375776.96
A101: C982 | B101: 982DIV | C101: 0 | D101: 0 | E101: 0 | F101: 0 | G101: 0 | H101: 0 | I101: 0 | J101: 0
A102: C989 | B102: 989DIV | C102: 0 | D102: 0 | E102: 0 | F102: 0 | G102: 0 | H102: 0 | I102: 0 | J102: 0
A103: C990 | B103: 990DIV | C103: 0 | D103: 0 | E103: 0 | F103: 0 | G103: 0 | H103: 0 | I103: 0 | J103: 0
A104: Total Utility | B104: Total Utility | C104: =SUM(C98:C103,C94,C86,C61,C41,C16,C7) -> 484977473.1 | D104: 30104819.45 | E104: 1961135852 | F104: 114857278 | G104: 76484243.6 | H104: 0 | I104: 5132042.94 | J104: 1642527124
B105: difference | C105: =C104-C103-C102-C101-C100-C99-C98-C94-C86-C61-C41-C16-C7 -> 0 | D105: 0 | E105: 0 | F105: -9.313225746e-09 | G105: 0 | H105: 0 | I105: 0 | J105: 0
A107: C212 | B107: Service Area | C107: 555771.45 | D107: 104054.55 | E107: 3730156.27 | F107: 698393.72 | G107: 1166577.2 | H107: 0 | I107: 218192.33 | J107: 5153493.52
A108: C220 | B108: Service Area | C108: 0 | D108: 0 | E108: 0 | F108: 0 | G108: 0 | H108: 0 | I108: 0 | J108: 0
A109: C221 | B109: Service Area | C109: 25263.28 | D109: 4729.84 | E109: 0 | F109: 0 | G109: 0 | H109: 0 | I109: 0 | J109: -29993.12
A110: C231 | B110: Service Area | C110: 86129.44 | D110: 16125.73 | E110: -2217335.76 | F110: -415149.29 | G110: 0 | H110: 0 | I110: 0 | J110: -2734740.22
A111: C232 | B111: Service Area | C111: 0 | D111: 0 | E111: 717772.58 | F111: 32078.98 | G111: 0 | H111: 0 | I111: 0 | J111: 749851.56
A112: C233 | B112: Service Area | C112: 0 | D112: 0 | E112: 1503582.08 | F112: 357881.32 | G112: 0 | H112: 0 | I112: 0 | J112: 1861463.4
A113: C234 | B113: Service Area | C113: -3842.49 | D113: -1074.96 | E113: 1174068.36 | F113: 328524.35 | G113: 0 | H113: 0 | I113: 0 | J113: 1507510.16
A114: C236 | B114: Service Area | C114: 1186163.5 | D114: 222084.5 | E114: -891363.38 | F114: -166888.9 | G114: 0 | H114: 0 | I114: 0 | J114: -2466500.28
A115: C237 | B115: Service Area | C115: 0 | D115: 0 | E115: 0 | F115: 0 | G115: 0 | H115: 0 | I115: 0 | J115: 0
A116: C240 | B116: Service Area | C116: 0 | D116: 0 | E116: 0 | F116: 0 | G116: 0 | H116: 0 | I116: 0 | J116: 0
A117: C301 | B117: Service Area | C117: 0.49 | D117: -0.08 | E117: 0 | F117: 0 | G117: 0 | H117: 0 | I117: 0 | J117: -0.41
A118: C302 | B118: Service Area | C118: 0 | D118: 0 | E118: 0 | F118: 0 | G118: 0 | H118: 0 | I118: 0 | J118: 0
A119: C303 | B119: Service Area | C119: -3440373.14 | D119: -962673.31 | E119: 1627199.52 | F119: 453425.26 | G119: 1018952.32 | H119: 0 | I119: 285142.62 | J119: 7787766.17
A120: C306 | B120: Service Area | C120: 0 | D120: 0 | E120: -149156 | F120: -20643 | G120: 0 | H120: 0 | I120: 0 | J120: -169799
A121: C312 | B121: Service Area | C121: -193269.15 | D121: 567283.13 | E121: 16539 | F121: -47252 | G121: 13842 | H121: 0 | I121: 1603 | J121: -389281.98
A122: C321 | B122: Service Area | C122: 0 | D122: 0 | E122: 0 | F122: 0 | G122: 0 | H122: 0 | I122: 0 | J122: 0
A123: C981 | B123: Service Area | C123: 0 | D123: 0 | E123: 0 | F123: 0 | G123: -0.29 | H123: 0 | I123: -0.33 | J123: -0.62
A124: C983 | B124: Service Area | C124: 0 | D124: 0 | E124: 0 | F124: 0 | G124: 0 | H124: 0 | I124: 0 | J124: 0
A125: C984 | B125: Service Area | C125: 0 | D125: 0 | E125: 0 | F125: 0 | G125: 0 | H125: 0 | I125: 0 | J125: 0
A126: C993 | B126: Service Area | C126: 0 | D126: 0 | E126: 0 | F126: 0 | G126: 0 | H126: 0 | I126: 0 | J126: 0
A127: C987 | B127: Service Area | C127: 51098 | D127: 0 | E127: 0 | F127: 0 | G127: -34384.64 | H127: 0 | I127: 117305.64 | J127: 31823
A128: Total Non Utility | C128: =SUM(C107:C127) -> -1733058.62 | D128: -49470.6 | E128: 5511462.67 | F128: 1220370.44 | G128: 2164986.59 | H128: 0 | I128: 622243.26 | J128: 11301592.18
A130: AEC | B130: Service Area | C130: 483244414.5 | D130: 30055348.85 | E130: 1966647314 | F130: 116077648.4 | G130: 78649230.19 | H130: 0 | I130: 5754286.2 | J130: 1653828716
C131: =C130-SUM(C107:C127,C91:C93,C98:C103,C65:C85,C45:C60,C20:C40,C11:C15,C4:C6) -> 0 | D131: 0 | E131: 0 | F131: 0 | G131: 0 | H131: 0 | I131: 0 | J131: 0
I132: per BS | J132: 1726007924
I133: difference | J133: =J130-J132 -> -72179208.43
A137: do not refresh below this line
A139: KANSDV | B139: KANSDV | C139: =C77 -> 1388507.25 | D139: =D77 -> 93392 | E139: 67298076.3 | F139: 4526557.14 | G139: 1686623.36 | H139: 0 | I139: 113444.65 | J139: 72142802.2
A140: COLODV | B140: COLODV | C140: =C69 -> 463473.9 | D140: =D69 -> 31173.66 | E140: 36897424.87 | F140: 2481768.16 | G140: 1327820.62 | H140: 0 | I140: 89309.53 | J140: 40301675.62

Sheet 10-31-16 SV (hidden)
L1: YTD Oct | M1: Cost Center | N1: Ending Balance | O1: CY Actual | P1: USD
A2: YTD October = Q1
C3: A1900-28201 | D3: A1900-28206 | E3: A2820-28201 | F3: A2820-28206 | G3: A2830-28201 | H3: A2830-28204 | I3: A2830-28206 | J3: Deferred Income Taxes
A4: C010 | B4: 002DIV | C4: 566487744.9 | D4: 5863388.53 | E4: 20781773.02 | F4: 1397810.49 | G4: -49125559.75 | H4: 0 | I4: -3307568.59 | J4: -602604678.2
A5: C010 | B5: 012DIV | C5: -0.28 | D5: -0.13 | E5: 26157546.93 | F5: 1759390.42 | G5: 538554 | H5: 0 | I5: 36225 | J5: 28491716.76
A6: C010 | B6: 042DIV | C6: 0 | D6: 0 | E6: 0 | F6: 0 | G6: 0 | H6: 0 | I6: 0 | J6: 0
A7: Total Co 10 | C7: =SUM(C4:C6) -> 566487744.6 | D7: 5863388.4 | E7: 46939319.95 | F7: 3157200.91 | G7: -48587005.75 | H7: 0 | I7: -3271343.59 | J7: -574112961.5
A8: C010 | B8: 010COM | C8: 566487744.6 | D8: 5863388.4 | E8: 46939319.95 | F8: 3157200.91 | G8: -48587005.75 | H8: 0 | I8: -3271343.59 | J8: -574112961.5
B9: difference | C9: =C7-C8 -> 0 | D9: 0 | E9: 0 | F9: 0 | G9: 0 | H9: 0 | I9: 0 | J9: 0
A11: C020 | B11: 007DIV | C11: 610027.04 | D11: 41031.45 | E11: 54084949.35 | F11: 3637823.9 | G11: 3984109.03 | H11: 0 | I11: 267978.01 | J11: 61323801.8
A12: C020 | B12: 077DIV | C12: -821694.78 | D12: -55268.19 | E12: 104732903.8 | F12: 7044471.95 | G12: 3267211.43 | H12: 0 | I12: 219758.48 | J12: 116141308.6
A13: C020 | B13: 023DIV | C13: 0 | D13: 0 | E13: 0 | F13: 0 | G13: 0 | H13: 0 | I13: 0 | J13: 0
A14: C020 | B14: 047DIV | C14: 0 | D14: 0 | E14: 0 | F14: 0 | G14: 0 | H14: 0 | I14: 0 | J14: 0
A15: C020 | B15: 107DIV | C15: -4348258.36 | D15: 13739626.16 | E15: 156371.3 | F15: 10517.58 | G15: 159965.71 | H15: 0 | I15: 7876.49 | J15: -9056636.72
A16: Total Co 20 | C16: =SUM(C11:C15) -> -4559926.1 | D16: 13725389.42 | E16: 158974224.5 | F16: 10692813.43 | G16: 7411286.17 | H16: 0 | I16: 495612.98 | J16: 168408473.7
A17: C020 | B17: 020COM | C17: -4559926.1 | D17: 13725389.42 | E17: 158974224.5 | F17: 10692813.43 | G17: 7411286.17 | H17: 0 | I17: 495612.98 | J17: 168408473.7
B18: difference | C18: =C16-C17 -> 0 | D18: 0 | E18: 0 | F18: 0 | G18: 0 | H18: 0 | I18: 0 | J18: 0
A20: C030 | B20: 004DIV | C20: 6347.52 | D20: 426.51 | E20: 130897.75 | F20: 8802.56 | G20: 1102.35 | H20: 0 | I20: 74.46 | J20: 134103.09
A21: C030 | B21: 008DIV | C21: 18676.01 | D21: 1255.06 | E21: -43714.27 | F21: -2940.76 | G21: -0.15 | H21: 0 | I21: -0.16 | J21: -66586.41
A22: C030 | B22: 019DIV | C22: 1796.76 | D22: 119.57 | E22: 8709176.77 | F22: 585788.88 | G22: 0.1 | H22: 0 | I22: -0.35 | J22: 9293049.07
A23: C030 | B23: 003DIV | C23: 377427.25 | D23: 25387.31 | E23: 28704786.91 | F23: 1930721.6 | G23: 452530.52 | H23: 0 | I23: 30437.57 | J23: 30715662.04
A24: C030 | B24: 013DIV | C24: 41211.79 | D24: 2770.51 | E24: 1680577.31 | F24: 113037.14 | G24: -14123.07 | H24: 0 | I24: -948.95 | J24: 1734560.13
A25: C030 | B25: 001DIV | C25: 0 | D25: 0 | E25: 105235.03 | F25: 7079.19 | G25: 3698.76 | H25: 0 | I25: 248.81 | J25: 116261.79
A26: C030 | B26: 011DIV | C26: 0 | D26: 0 | E26: 0 | F26: 0 | G26: 0 | H26: 0 | I26: 0 | J26: 0
A27: C030 | B27: 010DIV | C27: 11360895.68 | D27: 764146.61 | E27: -56895.46 | F27: -3818.12 | G27: 1511184.01 | H27: 0 | I27: 101645.38 | J27: -10572926.48
A28: C030 | B28: 022DIV | C28: 0 | D28: 0 | E28: 0 | F28: 0 | G28: 0 | H28: 0 | I28: 0 | J28: 0
A29: C030 | B29: 040DIV | C29: 0 | D29: 0 | E29: 816740.46 | F29: 54926.99 | G29: 0 | H29: 0 | I29: 0 | J29: 871667.45
A30: C030 | B30: 006DIV | C30: 18692.32 | D30: 1256.89 | E30: 1173970.16 | F30: 78961.85 | G30: 23555.52 | H30: 0 | I30: 1585.51 | J30: 1258123.83
A31: C030 | B31: 017DIV | C31: 0 | D31: 0 | E31: -1506.49 | F31: -101.87 | G31: 0 | H31: 0 | I31: 0 | J31: -1608.36
A32: C030 | B32: 018DIV | C32: 1064.54 | D32: 71.64 | E32: 2502.55 | F32: 167.7 | G32: 37.52 | H32: 0 | I32: 3.07 | J32: 1574.66
A33: C030 | B33: 979DIV | C33: 0 | D33: 0 | E33: 0 | F33: 0 | G33: 0 | H33: 0 | I33: 0 | J33: 0
A34: C030 | B34: 980DIV | C34: 0 | D34: 0 | E34: 0 | F34: 0 | G34: 0 | H34: 0 | I34: 0 | J34: 0
A35: C030 | B35: 016DIV | C35: 339404.47 | D35: 22830.87 | E35: 30711086.07 | F35: 2065668.08 | G35: 116146.8 | H35: 0 | I35: 7811.83 | J35: 32538477.44
A36: C030 | B36: 020DIV | C36: 30670.27 | D36: 2062.57 | E36: 2019999.14 | F36: 135867.6 | G36: 4208.25 | H36: 0 | I36: 283.31 | J36: 2127625.46
A37: C030 | B37: 014DIV | C37: 0 | D37: 0 | E37: 0 | F37: 0 | G37: 0 | H37: 0 | I37: 0 | J37: 0
A38: C030 | B38: 015DIV | C38: 0 | D38: 0 | E38: 0 | F38: 0 | G38: 0 | H38: 0 | I38: 0 | J38: 0
A39: C030 | B39: 005DIV | C39: 773296.04 | D39: 52013.07 | E39: 66965889.63 | F39: 4504211.09 | G39: 2813940.89 | H39: 0 | I39: 189269.78 | J39: 73648002.28
A40: C030 | B40: 021DIV | C40: 157182.7 | D40: 10572.05 | E40: 11295812.28 | F40: 759769.69 | G40: 221762.5 | H40: 0 | I40: 14915.88 | J40: 12124505.6
A41: Total Co 30 | C41: =SUM(C20:C40) -> 13126665.35 | D41: 882912.66 | E41: 152214557.8 | F41: 10238141.62 | G41: 5134044 | H41: 0 | I41: 345326.14 | J41: 153922491.6
A42: C030 | B42: 030COM | C42: 13126665.35 | D42: 882912.66 | E42: 152214557.8 | F42: 10238141.62 | G42: 5134044 | H42: 0 | I42: 345326.14 | J42: 153922491.6
B43: difference | C43: =C41-C42 -> 0 | D43: 0 | E43: 0 | F43: 0 | G43: 0 | H43: 0 | I43: 0 | J43: 0
A45: C050 | B45: 009DIV | C45: -32517.6 | D45: 2552015.42 | E45: 92388928.06 | F45: 6214197.76 | G45: 780542.41 | H45: 0 | I45: 51093.79 | J45: 96915264.2
A46: C050 | B46: 093DIV | C46: -818199.6 | D46: 3037464.84 | E46: 79605045.22 | F46: 5354339.8 | G46: 2496006.62 | H46: 0 | I46: 166495.53 | J46: 85402621.93
A47: C050 | B47: 096DIV | C47: 88499.58 | D47: 90548.77 | E47: 17474940.7 | F47: 1175387.86 | G47: 1689805.06 | H47: 0 | I47: 113658.39 | J47: 20274743.66
A48: C050 | B48: 049DIV | C48: 0 | D48: 0 | E48: 0 | F48: 0 | G48: 0 | H48: 0 | I48: 0 | J48: 0
A49: C050 | B49: 088DIV | C49: 0 | D49: 0 | E49: 0 | F49: 0 | G49: 0 | H49: 0 | I49: 0 | J49: 0
A50: C050 | B50: 089DIV | C50: 0 | D50: 0 | E50: 0 | F50: 0 | G50: 0 | H50: 0 | I50: 0 | J50: 0
A51: C050 | B51: 090DIV | C51: 0 | D51: 0 | E51: 0 | F51: 0 | G51: 0 | H51: 0 | I51: 0 | J51: 0
A52: C050 | B52: 091DIV | C52: 5362764.11 | D52: 360708.03 | E52: 4790819.35 | F52: -10582827.85 | G52: 1549454.22 | H52: 0 | I52: 104217.93 | J52: -9861808.49
A53: C050 | B53: 092DIV | C53: 0 | D53: 0 | E53: 0 | F53: 0 | G53: 0 | H53: 0 | I53: 0 | J53: 0
A54: C050 | B54: 094DIV | C54: 0 | D54: 0 | E54: 0 | F54: 0 | G54: 0 | H54: 0 | I54: 0 | J54: 0
A55: C050 | B55: 095DIV | C55: 0.03 | D55: 0.07 | E55: 79629.09 | F55: 5354.53 | G55: 0 | H55: 0 | I55: 0 | J55: 84983.52
A56: C050 | B56: 098DIV | C56: 0 | D56: 0 | E56: -0.33 | F56: 0.35 | G56: 0 | H56: 0 | I56: 0 | J56: 0.02
A57: C050 | B57: 099DIV | C57: 0 | D57: 0 | E57: 0 | F57: 0 | G57: 0 | H57: 0 | I57: 0 | J57: 0
A58: C050 | B58: 070DIV | C58: 0 | D58: 0 | E58: 0 | F58: 0 | G58: 0 | H58: 0 | I58: 0 | J58: 0
A59: C050 | B59: 072DIV | C59: -0.34 | D59: -0.02 | E59: -0.34 | F59: -0.02 | G59: 0 | H59: 0 | I59: 0 | J59: 0
A60: C050 | B60: 097DIV | C60: 0 | D60: 0 | E60: 0 | F60: 0 | G60: 0 | H60: 0 | I60: 0 | J60: 0
A61: Total Co 50 | C61: =SUM(C45:C60) -> 4600546.18 | D61: 6040737.11 | E61: 194339361.7 | F61: 2166452.43 | G61: 6515808.31 | H61: 0 | I61: 435465.64 | J61: 192815804.8
A62: C050 | B62: 050COM | C62: 4600546.18 | D62: 6040737.11 | E62: 194339361.8 | F62: 2166452.43 | G62: 6515808.31 | H62: 0 | I62: 435465.64 | J62: 192815804.8
B63: difference | C63: =C61-C62 -> 0 | D63: 0 | E63: 0 | F63: 0 | G63: 0 | H63: 0 | I63: 0 | J63: 0
A65: C060 | B65: 024DIV | C65: 0 | D65: 0 | E65: 0 | F65: 0 | G65: 0 | H65: 0 | I65: 0 | J65: 0
A66: C060 | B66: 030DIV | C66: -87315.71 | D66: 5350052.89 | E66: 177077.03 | F66: 11909.38 | G66: 166668.97 | H66: 0 | I66: 9853.3 | J66: -4897228.5
A67: C060 | B67: 039DIV | C67: 0 | D67: 0 | E67: 0 | F67: 0 | G67: 0 | H67: 0 | I67: 0 | J67: 0
A68: C060 | B68: 087DIV | C68: 0 | D68: 0 | E68: 0 | F68: 0 | G68: 0 | H68: 0 | I68: 0 | J68: 0
A69: C060 | B69: 031DIV | C69: 463473.9 | D69: 31173.66 | E69: 36897424.87 | F69: 2481768.16 | G69: 1327820.62 | H69: 0 | I69: 89309.53 | J69: 40301675.62
A70: C060 | B70: 032DIV | C70: 0 | D70: 0 | E70: 0 | F70: 0 | G70: 0 | H70: 0 | I70: 0 | J70: 0
A71: C060 | B71: 033DIV | C71: 0 | D71: 0 | E71: 0 | F71: 0 | G71: 0 | H71: 0 | I71: 0 | J71: 0
A72: C060 | B72: 034DIV | C72: 0 | D72: 0 | E72: 0 | F72: 0 | G72: 0 | H72: 0 | I72: 0 | J72: 0
A73: C060 | B73: 035DIV | C73: 0 | D73: 0 | E73: 0 | F73: 0 | G73: 0 | H73: 0 | I73: 0 | J73: 0
A74: C060 | B74: 036DIV | C74: 0 | D74: 0 | E74: 0 | F74: 0 | G74: 0 | H74: 0 | I74: 0 | J74: 0
A75: C060 | B75: 079DIV | C75: 0 | D75: 0 | E75: 0 | F75: 0 | G75: 0 | H75: 0 | I75: 0 | J75: 0
A76: C060 | B76: 080DIV | C76: 0 | D76: 0 | E76: 0 | F76: 0 | G76: 0 | H76: 0 | I76: 0 | J76: 0
A77: C060 | B77: 081DIV | C77: 1388507.25 | D77: 93392 | E77: 67298076.3 | F77: 4526557.14 | G77: 1686623.36 | H77: 0 | I77: 113444.65 | J77: 72142802.2
A78: C060 | B78: 082DIV | C78: 0 | D78: 0 | E78: 0 | F78: 0 | G78: 0 | H78: 0 | I78: 0 | J78: 0
A79: C060 | B79: 083DIV | C79: 0 | D79: 0 | E79: 0 | F79: 0 | G79: 0 | H79: 0 | I79: 0 | J79: 0
A80: C060 | B80: 084DIV | C80: 0 | D80: 0 | E80: 0 | F80: 0 | G80: 0 | H80: 0 | I80: 0 | J80: 0
A81: C060 | B81: 085DIV | C81: 0 | D81: 0 | E81: 0 | F81: 0 | G81: 0 | H81: 0 | I81: 0 | J81: 0
A82: C060 | B82: 086DIV | C82: 0 | D82: 0 | E82: 0 | F82: 0 | G82: 0 | H82: 0 | I82: 0 | J82: 0
A83: C060 | B83: 028DIV | C83: 0 | D83: 0 | E83: 0 | F83: 0 | G83: 0 | H83: 0 | I83: 0 | J83: 0
A84: C060 | B84: 029DIV | C84: 0 | D84: 0 | E84: 0 | F84: 0 | G84: 0 | H84: 0 | I84: 0 | J84: 0
A85: C060 | B85: 071DIV | C85: 0 | D85: 0 | E85: 350391.31 | F85: 23568.39 | G85: 0 | H85: 0 | I85: 0 | J85: 373959.7
A86: Total Co 60 | C86: =SUM(C65:C85) -> 1764665.44 | D86: 5474618.55 | E86: 104722969.5 | F86: 7043803.07 | G86: 3181112.95 | H86: 0 | I86: 212607.48 | J86: 107921209
A87: C060 | B87: 060COM | C87: 1764665.44 | D87: 5474618.55 | E87: 104722969.5 | F87: 7043803.07 | G87: 3181112.95 | H87: 0 | I87: 212607.48 | J87: 107921209
B88: difference | C88: =C86-C87 -> 0 | D88: 0 | E88: 0 | F88: 0 | G88: 0 | H88: 0 | I88: 0 | J88: 0
A91: C070 | B91: 170DIV | C91: 6830608.26 | D91: 4404338.91 | E91: 115410317.3 | F91: 1616456.27 | G91: 6447077.76 | H91: 0 | I91: 431919.07 | J91: 112670823.2
A92: C070 | B92: 171DIV | C92: 0.31 | D92: -0.11 | E92: 695200.6 | F92: 46759.53 | G92: 0 | H92: 0 | I92: 0 | J92: 741959.93
A93: C070 | B93: 172DIV | C93: 0 | D93: 0 | E93: 0 | F93: 0 | G93: 0 | H93: 0 | I93: 0 | J93: 0
A94: Total Co 70 | C94: =SUM(C91:C93) -> 6830608.57 | D94: 4404338.8 | E94: 116105517.9 | F94: 1663215.8 | G94: 6447077.76 | H94: 0 | I94: 431919.07 | J94: 113412783.2
A95: C070 | B95: 070COM | C95: 6830608.57 | D95: 4404338.8 | E95: 116105517.9 | F95: 1663215.8 | G95: 6447077.76 | H95: 0 | I95: 431919.07 | J95: 113412783.2
B96: difference | C96: =C94-C95 -> 0 | D96: 0 | E96: 0 | F96: 0 | G96: 0 | H96: 0 | I96: 0 | J96: 0
A98: C080 | B98: 190DIV | C98: -68936216.37 | D98: -3976989.54 | E98: 730643914.1 | F98: 49144056.34 | G98: 57392821.89 | H98: 0 | I98: 3860315.98 | J98: 913954314.2
A99: C180 | B99: 700DIV | C99: -34337361.56 | D99: -2309575.95 | E99: 457195986 | F99: 30751594.38 | G99: 11372414.67 | H99: 0 | I99: 764924.35 | J99: 536731856.9
A100: C210 | B100: 830DIV | C100: 747 | D100: 0 | E100: 0 | F100: 0 | G100: 352842.25 | H100: 0 | I100: 23681.71 | J100: 375776.96
A101: C982 | B101: 982DIV | C101: 0 | D101: 0 | E101: 0 | F101: 0 | G101: 0 | H101: 0 | I101: 0 | J101: 0
A102: C989 | B102: 989DIV | C102: 0 | D102: 0 | E102: 0 | F102: 0 | G102: 0 | H102: 0 | I102: 0 | J102: 0
A103: C990 | B103: 990DIV | C103: 0 | D103: 0 | E103: 0 | F103: 0 | G103: 0 | H103: 0 | I103: 0 | J103: 0
A104: Total Utility | B104: Total Utility | C104: =SUM(C98:C103,C94,C86,C61,C41,C16,C7) -> 484977473.1 | D104: 30104819.45 | E104: 1961135852 | F104: 114857278 | G104: 49220402.25 | H104: 0 | I104: 3298509.76 | J104: 1613429749
B105: difference | C105: =C104-C103-C102-C101-C100-C99-C98-C94-C86-C61-C41-C16-C7 -> 0 | D105: 0 | E105: 0 | F105: -9.313225746e-09 | G105: 0 | H105: 0 | I105: 0 | J105: 0
A107: C212 | B107: Service Area | C107: 555771.45 | D107: 104054.55 | E107: 3730156.27 | F107: 698393.72 | G107: -1137073.8 | H107: 0 | I107: -213084.67 | J107: 2418565.52
A108: C220 | B108: Service Area | C108: 0 | D108: 0 | E108: 0 | F108: 0 | G108: 0 | H108: 0 | I108: 0 | J108: 0
A109: C221 | B109: Service Area | C109: 25263.28 | D109: 4729.84 | E109: 0 | F109: 0 | G109: 0 | H109: 0 | I109: 0 | J109: -29993.12
A110: C231 | B110: Service Area | C110: 86129.44 | D110: 16125.73 | E110: -2217335.76 | F110: -415149.29 | G110: 0 | H110: 0 | I110: 0 | J110: -2734740.22
A111: C232 | B111: Service Area | C111: 0 | D111: 0 | E111: 717772.58 | F111: 32078.98 | G111: 0 | H111: 0 | I111: 0 | J111: 749851.56
A112: C233 | B112: Service Area | C112: 0 | D112: 0 | E112: 1503582.08 | F112: 357881.32 | G112: 0 | H112: 0 | I112: 0 | J112: 1861463.4
A113: C234 | B113: Service Area | C113: -3842.49 | D113: -1074.96 | E113: 1174068.36 | F113: 328524.35 | G113: 0 | H113: 0 | I113: 0 | J113: 1507510.16
A114: C236 | B114: Service Area | C114: 1186163.5 | D114: 222084.5 | E114: -891363.38 | F114: -166888.9 | G114: 0 | H114: 0 | I114: 0 | J114: -2466500.28
A115: C237 | B115: Service Area | C115: 0 | D115: 0 | E115: 0 | F115: 0 | G115: 0 | H115: 0 | I115: 0 | J115: 0
A116: C240 | B116: Service Area | C116: 0 | D116: 0 | E116: 0 | F116: 0 | G116: 0 | H116: 0 | I116: 0 | J116: 0
A117: C301 | B117: Service Area | C117: 0.49 | D117: -0.08 | E117: 0 | F117: 0 | G117: 0 | H117: 0 | I117: 0 | J117: -0.41
A118: C302 | B118: Service Area | C118: 0 | D118: 0 | E118: 0 | F118: 0 | G118: 0 | H118: 0 | I118: 0 | J118: 0
A119: C303 | B119: Service Area | C119: -3440373.14 | D119: -962673.31 | E119: 1627199.52 | F119: 453425.26 | G119: 905726.32 | H119: 0 | I119: 253461.62 | J119: 7642859.17
A120: C306 | B120: Service Area | C120: 0 | D120: 0 | E120: -149156 | F120: -20643 | G120: 0 | H120: 0 | I120: 0 | J120: -169799
A121: C312 | B121: Service Area | C121: -193269.15 | D121: 567283.13 | E121: 16539 | F121: -47252 | G121: 13842 | H121: 0 | I121: 1603 | J121: -389281.98
A122: C321 | B122: Service Area | C122: 0 | D122: 0 | E122: 0 | F122: 0 | G122: 0 | H122: 0 | I122: 0 | J122: 0
A123: C981 | B123: Service Area | C123: 0 | D123: 0 | E123: 0 | F123: 0 | G123: -0.29 | H123: 0 | I123: -0.33 | J123: -0.62
A124: C983 | B124: Service Area | C124: 0 | D124: 0 | E124: 0 | F124: 0 | G124: 0 | H124: 0 | I124: 0 | J124: 0
A125: C984 | B125: Service Area | C125: 0 | D125: 0 | E125: 0 | F125: 0 | G125: 0 | H125: 0 | I125: 0 | J125: 0
A126: C993 | B126: Service Area | C126: 0 | D126: 0 | E126: 0 | F126: 0 | G126: 0 | H126: 0 | I126: 0 | J126: 0
A127: C987 | B127: Service Area | C127: 51098 | D127: 0 | E127: 0 | F127: 0 | G127: -37829.64 | H127: 0 | I127: 127143.64 | J127: 38216
A128: Total Non Utility | C128: =SUM(C107:C127) -> -1733058.62 | D128: -49470.6 | E128: 5511462.67 | F128: 1220370.44 | G128: -255335.41 | H128: 0 | I128: 169123.26 | J128: 8428150.18
A130: AEC | B130: Service Area | C130: 483244414.5 | D130: 30055348.85 | E130: 1966647314 | F130: 116077648.4 | G130: 48965066.84 | H130: 0 | I130: 3467633.02 | J130: 1621857899
C131: =C130-SUM(C107:C127,C91:C93,C98:C103,C65:C85,C45:C60,C20:C40,C11:C15,C4:C6) -> 0 | D131: 0 | E131: 0 | F131: 0 | G131: 0 | H131: 0 | I131: 0 | J131: 0
I132: per BS | J132: 1726007924
I133: difference | J133: =J130-J132 -> -104150025
A137: do not refresh below this line
A139: KANSDV | B139: KANSDV | C139: =C77 -> 1388507.25 | D139: =D77 -> 93392 | E139: 67298076.3 | F139: 4526557.14 | G139: 1686623.36 | H139: 0 | I139: 113444.65 | J139: 72142802.2
A140: COLODV | B140: COLODV | C140: =C69 -> 463473.9 | D140: =D69 -> 31173.66 | E140: 36897424.87 | F140: 2481768.16 | G140: 1327820.62 | H140: 0 | I140: 89309.53 | J140: 40301675.62

Sheet OTP DP (hidden)
A1: 11/1/2016 10:11:39 AM
A2: Atmos Energy Corporation
A3: SubConsolidatedDeferredBalancesReport-Fed/State/FBOS (Reporting)
A4: FY16 Q4 Provision, 02 AUT | T4: why are there deferreds here from FY15?
T5: split out in OTP
C6: Total Utility | D6: 012DIV | E6: 002DIV | F6: 107DIV | G6: 077DIV | H6: 007DIV | I6: 047DIV | J6: 003DIV | K6: 979DIV | L6: 013DIV | M6: 001DIV | N6: 006DIV | O6: 018DIV | P6: 017DIV | Q6: 011DIV | R6: 004DIV | S6: 010DIV | T6: 040DIV | U6: 008DIV | V6: 016DIV | W6: 020DIV | X6: 014DIV | Y6: 015DIV | Z6: 019DIV | AA6: 040DIV | AB6: 005DIV | AC6: 021DIV | AD6: 099DIV | AE6: 095DIV | AF6: 091DIV | AG6: 098DIV | AH6: 092DIV | AI6: 070DIV | AJ6: 072DIV | AK6: 093DIV | AL6: 097DIV | AM6: 096DIV | AN6: 009DIV | AO6: 071DIV | AP6: COLODV | AQ6: 030DIV | AR6: KANSDV | AS6: 172DIV | AT6: 170DIV | AU6: 171DIV | AV6: 190DIV | AW6: 700DIV | AX6: 830DIV
D7: AU010CAL | E7: AU010SSU | F7: AU020GOF | G7: AU020LGS | H7: AU020TLA | I7: AU020TLAC | J7: AU030AMR | K7: AU030AMREL | L7: AU030AMRRU | M7: AU030ATR | N7: AU030DHT | O7: AU030DHTIR | P7: AU030DHTRU | Q7: AU030F10 | R7: AU030FSD | S7: AU030GOF | U7: AU030IRR | V7: AU030LUB | W7: AU030LUBEN | X7: AU030NIN | Y7: AU030RIN | Z7: AU030TRI | AA7: AU030TXCNG | AB7: AU030WTX | AC7: AU030WTXRU | AD7: AU050FTB | AE7: AU050GA | AF7: AU050GOF | AG7: AU050IA | AH7: AU050IL | AI7: AU050KVL | AJ7: AU050SEA | AK7: AU050TN | AL7: AU050UCG | AM7: AU050VA | AN7: AU050WKG | AO7: AU060BTR | AP7: AU060CO | AQ7: AU060GOF | AR7: AU060KS | AS7: AU070172 | AT7: AU070MVG | AU7: AU070PBR | AV7: AU080GOF | AW7: AU180APT | AX7: AU210
C8: TOTAL | D8: Atmos Utility Call Center | E8: Atmos Energy Corporation | F8: Louisiana Division - General Office | G8: Louisiana Division - LGS | H8: Louisiana Division - Trans LA | I8: Trans LA CNG Division | J8: West Texas Division - Amarillo City Plant Division | K8: West Texas Division - Amarillo Elimination Division | L8: West Texas Division - Amarillo Rural Division | M8: West Texas Division - Amarillo Transmission | N8: West Texas Division - Dalhart | O8: West Texas Division - Dalhart Rural Irrigation Division | P8: West Texas Division - Dalhart Rural Division | Q8: West Texas Division - Fain 10 | R8: West Texas Division - Fritch, Sanford | S8: West Texas Division - Texas General Office | U8: West Texas Division - Irrigation | V8: West Texas Division - Lubbock City Plant | W8: West Texas Division - Lubbock Environs | X8: West Texas Division - Non-Reg Industrial | Y8: West Texas Division - Reg Industrial | Z8: West Texas Division - Triangle | AA8: West Texas Division - TX CNG | AB8: West Texas Division - West Texas City Plant Division | AC8: West Texas Division - West Texas Rural Division | AD8: Mid States Division - Missouri - Ft Benning | AE8: Mid States Division - Georgia | AF8: Mid States Division - General Office | AG8: Mid States Division - Iowa | AH8: Mid States Division - Illinois | AI8: Mid States Division - Missouri - Kirsville | AJ8: Mid States Division - Missouri - Southeast | AK8: Mid States Division - Tennessee | AL8: Mid States Division - Missouri - UCG | AM8: Mid States Division - Virginia | AN8: Mid States Division - Kentucky | AO8: Colorado-Kansas Division - Butler | AP8: Colorado-Kansas Division - CO | AQ8: Colorado-Kansas Division - General Office | AR8: Colorado-Kansas Division - KS | AS8: Mississippi Valley Gas Division 172 | AT8: Mississippi Valley Gas Division - MVG | AU8: Mississippi Valley Gas Division - MS PBR | AV8: Mid Tex Gas Division | AW8: Atmos Pipeline - Texas | AX8: Blueflame Insurance Services
A9: Code | B9: Name | C9: Ending Balance | D9: Ending Balance | E9: Ending Balance | F9: Ending Balance | G9: Ending Balance | H9: Ending Balance | I9: Ending Balance | J9: Ending Balance | K9: Ending Balance | L9: Ending Balance | M9: Ending Balance | N9: Ending Balance | O9: Ending Balance | P9: Ending Balance | Q9: Ending Balance | R9: Ending Balance | S9: Ending Balance | U9: Ending Balance | V9: Ending Balance | W9: Ending Balance | X9: Ending Balance | Y9: Ending Balance | Z9: Ending Balance | AA9: Ending Balance | AB9: Ending Balance | AC9: Ending Balance | AD9: Ending Balance | AE9: Ending Balance | AF9: Ending Balance | AG9: Ending Balance | AH9: Ending Balance | AI9: Ending Balance | AJ9: Ending Balance | AK9: Ending Balance | AL9: Ending Balance | AM9: Ending Balance | AN9: Ending Balance | AO9: Ending Balance | AP9: Ending Balance | AQ9: Ending Balance | AR9: Ending Balance | AS9: Ending Balance | AT9: Ending Balance | AU9: Ending Balance | AV9: Ending Balance | AW9: Ending Balance | AX9: Ending Balance
A10: ACC02 | B10: Ad Valorum Taxes | C10: -3849045 | D10: 0 | E10: 0 | F10: 0 | G10: 0 | H10: 0 | I10: 0 | J10: 0 | K10: 0 | L10: 0 | M10: 0 | N10: 0 | O10: 0 | P10: 0 | Q10: 0 | R10: 0 | S10: -240591 | U10: 0 | V10: 0 | W10: 0 | X10: 0 | Y10: 0 | Z10: 0 | AA10: 0 | AB10: 0 | AC10: 0 | AD10: 0 | AE10: 0 | AF10: 0 | AG10: 0 | AH10: 0 | AI10: 0 | AJ10: 0 | AK10: 0 | AL10: 0 | AM10: 0 | AN10: 0 | AO10: 0 | AP10: 0 | AQ10: 0 | AR10: 0 | AS10: 0 | AT10: -698536 | AU10: 0 | AV10: -1548666 | AW10: -1361251 | AX10: 0
A11: ACC03 | B11: Directors Deferred Bonus | C11: 166965 | D11: 0 | E11: 166965 | F11: 0 | G11: 0 | H11: 0 | I11: 0 | J11: 0 | K11: 0 | L11: 0 | M11: 0 | N11: 0 | O11: 0 | P11: 0 | Q11: 0 | R11: 0 | S11: 0 | U11: 0 | V11: 0 | W11: 0 | X11: 0 | Y11: 0 | Z11: 0 | AA11: 0 | AB11: 0 | AC11: 0 | AD11: 0 | AE11: 0 | AF11: 0 | AG11: 0 | AH11: 0 | AI11: 0 | AJ11: 0 | AK11: 0 | AL11: 0 | AM11: 0 | AN11: 0 | AO11: 0 | AP11: 0 | AQ11: 0 | AR11: 0 | AS11: 0 | AT11: 0 | AU11: 0 | AV11: 0 | AW11: 0 | AX11: 0
A12: ACC04 | B12: MIP / VPP Accrual | C12: 703251 | D12: -574777 | E12: 1498907 | F12: -14909 | G12: 257096 | H12: -251542 | I12: 0 | J12: -30069 | K12: 0 | L12: 0 | M12: 0 | N12: 0 | O12: 0 | P12: 0 | Q12: 0 | R12: 0 | S12: 24622 | U12: 0 | V12: 0 | W12: 0 | X12: 0 | Y12: 0 | Z12: 0 | AA12: 0 | AB12: 0 | AC12: 0 | AD12: 0 | AE12: 0 | AF12: -17997 | AG12: 0 | AH12: 0 | AI12: 0 | AJ12: 0 | AK12: 0 | AL12: 0 | AM12: 0 | AN12: -18182 | AO12: 0 | AP12: -42799 | AQ12: 110367 | AR12: -100571 | AS12: 0 | AT12: -46912 | AU12: 0 | AV12: -1940489 | AW12: 1850506 | AX12: 0
A13: ACC06 | B13: Miscellaneous Accrued | C13: 0 | D13: 0 | E13: 0 | F13: 0 | G13: 0 | H13: 0 | I13: 0 | J13: 0 | K13: 0 | L13: 0 | M13: 0 | N13: 0 | O13: 0 | P13: 0 | Q13: 0 | R13: 0 | S13: 0 | U13: 0 | V13: 0 | W13: 0 | X13: 0 | Y13: 0 | Z13: 0 | AA13: 0 | AB13: 0 | AC13: 0 | AD13: 0 | AE13: 0 | AF13: 0 | AG13: 0 | AH13: 0 | AI13: 0 | AJ13: 0 | AK13: 0 | AL13: 0 | AM13: 0 | AN13: 0 | AO13: 0 | AP13: 0 | AQ13: 0 | AR13: 0 | AS13: 0 | AT13: 0 | AU13: 0 | AV13: 0 | AW13: 0 | AX13: 0
A14: ACC08 | B14: Self Insurance - Adjustment | C14: 2915283 | D14: 0 | E14: 2915283 | F14: 0 | G14: 0 | H14: 0 | I14: 0 | J14: 0 | K14: 0 | L14: 0 | M14: 0 | N14: 0 | O14: 0 | P14: 0 | Q14: 0 | R14: 0 | S14: 0 | U14: 0 | V14: 0 | W14: 0 | X14: 0 | Y14: 0 | Z14: 0 | AA14: 0 | AB14: 0 | AC14: 0 | AD14: 0 | AE14: 0 | AF14: 0 | AG14: 0 | AH14: 0 | AI14: 0 | AJ14: 0 | AK14: 0 | AL14: 0 | AM14: 0 | AN14: 0 | AO14: 0 | AP14: 0 | AQ14: 0 | AR14: 0 | AS14: 0 | AT14: 0 | AU14: 0 | AV14: 0 | AW14: 0 | AX14: 0
A15: ACC11 | B15: Vacation Accrual | C15: 0 | D15: 0 | E15: 0 | F15: 0 | G15: 0 | H15: 0 | I15: 0 | J15: 0 | K15: 0 | L15: 0 | M15: 0 | N15: 0 | O15: 0 | P15: 0 | Q15: 0 | R15: 0 | S15: 0 | U15: 0 | V15: 0 | W15: 0 | X15: 0 | Y15: 0 | Z15: 0 | AA15: 0 | AB15: 0 | AC15: 0 | AD15: 0 | AE15: 0 | AF15: 0 | AG15: 0 | AH15: 0 | AI15: 0 | AJ15: 0 | AK15: 0 | AL15: 0 | AM15: 0 | AN15: 0 | AO15: 0 | AP15: 0 | AQ15: 0 | AR15: 0 | AS15: 0 | AT15: 0 | AU15: 0 | AV15: 0 | AW15: 0 | AX15: 0
A16: ACC12 | B16: Worker's Comp Insurance Reserve | C16: 2161790 | D16: 0 | E16: 104671 | F16: 231330 | G16: 0 | H16: 0 | I16: 0 | J16: 0 | K16: 0 | L16: 0 | M16: 0 | N16: 0 | O16: 0 | P16: 0 | Q16: 0 | R16: 0 | S16: 177904 | U16: 0 | V16: 0 | W16: 0 | X16: 0 | Y16: 0 | Z16: 0 | AA16: 0 | AB16: 0 | AC16: 0 | AD16: 0 | AE16: 0 | AF16: 428980 | AG16: 0 | AH16: 0 | AI16: 0 | AJ16: 0 | AK16: 0 | AL16: 0 | AM16: 0 | AN16: 0 | AO16: 0 | AP16: -85314 | AQ16: 337569 | AR16: 0 | AS16: 0 | AT16: 299808 | AU16: 0 | AV16: 525321 | AW16: 141522 | AX16: 0
A17: TAX23 | B17: Alternative Minimum Tax Credit | C17: 10099286 | D17: 0 | E17: 10099286 | F17: 0 | G17: 0 | H17: 0 | I17: 0 | J17: 0 | K17: 0 | L17: 0 | M17: 0 | N17: 0 | O17: 0 | P17: 0 | Q17: 0 | R17: 0 | S17: 0 | U17: 0 | V17: 0 | W17: 0 | X17: 0 | Y17: 0 | Z17: 0 | AA17: 0 | AB17: 0 | AC17: 0 | AD17: 0 | AE17: 0 | AF17: 0 | AG17: 0 | AH17: 0 | AI17: 0 | AJ17: 0 | AK17: 0 | AL17: 0 | AM17: 0 | AN17: 0 | AO17: 0 | AP17: 0 | AQ17: 0 | AR17: 0 | AS17: 0 | AT17: 0 | AU17: 0 | AV17: 0 | AW17: 0 | AX17: 0
A18: ATTD_FAS115 | B18: Federal FAS 115 Adjustment | C18: -2412031 | D18: 0 | E18: -2379554 | F18: 0 | G18: 0 | H18: 0 | I18: 0 | J18: 0 | K18: 0 | L18: 0 | M18: 0 | N18: 0 | O18: 0 | P18: 0 | Q18: 0 | R18: 0 | S18: 0 | U18: 0 | V18: 0 | W18: 0 | X18: 0 | Y18: 0 | Z18: 0 | AA18: 0 | AB18: 0 | AC18: 0 | AD18: 0 | AE18: 0 | AF18: 0 | AG18: 0 | AH18: 0 | AI18: 0 | AJ18: 0 | AK18: 0 | AL18: 0 | AM18: 0 | AN18: 0 | AO18: 0 | AP18: 0 | AQ18: 0 | AR18: 0 | AS18: 0 | AT18: 0 | AU18: 0 | AV18: 0 | AW18: 0 | AX18: -32477
A19: TAX10 | B19: Federal Other Adjustment | C19: 0 | D19: 0 | E19: 0 | F19: 0 | G19: 0 | H19: 0 | I19: 0 | J19: 0 | K19: 0 | L19: 0 | M19: 0 | N19: 0 | O19: 0 | P19: 0 | Q19: 0 | R19: 0 | S19: 0 | U19: 0 | V19: 0 | W19: 0 | X19: 0 | Y19: 0 | Z19: 0 | AA19: 0 | AB19: 0 | AC19: 0 | AD19: 0 | AE19: 0 | AF19: 0 | AG19: 0 | AH19: 0 | AI19: 0 | AJ19: 0 | AK19: 0 | AL19: 0 | AM19: 0 | AN19: 0 | AO19: 0 | AP19: 0 | AQ19: 0 | AR19: 0 | AS19: 0 | AT19: 0 | AU19: 0 | AV19: 0 | AW19: 0 | AX19: 0
A20: ATTD_TREAS_REAL | B20: Federal Treasury Lock Adj - Realized | C20: 14765954 | D20: 0 | E20: 14765954 | F20: 0 | G20: 0 | H20: 0 | I20: 0 | J20: 0 | K20: 0 | L20: 0 | M20: 0 | N20: 0 | O20: 0 | P20: 0 | Q20: 0 | R20: 0 | S20: 0 | U20: 0 | V20: 0 | W20: 0 | X20: 0 | Y20: 0 | Z20: 0 | AA20: 0 | AB20: 0 | AC20: 0 | AD20: 0 | AE20: 0 | AF20: 0 | AG20: 0 | AH20: 0 | AI20: 0 | AJ20: 0 | AK20: 0 | AL20: 0 | AM20: 0 | AN20: 0 | AO20: 0 | AP20: 0 | AQ20: 0 | AR20: 0 | AS20: 0 | AT20: 0 | AU20: 0 | AV20: 0 | AW20: 0 | AX20: 0
A21: ATTD_TREAS_UNREAL | B21: Federal Treasury Lock Adj - Unrealized | C21: 88601163 | D21: 0 | E21: 88601163 | F21: 0 | G21: 0 | H21: 0 | I21: 0 | J21: 0 | K21: 0 | L21: 0 | M21: 0 | N21: 0 | O21: 0 | P21: 0 | Q21: 0 | R21: 0 | S21: 0 | U21: 0 | V21: 0 | W21: 0 | X21: 0 | Y21: 0 | Z21: 0 | AA21: 0 | AB21: 0 | AC21: 0 | AD21: 0 | AE21: 0 | AF21: 0 | AG21: 0 | AH21: 0 | AI21: 0 | AJ21: 0 | AK21: 0 | AL21: 0 | AM21: 0 | AN21: 0 | AO21: 0 | AP21: 0 | AQ21: 0 | AR21: 0 | AS21: 0 | AT21: 0 | AU21: 0 | AV21: 0 | AW21: 0 | AX21: 0
A22: CAP01 | B22: Customer Advances | C22: 3594669 | D22: 0 | E22: 0 | F22: 0 | G22: 1516680 | H22: 465413 | I22: 0 | J22: 41705 | K22: 0 | L22: 22998 | M22: 0 | N22: 6233 | O22: 0 | P22: 0 | Q22: 0 | R22: 0 | S22: 0 | U22: 13915 | V22: 3613 | W22: 9708 | X22: 0 | Y22: 0 | Z22: 0 | AA22: 0 | AB22: 138705 | AC22: 93013 | AD22: 0 | AE22: 0 | AF22: 0 | AG22: 0 | AH22: 0 | AI22: 0 | AJ22: 0 | AK22: 27892 | AL22: 0 | AM22: 88953 | AN22: 608936 | AO22: 0 | AP22: 282917 | AQ22: 0 | AR22: 227572 | AS22: 0 | AT22: 46416 | AU22: 0 | AV22: 0 | AW22: 0 | AX22: 0
A23: DTE09 | B23: Deferred Expense Projects | C23: -94889 | D23: 0 | E23: 0 | F23: 0 | G23: 0 | H23: 0 | I23: 0 | J23: -3922 | K23: 0 | L23: 7749 | M23: -3948 | N23: 0 | O23: 0 | P23: 0 | Q23: 0 | R23: 0 | S23: -13268 | U23: 0 | V23: 0 | W23: 0 | X23: 0 | Y23: 0 | Z23: 0 | AA23: 0 | AB23: 0 | AC23: 0 | AD23: 0 | AE23: 0 | AF23: 0 | AG23: 0 | AH23: 0 | AI23: 0 | AJ23: 0 | AK23: 0 | AL23: 0 | AM23: 0 | AN23: -12450 | AO23: 0 | AP23: -2050 | AQ23: 0 | AR23: -38043 | AS23: 0 | AT23: 0 | AU23: 0 | AV23: -4167 | AW23: -24791 | AX23: 0
A24: DTE12 | B24: Amortization - LGS Acq. 1860.14155 | C24: -1104623 | D24: 0 | E24: 0 | F24: 0 | G24: -1104623 | H24: 0 | I24: 0 | J24: 0 | K24: 0 | L24: 0 | M24: 0 | N24: 0 | O24: 0 | P24: 0 | Q24: 0 | R24: 0 | S24: 0 | U24: 0 | V24: 0 | W24: 0 | X24: 0 | Y24: 0 | Z24: 0 | AA24: 0 | AB24: 0 | AC24: 0 | AD24: 0 | AE24: 0 | AF24: 0 | AG24: 0 | AH24: 0 | AI24: 0 | AJ24: 0 | AK24: 0 | AL24: 0 | AM24: 0 | AN24: 0 | AO24: 0 | AP24: 0 | AQ24: 0 | AR24: 0 | AS24: 0 | AT24: 0 | AU24: 0 | AV24: 0 | AW24: 0 | AX24: 0
A25: DVA05 | B25: RAR 91/93 Bond Cost Amortized | C25: 28302 | D25: 0 | E25: 0 | F25: 0 | G25: 0 | H25: 0 | I25: 0 | J25: 0 | K25: 0 | L25: 0 | M25: 0 | N25: 0 | O25: 0 | P25: 0 | Q25: 0 | R25: 0 | S25: 0 | U25: 0 | V25: 0 | W25: 0 | X25: 0 | Y25: 0 | Z25: 0 | AA25: 0 | AB25: 0 | AC25: 0 | AD25: 0 | AE25: 0 | AF25: 28302 | AG25: 0 | AH25: 0 | AI25: 0 | AJ25: 0 | AK25: 0 | AL25: 0 | AM25: 0 | AN25: 0 | AO25: 0 | AP25: 0 | AQ25: 0 | AR25: 0 | AS25: 0 | AT25: 0 | AU25: 0 | AV25: 0 | AW25: 0 | AX25: 0
A26: DVA18 | B26: DIG on Fixed Assets - UCG Storage | C26: -1171621 | D26: 0 | E26: 0 | F26: 0 | G26: 0 | H26: 0 | I26: 0 | J26: 0 | K26: 0 | L26: 0 | M26: 0 | N26: 0 | O26: 0 | P26: 0 | Q26: 0 | R26: 0 | S26: 0 | U26: 0 | V26: 0 | W26: 0 | X26: 0 | Y26: 0 | Z26: 0 | AA26: 0 | AB26: 0 | AC26: 0 | AD26: 0 | AE26: 0 | AF26: -1171621 | AG26: 0 | AH26: 0 | AI26: 0 | AJ26: 0 | AK26: 0 | AL26: 0 | AM26: 0 | AN26: 0 | AO26: 0 | AP26: 0 | AQ26: 0 | AR26: 0 | AS26: 0 | AT26: 0 | AU26: 0 | AV26: 0 | AW26: 0 | AX26: 0
A27: DVA26 | B27: RAR 86/90 Lease Expense Amortization | C27: -153717 | D27: 0 | E27: 0 | F27: 0 | G27: 0 | H27: 0 | I27: 0 | J27: 0 | K27: 0 | L27: 0 | M27: 0 | N27: 0 | O27: 0 | P27: 0 | Q27: 0 | R27: 0 | S27: 0 | U27: 0 | V27: 0 | W27: 0 | X27: 0 | Y27: 0 | Z27: 0 | AA27: 0 | AB27: 0 | AC27: 0 | AD27: 0 | AE27: 0 | AF27: -153717 | AG27: 0 | AH27: 0 | AI27: 0 | AJ27: 0 | AK27: 0 | AL27: 0 | AM27: 0 | AN27: 0 | AO27: 0 | AP27: 0 | AQ27: 0 | AR27: 0 | AS27: 0 | AT27: 0 | AU27: 0 | AV27: 0 | AW27: 0 | AX27: 0
A28: DVA35 | B28: MVG Right of Way | C28: -4286703 | D28: 0 | E28: 0 | F28: 0 | G28: 0 | H28: 0 | I28: 0 | J28: 0 | K28: 0 | L28: 0 | M28: 0 | N28: 0 | O28: 0 | P28: 0 | Q28: 0 | R28: 0 | S28: 0 | U28: 0 | V28: 0 | W28: 0 | X28: 0 | Y28: 0 | Z28: 0 | AA28: 0 | AB28: 0 | AC28: 0 | AD28: 0 | AE28: 0 | AF28: 0 | AG28: 0 | AH28: 0 | AI28: 0 | AJ28: 0 | AK28: 0 | AL28: 0 | AM28: 0 | AN28: 0 | AO28: 0 | AP28: 0 | AQ28: 0 | AR28: 0 | AS28: 0 | AT28: -4286703 | AU28: 0 | AV28: 0 | AW28: 0 | AX28: 0
A29: DVA37 | B29: Amortization - Comfurt Goodwill | C29: -359490 | D29: 0 | E29: 0 | F29: 0 | G29: 0 | H29: 0 | I29: 0 | J29: 0 | K29: 0 | L29: 0 | M29: 0 | N29: 0 | O29: 0 | P29: 0 | Q29: 0 | R29: 0 | S29: 0 | U29: 0 | V29: 0 | W29: 0 | X29: 0 | Y29: 0 | Z29: 0 | AA29: 0 | AB29: 0 | AC29: 0 | AD29: 0 | AE29: 0 | AF29: 0 | AG29: 0 | AH29: 0 | AI29: 0 | AJ29: 0 | AK29: 0 | AL29: 0 | AM29: 0 | AN29: 0 | AO29: 0 | AP29: -359490 | AQ29: 0 | AR29: 0 | AS29: 0 | AT29: 0 | AU29: 0 | AV29: 0 | AW29: 0 | AX29: 0
A30: FXA01 | B30: Fixed Asset Cost Adjustment | C30: -1877749864 | D30: -45459621 | E30: -42023581 | F30: -300426 | G30: -78904651 | H30: -33246931 | I30: 0 | J30: -14935370 | K30: 0 | L30: -1579333 | M30: -49661 | N30: -554931 | O30: -179073 | P30: -5211 | Q30: 23134 | R30: -73414 | S30: =-382672 -> -382672 | U30: 10364633 | V30: -23334820 | W30: -1597975 | X30: 0 | Y30: 0 | Z30: -6101545 | AA30: 0 | AB30: -51229099 | AC30: -7598137 | AD30: 73868 | AE30: 3105321 | AF30: -1442884 | AG30: 117686 | AH30: 716430 | AI30: 199096 | AJ30: 1598864 | AK30: -50309424 | AL30: 1938202 | AM30: -12243086 | AN30: -78351671 | AO30: -3427 | AP30: -29529866 | AQ30: 45256 | AR30: -42642305 | AS30: 0 | AT30: -69146330 | AU30: -732760 | AV30: -846449776 | AW30: -457524372 | AX30: 0
A31: FXA02 | B31: Depreciation Adjustment | C31: -186987645 | D31: 17798432 | E31: 17524367 | F31: 196895 | G31: -30738422 | H31: -23719136 | I31: 0 | J31: -15614565 | K31: 0 | L31: -159340 | M31: -60447 | N31: -667710 | O31: 176392 | P31: 6820 | Q31: -23055 | R31: -65736 | S31: =-647755--19514 -> -628241 | T31: -19513.995 | U31: -10329380 | V31: -9515611 | W31: -544788 | X31: 0 | Y31: 0 | Z31: -3048024 | AA31: 0 | AB31: -20081569 | AC31: -4569988 | AD31: -73869 | AE31: -3190306 | AF31: 207582 | AG31: -117686 | AH31: -716430 | AI31: -199096 | AJ31: -1598863 | AK31: -32863995 | AL31: -1938201 | AM31: -6309353 | AN31: -16600785 | AO31: -370532 | AP31: -9049338 | AQ31: -294607 | AR31: -27083048 | AS31: 0 | AT31: -49770366 | AU31: 21676 | AV31: 77104231 | AW31: -30062037 | AX31: 0
A32: FXA03 | B32: Book Gain/Loss on Sale of FA | C32: 0 | D32: 0 | E32: 0 | F32: 0 | G32: 0 | H32: 0 | I32: 0 | J32: 0 | K32: 0 | L32: 0 | M32: 0 | N32: 0 | O32: 0 | P32: 0 | Q32: 0 | R32: 0 | S32: 0 | U32: 0 | V32: 0 | W32: 0 | X32: 0 | Y32: 0 | Z32: 0 | AA32: 0 | AB32: 0 | AC32: 0 | AD32: 0 | AE32: 0 | AF32: 0 | AG32: 0 | AH32: 0 | AI32: 0 | AJ32: 0 | AK32: 0 | AL32: 0 | AM32: 0 | AN32: 0 | AO32: 0 | AP32: 0 | AQ32: 0 | AR32: 0 | AS32: 0 | AT32: 0 | AU32: 0 | AV32: 0 | AW32: 0 | AX32: 0
A33: FXA04 | B33: Tax Gain/Loss on Sale of FA | C33: 0 | D33: 0 | E33: 0 | F33: 0 | G33: 0 | H33: 0 | I33: 0 | J33: 0 | K33: 0 | L33: 0 | M33: 0 | N33: 0 | O33: 0 | P33: 0 | Q33: 0 | R33: 0 | S33: 0 | U33: 0 | V33: 0 | W33: 0 | X33: 0 | Y33: 0 | Z33: 0 | AA33: 0 | AB33: 0 | AC33: 0 | AD33: 0 | AE33: 0 | AF33: 0 | AG33: 0 | AH33: 0 | AI33: 0 | AJ33: 0 | AK33: 0 | AL33: 0 | AM33: 0 | AN33: 0 | AO33: 0 | AP33: 0 | AQ33: 0 | AR33: 0 | AS33: 0 | AT33: 0 | AU33: 0 | AV33: 0 | AW33: 0 | AX33: 0
A34: FXA06 | B34: Software Capitalized per Books | C34: 0 | D34: 0 | E34: 0 | F34: 0 | G34: 0 | H34: 0 | I34: 0 | J34: 0 | K34: 0 | L34: 0 | M34: 0 | N34: 0 | O34: 0 | P34: 0 | Q34: 0 | R34: 0 | S34: 0 | U34: 0 | V34: 0 | W34: 0 | X34: 0 | Y34: 0 | Z34: 0 | AA34: 0 | AB34: 0 | AC34: 0 | AD34: 0 | AE34: 0 | AF34: 0 | AG34: 0 | AH34: 0 | AI34: 0 | AJ34: 0 | AK34: 0 | AL34: 0 | AM34: 0 | AN34: 0 | AO34: 0 | AP34: 0 | AQ34: 0 | AR34: 0 | AS34: 0 | AT34: 0 | AU34: 0 | AV34: 0 | AW34: 0 | AX34: 0
A35: FXA07 | B35: Aid in Construction Adjustment | C35: 0 | D35: 0 | E35: 0 | F35: 0 | G35: 0 | H35: 0 | I35: 0 | J35: 0 | K35: 0 | L35: 0 | M35: 0 | N35: 0 | O35: 0 | P35: 0 | Q35: 0 | R35: 0 | S35: 0 | U35: 0 | V35: 0 | W35: 0 | X35: 0 | Y35: 0 | Z35: 0 | AA35: 0 | AB35: 0 | AC35: 0 | AD35: 0 | AE35: 0 | AF35: 0 | AG35: 0 | AH35: 0 | AI35: 0 | AJ35: 0 | AK35: 0 | AL35: 0 | AM35: 0 | AN35: 0 | AO35: 0 | AP35: 0 | AQ35: 0 | AR35: 0 | AS35: 0 | AT35: 0 | AU35: 0 | AV35: 0 | AW35: 0 | AX35: 0
A36: FXA09 | B36: Capitalized Interest Adjustment | C36: 0 | D36: 0 | E36: 0 | F36: 0 | G36: 0 | H36: 0 | I36: 0 | J36: 0 | K36: 0 | L36: 0 | M36: 0 | N36: 0 | O36: 0 | P36: 0 | Q36: 0 | R36: 0 | S36: 0 | U36: 0 | V36: 0 | W36: 0 | X36: 0 | Y36: 0 | Z36: 0 | AA36: 0 | AB36: 0 | AC36: 0 | AD36: 0 | AE36: 0 | AF36: 0 | AG36: 0 | AH36: 0 | AI36: 0 | AJ36: 0 | AK36: 0 | AL36: 0 | AM36: 0 | AN36: 0 | AO36: 0 | AP36: 0 | AQ36: 0 | AR36: 0 | AS36: 0 | AT36: 0 | AU36: 0 | AV36: 0 | AW36: 0 | AX36: 0
A37: FXA10 | B37: Capitalized Overhead Adjustment | C37: 0 | D37: 0 | E37: 0 | F37: 0 | G37: 0 | H37: 0 | I37: 0 | J37: 0 | K37: 0 | L37: 0 | M37: 0 | N37: 0 | O37: 0 | P37: 0 | Q37: 0 | R37: 0 | S37: 0 | U37: 0 | V37: 0 | W37: 0 | X37: 0 | Y37: 0 | Z37: 0 | AA37: 0 | AB37: 0 | AC37: 0 | AD37: 0 | AE37: 0 | AF37: 0 | AG37: 0 | AH37: 0 | AI37: 0 | AJ37: 0 | AK37: 0 | AL37: 0 | AM37: 0 | AN37: 0 | AO37: 0 | AP37: 0 | AQ37: 0 | AR37: 0 | AS37: 0 | AT37: 0 | AU37: 0 | AV37: 0 | AW37: 0 | AX37: 0
A38: FXA13 | B38: Section 481(a) Cushion Gas | C38: 549209 | D38: 0 | E38: 549209 | F38: 0 | G38: 0 | H38: 0 | I38: 0 | J38: 0 | K38: 0 | L38: 0 | M38: 0 | N38: 0 | O38: 0 | P38: 0 | Q38: 0 | R38: 0 | S38: 0 | U38: 0 | V38: 0 | W38: 0 | X38: 0 | Y38: 0 | Z38: 0 | AA38: 0 | AB38: 0 | AC38: 0 | AD38: 0 | AE38: 0 | AF38: 0 | AG38: 0 | AH38: 0 | AI38: 0 | AJ38: 0 | AK38: 0 | AL38: 0 | AM38: 0 | AN38: 0 | AO38: 0 | AP38: 0 | AQ38: 0 | AR38: 0 | AS38: 0 | AT38: 0 | AU38: 0 | AV38: 0 | AW38: 0 | AX38: 0
A39: FXA14 | B39: Section 481(a) Line Pack Gas | C39: 66639 | D39: 0 | E39: 66639 | F39: 0 | G39: 0 | H39: 0 | I39: 0 | J39: 0 | K39: 0 | L39: 0 | M39: 0 | N39: 0 | O39: 0 | P39: 0 | Q39: 0 | R39: 0 | S39: 0 | U39: 0 | V39: 0 | W39: 0 | X39: 0 | Y39: 0 | Z39: 0 | AA39: 0 | AB39: 0 | AC39: 0 | AD39: 0 | AE39: 0 | AF39: 0 | AG39: 0 | AH39: 0 | AI39: 0 | AJ39: 0 | AK39: 0 | AL39: 0 | AM39: 0 | AN39: 0 | AO39: 0 | AP39: 0 | AQ39: 0 | AR39: 0 | AS39: 0 | AT39: 0 | AU39: 0 | AV39: 0 | AW39: 0 | AX39: 0
A40: FXA26 | B40: CWIP | C40: -15887055 | D40: -255614 | E40: 1707565 | F40: -63351 | G40: -1511093 | H40: -514217 | I40: 0 | J40: 112330 | K40: 0 | L40: -52400 | M40: 4 | N40: -15821 | O40: 176 | P40: 0 | Q40: 0 | R40: -97 | S40: =219538--852153 -> 1071691 | T40: -852153.455 | U40: 48 | V40: 222847 | W40: -9073 | X40: 0 | Y40: 0 | Z40: -104710 | AA40: 0 | AB40: 109799 | AC40: 147452 | AD40: 0 | AE40: 0 | AF40: 102324 | AG40: 0 | AH40: 0 | AI40: 0 | AJ40: 0 | AK40: -1699740 | AL40: 0 | AM40: -70523 | AN40: -2823186 | AO40: 0 | AP40: -587948 | AQ40: 60502 | AR40: -1886034 | AS40: 0 | AT40: -1684612 | AU40: -30878 | AV40: -7349404 | AW40: 89061 | AX40: 0
A41: FXA38 | B41: Capitalized Book Depreciation | C41: 0 | D41: 0 | E41: 0 | F41: 0 | G41: 0 | H41: 0 | I41: 0 | J41: 0 | K41: 0 | L41: 0 | M41: 0 | N41: 0 | O41: 0 | P41: 0 | Q41: 0 | R41: 0 | S41: 0 | U41: 0 | V41: 0 | W41: 0 | X41: 0 | Y41: 0 | Z41: 0 | AA41: 0 | AB41: 0 | AC41: 0 | AD41: 0 | AE41: 0 | AF41: 0 | AG41: 0 | AH41: 0 | AI41: 0 | AJ41: 0 | AK41: 0 | AL41: 0 | AM41: 0 | AN41: 0 | AO41: 0 | AP41: 0 | AQ41: 0 | AR41: 0 | AS41: 0 | AT41: 0 | AU41: 0 | AV41: 0 | AW41: 0 | AX41: 0
A42: FXA44 | B42: Repairs Deduction | C42: 0 | D42: 0 | E42: 0 | F42: 0 | G42: 0 | H42: 0 | I42: 0 | J42: 0 | K42: 0 | L42: 0 | M42: 0 | N42: 0 | O42: 0 | P42: 0 | Q42: 0 | R42: 0 | S42: 0 | U42: 0 | V42: 0 | W42: 0 | X42: 0 | Y42: 0 | Z42: 0 | AA42: 0 | AB42: 0 | AC42: 0 | AD42: 0 | AE42: 0 | AF42: 0 | AG42: 0 | AH42: 0 | AI42: 0 | AJ42: 0 | AK42: 0 | AL42: 0 | AM42: 0 | AN42: 0 | AO42: 0 | AP42: 0 | AQ42: 0 | AR42: 0 | AS42: 0 | AT42: 0 | AU42: 0 | AV42: 0 | AW42: 0 | AX42: 0
A43: FXA46 | B43: Section 481(a) TPR | C43: 0 | D43: 0 | E43: 0 | F43: 0 | G43: 0 | H43: 0 | I43: 0 | J43: 0 | K43: 0 | L43: 0 | M43: 0 | N43: 0 | O43: 0 | P43: 0 | Q43: 0 | R43: 0 | S43: 0 | U43: 0 | V43: 0 | W43: 0 | X43: 0 | Y43: 0 | Z43: 0 | AA43: 0 | AB43: 0 | AC43: 0 | AD43: 0 | AE43: 0 | AF43: 0 | AG43: 0 | AH43: 0 | AI43: 0 | AJ43: 0 | AK43: 0 | AL43: 0 | AM43: 0 | AN43: 0 | AO43: 0 | AP43: 0 | AQ43: 0 | AR43: 0 | AS43: 0 | AT43: 0 | AU43: 0 | AV43: 0 | AW43: 0 | AX43: 0
A44: FXA47 | B44: RWIP | C44: -6812819 | D44: -137 | E44: -3782 | F44: -8 | G44: -623207 | H44: -242492 | I44: 0 | J44: -197903 | K44: 0 | L44: -2540 | M44: -2209 | N44: -14469 | O44: -168 | P44: 0 | Q44: 0 | R44: -455 | S44: -143 | U44: 11353 | V44: -149171 | W44: -4030 | X44: 0 | Y44: 0 | Z44: -40686 | AA44: 0 | AB44: -269231 | AC44: -34910 | AD44: 0 | AE44: 0 | AF44: -273 | AG44: 0 | AH44: 0 | AI44: 0 | AJ44: 0 | AK44: -86225 | AL44: 0 | AM44: -27367 | AN44: -827485 | AO44: 0 | AP44: -212044 | AQ44: -138 | AR44: -213246 | AS44: 0 | AT44: -328604 | AU44: 0 | AV44: -3093019 | AW44: -450230 | AX44: 0
A45: GCA01 | B45: Deferred Gas Costs | C45: -16592784 | D45: 0 | E45: 0 | F45: 0 | G45: 106 | H45: 304135 | I45: 0 | J45: -97112 | K45: 0 | L45: 15108 | M45: 0 | N45: 1659 | O45: -40 | P45: 0 | Q45: 0 | R45: -1176 | S45: 0 | U45: 0 | V45: -123959 | W45: -4490 | X45: 0 | Y45: 0 | Z45: 0 | AA45: 0 | AB45: 1061130 | AC45: -17786 | AD45: 0 | AE45: 0 | AF45: 0 | AG45: 0 | AH45: 0 | AI45: 0 | AJ45: 0 | AK45: -1898103 | AL45: 0 | AM45: -274393 | AN45: -355656 | AO45: 0 | AP45: 3469890 | AQ45: 0 | AR45: -1361957 | AS45: 0 | AT45: 257227 | AU45: 0 | AV45: -17567368 | AW45: 0 | AX45: 0
A46: GCA03 | B46: Over Recoveries of PGA | C46: -38131812 | D46: 0 | E46: 0 | F46: 0 | G46: 0 | H46: -1784586 | I46: 0 | J46: 0 | K46: 0 | L46: 0 | M46: 0 | N46: 0 | O46: 0 | P46: 0 | Q46: 0 | R46: 0 | S46: 0 | U46: 0 | V46: 0 | W46: 0 | X46: 0 | Y46: 0 | Z46: 0 | AA46: 0 | AB46: -2715457 | AC46: 0 | AD46: 0 | AE46: 0 | AF46: 0 | AG46: 0 | AH46: 0 | AI46: 0 | AJ46: 0 | AK46: -40852 | AL46: 0 | AM46: -1529071 | AN46: -333873 | AO46: 0 | AP46: -4247630 | AQ46: 0 | AR46: -1 | AS46: 0 | AT46: -1814192 | AU46: 0 | AV46: -25666152 | AW46: 0 | AX46: 0
A47: ITC02 | B47: Deferred ITC - UCG Non-Utility | C47: 6484 | D47: 0 | E47: 0 | F47: 0 | G47: 0 | H47: 0 | I47: 0 | J47: 0 | K47: 0 | L47: 0 | M47: 0 | N47: 0 | O47: 0 | P47: 0 | Q47: 0 | R47: 0 | S47: 0 | U47: 0 | V47: 0 | W47: 0 | X47: 0 | Y47: 0 | Z47: 0 | AA47: 0 | AB47: 0 | AC47: 0 | AD47: 0 | AE47: 0 | AF47: 6484 | AG47: 0 | AH47: 0 | AI47: 0 | AJ47: 0 | AK47: 0 | AL47: 0 | AM47: 0 | AN47: 0 | AO47: 0 | AP47: 0 | AQ47: 0 | AR47: 0 | AS47: 0 | AT47: 0 | AU47: 0 | AV47: 0 | AW47: 0 | AX47: 0
A48: NBP03 | B48: SEBP Adjustment | C48: 32274987 | D48: 0 | E48: 26316340 | F48: 951051 | G48: 0 | H48: 36322 | I48: 0 | J48: 0 | K48: 0 | L48: 0 | M48: 0 | N48: 0 | O48: 0 | P48: 0 | Q48: 0 | R48: 0 | S48: 584416 | U48: 0 | V48: 0 | W48: 0 | X48: 0 | Y48: 0 | Z48: 0 | AA48: 0 | AB48: 0 | AC48: 0 | AD48: 0 | AE48: 0 | AF48: 1389076 | AG48: 0 | AH48: 0 | AI48: 0 | AJ48: 0 | AK48: 0 | AL48: 0 | AM48: 0 | AN48: 0 | AO48: 0 | AP48: 0 | AQ48: 196321 | AR48: 0 | AS48: 0 | AT48: 929264 | AU48: 0 | AV48: 660822 | AW48: 1211376 | AX48: 0
A49: NBP05 | B49: Restricted Stock Grant Plan | C49: 4631448 | D49: 0 | E49: 4631448 | F49: 0 | G49: 0 | H49: 0 | I49: 0 | J49: 0 | K49: 0 | L49: 0 | M49: 0 | N49: 0 | O49: 0 | P49: 0 | Q49: 0 | R49: 0 | S49: 0 | U49: 0 | V49: 0 | W49: 0 | X49: 0 | Y49: 0 | Z49: 0 | AA49: 0 | AB49: 0 | AC49: 0 | AD49: 0 | AE49: 0 | AF49: 0 | AG49: 0 | AH49: 0 | AI49: 0 | AJ49: 0 | AK49: 0 | AL49: 0 | AM49: 0 | AN49: 0 | AO49: 0 | AP49: 0 | AQ49: 0 | AR49: 0 | AS49: 0 | AT49: 0 | AU49: 0 | AV49: 0 | AW49: 0 | AX49: 0
A50: NBP06 | B50: Rabbi Trust | C50: 1442452 | D50: 0 | E50: 1442452 | F50: 0 | G50: 0 | H50: 0 | I50: 0 | J50: 0 | K50: 0 | L50: 0 | M50: 0 | N50: 0 | O50: 0 | P50: 0 | Q50: 0 | R50: 0 | S50: 0 | U50: 0 | V50: 0 | W50: 0 | X50: 0 | Y50: 0 | Z50: 0 | AA50: 0 | AB50: 0 | AC50: 0 | AD50: 0 | AE50: 0 | AF50: 0 | AG50: 0 | AH50: 0 | AI50: 0 | AJ50: 0 | AK50: 0 | AL50: 0 | AM50: 0 | AN50: 0 | AO50: 0 | AP50: 0 | AQ50: 0 | AR50: 0 | AS50: 0 | AT50: 0 | AU50: 0 | AV50: 0 | AW50: 0 | AX50: 0
A51: NBP13 | B51: Restricted Stock - MIP | C51: 12632356 | D51: 0 | E51: 12632356 | F51: 0 | G51: 0 | H51: 0 | I51: 0 | J51: 0 | K51: 0 | L51: 0 | M51: 0 | N51: 0 | O51: 0 | P51: 0 | Q51: 0 | R51: 0 | S51: 0 | U51: 0 | V51: 0 | W51: 0 | X51: 0 | Y51: 0 | Z51: 0 | AA51: 0 | AB51: 0 | AC51: 0 | AD51: 0 | AE51: 0 | AF51: 0 | AG51: 0 | AH51: 0 | AI51: 0 | AJ51: 0 | AK51: 0 | AL51: 0 | AM51: 0 | AN51: 0 | AO51: 0 | AP51: 0 | AQ51: 0 | AR51: 0 | AS51: 0 | AT51: 0 | AU51: 0 | AV51: 0 | AW51: 0 | AX51: 0
A52: NBP16 | B52: Director's Stock Awards | C52: 5939395 | D52: 0 | E52: 5939395 | F52: 0 | G52: 0 | H52: 0 | I52: 0 | J52: 0 | K52: 0 | L52: 0 | M52: 0 | N52: 0 | O52: 0 | P52: 0 | Q52: 0 | R52: 0 | S52: 0 | U52: 0 | V52: 0 | W52: 0 | X52: 0 | Y52: 0 | Z52: 0 | AA52: 0 | AB52: 0 | AC52: 0 | AD52: 0 | AE52: 0 | AF52: 0 | AG52: 0 | AH52: 0 | AI52: 0 | AJ52: 0 | AK52: 0 | AL52: 0 | AM52: 0 | AN52: 0 | AO52: 0 | AP52: 0 | AQ52: 0 | AR52: 0 | AS52: 0 | AT52: 0 | AU52: 0 | AV52: 0 | AW52: 0 | AX52: 0
A53: NBP22 | B53: Rabbi Trust Book Gain or Loss | C53: -310125 | D53: 0 | E53: -310125 | F53: 0 | G53: 0 | H53: 0 | I53: 0 | J53: 0 | K53: 0 | L53: 0 | M53: 0 | N53: 0 | O53: 0 | P53: 0 | Q53: 0 | R53: 0 | S53: 0 | U53: 0 | V53: 0 | W53: 0 | X53: 0 | Y53: 0 | Z53: 0 | AA53: 0 | AB53: 0 | AC53: 0 | AD53: 0 | AE53: 0 | AF53: 0 | AG53: 0 | AH53: 0 | AI53: 0 | AJ53: 0 | AK53: 0 | AL53: 0 | AM53: 0 | AN53: 0 | AO53: 0 | AP53: 0 | AQ53: 0 | AR53: 0 | AS53: 0 | AT53: 0 | AU53: 0 | AV53: 0 | AW53: 0 | AX53: 0
A54: NBP23 | B54: Rabbi Trust Tax Gain or Loss | C54: 310125 | D54: 0 | E54: 310125 | F54: 0 | G54: 0 | H54: 0 | I54: 0 | J54: 0 | K54: 0 | L54: 0 | M54: 0 | N54: 0 | O54: 0 | P54: 0 | Q54: 0 | R54: 0 | S54: 0 | U54: 0 | V54: 0 | W54: 0 | X54: 0 | Y54: 0 | Z54: 0 | AA54: 0 | AB54: 0 | AC54: 0 | AD54: 0 | AE54: 0 | AF54: 0 | AG54: 0 | AH54: 0 | AI54: 0 | AJ54: 0 | AK54: 0 | AL54: 0 | AM54: 0 | AN54: 0 | AO54: 0 | AP54: 0 | AQ54: 0 | AR54: 0 | AS54: 0 | AT54: 0 | AU54: 0 | AV54: 0 | AW54: 0 | AX54: 0
A55: NTE03 | B55: Capitalized Selling Expense | C55: 32484 | D55: 0 | E55: 0 | F55: 766 | G55: 1060 | H55: 0 | I55: 0 | J55: 7372 | K55: 0 | L55: 0 | M55: 0 | N55: 0 | O55: 0 | P55: 0 | Q55: 0 | R55: 0 | S55: -191 | U55: 0 | V55: 12171 | W55: 0 | X55: 0 | Y55: 0 | Z55: 0 | AA55: 0 | AB55: 0 | AC55: 0 | AD55: 0 | AE55: 0 | AF55: 0 | AG55: 0 | AH55: 0 | AI55: 0 | AJ55: 0 | AK55: 0 | AL55: 0 | AM55: 0 | AN55: 0 | AO55: 0 | AP55: 0 | AQ55: 0 | AR55: 0 | AS55: 0 | AT55: 11306 | AU55: 0 | AV55: 0 | AW55: 0 | AX55: 0
A56: NTE11 | B56: UNICAP Section 263A Costs | C56: 6439799 | D56: 0 | E56: 0 | F56: 91437 | G56: -6819 | H56: 0 | I56: 0 | J56: 0 | K56: 0 | L56: 0 | M56: 0 | N56: 0 | O56: 0 | P56: 0 | Q56: 0 | R56: 0 | S56: 259529 | U56: 0 | V56: 0 | W56: 0 | X56: 0 | Y56: 0 | Z56: 0 | AA56: 0 | AB56: 0 | AC56: 0 | AD56: 0 | AE56: 0 | AF56: 1965492 | AG56: 0 | AH56: 0 | AI56: 0 | AJ56: 0 | AK56: 0 | AL56: 0 | AM56: 0 | AN56: 0 | AO56: 0 | AP56: 0 | AQ56: 316116 | AR56: 60072 | AS56: 0 | AT56: 160385 | AU56: 0 | AV56: 3593587 | AW56: 0 | AX56: 0
A57: ONT02 | B57: Allowance for Doubtful Accounts | C57: 3912316 | D57: 0 | E57: 2 | F57: 0 | G57: 270803 | H57: 149307 | I57: 0 | J57: 107757 | K57: 0 | L57: 4402 | M57: 0 | N57: 3368 | O57: 463 | P57: 0 | Q57: 0 | R57: 1604 | S57: 21094 | U57: 1551 | V57: 101667 | W57: 6539 | X57: 0 | Y57: 0 | Z57: 40 | AA57: 0 | AB57: 198071 | AC57: 23790 | AD57: 0 | AE57: 0 | AF57: 15325 | AG57: 0 | AH57: 0 | AI57: 0 | AJ57: 0 | AK57: 205977 | AL57: 0 | AM57: 36372 | AN57: 266710 | AO57: 0 | AP57: 211731 | AQ57: 23832 | AR57: 133974 | AS57: 0 | AT57: 501315 | AU57: 0 | AV57: 1618585 | AW57: 8037 | AX57: 0
A58: ONT03 | B58: Clearing Account - Adjustment | C58: 0 | D58: 0 | E58: 0 | F58: 0 | G58: 0 | H58: 0 | I58: 0 | J58: 0 | K58: 0 | L58: 0 | M58: 0 | N58: 0 | O58: 0 | P58: 0 | Q58: 0 | R58: 0 | S58: 0 | U58: 0 | V58: 0 | W58: 0 | X58: 0 | Y58: 0 | Z58: 0 | AA58: 0 | AB58: 0 | AC58: 0 | AD58: 0 | AE58: 0 | AF58: 0 | AG58: 0 | AH58: 0 | AI58: 0 | AJ58: 0 | AK58: 0 | AL58: 0 | AM58: 0 | AN58: 0 | AO58: 0 | AP58: 0 | AQ58: 0 | AR58: 0 | AS58: 0 | AT58: 0 | AU58: 0 | AV58: 0 | AW58: 0 | AX58: 0
A59: ONT04 | B59: Charitable Contribution Carryover | C59: 11032917 | D59: 0 | E59: 11032917 | F59: 0 | G59: 0 | H59: 0 | I59: 0 | J59: 0 | K59: 0 | L59: 0 | M59: 0 | N59: 0 | O59: 0 | P59: 0 | Q59: 0 | R59: 0 | S59: 0 | U59: 0 | V59: 0 | W59: 0 | X59: 0 | Y59: 0 | Z59: 0 | AA59: 0 | AB59: 0 | AC59: 0 | AD59: 0 | AE59: 0 | AF59: 0 | AG59: 0 | AH59: 0 | AI59: 0 | AJ59: 0 | AK59: 0 | AL59: 0 | AM59: 0 | AN59: 0 | AO59: 0 | AP59: 0 | AQ59: 0 | AR59: 0 | AS59: 0 | AT59: 0 | AU59: 0 | AV59: 0 | AW59: 0 | AX59: 0
A60: ONT13 | B60: LGS - Goodwill Amortization | C60: -17536779 | D60: 0 | E60: 0 | F60: -839013 | G60: -16697782 | H60: 16 | I60: 0 | J60: 0 | K60: 0 | L60: 0 | M60: 0 | N60: 0 | O60: 0 | P60: 0 | Q60: 0 | R60: 0 | S60: 0 | U60: 0 | V60: 0 | W60: 0 | X60: 0 | Y60: 0 | Z60: 0 | AA60: 0 | AB60: 0 | AC60: 0 | AD60: 0 | AE60: 0 | AF60: 0 | AG60: 0 | AH60: 0 | AI60: 0 | AJ60: 0 | AK60: 0 | AL60: 0 | AM60: 0 | AN60: 0 | AO60: 0 | AP60: 0 | AQ60: 0 | AR60: 0 | AS60: 0 | AT60: 0 | AU60: 0 | AV60: 0 | AW60: 0 | AX60: 0
A61: ONT21 | B61: Union Gas - Non-Compete | C61: 407487 | D61: 0 | E61: 0 | F61: 0 | G61: 0 | H61: 0 | I61: 0 | J61: 0 | K61: 0 | L61: 0 | M61: 0 | N61: 0 | O61: 0 | P61: 0 | Q61: 0 | R61: 0 | S61: 0 | U61: 0 | V61: 0 | W61: 0 | X61: 0 | Y61: 0 | Z61: 0 | AA61: 0 | AB61: 0 | AC61: 0 | AD61: 0 | AE61: 0 | AF61: 407487 | AG61: 0 | AH61: 0 | AI61: 0 | AJ61: 0 | AK61: 0 | AL61: 0 | AM61: 0 | AN61: 0 | AO61: 0 | AP61: 0 | AQ61: 0 | AR61: 0 | AS61: 0 | AT61: 0 | AU61: 0 | AV61: 0 | AW61: 0 | AX61: 0
A62: ONT31 | B62: Prepayments | C62: -6624680 | D62: 0 | E62: -4047588 | F62: 0 | G62: -14047 | H62: -5501 | I62: 0 | J62: 0 | K62: 0 | L62: 0 | M62: 0 | N62: 0 | O62: 0 | P62: 0 | Q62: 0 | R62: 0 | S62: 0 | U62: 0 | V62: 0 | W62: 0 | X62: 0 | Y62: 0 | Z62: 0 | AA62: 0 | AB62: 0 | AC62: 0 | AD62: 0 | AE62: 0 | AF62: 0 | AG62: 0 | AH62: 0 | AI62: 0 | AJ62: 0 | AK62: -535151 | AL62: 0 | AM62: 0 | AN62: -90565 | AO62: 0 | AP62: -11752 | AQ62: 0 | AR62: 0 | AS62: 0 | AT62: 0 | AU62: 0 | AV62: -1335924 | AW62: -242237 | AX62: -341914
A63: ONT32 | B63: Rate Case Accrual | C63: -5752203 | D63: 0 | E63: 0 | F63: 0 | G63: -714 | H63: -1033 | I63: 0 | J63: 245979 | K63: 0 | L63: 8836 | M63: 0 | N63: 10349 | O63: 674 | P63: 0 | Q63: 0 | R63: 5171 | S63: -1081460 | U63: 4465 | V63: 244781 | W63: 16485 | X63: 0 | Y63: 0 | Z63: 1879 | AA63: 0 | AB63: 488532 | AC63: 50952 | AD63: 0 | AE63: 0 | AF63: 0 | AG63: 0 | AH63: 0 | AI63: 0 | AJ63: 0 | AK63: -9813 | AL63: 0 | AM63: 0 | AN63: 0 | AO63: 0 | AP63: -137987 | AQ63: 0 | AR63: -299496 | AS63: 0 | AT63: 0 | AU63: 0 | AV63: -5600 | AW63: -5294205 | AX63: 0
A64: ONT33 | B64: Research and Development Expenses | C64: 186850 | D64: 0 | E64: 0 | F64: 0 | G64: 0 | H64: 0 | I64: 0 | J64: 0 | K64: 0 | L64: 0 | M64: 0 | N64: 0 | O64: 0 | P64: 0 | Q64: 0 | R64: 0 | S64: 0 | U64: 0 | V64: 0 | W64: 0 | X64: 0 | Y64: 0 | Z64: 0 | AA64: 0 | AB64: 0 | AC64: 0 | AD64: 0 | AE64: 0 | AF64: 0 | AG64: 0 | AH64: 0 | AI64: 0 | AJ64: 0 | AK64: 0 | AL64: 0 | AM64: 0 | AN64: 0 | AO64: 0 | AP64: 0 | AQ64: 0 | AR64: 0 | AS64: 0 | AT64: 186850 | AU64: 0 | AV64: 0 | AW64: 0 | AX64: 0
A65: ONT49 | B65: TXU - Goodwill Amortization | C65: -144620011 | D65: 0 | E65: 0 | F65: 0 | G65: 0 | H65: 0 | I65: 0 | J65: 0 | K65: 0 | L65: 0 | M65: 0 | N65: 0 | O65: 0 | P65: 0 | Q65: 0 | R65: 0 | S65: 0 | U65: 0 | V65: 0 | W65: 0 | X65: 0 | Y65: 0 | Z65: 0 | AA65: 0 | AB65: 0 | AC65: 0 | AD65: 0 | AE65: 0 | AF65: 0 | AG65: 0 | AH65: 0 | AI65: 0 | AJ65: 0 | AK65: 0 | AL65: 0 | AM65: 0 | AN65: 0 | AO65: 0 | AP65: 0 | AQ65: 0 | AR65: 0 | AS65: 0 | AT65: 0 | AU65: 0 | AV65: -104761634 | AW65: -39858377 | AX65: 0
A66: ONT51 | B66: Prepayments - MVG | C66: -1161 | D66: 0 | E66: 0 | F66: 0 | G66: 0 | H66: 0 | I66: 0 | J66: 0 | K66: 0 | L66: 0 | M66: 0 | N66: 0 | O66: 0 | P66: 0 | Q66: 0 | R66: 0 | S66: 0 | U66: 0 | V66: 0 | W66: 0 | X66: 0 | Y66: 0 | Z66: 0 | AA66: 0 | AB66: 0 | AC66: 0 | AD66: 0 | AE66: 0 | AF66: 0 | AG66: 0 | AH66: 0 | AI66: 0 | AJ66: 0 | AK66: 0 | AL66: 0 | AM66: 0 | AN66: 0 | AO66: 0 | AP66: 0 | AQ66: 0 | AR66: 0 | AS66: 0 | AT66: -1161 | AU66: 0 | AV66: 0 | AW66: 0 | AX66: 0
A67: ONT52 | B67: WACOG to FIFO Adjustment | C67: -2527777 | D67: 0 | E67: 0 | F67: -93306 | G67: 0 | H67: 0 | I67: 0 | J67: 0 | K67: 0 | L67: 0 | M67: 0 | N67: 0 | O67: 0 | P67: 0 | Q67: 0 | R67: 0 | S67: -34935 | U67: 0 | V67: 0 | W67: 0 | X67: 0 | Y67: 0 | Z67: 0 | AA67: 0 | AB67: 0 | AC67: 0 | AD67: 0 | AE67: 0 | AF67: 200613 | AG67: 0 | AH67: 0 | AI67: 0 | AJ67: 0 | AK67: 0 | AL67: 0 | AM67: 0 | AN67: 0 | AO67: 0 | AP67: 0 | AQ67: -156339 | AR67: 0 | AS67: 0 | AT67: -263152 | AU67: 0 | AV67: -2180659 | AW67: 0 | AX67: 0
A68: ONT61 | B68: Federal and State Tax Interest | C68: 439887 | D68: 0 | E68: 439887 | F68: 0 | G68: 0 | H68: 0 | I68: 0 | J68: 0 | K68: 0 | L68: 0 | M68: 0 | N68: 0 | O68: 0 | P68: 0 | Q68: 0 | R68: 0 | S68: 0 | U68: 0 | V68: 0 | W68: 0 | X68: 0 | Y68: 0 | Z68: 0 | AA68: 0 | AB68: 0 | AC68: 0 | AD68: 0 | AE68: 0 | AF68: 0 | AG68: 0 | AH68: 0 | AI68: 0 | AJ68: 0 | AK68: 0 | AL68: 0 | AM68: 0 | AN68: 0 | AO68: 0 | AP68: 0 | AQ68: 0 | AR68: 0 | AS68: 0 | AT68: 0 | AU68: 0 | AV68: 0 | AW68: 0 | AX68: 0
A69: ONT68 | B69: Reg Asset Benefit Accrual | C69: -4793826 | D69: 0 | E69: 0 | F69: 0 | G69: 0 | H69: 0 | I69: 0 | J69: 0 | K69: 0 | L69: 0 | M69: 0 | N69: 0 | O69: 0 | P69: 0 | Q69: 0 | R69: 0 | S69: -242383 | U69: 0 | V69: 0 | W69: 0 | X69: 0 | Y69: 0 | Z69: 0 | AA69: 0 | AB69: 0 | AC69: 0 | AD69: 0 | AE69: 0 | AF69: 0 | AG69: 0 | AH69: 0 | AI69: 0 | AJ69: 0 | AK69: -157961 | AL69: 0 | AM69: 0 | AN69: 0 | AO69: 0 | AP69: 0 | AQ69: 0 | AR69: 0 | AS69: 0 | AT69: 0 | AU69: 0 | AV69: -1229010 | AW69: -3164472 | AX69: 0
A70: ONT69 | B70: TX Rule 8.209 Reg Asset Deferral | C70: -11298567 | D70: 0 | E70: 0 | F70: 0 | G70: 0 | H70: 0 | I70: 0 | J70: -351869 | K70: 0 | L70: 0 | M70: 0 | N70: -26801 | O70: 0 | P70: 0 | Q70: 0 | R70: 0 | S70: 0 | U70: 0 | V70: 0 | W70: 0 | X70: 0 | Y70: 0 | Z70: 0 | AA70: 0 | AB70: -1348885 | AC70: -218893 | AD70: 0 | AE70: 0 | AF70: 0 | AG70: 0 | AH70: 0 | AI70: 0 | AJ70: 0 | AK70: 0 | AL70: 0 | AM70: 0 | AN70: 0 | AO70: 0 | AP70: 0 | AQ70: 0 | AR70: 0 | AS70: 0 | AT70: 0 | AU70: 0 | AV70: -9352119 | AW70: 0 | AX70: 0
A71: ONT70 | B71: LA SIIP Reg Asset | C71: -4291844 | D71: 0 | E71: 0 | F71: 0 | G71: -1778287 | H71: -2513558 | I71: 0 | J71: 0 | K71: 0 | L71: 0 | M71: 0 | N71: 0 | O71: 0 | P71: 0 | Q71: 0 | R71: 0 | S71: 0 | U71: 0 | V71: 0 | W71: 0 | X71: 0 | Y71: 0 | Z71: 0 | AA71: 0 | AB71: 0 | AC71: 0 | AD71: 0 | AE71: 0 | AF71: 0 | AG71: 0 | AH71: 0 | AI71: 0 | AJ71: 0 | AK71: 0 | AL71: 0 | AM71: 0 | AN71: 0 | AO71: 0 | AP71: 0 | AQ71: 0 | AR71: 0 | AS71: 0 | AT71: 0 | AU71: 0 | AV71: 0 | AW71: 0 | AX71: 0
A72: PEN01 | B72: Pension Expense | C72: -30651600 | D72: 0 | E72: -30651600 | F72: 0 | G72: 0 | H72: 0 | I72: 0 | J72: 0 | K72: 0 | L72: 0 | M72: 0 | N72: 0 | O72: 0 | P72: 0 | Q72: 0 | R72: 0 | S72: 0 | U72: 0 | V72: 0 | W72: 0 | X72: 0 | Y72: 0 | Z72: 0 | AA72: 0 | AB72: 0 | AC72: 0 | AD72: 0 | AE72: 0 | AF72: 0 | AG72: 0 | AH72: 0 | AI72: 0 | AJ72: 0 | AK72: 0 | AL72: 0 | AM72: 0 | AN72: 0 | AO72: 0 | AP72: 0 | AQ72: 0 | AR72: 0 | AS72: 0 | AT72: 0 | AU72: 0 | AV72: 0 | AW72: 0 | AX72: 0
A73: PRB01 | B73: FAS 106 Adjustment | C73: 64679810 | D73: 0 | E73: 8944489 | F73: 0 | G73: 13525582 | H73: 0 | I73: 0 | J73: 0 | K73: 0 | L73: 0 | M73: 0 | N73: 0 | O73: 0 | P73: 0 | Q73: 0 | R73: 0 | S73: 11057478 | U73: 0 | V73: 0 | W73: 0 | X73: 0 | Y73: 0 | Z73: 0 | AA73: 0 | AB73: 0 | AC73: 0 | AD73: 0 | AE73: 0 | AF73: 1170544 | AG73: 0 | AH73: 0 | AI73: 0 | AJ73: 0 | AK73: 0 | AL73: 0 | AM73: 0 | AN73: 0 | AO73: 0 | AP73: 0 | AQ73: 856209 | AR73: 0 | AS73: 0 | AT73: 6567729 | AU73: 0 | AV73: 24608158 | AW73: -2050380 | AX73: 0
A74: RGA01 | B74: Regulatory Asset - LGS Amortization | C74: -349731 | D74: 0 | E74: 0 | F74: -16744 | G74: -332986 | H74: 0 | I74: 0 | J74: 0 | K74: 0 | L74: 0 | M74: 0 | N74: 0 | O74: 0 | P74: 0 | Q74: 0 | R74: 0 | S74: 0 | U74: 0 | V74: 0 | W74: 0 | X74: 0 | Y74: 0 | Z74: 0 | AA74: 0 | AB74: 0 | AC74: 0 | AD74: 0 | AE74: 0 | AF74: 0 | AG74: 0 | AH74: 0 | AI74: 0 | AJ74: 0 | AK74: 0 | AL74: 0 | AM74: 0 | AN74: 0 | AO74: 0 | AP74: 0 | AQ74: 0 | AR74: 0 | AS74: 0 | AT74: 0 | AU74: 0 | AV74: 0 | AW74: 0 | AX74: 0
A75: RGL01 | B75: Regulatory Liability - Atmos 109 | C75: -35 | D75: 0 | E75: 0 | F75: 0 | G75: 0 | H75: 0 | I75: 0 | J75: 0 | K75: 0 | L75: -34 | M75: 0 | N75: 0 | O75: 0 | P75: 0 | Q75: 0 | R75: 0 | S75: 0 | U75: 0 | V75: 0 | W75: 0 | X75: 0 | Y75: 0 | Z75: 0 | AA75: 0 | AB75: 0 | AC75: 0 | AD75: 0 | AE75: 0 | AF75: 0 | AG75: 0 | AH75: 0 | AI75: 0 | AJ75: 0 | AK75: 0 | AL75: 0 | AM75: 0 | AN75: 0 | AO75: 0 | AP75: 0 | AQ75: 0 | AR75: 0 | AS75: 0 | AT75: 0 | AU75: 0 | AV75: 0 | AW75: 0 | AX75: 0
A76: RGL02 | B76: Regulatory Liability - Atmos | C76: 1060282 | D76: 0 | E76: 0 | F76: 0 | G76: 0 | H76: 0 | I76: 0 | J76: 0 | K76: 0 | L76: 0 | M76: 0 | N76: 0 | O76: 0 | P76: 0 | Q76: 0 | R76: 0 | S76: 0 | U76: 0 | V76: 0 | W76: 0 | X76: 0 | Y76: 0 | Z76: 0 | AA76: 0 | AB76: 0 | AC76: 0 | AD76: 0 | AE76: 0 | AF76: 0 | AG76: 0 | AH76: 0 | AI76: 0 | AJ76: 0 | AK76: 0 | AL76: 0 | AM76: 0 | AN76: 0 | AO76: 0 | AP76: 0 | AQ76: 0 | AR76: 1060282 | AS76: 0 | AT76: 0 | AU76: 0 | AV76: 0 | AW76: 0 | AX76: 0
A77: RGL03 | B77: Regulatory Liability - GGC 109 | C77: 0 | D77: 0 | E77: 0 | F77: 0 | G77: 0 | H77: 0 | I77: 0 | J77: 0 | K77: 0 | L77: 0 | M77: 0 | N77: 0 | O77: 0 | P77: 0 | Q77: 0 | R77: 0 | S77: 0 | U77: 0 | V77: 0 | W77: 0 | X77: 0 | Y77: 0 | Z77: 0 | AA77: 0 | AB77: 0 | AC77: 0 | AD77: 0 | AE77: 0 | AF77: 0 | AG77: 0 | AH77: 0 | AI77: 0 | AJ77: 0 | AK77: 0 | AL77: 0 | AM77: 0 | AN77: 0 | AO77: 0 | AP77: 0 | AQ77: 0 | AR77: 0 | AS77: 0 | AT77: 0 | AU77: 0 | AV77: 0 | AW77: 0 | AX77: 0
A78: RGL04 | B78: Regulatory Liability - UCGC 109 | C78: -310337 | D78: 0 | E78: 0 | F78: 0 | G78: 0 | H78: 0 | I78: 0 | J78: 0 | K78: 0 | L78: 0 | M78: 0 | N78: 0 | O78: 0 | P78: 0 | Q78: 0 | R78: 0 | S78: 0 | U78: 0 | V78: 0 | W78: 0 | X78: 0 | Y78: 0 | Z78: 0 | AA78: 0 | AB78: 0 | AC78: 0 | AD78: 0 | AE78: 0 | AF78: -310337 | AG78: 0 | AH78: 0 | AI78: 0 | AJ78: 0 | AK78: 0 | AL78: 0 | AM78: 0 | AN78: 0 | AO78: 0 | AP78: 0 | AQ78: 0 | AR78: 0 | AS78: 0 | AT78: 0 | AU78: 0 | AV78: 0 | AW78: 0 | AX78: 0
A79: RGL05 | B79: Regulatory Liability - UCGC Rate | C79: 111171 | D79: 0 | E79: 0 | F79: 0 | G79: 0 | H79: 0 | I79: 0 | J79: 0 | K79: 0 | L79: 0 | M79: 0 | N79: 0 | O79: 0 | P79: 0 | Q79: 0 | R79: 0 | S79: 0 | U79: 0 | V79: 0 | W79: 0 | X79: 0 | Y79: 0 | Z79: 0 | AA79: 0 | AB79: 0 | AC79: 0 | AD79: 0 | AE79: 0 | AF79: 111171 | AG79: 0 | AH79: 0 | AI79: 0 | AJ79: 0 | AK79: 0 | AL79: 0 | AM79: 0 | AN79: 0 | AO79: 0 | AP79: 0 | AQ79: 0 | AR79: 0 | AS79: 0 | AT79: 0 | AU79: 0 | AV79: 0 | AW79: 0 | AX79: 0
A80: TAX02NR | B80: Federal Net Operating Loss - Non-Regulated Entities | C80: =E80 -> -237733657 | D80: 0 | E80: -237733657 | F80: 0 | G80: 0 | H80: 0 | I80: 0 | J80: 0 | K80: 0 | L80: 0 | M80: 0 | N80: 0 | O80: 0 | P80: 0 | Q80: 0 | R80: 0 | S80: 0 | U80: 0 | V80: 0 | W80: 0 | X80: 0 | Y80: 0 | Z80: 0 | AA80: 0 | AB80: 0 | AC80: 0 | AD80: 0 | AE80: 0 | AF80: 0 | AG80: 0 | AH80: 0 | AI80: 0 | AJ80: 0 | AK80: 0 | AL80: 0 | AM80: 0 | AN80: 0 | AO80: 0 | AP80: 0 | AQ80: 0 | AR80: 0 | AS80: 0 | AT80: 0 | AU80: 0 | AV80: 0 | AW80: 0 | AX80: 0
A81: TAX02OT | B81: Federal Net Operating Loss - Other | C81: =E81 -> 6052102 | D81: 0 | E81: 6052102 | F81: 0 | G81: 0 | H81: 0 | I81: 0 | J81: 0 | K81: 0 | L81: 0 | M81: 0 | N81: 0 | O81: 0 | P81: 0 | Q81: 0 | R81: 0 | S81: 0 | U81: 0 | V81: 0 | W81: 0 | X81: 0 | Y81: 0 | Z81: 0 | AA81: 0 | AB81: 0 | AC81: 0 | AD81: 0 | AE81: 0 | AF81: 0 | AG81: 0 | AH81: 0 | AI81: 0 | AJ81: 0 | AK81: 0 | AL81: 0 | AM81: 0 | AN81: 0 | AO81: 0 | AP81: 0 | AQ81: 0 | AR81: 0 | AS81: 0 | AT81: 0 | AU81: 0 | AV81: 0 | AW81: 0 | AX81: 0
A82: TAX02U | B82: Federal Net Operating Loss - Regulated Entities | C82: =E82 -> 725716695 | D82: 0 | E82: 725716695 | F82: 0 | G82: 0 | H82: 0 | I82: 0 | J82: 0 | K82: 0 | L82: 0 | M82: 0 | N82: 0 | O82: 0 | P82: 0 | Q82: 0 | R82: 0 | S82: 0 | U82: 0 | V82: 0 | W82: 0 | X82: 0 | Y82: 0 | Z82: 0 | AA82: 0 | AB82: 0 | AC82: 0 | AD82: 0 | AE82: 0 | AF82: 0 | AG82: 0 | AH82: 0 | AI82: 0 | AJ82: 0 | AK82: 0 | AL82: 0 | AM82: 0 | AN82: 0 | AO82: 0 | AP82: 0 | AQ82: 0 | AR82: 0 | AS82: 0 | AT82: 0 | AU82: 0 | AV82: 0 | AW82: 0 | AX82: 0
A83: NOL_STATE | B83: State Net Operating Loss | C83: 19898284 | D83: 0 | E83: 0 | F83: 9278157 | G83: 0 | H83: 0 | I83: 0 | J83: 0 | K83: 0 | L83: 0 | M83: 0 | N83: 0 | O83: 0 | P83: 0 | Q83: 0 | R83: 0 | S83: 0 | U83: 0 | V83: 0 | W83: 0 | X83: 0 | Y83: 0 | Z83: 0 | AA83: 0 | AB83: 0 | AC83: 0 | AD83: 0 | AE83: 0 | AF83: 0 | AG83: 0 | AH83: 0 | AI83: 0 | AJ83: 0 | AK83: 1964772 | AL83: 0 | AM83: 53722 | AN83: 1622939 | AO83: 0 | AP83: 0 | AQ83: 4053416 | AR83: 0 | AS83: 0 | AT83: 2506302 | AU83: 0 | AV83: 418974 | AW83: 0 | AX83: 0
A84: SATTD_BONUS | B84: State Bonus Depreciation | C84: 10828400 | D84: 0 | E84: 0 | F84: 0 | G84: 0 | H84: 0 | I84: 0 | J84: 0 | K84: 0 | L84: 0 | M84: 0 | N84: 0 | O84: 0 | P84: 0 | Q84: 0 | R84: 0 | S84: 0 | U84: 0 | V84: 0 | W84: 0 | X84: 0 | Y84: 0 | Z84: 0 | AA84: 0 | AB84: 0 | AC84: 0 | AD84: 0 | AE84: 0 | AF84: 6925262 | AG84: 0 | AH84: 0 | AI84: 0 | AJ84: 0 | AK84: 0 | AL84: 0 | AM84: 0 | AN84: 0 | AO84: 0 | AP84: 0 | AQ84: 0 | AR84: 0 | AS84: 0 | AT84: 3903138 | AU84: 0 | AV84: 0 | AW84: 0 | AX84: 0
A85: SATTD_FAS115 | B85: State FAS 115 Adjustment | C85: -103029 | D85: 0 | E85: -101642 | F85: 0 | G85: 0 | H85: 0 | I85: 0 | J85: 0 | K85: 0 | L85: 0 | M85: 0 | N85: 0 | O85: 0 | P85: 0 | Q85: 0 | R85: 0 | S85: 0 | U85: 0 | V85: 0 | W85: 0 | X85: 0 | Y85: 0 | Z85: 0 | AA85: 0 | AB85: 0 | AC85: 0 | AD85: 0 | AE85: 0 | AF85: 0 | AG85: 0 | AH85: 0 | AI85: 0 | AJ85: 0 | AK85: 0 | AL85: 0 | AM85: 0 | AN85: 0 | AO85: 0 | AP85: 0 | AQ85: 0 | AR85: 0 | AS85: 0 | AT85: 0 | AU85: 0 | AV85: 0 | AW85: 0 | AX85: -1387
A86: SATTD_ITC | B86: State Enterprise Zone ITC | C86: 1141110 | D86: 0 | E86: 1141110 | F86: 0 | G86: 0 | H86: 0 | I86: 0 | J86: 0 | K86: 0 | L86: 0 | M86: 0 | N86: 0 | O86: 0 | P86: 0 | Q86: 0 | R86: 0 | S86: 0 | U86: 0 | V86: 0 | W86: 0 | X86: 0 | Y86: 0 | Z86: 0 | AA86: 0 | AB86: 0 | AC86: 0 | AD86: 0 | AE86: 0 | AF86: 0 | AG86: 0 | AH86: 0 | AI86: 0 | AJ86: 0 | AK86: 0 | AL86: 0 | AM86: 0 | AN86: 0 | AO86: 0 | AP86: 0 | AQ86: 0 | AR86: 0 | AS86: 0 | AT86: 0 | AU86: 0 | AV86: 0 | AW86: 0 | AX86: 0
A87: SATTD_TREAS_REAL | B87: State Treasury Lock Adj - Realized | C87: 630719 | D87: 0 | E87: 630719 | F87: 0 | G87: 0 | H87: 0 | I87: 0 | J87: 0 | K87: 0 | L87: 0 | M87: 0 | N87: 0 | O87: 0 | P87: 0 | Q87: 0 | R87: 0 | S87: 0 | U87: 0 | V87: 0 | W87: 0 | X87: 0 | Y87: 0 | Z87: 0 | AA87: 0 | AB87: 0 | AC87: 0 | AD87: 0 | AE87: 0 | AF87: 0 | AG87: 0 | AH87: 0 | AI87: 0 | AJ87: 0 | AK87: 0 | AL87: 0 | AM87: 0 | AN87: 0 | AO87: 0 | AP87: 0 | AQ87: 0 | AR87: 0 | AS87: 0 | AT87: 0 | AU87: 0 | AV87: 0 | AW87: 0 | AX87: 0
A88: SATTD_TREAS_UNREAL | B88: State Treasury Lock Adj - Unrealized | C88: 3784202 | D88: 0 | E88: 3784202 | F88: 0 | G88: 0 | H88: 0 | I88: 0 | J88: 0 | K88: 0 | L88: 0 | M88: 0 | N88: 0 | O88: 0 | P88: 0 | Q88: 0 | R88: 0 | S88: 0 | U88: 0 | V88: 0 | W88: 0 | X88: 0 | Y88: 0 | Z88: 0 | AA88: 0 | AB88: 0 | AC88: 0 | AD88: 0 | AE88: 0 | AF88: 0 | AG88: 0 | AH88: 0 | AI88: 0 | AJ88: 0 | AK88: 0 | AL88: 0 | AM88: 0 | AN88: 0 | AO88: 0 | AP88: 0 | AQ88: 0 | AR88: 0 | AS88: 0 | AT88: 0 | AU88: 0 | AV88: 0 | AW88: 0 | AX88: 0
A89: ONT67 | B89: VA - Charitable Contributions | C89: -9275764 | D89: 0 | E89: -9275764 | F89: 0 | G89: 0 | H89: 0 | I89: 0 | J89: 0 | K89: 0 | L89: 0 | M89: 0 | N89: 0 | O89: 0 | P89: 0 | Q89: 0 | R89: 0 | S89: 0 | U89: 0 | V89: 0 | W89: 0 | X89: 0 | Y89: 0 | Z89: 0 | AA89: 0 | AB89: 0 | AC89: 0 | AD89: 0 | AE89: 0 | AF89: 0 | AG89: 0 | AH89: 0 | AI89: 0 | AJ89: 0 | AK89: 0 | AL89: 0 | AM89: 0 | AN89: 0 | AO89: 0 | AP89: 0 | AQ89: 0 | AR89: 0 | AS89: 0 | AT89: 0 | AU89: 0 | AV89: 0 | AW89: 0 | AX89: 0
A90: VA_STATE | B90: State Valuation Allowance | C90: -78603 | D90: 0 | E90: -78603 | F90: 0 | G90: 0 | H90: 0 | I90: 0 | J90: 0 | K90: 0 | L90: 0 | M90: 0 | N90: 0 | O90: 0 | P90: 0 | Q90: 0 | R90: 0 | S90: 0 | U90: 0 | V90: 0 | W90: 0 | X90: 0 | Y90: 0 | Z90: 0 | AA90: 0 | AB90: 0 | AC90: 0 | AD90: 0 | AE90: 0 | AF90: 0 | AG90: 0 | AH90: 0 | AI90: 0 | AJ90: 0 | AK90: 0 | AL90: 0 | AM90: 0 | AN90: 0 | AO90: 0 | AP90: 0 | AQ90: 0 | AR90: 0 | AS90: 0 | AT90: 0 | AU90: 0 | AV90: 0 | AW90: 0 | AX90: 0
A91: VA_STATE_NOL | B91: State NOL Valuation Allowance | C91: -1016516 | D91: 0 | E91: 0 | F91: -365243 | G91: 0 | H91: 0 | I91: 0 | J91: 0 | K91: 0 | L91: 0 | M91: 0 | N91: 0 | O91: 0 | P91: 0 | Q91: 0 | R91: 0 | S91: 0 | U91: 0 | V91: 0 | W91: 0 | X91: 0 | Y91: 0 | Z91: 0 | AA91: 0 | AB91: 0 | AC91: 0 | AD91: 0 | AE91: 0 | AF91: 0 | AG91: 0 | AH91: 0 | AI91: 0 | AJ91: 0 | AK91: 0 | AL91: 0 | AM91: 0 | AN91: 0 | AO91: 0 | AP91: 0 | AQ91: -651273 | AR91: 0 | AS91: 0 | AT91: 0 | AU91: 0 | AV91: 0 | AW91: 0 | AX91: 0
A92: Total | C92: -1595626070 | D92: -28491717 | E92: 620408352 | F92: 9056635 | G92: -116141303 | H92: -61323803 | I92: 0 | J92: -30715666 | K92: 0 | L92: -1734555 | M92: -116261 | N92: -1258124 | O92: -1576 | P92: 1609 | Q92: 79 | R92: -134103 | S92: =SUM(S10:S91) -> 10572850 | T92: =SUM(T10:T91) -> -871667.45 | U92: 66585 | V92: -32538482 | W92: -2127624 | X92: 0 | Y92: 0 | Z92: -9293047 | AA92: 0 | AB92: -73648001 | AC92: -12124507 | AD92: -1 | AE92: -84985 | AF92: 9861811 | AG92: 0 | AH92: 0 | AI92: 0 | AJ92: 0 | AK92: -85402624 | AL92: 0 | AM92: -20274746 | AN92: -96915267 | AO92: -373959 | AP92: -40301680 | AQ92: 4897230 | AR92: -72142800 | AS92: 0 | AT92: -112670824 | AU92: -741962 | AV92: -913954309 | AW92: -536731852 | AX92: -375778
C93: =SUM(C10:C91) -> -1595626070 | D93: =SUM(D92:AX92) -> -1595626072
C94: =C92-C93 -> 0
A95: TAX06 | C95: =C85+C18 -> -2515060 | D95: =D85+D18 -> 0 | E95: -2481196 | F95: 0 | G95: 0 | H95: 0 | I95: 0 | J95: 0 | K95: 0 | L95: 0 | M95: 0 | N95: 0 | O95: 0 | P95: 0 | Q95: 0 | R95: 0 | S95: 0 | U95: 0 | V95: 0 | W95: 0 | X95: 0 | Y95: 0 | Z95: 0 | AA95: 0 | AB95: 0 | AC95: 0 | AD95: 0 | AE95: 0 | AF95: 0 | AG95: 0 | AH95: 0 | AI95: 0 | AJ95: 0 | AK95: 0 | AL95: 0 | AM95: 0 | AN95: 0 | AO95: 0 | AP95: 0 | AQ95: 0 | AR95: 0 | AS95: 0 | AT95: 0 | AU95: 0 | AV95: 0 | AW95: 0 | AX95: -33864
A96: TAX40 | B96: **ties to T Lock Recon, will update OTP** | C96: 10520828 | D96: =D87+D20 -> 0 | E96: 10520828 | F96: 0 | G96: 0 | H96: 0 | I96: 0 | J96: 0 | K96: 0 | L96: 0 | M96: 0 | N96: 0 | O96: 0 | P96: 0 | Q96: 0 | R96: 0 | S96: 0 | U96: 0 | V96: 0 | W96: 0 | X96: 0 | Y96: 0 | Z96: 0 | AA96: 0 | AB96: 0 | AC96: 0 | AD96: 0 | AE96: 0 | AF96: 0 | AG96: 0 | AH96: 0 | AI96: 0 | AJ96: 0 | AK96: 0 | AL96: 0 | AM96: 0 | AN96: 0 | AO96: 0 | AP96: 0 | AQ96: 0 | AR96: 0 | AS96: 0 | AT96: 0 | AU96: 0 | AV96: 0 | AW96: 0 | AX96: 0
A97: TAX41 | B97: **ties to T Lock Recon, will update OTP** | C97: 97261210 | D97: =D88+D21 -> 0 | E97: 97261210 | F97: 0 | G97: 0 | H97: 0 | I97: 0 | J97: 0 | K97: 0 | L97: 0 | M97: 0 | N97: 0 | O97: 0 | P97: 0 | Q97: 0 | R97: 0 | S97: 0 | U97: 0 | V97: 0 | W97: 0 | X97: 0 | Y97: 0 | Z97: 0 | AA97: 0 | AB97: 0 | AC97: 0 | AD97: 0 | AE97: 0 | AF97: 0 | AG97: 0 | AH97: 0 | AI97: 0 | AJ97: 0 | AK97: 0 | AL97: 0 | AM97: 0 | AN97: 0 | AO97: 0 | AP97: 0 | AQ97: 0 | AR97: 0 | AS97: 0 | AT97: 0 | AU97: 0 | AV97: 0 | AW97: 0 | AX97: 0
B99: unrealized per T Lock Recon | C99: 97268212
B100: difference | C100: =C99-SUM(C88,C21) -> 4882847
B102: realized per T Lock Recon | C102: =10520828 -> 10520828
B103: difference | C103: =C102-SUM(C87,C20) -> -4875845
C104: beginning balance error
C105: will update in OTP | D105: no net change, just wrong split BOY in OTP only, ADIT was correct
C106: =C102+C99 -> 107789040

Sheet Fed+FBOS (hidden)
A1: 11/4/2016 10:28:56 AM
A2: Atmos Energy Corporation
A3: SubConsolidatedDeferredBalancesReport-Fed/FBOS (Reporting)
A4: FY16 Q4 Provision, 02 AUT
C6: ='OTP DP'!C6 -> Total Utility | D6: ='OTP DP'!D6 -> 012DIV | E6: ='OTP DP'!E6 -> 002DIV | F6: ='OTP DP'!F6 -> 107DIV | G6: ='OTP DP'!G6 -> 077DIV | H6: ='OTP DP'!H6 -> 007DIV | I6: ='OTP DP'!I6 -> 047DIV | J6: ='OTP DP'!J6 -> 003DIV | K6: ='OTP DP'!K6 -> 979DIV | L6: ='OTP DP'!L6 -> 013DIV | M6: ='OTP DP'!M6 -> 001DIV | N6: ='OTP DP'!N6 -> 006DIV | O6: ='OTP DP'!O6 -> 018DIV | P6: ='OTP DP'!P6 -> 017DIV | Q6: ='OTP DP'!Q6 -> 011DIV | R6: ='OTP DP'!R6 -> 004DIV | S6: ='OTP DP'!S6 -> 010DIV | T6: ='OTP DP'!T6 -> 040DIV | U6: ='OTP DP'!U6 -> 008DIV | V6: ='OTP DP'!V6 -> 016DIV | W6: ='OTP DP'!W6 -> 020DIV | X6: ='OTP DP'!X6 -> 014DIV | Y6: ='OTP DP'!Y6 -> 015DIV | Z6: ='OTP DP'!Z6 -> 019DIV | AA6: ='OTP DP'!AA6 -> 040DIV | AB6: ='OTP DP'!AB6 -> 005DIV | AC6: ='OTP DP'!AC6 -> 021DIV | AD6: ='OTP DP'!AD6 -> 099DIV | AE6: ='OTP DP'!AE6 -> 095DIV | AF6: ='OTP DP'!AF6 -> 091DIV | AG6: ='OTP DP'!AG6 -> 098DIV | AH6: ='OTP DP'!AH6 -> 092DIV | AI6: ='OTP DP'!AI6 -> 070DIV | AJ6: ='OTP DP'!AJ6 -> 072DIV | AK6: ='OTP DP'!AK6 -> 093DIV | AL6: ='OTP DP'!AL6 -> 097DIV | AM6: ='OTP DP'!AM6 -> 096DIV | AN6: ='OTP DP'!AN6 -> 009DIV | AO6: ='OTP DP'!AO6 -> 071DIV | AP6: ='OTP DP'!AP6 -> COLODV | AQ6: ='OTP DP'!AQ6 -> 030DIV | AR6: ='OTP DP'!AR6 -> KANSDV | AS6: ='OTP DP'!AS6 -> 172DIV | AT6: ='OTP DP'!AT6 -> 170DIV | AU6: ='OTP DP'!AU6 -> 171DIV | AV6: ='OTP DP'!AV6 -> 190DIV | AW6: ='OTP DP'!AW6 -> 700DIV | AX6: ='OTP DP'!AX6 -> 830DIV | AY6: ='OTP DP'!AY6 -> 0 | AZ6: ='OTP DP'!AZ6 -> 0 | BA6: ='OTP DP'!BA6 -> 0 | BB6: ='OTP DP'!BB6 -> 0
D7: AU010CAL | E7: AU010SSU | F7: AU020GOF | G7: AU020LGS | H7: AU020TLA | I7: AU020TLAC | J7: AU030AMR | K7: AU030AMREL | L7: AU030AMRRU | M7: AU030ATR | N7: AU030DHT | O7: AU030DHTIR | P7: AU030DHTRU | Q7: AU030F10 | R7: AU030FSD | S7: AU030GOF | U7: AU030IRR | V7: AU030LUB | W7: AU030LUBEN | X7: AU030NIN | Y7: AU030RIN | Z7: AU030TRI | AA7: AU030TXCNG | AB7: AU030WTX | AC7: AU030WTXRU | AD7: AU050FTB | AE7: AU050GA | AF7: AU050GOF | AG7: AU050IA | AH7: AU050IL | AI7: AU050KVL | AJ7: AU050SEA | AK7: AU050TN | AL7: AU050UCG | AM7: AU050VA | AN7: AU050WKG | AO7: AU060BTR | AP7: AU060CO | AQ7: AU060GOF | AR7: AU060KS | AS7: AU070172 | AT7: AU070MVG | AU7: AU070PBR | AV7: AU080GOF | AW7: AU180APT | AX7: AU210 | AY7: AU982ELIM | AZ7: AU989 | BA7: AU990
C8: TOTAL | D8: Atmos Utility Call Center | E8: Atmos Energy Corporation | F8: Louisiana Division - General Office | G8: Louisiana Division - LGS | H8: Louisiana Division - Trans LA | I8: Trans LA CNG Division | J8: West Texas Division - Amarillo City Plant Division | K8: West Texas Division - Amarillo Elimination Division | L8: West Texas Division - Amarillo Rural Division | M8: West Texas Division - Amarillo Transmission | N8: West Texas Division - Dalhart | O8: West Texas Division - Dalhart Rural Irrigation Division | P8: West Texas Division - Dalhart Rural Division | Q8: West Texas Division - Fain 10 | R8: West Texas Division - Fritch, Sanford | S8: West Texas Division - Texas General Office | U8: West Texas Division - Irrigation | V8: West Texas Division - Lubbock City Plant | W8: West Texas Division - Lubbock Environs | X8: West Texas Division - Non-Reg Industrial | Y8: West Texas Division - Reg Industrial | Z8: West Texas Division - Triangle | AA8: West Texas Division - TX CNG | AB8: West Texas Division - West Texas City Plant Division | AC8: West Texas Division - West Texas Rural Division | AD8: Mid States Division - Missouri - Ft Benning | AE8: Mid States Division - Georgia | AF8: Mid States Division - General Office | AG8: Mid States Division - Iowa | AH8: Mid States Division - Illinois | AI8: Mid States Division - Missouri - Kirsville | AJ8: Mid States Division - Missouri - Southeast | AK8: Mid States Division - Tennessee | AL8: Mid States Division - Missouri - UCG | AM8: Mid States Division - Virginia | AN8: Mid States Division - Kentucky | AO8: Colorado-Kansas Division - Butler | AP8: Colorado-Kansas Division - CO | AQ8: Colorado-Kansas Division - General Office | AR8: Colorado-Kansas Division - KS | AS8: Mississippi Valley Gas Division 172 | AT8: Mississippi Valley Gas Division - MVG | AU8: Mississippi Valley Gas Division - MS PBR | AV8: Mid Tex Gas Division | AW8: Atmos Pipeline - Texas | AX8: Blueflame Insurance Services | AY8: Atmos Energy Corporation Elimination | AZ8: Blueflame Insurance Services Elimination | BA8: Mid Tex Elim
A9: Code | B9: Name | C9: Ending Balance | D9: Ending Balance | E9: Ending Balance | F9: Ending Balance | G9: Ending Balance | H9: Ending Balance | I9: Ending Balance | J9: Ending Balance | K9: Ending Balance | L9: Ending Balance | M9: Ending Balance | N9: Ending Balance | O9: Ending Balance | P9: Ending Balance | Q9: Ending Balance | R9: Ending Balance | S9: Ending Balance | U9: Ending Balance | V9: Ending Balance | W9: Ending Balance | X9: Ending Balance | Y9: Ending Balance | Z9: Ending Balance | AA9: Ending Balance | AB9: Ending Balance | AC9: Ending Balance | AD9: Ending Balance | AE9: Ending Balance | AF9: Ending Balance | AG9: Ending Balance | AH9: Ending Balance | AI9: Ending Balance | AJ9: Ending Balance | AK9: Ending Balance | AL9: Ending Balance | AM9: Ending Balance | AN9: Ending Balance | AO9: Ending Balance | AP9: Ending Balance | AQ9: Ending Balance | AR9: Ending Balance | AS9: Ending Balance | AT9: Ending Balance | AU9: Ending Balance | AV9: Ending Balance | AW9: Ending Balance | AX9: Ending Balance | AY9: Ending Balance | AZ9: Ending Balance | BA9: Ending Balance
A10: Unassigned | B10: Unassigned
A11: ACC02 | B11: Ad Valorum Taxes | C11: -3606469 | D11: 0 | E11: 0 | F11: 0 | G11: 0 | H11: 0 | I11: 0 | J11: 0 | K11: 0 | L11: 0 | M11: 0 | N11: 0 | O11: 0 | P11: 0 | Q11: 0 | R11: 0 | S11: -225428 | U11: 0 | V11: 0 | W11: 0 | X11: 0 | Y11: 0 | Z11: 0 | AA11: 0 | AB11: 0 | AC11: 0 | AD11: 0 | AE11: 0 | AF11: 0 | AG11: 0 | AH11: 0 | AI11: 0 | AJ11: 0 | AK11: 0 | AL11: 0 | AM11: 0 | AN11: 0 | AO11: 0 | AP11: 0 | AQ11: 0 | AR11: 0 | AS11: 0 | AT11: -654513 | AU11: 0 | AV11: -1451066 | AW11: -1275462 | AX11: 0 | AY11: 0 | AZ11: 0 | BA11: 0
A12: ACC03 | B12: Directors Deferred Bonus | C12: 156443 | D12: 0 | E12: 156443 | F12: 0 | G12: 0 | H12: 0 | I12: 0 | J12: 0 | K12: 0 | L12: 0 | M12: 0 | N12: 0 | O12: 0 | P12: 0 | Q12: 0 | R12: 0 | S12: 0 | U12: 0 | V12: 0 | W12: 0 | X12: 0 | Y12: 0 | Z12: 0 | AA12: 0 | AB12: 0 | AC12: 0 | AD12: 0 | AE12: 0 | AF12: 0 | AG12: 0 | AH12: 0 | AI12: 0 | AJ12: 0 | AK12: 0 | AL12: 0 | AM12: 0 | AN12: 0 | AO12: 0 | AP12: 0 | AQ12: 0 | AR12: 0 | AS12: 0 | AT12: 0 | AU12: 0 | AV12: 0 | AW12: 0 | AX12: 0 | AY12: 0 | AZ12: 0 | BA12: 0
A13: ACC04 | B13: MIP / VPP Accrual | C13: 658931 | D13: -538553 | E13: 1404443 | F13: -13969 | G13: 240894 | H13: -235689 | I13: 0 | J13: -28174 | K13: 0 | L13: 0 | M13: 0 | N13: 0 | O13: 0 | P13: 0 | Q13: 0 | R13: 0 | S13: 23070 | U13: 0 | V13: 0 | W13: 0 | X13: 0 | Y13: 0 | Z13: 0 | AA13: 0 | AB13: 0 | AC13: 0 | AD13: 0 | AE13: 0 | AF13: -16863 | AG13: 0 | AH13: 0 | AI13: 0 | AJ13: 0 | AK13: 0 | AL13: 0 | AM13: 0 | AN13: -17036 | AO13: 0 | AP13: -40102 | AQ13: 103411 | AR13: -94232 | AS13: 0 | AT13: -43956 | AU13: 0 | AV13: -1818195 | AW13: 1733882 | AX13: 0 | AY13: 0 | AZ13: 0 | BA13: 0
A14: ACC06 | B14: Miscellaneous Accrued | C14: 0 | D14: 0 | E14: 0 | F14: 0 | G14: 0 | H14: 0 | I14: 0 | J14: 0 | K14: 0 | L14: 0 | M14: 0 | N14: 0 | O14: 0 | P14: 0 | Q14: 0 | R14: 0 | S14: 0 | U14: 0 | V14: 0 | W14: 0 | X14: 0 | Y14: 0 | Z14: 0 | AA14: 0 | AB14: 0 | AC14: 0 | AD14: 0 | AE14: 0 | AF14: 0 | AG14: 0 | AH14: 0 | AI14: 0 | AJ14: 0 | AK14: 0 | AL14: 0 | AM14: 0 | AN14: 0 | AO14: 0 | AP14: 0 | AQ14: 0 | AR14: 0 | AS14: 0 | AT14: 0 | AU14: 0 | AV14: 0 | AW14: 0 | AX14: 0 | AY14: 0 | AZ14: 0 | BA14: 0
A15: ACC08 | B15: Self Insurance - Adjustment | C15: 2731555 | D15: 0 | E15: 2731555 | F15: 0 | G15: 0 | H15: 0 | I15: 0 | J15: 0 | K15: 0 | L15: 0 | M15: 0 | N15: 0 | O15: 0 | P15: 0 | Q15: 0 | R15: 0 | S15: 0 | U15: 0 | V15: 0 | W15: 0 | X15: 0 | Y15: 0 | Z15: 0 | AA15: 0 | AB15: 0 | AC15: 0 | AD15: 0 | AE15: 0 | AF15: 0 | AG15: 0 | AH15: 0 | AI15: 0 | AJ15: 0 | AK15: 0 | AL15: 0 | AM15: 0 | AN15: 0 | AO15: 0 | AP15: 0 | AQ15: 0 | AR15: 0 | AS15: 0 | AT15: 0 | AU15: 0 | AV15: 0 | AW15: 0 | AX15: 0 | AY15: 0 | AZ15: 0 | BA15: 0
A16: ACC11 | B16: Vacation Accrual | C16: 0 | D16: 0 | E16: 0 | F16: 0 | G16: 0 | H16: 0 | I16: 0 | J16: 0 | K16: 0 | L16: 0 | M16: 0 | N16: 0 | O16: 0 | P16: 0 | Q16: 0 | R16: 0 | S16: 0 | U16: 0 | V16: 0 | W16: 0 | X16: 0 | Y16: 0 | Z16: 0 | AA16: 0 | AB16: 0 | AC16: 0 | AD16: 0 | AE16: 0 | AF16: 0 | AG16: 0 | AH16: 0 | AI16: 0 | AJ16: 0 | AK16: 0 | AL16: 0 | AM16: 0 | AN16: 0 | AO16: 0 | AP16: 0 | AQ16: 0 | AR16: 0 | AS16: 0 | AT16: 0 | AU16: 0 | AV16: 0 | AW16: 0 | AX16: 0 | AY16: 0 | AZ16: 0 | BA16: 0
A17: ACC12 | B17: Worker's Comp Insurance Reserve | C17: 2025549 | D17: 0 | E17: 98075 | F17: 216751 | G17: 0 | H17: 0 | I17: 0 | J17: 0 | K17: 0 | L17: 0 | M17: 0 | N17: 0 | O17: 0 | P17: 0 | Q17: 0 | R17: 0 | S17: 166692 | U17: 0 | V17: 0 | W17: 0 | X17: 0 | Y17: 0 | Z17: 0 | AA17: 0 | AB17: 0 | AC17: 0 | AD17: 0 | AE17: 0 | AF17: 401944 | AG17: 0 | AH17: 0 | AI17: 0 | AJ17: 0 | AK17: 0 | AL17: 0 | AM17: 0 | AN17: 0 | AO17: 0 | AP17: -79937 | AQ17: 316295 | AR17: 0 | AS17: 0 | AT17: 280913 | AU17: 0 | AV17: 492214 | AW17: 132603 | AX17: 0 | AY17: 0 | AZ17: 0 | BA17: 0
A18: ATTD_AMT | B18: Alternative Minimum Tax Credit | C18: 10099286 | D18: 0 | E18: 10099286 | F18: 0 | G18: 0 | H18: 0 | I18: 0 | J18: 0 | K18: 0 | L18: 0 | M18: 0 | N18: 0 | O18: 0 | P18: 0 | Q18: 0 | R18: 0 | S18: 0 | U18: 0 | V18: 0 | W18: 0 | X18: 0 | Y18: 0 | Z18: 0 | AA18: 0 | AB18: 0 | AC18: 0 | AD18: 0 | AE18: 0 | AF18: 0 | AG18: 0 | AH18: 0 | AI18: 0 | AJ18: 0 | AK18: 0 | AL18: 0 | AM18: 0 | AN18: 0 | AO18: 0 | AP18: 0 | AQ18: 0 | AR18: 0 | AS18: 0 | AT18: 0 | AU18: 0 | AV18: 0 | AW18: 0 | AX18: 0 | AY18: 0 | AZ18: 0 | BA18: 0
